Workbook

Sheet Sheet1 (hidden)

Sheet Lists_1 (hidden)
A1: PML | C1: Project Level_PL | E1: Network Level_NL
A2: Project Level | B2: cat1 | C2: Asphalt (Flexible) | D2: subcat1 | E2: Asphalt (Flexible)
A3: Network Level | B3: cat2 | C3: Concrete (Rigid) | D3: subcat2 | E3: Concrete (Rigid)
C4: Asphalt (AC) over JPCP (Composite) | D4: subcat3 | E4: Asphalt (AC) over JPCP (Composite)
A6: PT_PL | C6: Asphalt (Flexible) | E6: Asphalt (Flexible)
A7: Asphalt (Flexible) | C7: IRI | D7: item1 | E7: IRI | F7: item1
A8: Concrete (Rigid) | E8: Rutting | F8: item2
A9: Asphalt (AC) over JPCP (Composite) | C9: Concrete (Rigid) | E9: Transverse Cracking | F9: item3
A10: PT_NL | C10: IRI | E10: Longitudinal Cracking | F10: item4
A11: Asphalt (Flexible)
A12: Concrete (Rigid) | C12: Asphalt (AC) over JPCP (Composite) | E12: Concrete (Rigid)
A13: Asphalt (AC) over JPCP (Composite) | C13: IRI | E13: IRI
E14: Transverse Cracking
A15: PPI | B15: item
A16: IRI | E16: Asphalt (AC) over JPCP (Composite)
A17: Rutting | E17: IRI
A18: Transverse Cracking | E18: Rutting
A19: Longitudinal Cracking | E19: Transverse Cracking
E20: Longitudinal Cracking
A22: PT_PL
A23: Asphalt (Flexible)
A24: Concrete (Rigid)
A25: Asphalt (AC) over JPCP (Composite)

Sheet Lists (hidden)
A1: Drop-Down Type | B1: Item | C1: Parent Drop-down | D1: Classification
A2: Pavement Management Level | B2: Project Level
A3: Pavement Management Level | B3: Network Level
A4: Pavement Type | B4: Concrete (Rigid) | C4: Project Level
A5: Pavement Type | B5: Asphalt (Flexible) | C5: Project Level
A6: Pavement Type | B6: AC over JPCP (Composite) | C6: Project Level
A7: Pavement Type | B7: Concrete (Rigid) | C7: Network Level
A8: Pavement Type | B8: Asphalt (Flexible) | C8: Network Level
A9: Pavement Type | B9: AC over JPCP (Composite) | C9: Network Level
A10: Pavement Performance Indicator | B10: IRI | C10: Concrete (Rigid) | D10: Project Level
A11: Pavement Performance Indicator | B11: IRI | C11: Asphalt (Flexible) | D11: Project Level
A12: Pavement Performance Indicator | B12: IRI | C12: AC over JPCP (Composite) | D12: Project Level
A13: Pavement Performance Indicator | B13: IRI | C13: Concrete (Rigid) | D13: Network Level
A14: Pavement Performance Indicator | B14: Transverse Cracking | C14: Concrete (Rigid) | D14: Network Level
A15: Pavement Performance Indicator | B15: IRI | C15: Asphalt (Flexible) | D15: Network Level
A16: Pavement Performance Indicator | B16: Rutting | C16: Asphalt (Flexible) | D16: Network Level
A17: Pavement Performance Indicator | B17: Transverse Cracking | C17: Asphalt (Flexible) | D17: Network Level
A18: Pavement Performance Indicator | B18: Longitudinal Cracking | C18: Asphalt (Flexible) | D18: Network Level
A19: Pavement Performance Indicator | B19: IRI | C19: AC over JPCP (Composite) | D19: Network Level
A20: Pavement Performance Indicator | B20: Rutting | C20: AC over JPCP (Composite) | D20: Network Level
A21: Pavement Performance Indicator | B21: Transverse Cracking | C21: AC over JPCP (Composite) | D21: Network Level
A22: Pavement Performance Indicator | B22: Longitudinal Cracking | C22: AC over JPCP (Composite) | D22: Network Level

Sheet Sheet2 (hidden)

Sheet Statistical Tool (hidden)
A1: Project Name | B1: COUNAME | C1: PROJECT_NO | D1: BPRJ | E1: EPRJ | F1: CONYR | G1: DATAYR | H1: IRIi (in/mile) | I1: PCI (%) | J1: Age (years) | K1: Predicted IRI (in/mile) | L1: Predicted PCI (%)
J2: ='Iteration Details'!T2 ->  | K2: =IF($H$2<>"",'Iteration Details'!L2,"") ->  | L2: =IF($I$2<>"",'Iteration Details'!N2,"") -> 
J3: ='Iteration Details'!T3 ->  | K3: =IF($H$2<>"",'Iteration Details'!L3,"") ->  | L3: =IF($I$2<>"",'Iteration Details'!N3,"") -> 
J4: ='Iteration Details'!T4 ->  | K4: =IF($H$2<>"",'Iteration Details'!L4,"") ->  | L4: =IF($I$2<>"",'Iteration Details'!N4,"") -> 
J5: ='Iteration Details'!T5 ->  | K5: =IF($H$2<>"",'Iteration Details'!L5,"") ->  | L5: =IF($I$2<>"",'Iteration Details'!N5,"") -> 
J6: ='Iteration Details'!T6 ->  | K6: =IF($H$2<>"",'Iteration Details'!L6,"") ->  | L6: =IF($I$2<>"",'Iteration Details'!N6,"") -> 
J7: ='Iteration Details'!T7 ->  | K7: =IF($H$2<>"",'Iteration Details'!L7,"") ->  | L7: =IF($I$2<>"",'Iteration Details'!N7,"") -> 
J8: ='Iteration Details'!T8 ->  | K8: =IF($H$2<>"",'Iteration Details'!L8,"") ->  | L8: =IF($I$2<>"",'Iteration Details'!N8,"") -> 
J9: ='Iteration Details'!T9 ->  | K9: =IF($H$2<>"",'Iteration Details'!L9,"") ->  | L9: =IF($I$2<>"",'Iteration Details'!N9,"") -> 
J10: ='Iteration Details'!T10 ->  | K10: =IF($H$2<>"",'Iteration Details'!L10,"") ->  | L10: =IF($I$2<>"",'Iteration Details'!N10,"") -> 
J11: ='Iteration Details'!T11 ->  | K11: =IF($H$2<>"",'Iteration Details'!L11,"") ->  | L11: =IF($I$2<>"",'Iteration Details'!N11,"") -> 
J12: ='Iteration Details'!T12 ->  | K12: =IF($H$2<>"",'Iteration Details'!L12,"") ->  | L12: =IF($I$2<>"",'Iteration Details'!N12,"") -> 
J13: ='Iteration Details'!T13 ->  | K13: =IF($H$2<>"",'Iteration Details'!L13,"") ->  | L13: =IF($I$2<>"",'Iteration Details'!N13,"") -> 
J14: ='Iteration Details'!T14 ->  | K14: =IF($H$2<>"",'Iteration Details'!L14,"") ->  | L14: =IF($I$2<>"",'Iteration Details'!N14,"") -> 
J15: ='Iteration Details'!T15 ->  | K15: =IF($H$2<>"",'Iteration Details'!L15,"") ->  | L15: =IF($I$2<>"",'Iteration Details'!N15,"") -> 
J16: ='Iteration Details'!T16 ->  | K16: =IF($H$2<>"",'Iteration Details'!L16,"") ->  | L16: =IF($I$2<>"",'Iteration Details'!N16,"") -> 
J17: ='Iteration Details'!T17 ->  | K17: =IF($H$2<>"",'Iteration Details'!L17,"") ->  | L17: =IF($I$2<>"",'Iteration Details'!N17,"") -> 
J18: ='Iteration Details'!T18 ->  | K18: =IF($H$2<>"",'Iteration Details'!L18,"") ->  | L18: =IF($I$2<>"",'Iteration Details'!N18,"") -> 
J19: ='Iteration Details'!T19 ->  | K19: =IF($H$2<>"",'Iteration Details'!L19,"") ->  | L19: =IF($I$2<>"",'Iteration Details'!N19,"") -> 
J20: ='Iteration Details'!T20 ->  | K20: =IF($H$2<>"",'Iteration Details'!L20,"") ->  | L20: =IF($I$2<>"",'Iteration Details'!N20,"") -> 
J21: ='Iteration Details'!T21 ->  | K21: =IF($H$2<>"",'Iteration Details'!L21,"") ->  | L21: =IF($I$2<>"",'Iteration Details'!N21,"") -> 
J22: ='Iteration Details'!T22 ->  | K22: =IF($H$2<>"",'Iteration Details'!L22,"") ->  | L22: =IF($I$2<>"",'Iteration Details'!N22,"") -> 
J23: ='Iteration Details'!T23 ->  | K23: =IF($H$2<>"",'Iteration Details'!L23,"") ->  | L23: =IF($I$2<>"",'Iteration Details'!N23,"") -> 
J24: ='Iteration Details'!T24 ->  | K24: =IF($H$2<>"",'Iteration Details'!L24,"") ->  | L24: =IF($I$2<>"",'Iteration Details'!N24,"") -> 
J25: ='Iteration Details'!T25 ->  | K25: =IF($H$2<>"",'Iteration Details'!L25,"") ->  | L25: =IF($I$2<>"",'Iteration Details'!N25,"") -> 
J26: ='Iteration Details'!T26 ->  | K26: =IF($H$2<>"",'Iteration Details'!L26,"") ->  | L26: =IF($I$2<>"",'Iteration Details'!N26,"") -> 
J27: ='Iteration Details'!T27 ->  | K27: =IF($H$2<>"",'Iteration Details'!L27,"") ->  | L27: =IF($I$2<>"",'Iteration Details'!N27,"") -> 
J28: ='Iteration Details'!T28 ->  | K28: =IF($H$2<>"",'Iteration Details'!L28,"") ->  | L28: =IF($I$2<>"",'Iteration Details'!N28,"") -> 
J29: ='Iteration Details'!T29 ->  | K29: =IF($H$2<>"",'Iteration Details'!L29,"") ->  | L29: =IF($I$2<>"",'Iteration Details'!N29,"") -> 
J30: ='Iteration Details'!T30 ->  | K30: =IF($H$2<>"",'Iteration Details'!L30,"") ->  | L30: =IF($I$2<>"",'Iteration Details'!N30,"") -> 
J31: ='Iteration Details'!T31 ->  | K31: =IF($H$2<>"",'Iteration Details'!L31,"") ->  | L31: =IF($I$2<>"",'Iteration Details'!N31,"") -> 
B33: Threshold Limit for IRI (in/mile) | H33: Coeff. Of Determination (R2) | K33: ='Iteration Details'!V32 ->  | L33: ='Iteration Details'!X32 -> 
B34: Design Life (years)
B35: Present Year | J35: Note: Blue-highligted cells are only for inputs, where inputs should be entered to. Green-higlihted cells are the calculated values (outputs).
B37: Threshold Limit for PCI (%)
B38: Design Life (years)
B39: Present Year
L42: gdg | M42: vfd | N42: fdf | Q42: 2000

Sheet County_JPCP_IRI_App1 (hidden)
A1: Project Name | B1: COUNAME | C1: PROJECT_NO | D1: BPRJ | E1: EPRJ | F1: CONYR | G1: DATAYR | H1: Accumulated AADTs | I1: PCC Thickness (in.) | J1: IRIi-2 (in/mile) | K1: IRIi-1 (in/mile) | L1: Age (years) | M1: IRIi, (in/mile)
L2: =IF(RSL_County_JPCP_IRI_App1!L2=0,"",RSL_County_JPCP_IRI_App1!L2) ->  | M2: =IF(K2<>"",Sheet1_County_JPCP_IRI_App1!W53,"") -> 
L3: =IF(RSL_County_JPCP_IRI_App1!L3=0,"",RSL_County_JPCP_IRI_App1!L3) ->  | M3: =IF(K3<>"",Sheet1_County_JPCP_IRI_App1!W54,"") -> 
L4: =IF(RSL_County_JPCP_IRI_App1!L4=0,"",RSL_County_JPCP_IRI_App1!L4) ->  | M4: =IF(K4<>"",Sheet1_County_JPCP_IRI_App1!W55,"") -> 
L5: =IF(RSL_County_JPCP_IRI_App1!L5=0,"",RSL_County_JPCP_IRI_App1!L5) ->  | M5: =IF(K5<>"",Sheet1_County_JPCP_IRI_App1!W56,"") -> 
L6: =IF(RSL_County_JPCP_IRI_App1!L6=0,"",RSL_County_JPCP_IRI_App1!L6) ->  | M6: =IF(K6<>"",Sheet1_County_JPCP_IRI_App1!W57,"") -> 
L7: =IF(RSL_County_JPCP_IRI_App1!L7=0,"",RSL_County_JPCP_IRI_App1!L7) ->  | M7: =IF(K7<>"",Sheet1_County_JPCP_IRI_App1!W58,"") -> 
L8: =IF(RSL_County_JPCP_IRI_App1!L8=0,"",RSL_County_JPCP_IRI_App1!L8) ->  | M8: =IF(K8<>"",Sheet1_County_JPCP_IRI_App1!W59,"") -> 
L9: =IF(RSL_County_JPCP_IRI_App1!L9=0,"",RSL_County_JPCP_IRI_App1!L9) ->  | M9: =IF(K9<>"",Sheet1_County_JPCP_IRI_App1!W60,"") -> 
L10: =IF(RSL_County_JPCP_IRI_App1!L10=0,"",RSL_County_JPCP_IRI_App1!L10) ->  | M10: =IF(K10<>"",Sheet1_County_JPCP_IRI_App1!W61,"") -> 
L11: =IF(RSL_County_JPCP_IRI_App1!L11=0,"",RSL_County_JPCP_IRI_App1!L11) ->  | M11: =IF(K11<>"",Sheet1_County_JPCP_IRI_App1!W62,"") -> 
L12: =IF(RSL_County_JPCP_IRI_App1!L12=0,"",RSL_County_JPCP_IRI_App1!L12) ->  | M12: =IF(K12<>"",Sheet1_County_JPCP_IRI_App1!W63,"") -> 
L13: =IF(RSL_County_JPCP_IRI_App1!L13=0,"",RSL_County_JPCP_IRI_App1!L13) ->  | M13: =IF(K13<>"",Sheet1_County_JPCP_IRI_App1!W64,"") -> 
L14: =IF(RSL_County_JPCP_IRI_App1!L14=0,"",RSL_County_JPCP_IRI_App1!L14) ->  | M14: =IF(K14<>"",Sheet1_County_JPCP_IRI_App1!W65,"") -> 
L15: =IF(RSL_County_JPCP_IRI_App1!L15=0,"",RSL_County_JPCP_IRI_App1!L15) ->  | M15: =IF(K15<>"",Sheet1_County_JPCP_IRI_App1!W66,"") -> 
L16: =IF(RSL_County_JPCP_IRI_App1!L16=0,"",RSL_County_JPCP_IRI_App1!L16) ->  | M16: =IF(K16<>"",Sheet1_County_JPCP_IRI_App1!W67,"") -> 
F18: Threshold Limit for IRI (in/mile) | I18: 140 | K18: Note: Blue-highligted cells are only for inputs, where inputs should be entered to. Green-higlihted cells are calcuated values (outputs).
F19: Design Life (years)
F20: Present Year
F22: Traffic Increment per year (%) | I22: 1

Sheet County_JPCP_IRI_App2 (hidden)
A1: Project Name | B1: COUNAME | C1: PROJECT_NO | D1: BPRJ | E1: EPRJ | F1: CONYR | G1: DATAYR | H1: TCRACKi, (count/mile) | I1: IRIi-2 (in/mile) | J1: IRIi-1 (in/mile) | K1: Age (years) | L1: IRIi (in/mile)
K2: =IF(RSL_County_JPCP_IRI_App2!K2=0,"",RSL_County_JPCP_IRI_App2!K2) ->  | L2: =IF(J2<>"",Sheet1_County_JPCP_IRI_App2!U53,"") -> 
K3: =IF(RSL_County_JPCP_IRI_App2!K3=0,"",RSL_County_JPCP_IRI_App2!K3) ->  | L3: =IF(J3<>"",Sheet1_County_JPCP_IRI_App2!U54,"") -> 
K4: =IF(RSL_County_JPCP_IRI_App2!K4=0,"",RSL_County_JPCP_IRI_App2!K4) ->  | L4: =IF(J4<>"",Sheet1_County_JPCP_IRI_App2!U55,"") -> 
K5: =IF(RSL_County_JPCP_IRI_App2!K5=0,"",RSL_County_JPCP_IRI_App2!K5) ->  | L5: =IF(J5<>"",Sheet1_County_JPCP_IRI_App2!U56,"") -> 
K6: =IF(RSL_County_JPCP_IRI_App2!K6=0,"",RSL_County_JPCP_IRI_App2!K6) ->  | L6: =IF(J6<>"",Sheet1_County_JPCP_IRI_App2!U57,"") -> 
K7: =IF(RSL_County_JPCP_IRI_App2!K7=0,"",RSL_County_JPCP_IRI_App2!K7) ->  | L7: =IF(J7<>"",Sheet1_County_JPCP_IRI_App2!U58,"") -> 
K8: =IF(RSL_County_JPCP_IRI_App2!K8=0,"",RSL_County_JPCP_IRI_App2!K8) ->  | L8: =IF(J8<>"",Sheet1_County_JPCP_IRI_App2!U59,"") -> 
K9: =IF(RSL_County_JPCP_IRI_App2!K9=0,"",RSL_County_JPCP_IRI_App2!K9) ->  | L9: =IF(J9<>"",Sheet1_County_JPCP_IRI_App2!U60,"") -> 
K10: =IF(RSL_County_JPCP_IRI_App2!K10=0,"",RSL_County_JPCP_IRI_App2!K10) ->  | L10: =IF(J10<>"",Sheet1_County_JPCP_IRI_App2!U61,"") -> 
K11: =IF(RSL_County_JPCP_IRI_App2!K11=0,"",RSL_County_JPCP_IRI_App2!K11) ->  | L11: =IF(J11<>"",Sheet1_County_JPCP_IRI_App2!U62,"") -> 
K12: =IF(RSL_County_JPCP_IRI_App2!K12=0,"",RSL_County_JPCP_IRI_App2!K12) ->  | L12: =IF(J12<>"",Sheet1_County_JPCP_IRI_App2!U63,"") -> 
K13: =IF(RSL_County_JPCP_IRI_App2!K13=0,"",RSL_County_JPCP_IRI_App2!K13) ->  | L13: =IF(J13<>"",Sheet1_County_JPCP_IRI_App2!U64,"") -> 
K14: =IF(RSL_County_JPCP_IRI_App2!K14=0,"",RSL_County_JPCP_IRI_App2!K14) ->  | L14: =IF(J14<>"",Sheet1_County_JPCP_IRI_App2!U65,"") -> 
K15: =IF(RSL_County_JPCP_IRI_App2!K15=0,"",RSL_County_JPCP_IRI_App2!K15) ->  | L15: =IF(J15<>"",Sheet1_County_JPCP_IRI_App2!U66,"") -> 
K16: =IF(RSL_County_JPCP_IRI_App2!K16=0,"",RSL_County_JPCP_IRI_App2!K16) ->  | L16: =IF(J16<>"",Sheet1_County_JPCP_IRI_App2!U67,"") -> 
F18: Threshold Limit for IRI (in/mile) | J18: Note: Blue-highligted cells are only for inputs, where inputs should be entered to. Green-higlihted cells are calcuated values (outputs).
F19: Design Life (years)
F20: Present Year

Sheet PMIS_JPCP_IRI_App1 (hidden)
A1: Project Name | B1: COUNAME | C1: PROJECT_NO | D1: BPRJ | E1: EPRJ | F1: CONYR | G1: DATAYR | H1: Accumulated ESALs | I1: PCC Thickness (in.) | J1: IRIi-2 (in/mile) | K1: IRIi-1 (in/mile) | L1: Age (years) | M1: IRIi (in/mile)
L2: =IF(RSL_PMIS_JPCP_IRI_App1!L2=0,"",RSL_PMIS_JPCP_IRI_App1!L2) ->  | M2: =IF(K2<>"",Sheet1_PMIS_JPCP_IRI_App1!W53,"") -> 
L3: =IF(RSL_PMIS_JPCP_IRI_App1!L3=0,"",RSL_PMIS_JPCP_IRI_App1!L3) ->  | M3: =IF(K3<>"",Sheet1_PMIS_JPCP_IRI_App1!W54,"") -> 
L4: =IF(RSL_PMIS_JPCP_IRI_App1!L4=0,"",RSL_PMIS_JPCP_IRI_App1!L4) ->  | M4: =IF(K4<>"",Sheet1_PMIS_JPCP_IRI_App1!W55,"") -> 
L5: =IF(RSL_PMIS_JPCP_IRI_App1!L5=0,"",RSL_PMIS_JPCP_IRI_App1!L5) ->  | M5: =IF(K5<>"",Sheet1_PMIS_JPCP_IRI_App1!W56,"") -> 
L6: =IF(RSL_PMIS_JPCP_IRI_App1!L6=0,"",RSL_PMIS_JPCP_IRI_App1!L6) ->  | M6: =IF(K6<>"",Sheet1_PMIS_JPCP_IRI_App1!W57,"") -> 
L7: =IF(RSL_PMIS_JPCP_IRI_App1!L7=0,"",RSL_PMIS_JPCP_IRI_App1!L7) ->  | M7: =IF(K7<>"",Sheet1_PMIS_JPCP_IRI_App1!W58,"") -> 
L8: =IF(RSL_PMIS_JPCP_IRI_App1!L8=0,"",RSL_PMIS_JPCP_IRI_App1!L8) ->  | M8: =IF(K8<>"",Sheet1_PMIS_JPCP_IRI_App1!W59,"") -> 
L9: =IF(RSL_PMIS_JPCP_IRI_App1!L9=0,"",RSL_PMIS_JPCP_IRI_App1!L9) ->  | M9: =IF(K9<>"",Sheet1_PMIS_JPCP_IRI_App1!W60,"") -> 
L10: =IF(RSL_PMIS_JPCP_IRI_App1!L10=0,"",RSL_PMIS_JPCP_IRI_App1!L10) ->  | M10: =IF(K10<>"",Sheet1_PMIS_JPCP_IRI_App1!W61,"") -> 
L11: =IF(RSL_PMIS_JPCP_IRI_App1!L11=0,"",RSL_PMIS_JPCP_IRI_App1!L11) ->  | M11: =IF(K11<>"",Sheet1_PMIS_JPCP_IRI_App1!W62,"") -> 
L12: =IF(RSL_PMIS_JPCP_IRI_App1!L12=0,"",RSL_PMIS_JPCP_IRI_App1!L12) ->  | M12: =IF(K12<>"",Sheet1_PMIS_JPCP_IRI_App1!W63,"") -> 
L13: =IF(RSL_PMIS_JPCP_IRI_App1!L13=0,"",RSL_PMIS_JPCP_IRI_App1!L13) ->  | M13: =IF(K13<>"",Sheet1_PMIS_JPCP_IRI_App1!W64,"") -> 
L14: =IF(RSL_PMIS_JPCP_IRI_App1!L14=0,"",RSL_PMIS_JPCP_IRI_App1!L14) ->  | M14: =IF(K14<>"",Sheet1_PMIS_JPCP_IRI_App1!W65,"") -> 
L15: =IF(RSL_PMIS_JPCP_IRI_App1!L15=0,"",RSL_PMIS_JPCP_IRI_App1!L15) ->  | M15: =IF(K15<>"",Sheet1_PMIS_JPCP_IRI_App1!W66,"") -> 
L16: =IF(RSL_PMIS_JPCP_IRI_App1!L16=0,"",RSL_PMIS_JPCP_IRI_App1!L16) ->  | M16: =IF(K16<>"",Sheet1_PMIS_JPCP_IRI_App1!W67,"") -> 
F18: Threshold Limit for IRI (in/mile) | K18: Note: Blue-highligted cells are only for inputs, where inputs should be entered to. Green-higlihted cells are calcuated values (outputs).
F19: Design Life (years)
F20: Present Year
F22: Traffic Increment per year (%) | I22: 1

Sheet PMIS_JPCP_IRI_App2 (hidden)
A1: Project Name | B1: COUNAME | C1: PROJECT_NO | D1: BPRJ | E1: EPRJ | F1: CONYR | G1: DATAYR | H1: TCRACKi (% Slab Cracked) | I1: IRIi-2 (in/mile) | J1: IRIi-1 (in/mile) | K1: Age (years) | L1: IRIi, (in/mile)
K2: =IF(RSL_PMIS_JPCP_IRI_App2!K2=0,"",RSL_PMIS_JPCP_IRI_App2!K2) ->  | L2: =IF(J2<>"",Sheet1_PMIS_JPCP_IRI_App2!U53,"") -> 
K3: =IF(RSL_PMIS_JPCP_IRI_App2!K3=0,"",RSL_PMIS_JPCP_IRI_App2!K3) ->  | L3: =IF(J3<>"",Sheet1_PMIS_JPCP_IRI_App2!U54,"") -> 
K4: =IF(RSL_PMIS_JPCP_IRI_App2!K4=0,"",RSL_PMIS_JPCP_IRI_App2!K4) ->  | L4: =IF(J4<>"",Sheet1_PMIS_JPCP_IRI_App2!U55,"") -> 
K5: =IF(RSL_PMIS_JPCP_IRI_App2!K5=0,"",RSL_PMIS_JPCP_IRI_App2!K5) ->  | L5: =IF(J5<>"",Sheet1_PMIS_JPCP_IRI_App2!U56,"") -> 
K6: =IF(RSL_PMIS_JPCP_IRI_App2!K6=0,"",RSL_PMIS_JPCP_IRI_App2!K6) ->  | L6: =IF(J6<>"",Sheet1_PMIS_JPCP_IRI_App2!U57,"") -> 
K7: =IF(RSL_PMIS_JPCP_IRI_App2!K7=0,"",RSL_PMIS_JPCP_IRI_App2!K7) ->  | L7: =IF(J7<>"",Sheet1_PMIS_JPCP_IRI_App2!U58,"") -> 
K8: =IF(RSL_PMIS_JPCP_IRI_App2!K8=0,"",RSL_PMIS_JPCP_IRI_App2!K8) ->  | L8: =IF(J8<>"",Sheet1_PMIS_JPCP_IRI_App2!U59,"") -> 
K9: =IF(RSL_PMIS_JPCP_IRI_App2!K9=0,"",RSL_PMIS_JPCP_IRI_App2!K9) ->  | L9: =IF(J9<>"",Sheet1_PMIS_JPCP_IRI_App2!U60,"") -> 
K10: =IF(RSL_PMIS_JPCP_IRI_App2!K10=0,"",RSL_PMIS_JPCP_IRI_App2!K10) ->  | L10: =IF(J10<>"",Sheet1_PMIS_JPCP_IRI_App2!U61,"") -> 
K11: =IF(RSL_PMIS_JPCP_IRI_App2!K11=0,"",RSL_PMIS_JPCP_IRI_App2!K11) ->  | L11: =IF(J11<>"",Sheet1_PMIS_JPCP_IRI_App2!U62,"") -> 
K12: =IF(RSL_PMIS_JPCP_IRI_App2!K12=0,"",RSL_PMIS_JPCP_IRI_App2!K12) ->  | L12: =IF(J12<>"",Sheet1_PMIS_JPCP_IRI_App2!U63,"") -> 
K13: =IF(RSL_PMIS_JPCP_IRI_App2!K13=0,"",RSL_PMIS_JPCP_IRI_App2!K13) ->  | L13: =IF(J13<>"",Sheet1_PMIS_JPCP_IRI_App2!U64,"") -> 
K14: =IF(RSL_PMIS_JPCP_IRI_App2!K14=0,"",RSL_PMIS_JPCP_IRI_App2!K14) ->  | L14: =IF(J14<>"",Sheet1_PMIS_JPCP_IRI_App2!U65,"") -> 
K15: =IF(RSL_PMIS_JPCP_IRI_App2!K15=0,"",RSL_PMIS_JPCP_IRI_App2!K15) ->  | L15: =IF(J15<>"",Sheet1_PMIS_JPCP_IRI_App2!U66,"") -> 
K16: =IF(RSL_PMIS_JPCP_IRI_App2!K16=0,"",RSL_PMIS_JPCP_IRI_App2!K16) ->  | L16: =IF(J16<>"",Sheet1_PMIS_JPCP_IRI_App2!U67,"") -> 
F18: Threshold Limit for IRI (in/mile) | J18: Note: Blue-highligted cells are only for inputs, where inputs should be entered to. Green-higlihted cells are calcuated values (outputs).
F19: Design Life (years)
F20: Present Year

Sheet County_JPCP_TCrack (hidden)
A1: Project Name | B1: COUNAME | C1: PROJECT_NO | D1: BPRJ | E1: EPRJ | F1: CONYR | G1: DATAYR | H1: Accumulated AADTs | I1: PCC Thickness (in.) | J1: TCRACKi-2 (count/mile) | K1: TCRACKi-1 (count/mile) | L1: Age (years) | M1: TCRACKi (count/mile)
L2: =IF(RSL_County_JPCP_TCrack!L2=0,"",RSL_County_JPCP_TCrack!L2) ->  | M2: =IF(K2<>"",Sheet1_County_JPCP_TCrack!W53,"") -> 
L3: =IF(RSL_County_JPCP_TCrack!L3=0,"",RSL_County_JPCP_TCrack!L3) ->  | M3: =IF(K3<>"",Sheet1_County_JPCP_TCrack!W54,"") -> 
L4: =IF(RSL_County_JPCP_TCrack!L4=0,"",RSL_County_JPCP_TCrack!L4) ->  | M4: =IF(K4<>"",Sheet1_County_JPCP_TCrack!W55,"") -> 
L5: =IF(RSL_County_JPCP_TCrack!L5=0,"",RSL_County_JPCP_TCrack!L5) ->  | M5: =IF(K5<>"",Sheet1_County_JPCP_TCrack!W56,"") -> 
L6: =IF(RSL_County_JPCP_TCrack!L6=0,"",RSL_County_JPCP_TCrack!L6) ->  | M6: =IF(K6<>"",Sheet1_County_JPCP_TCrack!W57,"") -> 
L7: =IF(RSL_County_JPCP_TCrack!L7=0,"",RSL_County_JPCP_TCrack!L7) ->  | M7: =IF(K7<>"",Sheet1_County_JPCP_TCrack!W58,"") -> 
L8: =IF(RSL_County_JPCP_TCrack!L8=0,"",RSL_County_JPCP_TCrack!L8) ->  | M8: =IF(K8<>"",Sheet1_County_JPCP_TCrack!W59,"") -> 
L9: =IF(RSL_County_JPCP_TCrack!L9=0,"",RSL_County_JPCP_TCrack!L9) ->  | M9: =IF(K9<>"",Sheet1_County_JPCP_TCrack!W60,"") -> 
L10: =IF(RSL_County_JPCP_TCrack!L10=0,"",RSL_County_JPCP_TCrack!L10) ->  | M10: =IF(K10<>"",Sheet1_County_JPCP_TCrack!W61,"") -> 
L11: =IF(RSL_County_JPCP_TCrack!L11=0,"",RSL_County_JPCP_TCrack!L11) ->  | M11: =IF(K11<>"",Sheet1_County_JPCP_TCrack!W62,"") -> 
L12: =IF(RSL_County_JPCP_TCrack!L12=0,"",RSL_County_JPCP_TCrack!L12) ->  | M12: =IF(K12<>"",Sheet1_County_JPCP_TCrack!W63,"") -> 
L13: =IF(RSL_County_JPCP_TCrack!L13=0,"",RSL_County_JPCP_TCrack!L13) ->  | M13: =IF(K13<>"",Sheet1_County_JPCP_TCrack!W64,"") -> 
L14: =IF(RSL_County_JPCP_TCrack!L14=0,"",RSL_County_JPCP_TCrack!L14) ->  | M14: =IF(K14<>"",Sheet1_County_JPCP_TCrack!W65,"") -> 
L15: =IF(RSL_County_JPCP_TCrack!L15=0,"",RSL_County_JPCP_TCrack!L15) ->  | M15: =IF(K15<>"",Sheet1_County_JPCP_TCrack!W66,"") -> 
L16: =IF(RSL_County_JPCP_TCrack!L16=0,"",RSL_County_JPCP_TCrack!L16) ->  | M16: =IF(K16<>"",Sheet1_County_JPCP_TCrack!W67,"") -> 
F17: Threshold Limit for TCRACK (% slab cracked)
F18: Threshold Limit for TCRACK (count/mile) | I18: =(((I17*5280*10)/(2))/100)/10 -> 0.00 | K18: Note: Blue-highligted cells are only for inputs, where inputs should be entered to. Green-higlihted cells are calcuated values (outputs).
F19: Design Life (years)
F20: Present Year
F22: Traffic Increment per year (%) | I22: 1

Sheet PMIS_JPCP_TCrack (hidden)
A1: Project Name | B1: COUNAME | C1: PROJECT_NO | D1: BPRJ | E1: EPRJ | F1: CONYR | G1: DATAYR | H1: Accumulated ESALs | I1: PCC Thickness (in.) | J1: TCRACKi-2 (% Slab Cracked) | K1: TCRACKi-1 (% Slab Cracked) | L1: Age (years) | M1: TCRACKi (% Slab Cracked)
L2: =IF(RSL_PMIS_JPCP_TCrack!L2=0,"",RSL_PMIS_JPCP_TCrack!L2) ->  | M2: =IF(K2<>"",Sheet1_PMIS_JPCP_TCrack!W53,"") -> 
L3: =IF(RSL_PMIS_JPCP_TCrack!L3=0,"",RSL_PMIS_JPCP_TCrack!L3) ->  | M3: =IF(K3<>"",Sheet1_PMIS_JPCP_TCrack!W54,"") -> 
L4: =IF(RSL_PMIS_JPCP_TCrack!L4=0,"",RSL_PMIS_JPCP_TCrack!L4) ->  | M4: =IF(K4<>"",Sheet1_PMIS_JPCP_TCrack!W55,"") -> 
L5: =IF(RSL_PMIS_JPCP_TCrack!L5=0,"",RSL_PMIS_JPCP_TCrack!L5) ->  | M5: =IF(K5<>"",Sheet1_PMIS_JPCP_TCrack!W56,"") -> 
L6: =IF(RSL_PMIS_JPCP_TCrack!L6=0,"",RSL_PMIS_JPCP_TCrack!L6) ->  | M6: =IF(K6<>"",Sheet1_PMIS_JPCP_TCrack!W57,"") -> 
L7: =IF(RSL_PMIS_JPCP_TCrack!L7=0,"",RSL_PMIS_JPCP_TCrack!L7) ->  | M7: =IF(K7<>"",Sheet1_PMIS_JPCP_TCrack!W58,"") -> 
L8: =IF(RSL_PMIS_JPCP_TCrack!L8=0,"",RSL_PMIS_JPCP_TCrack!L8) ->  | M8: =IF(K8<>"",Sheet1_PMIS_JPCP_TCrack!W59,"") -> 
L9: =IF(RSL_PMIS_JPCP_TCrack!L9=0,"",RSL_PMIS_JPCP_TCrack!L9) ->  | M9: =IF(K9<>"",Sheet1_PMIS_JPCP_TCrack!W60,"") -> 
L10: =IF(RSL_PMIS_JPCP_TCrack!L10=0,"",RSL_PMIS_JPCP_TCrack!L10) ->  | M10: =IF(K10<>"",Sheet1_PMIS_JPCP_TCrack!W61,"") -> 
L11: =IF(RSL_PMIS_JPCP_TCrack!L11=0,"",RSL_PMIS_JPCP_TCrack!L11) ->  | M11: =IF(K11<>"",Sheet1_PMIS_JPCP_TCrack!W62,"") -> 
L12: =IF(RSL_PMIS_JPCP_TCrack!L12=0,"",RSL_PMIS_JPCP_TCrack!L12) ->  | M12: =IF(K12<>"",Sheet1_PMIS_JPCP_TCrack!W63,"") -> 
L13: =IF(RSL_PMIS_JPCP_TCrack!L13=0,"",RSL_PMIS_JPCP_TCrack!L13) ->  | M13: =IF(K13<>"",Sheet1_PMIS_JPCP_TCrack!W64,"") -> 
L14: =IF(RSL_PMIS_JPCP_TCrack!L14=0,"",RSL_PMIS_JPCP_TCrack!L14) ->  | M14: =IF(K14<>"",Sheet1_PMIS_JPCP_TCrack!W65,"") -> 
L15: =IF(RSL_PMIS_JPCP_TCrack!L15=0,"",RSL_PMIS_JPCP_TCrack!L15) ->  | M15: =IF(K15<>"",Sheet1_PMIS_JPCP_TCrack!W66,"") -> 
L16: =IF(RSL_PMIS_JPCP_TCrack!L16=0,"",RSL_PMIS_JPCP_TCrack!L16) ->  | M16: =IF(K16<>"",Sheet1_PMIS_JPCP_TCrack!W67,"") -> 
F18: Threshold Limit for TCRACK (% Slab Cracked) | K18: Note: Blue-highligted cells are only for inputs, where inputs should be entered to. Green-higlihted cells are calcuated values (outputs).
F19: Design Life (years)
F20: Present Year
F22: Traffic Increment per year (%) | I22: 1

Sheet County_HMA_IRI_App1 (hidden)
A1: Project Name | B1: COUNAME | C1: PROJECT_NO | D1: BPRJ | E1: EPRJ | F1: CONYR | G1: DATAYR | H1: Accumulated AADTs | I1: HMA Thickness (in.) | J1: IRIi-2 (in/mile) | K1: IRIi-1 (in/mile) | L1: Age (years) | M1: IRIi, (in/mile)
L2: =IF(RSL_County_HMA_IRI_App1!L2=0,"",RSL_County_HMA_IRI_App1!L2) ->  | M2: =IF(K2<>"",Sheet1_County_HMA_IRI_App1!W53,"") -> 
L3: =IF(RSL_County_HMA_IRI_App1!L3=0,"",RSL_County_HMA_IRI_App1!L3) ->  | M3: =IF(K3<>"",Sheet1_County_HMA_IRI_App1!W54,"") -> 
L4: =IF(RSL_County_HMA_IRI_App1!L4=0,"",RSL_County_HMA_IRI_App1!L4) ->  | M4: =IF(K4<>"",Sheet1_County_HMA_IRI_App1!W55,"") -> 
L5: =IF(RSL_County_HMA_IRI_App1!L5=0,"",RSL_County_HMA_IRI_App1!L5) ->  | M5: =IF(K5<>"",Sheet1_County_HMA_IRI_App1!W56,"") -> 
L6: =IF(RSL_County_HMA_IRI_App1!L6=0,"",RSL_County_HMA_IRI_App1!L6) ->  | M6: =IF(K6<>"",Sheet1_County_HMA_IRI_App1!W57,"") -> 
L7: =IF(RSL_County_HMA_IRI_App1!L7=0,"",RSL_County_HMA_IRI_App1!L7) ->  | M7: =IF(K7<>"",Sheet1_County_HMA_IRI_App1!W58,"") -> 
L8: =IF(RSL_County_HMA_IRI_App1!L8=0,"",RSL_County_HMA_IRI_App1!L8) ->  | M8: =IF(K8<>"",Sheet1_County_HMA_IRI_App1!W59,"") -> 
L9: =IF(RSL_County_HMA_IRI_App1!L9=0,"",RSL_County_HMA_IRI_App1!L9) ->  | M9: =IF(K9<>"",Sheet1_County_HMA_IRI_App1!W60,"") -> 
L10: =IF(RSL_County_HMA_IRI_App1!L10=0,"",RSL_County_HMA_IRI_App1!L10) ->  | M10: =IF(K10<>"",Sheet1_County_HMA_IRI_App1!W61,"") -> 
L11: =IF(RSL_County_HMA_IRI_App1!L11=0,"",RSL_County_HMA_IRI_App1!L11) ->  | M11: =IF(K11<>"",Sheet1_County_HMA_IRI_App1!W62,"") -> 
L12: =IF(RSL_County_HMA_IRI_App1!L12=0,"",RSL_County_HMA_IRI_App1!L12) ->  | M12: =IF(K12<>"",Sheet1_County_HMA_IRI_App1!W63,"") -> 
L13: =IF(RSL_County_HMA_IRI_App1!L13=0,"",RSL_County_HMA_IRI_App1!L13) ->  | M13: =IF(K13<>"",Sheet1_County_HMA_IRI_App1!W64,"") -> 
L14: =IF(RSL_County_HMA_IRI_App1!L14=0,"",RSL_County_HMA_IRI_App1!L14) ->  | M14: =IF(K14<>"",Sheet1_County_HMA_IRI_App1!W65,"") -> 
L15: =IF(RSL_County_HMA_IRI_App1!L15=0,"",RSL_County_HMA_IRI_App1!L15) ->  | M15: =IF(K15<>"",Sheet1_County_HMA_IRI_App1!W66,"") -> 
L16: =IF(RSL_County_HMA_IRI_App1!L16=0,"",RSL_County_HMA_IRI_App1!L16) ->  | M16: =IF(K16<>"",Sheet1_County_HMA_IRI_App1!W67,"") -> 
F18: Threshold Limit for IRI (in/mile) | K18: Note: Blue-highligted cells are only for inputs, where inputs should be entered to. Green-higlihted cells are calcuated values (outputs).
F19: Design Life (years)
F20: Present Year
F22: Traffic Increment per year (%) | I22: 1

Sheet County_PMIS_HMA_IRI_App2 (hidden)
A1: Project Name | B1: COUNAME | C1: PROJECT_NO | D1: BPRJ | E1: EPRJ | F1: CONYR | G1: DATAYR | H1: RUTi (in) | I1: LCRACKi (ft/mile) | J1: TCRACKi (ft/mi) | K1: IRIi-2 (in/mile) | L1: IRIi-1 (in/mile) | M1: Age (years) | N1: IRIi (in/mile)
M2: =IF(RSL_County_PMIS_HMA_IRI_App2!M2=0,"",RSL_County_PMIS_HMA_IRI_App2!M2) ->  | N2: =IF(L2<>"",Sheet1_County_PMIS_HMA_IRI_App2!Y53,"") -> 
M3: =IF(RSL_County_PMIS_HMA_IRI_App2!M3=0,"",RSL_County_PMIS_HMA_IRI_App2!M3) ->  | N3: =IF(L3<>"",Sheet1_County_PMIS_HMA_IRI_App2!Y54,"") -> 
M4: =IF(RSL_County_PMIS_HMA_IRI_App2!M4=0,"",RSL_County_PMIS_HMA_IRI_App2!M4) ->  | N4: =IF(L4<>"",Sheet1_County_PMIS_HMA_IRI_App2!Y55,"") -> 
M5: =IF(RSL_County_PMIS_HMA_IRI_App2!M5=0,"",RSL_County_PMIS_HMA_IRI_App2!M5) ->  | N5: =IF(L5<>"",Sheet1_County_PMIS_HMA_IRI_App2!Y56,"") -> 
M6: =IF(RSL_County_PMIS_HMA_IRI_App2!M6=0,"",RSL_County_PMIS_HMA_IRI_App2!M6) ->  | N6: =IF(L6<>"",Sheet1_County_PMIS_HMA_IRI_App2!Y57,"") -> 
M7: =IF(RSL_County_PMIS_HMA_IRI_App2!M7=0,"",RSL_County_PMIS_HMA_IRI_App2!M7) ->  | N7: =IF(L7<>"",Sheet1_County_PMIS_HMA_IRI_App2!Y58,"") -> 
M8: =IF(RSL_County_PMIS_HMA_IRI_App2!M8=0,"",RSL_County_PMIS_HMA_IRI_App2!M8) ->  | N8: =IF(L8<>"",Sheet1_County_PMIS_HMA_IRI_App2!Y59,"") -> 
M9: =IF(RSL_County_PMIS_HMA_IRI_App2!M9=0,"",RSL_County_PMIS_HMA_IRI_App2!M9) ->  | N9: =IF(L9<>"",Sheet1_County_PMIS_HMA_IRI_App2!Y60,"") -> 
M10: =IF(RSL_County_PMIS_HMA_IRI_App2!M10=0,"",RSL_County_PMIS_HMA_IRI_App2!M10) ->  | N10: =IF(L10<>"",Sheet1_County_PMIS_HMA_IRI_App2!Y61,"") -> 
M11: =IF(RSL_County_PMIS_HMA_IRI_App2!M11=0,"",RSL_County_PMIS_HMA_IRI_App2!M11) ->  | N11: =IF(L11<>"",Sheet1_County_PMIS_HMA_IRI_App2!Y62,"") -> 
M12: =IF(RSL_County_PMIS_HMA_IRI_App2!M12=0,"",RSL_County_PMIS_HMA_IRI_App2!M12) ->  | N12: =IF(L12<>"",Sheet1_County_PMIS_HMA_IRI_App2!Y63,"") -> 
M13: =IF(RSL_County_PMIS_HMA_IRI_App2!M13=0,"",RSL_County_PMIS_HMA_IRI_App2!M13) ->  | N13: =IF(L13<>"",Sheet1_County_PMIS_HMA_IRI_App2!Y64,"") -> 
M14: =IF(RSL_County_PMIS_HMA_IRI_App2!M14=0,"",RSL_County_PMIS_HMA_IRI_App2!M14) ->  | N14: =IF(L14<>"",Sheet1_County_PMIS_HMA_IRI_App2!Y65,"") -> 
M15: =IF(RSL_County_PMIS_HMA_IRI_App2!M15=0,"",RSL_County_PMIS_HMA_IRI_App2!M15) ->  | N15: =IF(L15<>"",Sheet1_County_PMIS_HMA_IRI_App2!Y66,"") -> 
M16: =IF(RSL_County_PMIS_HMA_IRI_App2!M16=0,"",RSL_County_PMIS_HMA_IRI_App2!M16) ->  | N16: =IF(L16<>"",Sheet1_County_PMIS_HMA_IRI_App2!Y67,"") -> 
F18: Threshold Limit for IRI (in/mile) | L18: Note: Blue-highligted cells are only for inputs, where inputs should be entered to. Green-higlihted cells are calcuated values (outputs).
F19: Design Life (years)
F20: Present Year

Sheet PMIS_HMA_IRI_App1 (hidden)
A1: Project Name | B1: COUNAME | C1: PROJECT_NO | D1: BPRJ | E1: EPRJ | F1: CONYR | G1: DATAYR | H1: Accumulated ESALs | I1: HMA Thickness (in.) | J1: IRIi-2 (in/mile) | K1: IRIi-1 (in/mile) | L1: Age (years) | M1: IRIi (in/mile)
L2: =IF(RSL_PMIS_HMA_IRI_App1!L2=0,"",RSL_PMIS_HMA_IRI_App1!L2) ->  | M2: =IF(K2<>"",Sheet1_PMIS_HMA_IRI_App1!W53,"") -> 
L3: =IF(RSL_PMIS_HMA_IRI_App1!L3=0,"",RSL_PMIS_HMA_IRI_App1!L3) ->  | M3: =IF(K3<>"",Sheet1_PMIS_HMA_IRI_App1!W54,"") -> 
L4: =IF(RSL_PMIS_HMA_IRI_App1!L4=0,"",RSL_PMIS_HMA_IRI_App1!L4) ->  | M4: =IF(K4<>"",Sheet1_PMIS_HMA_IRI_App1!W55,"") -> 
L5: =IF(RSL_PMIS_HMA_IRI_App1!L5=0,"",RSL_PMIS_HMA_IRI_App1!L5) ->  | M5: =IF(K5<>"",Sheet1_PMIS_HMA_IRI_App1!W56,"") -> 
L6: =IF(RSL_PMIS_HMA_IRI_App1!L6=0,"",RSL_PMIS_HMA_IRI_App1!L6) ->  | M6: =IF(K6<>"",Sheet1_PMIS_HMA_IRI_App1!W57,"") -> 
L7: =IF(RSL_PMIS_HMA_IRI_App1!L7=0,"",RSL_PMIS_HMA_IRI_App1!L7) ->  | M7: =IF(K7<>"",Sheet1_PMIS_HMA_IRI_App1!W58,"") -> 
L8: =IF(RSL_PMIS_HMA_IRI_App1!L8=0,"",RSL_PMIS_HMA_IRI_App1!L8) ->  | M8: =IF(K8<>"",Sheet1_PMIS_HMA_IRI_App1!W59,"") -> 
L9: =IF(RSL_PMIS_HMA_IRI_App1!L9=0,"",RSL_PMIS_HMA_IRI_App1!L9) ->  | M9: =IF(K9<>"",Sheet1_PMIS_HMA_IRI_App1!W60,"") -> 
L10: =IF(RSL_PMIS_HMA_IRI_App1!L10=0,"",RSL_PMIS_HMA_IRI_App1!L10) ->  | M10: =IF(K10<>"",Sheet1_PMIS_HMA_IRI_App1!W61,"") -> 
L11: =IF(RSL_PMIS_HMA_IRI_App1!L11=0,"",RSL_PMIS_HMA_IRI_App1!L11) ->  | M11: =IF(K11<>"",Sheet1_PMIS_HMA_IRI_App1!W62,"") -> 
L12: =IF(RSL_PMIS_HMA_IRI_App1!L12=0,"",RSL_PMIS_HMA_IRI_App1!L12) ->  | M12: =IF(K12<>"",Sheet1_PMIS_HMA_IRI_App1!W63,"") -> 
L13: =IF(RSL_PMIS_HMA_IRI_App1!L13=0,"",RSL_PMIS_HMA_IRI_App1!L13) ->  | M13: =IF(K13<>"",Sheet1_PMIS_HMA_IRI_App1!W64,"") -> 
L14: =IF(RSL_PMIS_HMA_IRI_App1!L14=0,"",RSL_PMIS_HMA_IRI_App1!L14) ->  | M14: =IF(K14<>"",Sheet1_PMIS_HMA_IRI_App1!W65,"") -> 
L15: =IF(RSL_PMIS_HMA_IRI_App1!L15=0,"",RSL_PMIS_HMA_IRI_App1!L15) ->  | M15: =IF(K15<>"",Sheet1_PMIS_HMA_IRI_App1!W66,"") -> 
L16: =IF(RSL_PMIS_HMA_IRI_App1!L16=0,"",RSL_PMIS_HMA_IRI_App1!L16) ->  | M16: =IF(K16<>"",Sheet1_PMIS_HMA_IRI_App1!W67,"") -> 
F18: Threshold Limit for IRI (in/mile) | K18: Note: Blue-highligted cells are only for inputs, where inputs should be entered to. Green-higlihted cells are calcuated values (outputs).
F19: Design Life (years)
F20: Present Year
F22: Traffic Increment per year (%) | I22: 1

Sheet County_HMA_Rut (hidden)
A1: Project Name | B1: COUNAME | C1: PROJECT_NO | D1: BPRJ | E1: EPRJ | F1: CONYR | G1: DATAYR | H1: Accumulated AADTs | I1: HMA Thickness (in.) | J1: RUTi-2 (in) | K1: RUTi-1 (in) | L1: Age (years) | M1: RUTi (in)
L2: =IF(RSL_County_HMA_Rut!L2=0,"",RSL_County_HMA_Rut!L2) ->  | M2: =IF(K2<>"",Sheet1_County_HMA_Rut!W53,"") -> 
L3: =IF(RSL_County_HMA_Rut!L3=0,"",RSL_County_HMA_Rut!L3) ->  | M3: =IF(K3<>"",Sheet1_County_HMA_Rut!W54,"") -> 
L4: =IF(RSL_County_HMA_Rut!L4=0,"",RSL_County_HMA_Rut!L4) ->  | M4: =IF(K4<>"",Sheet1_County_HMA_Rut!W55,"") -> 
L5: =IF(RSL_County_HMA_Rut!L5=0,"",RSL_County_HMA_Rut!L5) ->  | M5: =IF(K5<>"",Sheet1_County_HMA_Rut!W56,"") -> 
L6: =IF(RSL_County_HMA_Rut!L6=0,"",RSL_County_HMA_Rut!L6) ->  | M6: =IF(K6<>"",Sheet1_County_HMA_Rut!W57,"") -> 
L7: =IF(RSL_County_HMA_Rut!L7=0,"",RSL_County_HMA_Rut!L7) ->  | M7: =IF(K7<>"",Sheet1_County_HMA_Rut!W58,"") -> 
L8: =IF(RSL_County_HMA_Rut!L8=0,"",RSL_County_HMA_Rut!L8) ->  | M8: =IF(K8<>"",Sheet1_County_HMA_Rut!W59,"") -> 
L9: =IF(RSL_County_HMA_Rut!L9=0,"",RSL_County_HMA_Rut!L9) ->  | M9: =IF(K9<>"",Sheet1_County_HMA_Rut!W60,"") -> 
L10: =IF(RSL_County_HMA_Rut!L10=0,"",RSL_County_HMA_Rut!L10) ->  | M10: =IF(K10<>"",Sheet1_County_HMA_Rut!W61,"") -> 
L11: =IF(RSL_County_HMA_Rut!L11=0,"",RSL_County_HMA_Rut!L11) ->  | M11: =IF(K11<>"",Sheet1_County_HMA_Rut!W62,"") -> 
L12: =IF(RSL_County_HMA_Rut!L12=0,"",RSL_County_HMA_Rut!L12) ->  | M12: =IF(K12<>"",Sheet1_County_HMA_Rut!W63,"") -> 
L13: =IF(RSL_County_HMA_Rut!L13=0,"",RSL_County_HMA_Rut!L13) ->  | M13: =IF(K13<>"",Sheet1_County_HMA_Rut!W64,"") -> 
L14: =IF(RSL_County_HMA_Rut!L14=0,"",RSL_County_HMA_Rut!L14) ->  | M14: =IF(K14<>"",Sheet1_County_HMA_Rut!W65,"") -> 
L15: =IF(RSL_County_HMA_Rut!L15=0,"",RSL_County_HMA_Rut!L15) ->  | M15: =IF(K15<>"",Sheet1_County_HMA_Rut!W66,"") -> 
L16: =IF(RSL_County_HMA_Rut!L16=0,"",RSL_County_HMA_Rut!L16) ->  | M16: =IF(K16<>"",Sheet1_County_HMA_Rut!W67,"") -> 
F18: Threshold Limit for RUT (in) | K18: Note: Blue-highligted cells are only for inputs, where inputs should be entered to. Green-higlihted cells are calcuated values (outputs).
F19: Design Life (years)
F20: Present Year
F22: Traffic Increment per year (%) | I22: 1

Sheet PMIS_HMA_Rut (hidden)
A1: Project Name | B1: COUNAME | C1: PROJECT_NO | D1: BPRJ | E1: EPRJ | F1: CONYR | G1: DATAYR | H1: Accumulated ESALs | I1: HMA Thickness (in.) | J1: RUTi-2 (in) | K1: RUTi-1 (in) | L1: Age (years) | M1: RUTi (in)
L2: =IF(RSL_PMIS_HMA_Rut!L2=0,"",RSL_PMIS_HMA_Rut!L2) ->  | M2: =IF(K2<>"",Sheet1_PMIS_HMA_Rut!W53,"") -> 
L3: =IF(RSL_PMIS_HMA_Rut!L3=0,"",RSL_PMIS_HMA_Rut!L3) ->  | M3: =IF(K3<>"",Sheet1_PMIS_HMA_Rut!W54,"") -> 
L4: =IF(RSL_PMIS_HMA_Rut!L4=0,"",RSL_PMIS_HMA_Rut!L4) ->  | M4: =IF(K4<>"",Sheet1_PMIS_HMA_Rut!W55,"") -> 
L5: =IF(RSL_PMIS_HMA_Rut!L5=0,"",RSL_PMIS_HMA_Rut!L5) ->  | M5: =IF(K5<>"",Sheet1_PMIS_HMA_Rut!W56,"") -> 
L6: =IF(RSL_PMIS_HMA_Rut!L6=0,"",RSL_PMIS_HMA_Rut!L6) ->  | M6: =IF(K6<>"",Sheet1_PMIS_HMA_Rut!W57,"") -> 
L7: =IF(RSL_PMIS_HMA_Rut!L7=0,"",RSL_PMIS_HMA_Rut!L7) ->  | M7: =IF(K7<>"",Sheet1_PMIS_HMA_Rut!W58,"") -> 
L8: =IF(RSL_PMIS_HMA_Rut!L8=0,"",RSL_PMIS_HMA_Rut!L8) ->  | M8: =IF(K8<>"",Sheet1_PMIS_HMA_Rut!W59,"") -> 
L9: =IF(RSL_PMIS_HMA_Rut!L9=0,"",RSL_PMIS_HMA_Rut!L9) ->  | M9: =IF(K9<>"",Sheet1_PMIS_HMA_Rut!W60,"") -> 
L10: =IF(RSL_PMIS_HMA_Rut!L10=0,"",RSL_PMIS_HMA_Rut!L10) ->  | M10: =IF(K10<>"",Sheet1_PMIS_HMA_Rut!W61,"") -> 
L11: =IF(RSL_PMIS_HMA_Rut!L11=0,"",RSL_PMIS_HMA_Rut!L11) ->  | M11: =IF(K11<>"",Sheet1_PMIS_HMA_Rut!W62,"") -> 
L12: =IF(RSL_PMIS_HMA_Rut!L12=0,"",RSL_PMIS_HMA_Rut!L12) ->  | M12: =IF(K12<>"",Sheet1_PMIS_HMA_Rut!W63,"") -> 
L13: =IF(RSL_PMIS_HMA_Rut!L13=0,"",RSL_PMIS_HMA_Rut!L13) ->  | M13: =IF(K13<>"",Sheet1_PMIS_HMA_Rut!W64,"") -> 
L14: =IF(RSL_PMIS_HMA_Rut!L14=0,"",RSL_PMIS_HMA_Rut!L14) ->  | M14: =IF(K14<>"",Sheet1_PMIS_HMA_Rut!W65,"") -> 
L15: =IF(RSL_PMIS_HMA_Rut!L15=0,"",RSL_PMIS_HMA_Rut!L15) ->  | M15: =IF(K15<>"",Sheet1_PMIS_HMA_Rut!W66,"") -> 
L16: =IF(RSL_PMIS_HMA_Rut!L16=0,"",RSL_PMIS_HMA_Rut!L16) ->  | M16: =IF(K16<>"",Sheet1_PMIS_HMA_Rut!W67,"") -> 
F18: Threshold Limit for RUT (in) | K18: Note: Blue-highligted cells are only for inputs, where inputs should be entered to. Green-higlihted cells are calcuated values (outputs).
F19: Design Life (years)
F20: Present Year
F22: Traffic Increment per year (%) | I22: 1

Sheet County_HMA_TCrack (hidden)
A1: Project Name | B1: COUNAME | C1: PROJECT_NO | D1: BPRJ | E1: EPRJ | F1: CONYR | G1: DATAYR | H1: Accumulated AADTs | I1: HMA Thickness (in.) | J1: TCRACKi-2 (ft/mile) | K1: TCRACKi-1 (ft/mile) | L1: Age (years) | M1: TCRACKi (ft/mile)
L2: =IF(RSL_County_HMA_TCrack!L2=0,"",RSL_County_HMA_TCrack!L2) ->  | M2: =IF(K2<>"",Sheet1_County_HMA_TCrack!W53,"") -> 
L3: =IF(RSL_County_HMA_TCrack!L3=0,"",RSL_County_HMA_TCrack!L3) ->  | M3: =IF(K3<>"",Sheet1_County_HMA_TCrack!W54,"") -> 
L4: =IF(RSL_County_HMA_TCrack!L4=0,"",RSL_County_HMA_TCrack!L4) ->  | M4: =IF(K4<>"",Sheet1_County_HMA_TCrack!W55,"") -> 
L5: =IF(RSL_County_HMA_TCrack!L5=0,"",RSL_County_HMA_TCrack!L5) ->  | M5: =IF(K5<>"",Sheet1_County_HMA_TCrack!W56,"") -> 
L6: =IF(RSL_County_HMA_TCrack!L6=0,"",RSL_County_HMA_TCrack!L6) ->  | M6: =IF(K6<>"",Sheet1_County_HMA_TCrack!W57,"") -> 
L7: =IF(RSL_County_HMA_TCrack!L7=0,"",RSL_County_HMA_TCrack!L7) ->  | M7: =IF(K7<>"",Sheet1_County_HMA_TCrack!W58,"") -> 
L8: =IF(RSL_County_HMA_TCrack!L8=0,"",RSL_County_HMA_TCrack!L8) ->  | M8: =IF(K8<>"",Sheet1_County_HMA_TCrack!W59,"") -> 
L9: =IF(RSL_County_HMA_TCrack!L9=0,"",RSL_County_HMA_TCrack!L9) ->  | M9: =IF(K9<>"",Sheet1_County_HMA_TCrack!W60,"") -> 
L10: =IF(RSL_County_HMA_TCrack!L10=0,"",RSL_County_HMA_TCrack!L10) ->  | M10: =IF(K10<>"",Sheet1_County_HMA_TCrack!W61,"") -> 
L11: =IF(RSL_County_HMA_TCrack!L11=0,"",RSL_County_HMA_TCrack!L11) ->  | M11: =IF(K11<>"",Sheet1_County_HMA_TCrack!W62,"") -> 
L12: =IF(RSL_County_HMA_TCrack!L12=0,"",RSL_County_HMA_TCrack!L12) ->  | M12: =IF(K12<>"",Sheet1_County_HMA_TCrack!W63,"") -> 
L13: =IF(RSL_County_HMA_TCrack!L13=0,"",RSL_County_HMA_TCrack!L13) ->  | M13: =IF(K13<>"",Sheet1_County_HMA_TCrack!W64,"") -> 
L14: =IF(RSL_County_HMA_TCrack!L14=0,"",RSL_County_HMA_TCrack!L14) ->  | M14: =IF(K14<>"",Sheet1_County_HMA_TCrack!W65,"") -> 
L15: =IF(RSL_County_HMA_TCrack!L15=0,"",RSL_County_HMA_TCrack!L15) ->  | M15: =IF(K15<>"",Sheet1_County_HMA_TCrack!W66,"") -> 
L16: =IF(RSL_County_HMA_TCrack!L16=0,"",RSL_County_HMA_TCrack!L16) ->  | M16: =IF(K16<>"",Sheet1_County_HMA_TCrack!W67,"") -> 
F17: Threshold Limit for TCRACK (% cracking)
F18: Threshold Limit for TCRACK (ft/mile) | I18: =((I17*5280*10)/(2))/100 -> 0.00 | K18: Note: Blue-highligted cells are only for inputs, where inputs should be entered to. Green-higlihted cells are calcuated values (outputs).
F19: Design Life (years)
F20: Present Year
F22: Traffic Increment per year (%) | I22: 1

Sheet PMIS_HMA_TCrack
A1: Project Name | B1: COUNAME | C1: PROJECT_NO | D1: BPRJ | E1: EPRJ | F1: CONYR | G1: DATAYR | H1: Accumulated ESALs | I1: HMA Thickness (in.) | J1: TCRACKi-2 (ft/mile) | K1: TCRACKi-1 (ft/mile) | L1: Age (years) | M1: TCRACKi (ft/mile)
L2: =IF(RSL_PMIS_HMA_TCrack!L2=0,"",RSL_PMIS_HMA_TCrack!L2) ->  | M2: =IF(K2<>"",Sheet1_PMIS_HMA_TCrack!W53,"") -> 
L3: =IF(RSL_PMIS_HMA_TCrack!L3=0,"",RSL_PMIS_HMA_TCrack!L3) ->  | M3: =IF(K3<>"",Sheet1_PMIS_HMA_TCrack!W54,"") -> 
L4: =IF(RSL_PMIS_HMA_TCrack!L4=0,"",RSL_PMIS_HMA_TCrack!L4) ->  | M4: =IF(K4<>"",Sheet1_PMIS_HMA_TCrack!W55,"") -> 
L5: =IF(RSL_PMIS_HMA_TCrack!L5=0,"",RSL_PMIS_HMA_TCrack!L5) ->  | M5: =IF(K5<>"",Sheet1_PMIS_HMA_TCrack!W56,"") -> 
L6: =IF(RSL_PMIS_HMA_TCrack!L6=0,"",RSL_PMIS_HMA_TCrack!L6) ->  | M6: =IF(K6<>"",Sheet1_PMIS_HMA_TCrack!W57,"") -> 
L7: =IF(RSL_PMIS_HMA_TCrack!L7=0,"",RSL_PMIS_HMA_TCrack!L7) ->  | M7: =IF(K7<>"",Sheet1_PMIS_HMA_TCrack!W58,"") -> 
L8: =IF(RSL_PMIS_HMA_TCrack!L8=0,"",RSL_PMIS_HMA_TCrack!L8) ->  | M8: =IF(K8<>"",Sheet1_PMIS_HMA_TCrack!W59,"") -> 
L9: =IF(RSL_PMIS_HMA_TCrack!L9=0,"",RSL_PMIS_HMA_TCrack!L9) ->  | M9: =IF(K9<>"",Sheet1_PMIS_HMA_TCrack!W60,"") -> 
L10: =IF(RSL_PMIS_HMA_TCrack!L10=0,"",RSL_PMIS_HMA_TCrack!L10) ->  | M10: =IF(K10<>"",Sheet1_PMIS_HMA_TCrack!W61,"") -> 
L11: =IF(RSL_PMIS_HMA_TCrack!L11=0,"",RSL_PMIS_HMA_TCrack!L11) ->  | M11: =IF(K11<>"",Sheet1_PMIS_HMA_TCrack!W62,"") -> 
L12: =IF(RSL_PMIS_HMA_TCrack!L12=0,"",RSL_PMIS_HMA_TCrack!L12) ->  | M12: =IF(K12<>"",Sheet1_PMIS_HMA_TCrack!W63,"") -> 
L13: =IF(RSL_PMIS_HMA_TCrack!L13=0,"",RSL_PMIS_HMA_TCrack!L13) ->  | M13: =IF(K13<>"",Sheet1_PMIS_HMA_TCrack!W64,"") -> 
L14: =IF(RSL_PMIS_HMA_TCrack!L14=0,"",RSL_PMIS_HMA_TCrack!L14) ->  | M14: =IF(K14<>"",Sheet1_PMIS_HMA_TCrack!W65,"") -> 
L15: =IF(RSL_PMIS_HMA_TCrack!L15=0,"",RSL_PMIS_HMA_TCrack!L15) ->  | M15: =IF(K15<>"",Sheet1_PMIS_HMA_TCrack!W66,"") -> 
L16: =IF(RSL_PMIS_HMA_TCrack!L16=0,"",RSL_PMIS_HMA_TCrack!L16) ->  | M16: =IF(K16<>"",Sheet1_PMIS_HMA_TCrack!W67,"") -> 
F17: Threshold Limit for TCRACK (% cracking)
F18: Threshold Limit for TCRACK (ft/mile) | I18: =((I17*5280*10)/(2))/100 -> 0.00 | K18: Note: Blue-highligted cells are only for inputs, where inputs should be entered to. Green-higlihted cells are calcuated values (outputs).
F19: Design Life (years)
F20: Present Year
F22: Traffic Increment per year (%)

Sheet County_HMA_LCrack (hidden)
A1: Project Name | B1: COUNAME | C1: PROJECT_NO | D1: BPRJ | E1: EPRJ | F1: CONYR | G1: DATAYR | H1: Accumulated AADTs | I1: HMA Thickness (in.) | J1: LCRACKi-2 (ft/mile) | K1: LCRACKi-1 (ft/mile) | L1: Age (years) | M1: LCRACKi (ft/mile)
L2: =IF(RSL_County_HMA_LCrack!L2=0,"",RSL_County_HMA_LCrack!L2) ->  | M2: =IF(K2<>"",Sheet1_County_HMA_LCrack!W53,"") -> 
L3: =IF(RSL_County_HMA_LCrack!L3=0,"",RSL_County_HMA_LCrack!L3) ->  | M3: =IF(K3<>"",Sheet1_County_HMA_LCrack!W54,"") -> 
L4: =IF(RSL_County_HMA_LCrack!L4=0,"",RSL_County_HMA_LCrack!L4) ->  | M4: =IF(K4<>"",Sheet1_County_HMA_LCrack!W55,"") -> 
L5: =IF(RSL_County_HMA_LCrack!L5=0,"",RSL_County_HMA_LCrack!L5) ->  | M5: =IF(K5<>"",Sheet1_County_HMA_LCrack!W56,"") -> 
L6: =IF(RSL_County_HMA_LCrack!L6=0,"",RSL_County_HMA_LCrack!L6) ->  | M6: =IF(K6<>"",Sheet1_County_HMA_LCrack!W57,"") -> 
L7: =IF(RSL_County_HMA_LCrack!L7=0,"",RSL_County_HMA_LCrack!L7) ->  | M7: =IF(K7<>"",Sheet1_County_HMA_LCrack!W58,"") -> 
L8: =IF(RSL_County_HMA_LCrack!L8=0,"",RSL_County_HMA_LCrack!L8) ->  | M8: =IF(K8<>"",Sheet1_County_HMA_LCrack!W59,"") -> 
L9: =IF(RSL_County_HMA_LCrack!L9=0,"",RSL_County_HMA_LCrack!L9) ->  | M9: =IF(K9<>"",Sheet1_County_HMA_LCrack!W60,"") -> 
L10: =IF(RSL_County_HMA_LCrack!L10=0,"",RSL_County_HMA_LCrack!L10) ->  | M10: =IF(K10<>"",Sheet1_County_HMA_LCrack!W61,"") -> 
L11: =IF(RSL_County_HMA_LCrack!L11=0,"",RSL_County_HMA_LCrack!L11) ->  | M11: =IF(K11<>"",Sheet1_County_HMA_LCrack!W62,"") -> 
L12: =IF(RSL_County_HMA_LCrack!L12=0,"",RSL_County_HMA_LCrack!L12) ->  | M12: =IF(K12<>"",Sheet1_County_HMA_LCrack!W63,"") -> 
L13: =IF(RSL_County_HMA_LCrack!L13=0,"",RSL_County_HMA_LCrack!L13) ->  | M13: =IF(K13<>"",Sheet1_County_HMA_LCrack!W64,"") -> 
L14: =IF(RSL_County_HMA_LCrack!L14=0,"",RSL_County_HMA_LCrack!L14) ->  | M14: =IF(K14<>"",Sheet1_County_HMA_LCrack!W65,"") -> 
L15: =IF(RSL_County_HMA_LCrack!L15=0,"",RSL_County_HMA_LCrack!L15) ->  | M15: =IF(K15<>"",Sheet1_County_HMA_LCrack!W66,"") -> 
L16: =IF(RSL_County_HMA_LCrack!L16=0,"",RSL_County_HMA_LCrack!L16) ->  | M16: =IF(K16<>"",Sheet1_County_HMA_LCrack!W67,"") -> 
F17: Threshold Limit for LCRACK (% cracking)
F18: Threshold Limit for LCRACK (ft/mile) | I18: =((I17*5280*10)/(2))/100 -> 0.00 | K18: Note: Blue-highligted cells are only for inputs, where inputs should be entered to. Green-higlihted cells are calcuated values (outputs).
F19: Design Life (years)
F20: Present Year
F22: Traffic Increment per year (%) | I22: 1

Sheet PMIS_HMA_LCrack (hidden)
A1: Project Name | B1: COUNAME | C1: PROJECT_NO | D1: BPRJ | E1: EPRJ | F1: CONYR | G1: DATAYR | H1: Accumulated ESALs | I1: HMA Thickness (in.) | J1: LCRACKi-2 (ft/mile) | K1: LCRACKi-1 (ft/mile) | L1: Age (years) | M1: LCRACKi (ft/mile)
L2: =IF(RSL_PMIS_HMA_LCrack!L2=0,"",RSL_PMIS_HMA_LCrack!L2) ->  | M2: =IF(K2<>"",Sheet1_PMIS_HMA_LCrack!W53,"") -> 
L3: =IF(RSL_PMIS_HMA_LCrack!L3=0,"",RSL_PMIS_HMA_LCrack!L3) ->  | M3: =IF(K3<>"",Sheet1_PMIS_HMA_LCrack!W54,"") -> 
L4: =IF(RSL_PMIS_HMA_LCrack!L4=0,"",RSL_PMIS_HMA_LCrack!L4) ->  | M4: =IF(K4<>"",Sheet1_PMIS_HMA_LCrack!W55,"") -> 
L5: =IF(RSL_PMIS_HMA_LCrack!L5=0,"",RSL_PMIS_HMA_LCrack!L5) ->  | M5: =IF(K5<>"",Sheet1_PMIS_HMA_LCrack!W56,"") -> 
L6: =IF(RSL_PMIS_HMA_LCrack!L6=0,"",RSL_PMIS_HMA_LCrack!L6) ->  | M6: =IF(K6<>"",Sheet1_PMIS_HMA_LCrack!W57,"") -> 
L7: =IF(RSL_PMIS_HMA_LCrack!L7=0,"",RSL_PMIS_HMA_LCrack!L7) ->  | M7: =IF(K7<>"",Sheet1_PMIS_HMA_LCrack!W58,"") -> 
L8: =IF(RSL_PMIS_HMA_LCrack!L8=0,"",RSL_PMIS_HMA_LCrack!L8) ->  | M8: =IF(K8<>"",Sheet1_PMIS_HMA_LCrack!W59,"") -> 
L9: =IF(RSL_PMIS_HMA_LCrack!L9=0,"",RSL_PMIS_HMA_LCrack!L9) ->  | M9: =IF(K9<>"",Sheet1_PMIS_HMA_LCrack!W60,"") -> 
L10: =IF(RSL_PMIS_HMA_LCrack!L10=0,"",RSL_PMIS_HMA_LCrack!L10) ->  | M10: =IF(K10<>"",Sheet1_PMIS_HMA_LCrack!W61,"") -> 
L11: =IF(RSL_PMIS_HMA_LCrack!L11=0,"",RSL_PMIS_HMA_LCrack!L11) ->  | M11: =IF(K11<>"",Sheet1_PMIS_HMA_LCrack!W62,"") -> 
L12: =IF(RSL_PMIS_HMA_LCrack!L12=0,"",RSL_PMIS_HMA_LCrack!L12) ->  | M12: =IF(K12<>"",Sheet1_PMIS_HMA_LCrack!W63,"") -> 
L13: =IF(RSL_PMIS_HMA_LCrack!L13=0,"",RSL_PMIS_HMA_LCrack!L13) ->  | M13: =IF(K13<>"",Sheet1_PMIS_HMA_LCrack!W64,"") -> 
L14: =IF(RSL_PMIS_HMA_LCrack!L14=0,"",RSL_PMIS_HMA_LCrack!L14) ->  | M14: =IF(K14<>"",Sheet1_PMIS_HMA_LCrack!W65,"") -> 
L15: =IF(RSL_PMIS_HMA_LCrack!L15=0,"",RSL_PMIS_HMA_LCrack!L15) ->  | M15: =IF(K15<>"",Sheet1_PMIS_HMA_LCrack!W66,"") -> 
L16: =IF(RSL_PMIS_HMA_LCrack!L16=0,"",RSL_PMIS_HMA_LCrack!L16) ->  | M16: =IF(K16<>"",Sheet1_PMIS_HMA_LCrack!W67,"") -> 
F17: Threshold Limit for LCRACK (% cracking)
F18: Threshold Limit for LCRACK (ft/mile) | I18: =((I17*5280*10)/(2))/100 -> 0.00 | K18: Note: Blue-highligted cells are only for inputs, where inputs should be entered to. Green-higlihted cells are calcuated values (outputs).
F19: Design Life (years)
F20: Present Year
F22: Traffic Increment per year (%) | I22: 1

Sheet PMIS_ACoverJPCP_IRI_App1 (hidden)
A1: Project Name | B1: COUNAME | C1: PROJECT_NO | D1: BPRJ | E1: EPRJ | F1: CONYR | G1: DATAYR | H1: Accumulated ESALs | I1: HMA Thickness (in.) | J1: IRIi-2 (in/mile) | K1: IRIi-1 (in/mile) | L1: Age (years) | M1: IRIi (in/mile)
L2: =IF(RSL_PMIS_ACoverJPCP_IRI_App1!L2=0,"",RSL_PMIS_ACoverJPCP_IRI_App1!L2) ->  | M2: =IF(K2<>"",Sheet1_PMIS_ACoverJPCP_IRI_App1!W53,"") -> 
L3: =IF(RSL_PMIS_ACoverJPCP_IRI_App1!L3=0,"",RSL_PMIS_ACoverJPCP_IRI_App1!L3) ->  | M3: =IF(K3<>"",Sheet1_PMIS_ACoverJPCP_IRI_App1!W54,"") -> 
L4: =IF(RSL_PMIS_ACoverJPCP_IRI_App1!L4=0,"",RSL_PMIS_ACoverJPCP_IRI_App1!L4) ->  | M4: =IF(K4<>"",Sheet1_PMIS_ACoverJPCP_IRI_App1!W55,"") -> 
L5: =IF(RSL_PMIS_ACoverJPCP_IRI_App1!L5=0,"",RSL_PMIS_ACoverJPCP_IRI_App1!L5) ->  | M5: =IF(K5<>"",Sheet1_PMIS_ACoverJPCP_IRI_App1!W56,"") -> 
L6: =IF(RSL_PMIS_ACoverJPCP_IRI_App1!L6=0,"",RSL_PMIS_ACoverJPCP_IRI_App1!L6) ->  | M6: =IF(K6<>"",Sheet1_PMIS_ACoverJPCP_IRI_App1!W57,"") -> 
L7: =IF(RSL_PMIS_ACoverJPCP_IRI_App1!L7=0,"",RSL_PMIS_ACoverJPCP_IRI_App1!L7) ->  | M7: =IF(K7<>"",Sheet1_PMIS_ACoverJPCP_IRI_App1!W58,"") -> 
L8: =IF(RSL_PMIS_ACoverJPCP_IRI_App1!L8=0,"",RSL_PMIS_ACoverJPCP_IRI_App1!L8) ->  | M8: =IF(K8<>"",Sheet1_PMIS_ACoverJPCP_IRI_App1!W59,"") -> 
L9: =IF(RSL_PMIS_ACoverJPCP_IRI_App1!L9=0,"",RSL_PMIS_ACoverJPCP_IRI_App1!L9) ->  | M9: =IF(K9<>"",Sheet1_PMIS_ACoverJPCP_IRI_App1!W60,"") -> 
L10: =IF(RSL_PMIS_ACoverJPCP_IRI_App1!L10=0,"",RSL_PMIS_ACoverJPCP_IRI_App1!L10) ->  | M10: =IF(K10<>"",Sheet1_PMIS_ACoverJPCP_IRI_App1!W61,"") -> 
L11: =IF(RSL_PMIS_ACoverJPCP_IRI_App1!L11=0,"",RSL_PMIS_ACoverJPCP_IRI_App1!L11) ->  | M11: =IF(K11<>"",Sheet1_PMIS_ACoverJPCP_IRI_App1!W62,"") -> 
L12: =IF(RSL_PMIS_ACoverJPCP_IRI_App1!L12=0,"",RSL_PMIS_ACoverJPCP_IRI_App1!L12) ->  | M12: =IF(K12<>"",Sheet1_PMIS_ACoverJPCP_IRI_App1!W63,"") -> 
L13: =IF(RSL_PMIS_ACoverJPCP_IRI_App1!L13=0,"",RSL_PMIS_ACoverJPCP_IRI_App1!L13) ->  | M13: =IF(K13<>"",Sheet1_PMIS_ACoverJPCP_IRI_App1!W64,"") -> 
L14: =IF(RSL_PMIS_ACoverJPCP_IRI_App1!L14=0,"",RSL_PMIS_ACoverJPCP_IRI_App1!L14) ->  | M14: =IF(K14<>"",Sheet1_PMIS_ACoverJPCP_IRI_App1!W65,"") -> 
L15: =IF(RSL_PMIS_ACoverJPCP_IRI_App1!L15=0,"",RSL_PMIS_ACoverJPCP_IRI_App1!L15) ->  | M15: =IF(K15<>"",Sheet1_PMIS_ACoverJPCP_IRI_App1!W66,"") -> 
L16: =IF(RSL_PMIS_ACoverJPCP_IRI_App1!L16=0,"",RSL_PMIS_ACoverJPCP_IRI_App1!L16) ->  | M16: =IF(K16<>"",Sheet1_PMIS_ACoverJPCP_IRI_App1!W67,"") -> 
F18: Threshold Limit for IRI (in/mile) | K18: Note: Blue-highligted cells are only for inputs, where inputs should be entered to. Green-higlihted cells are calcuated values (outputs).
F19: Design Life (years)
F20: Present Year
F22: Traffic Increment per year (%) | I22: 1

Sheet PMIS_ACoverJPCP_IRI_App2 (hidden)
A1: Project Name | B1: COUNAME | C1: PROJECT_NO | D1: BPRJ | E1: EPRJ | F1: CONYR | G1: DATAYR | H1: RUTi (in) | I1: LCRACKi (ft/mile) | J1: TCRACKi (ft/mi) | K1: IRIi-2 (in/mile) | L1: IRIi-1 (in/mile) | M1: Age (years) | N1: IRIi (in/mile)
M2: =IF(RSL_PMIS_ACoverJPCP_IRI_App2!M2=0,"",RSL_PMIS_ACoverJPCP_IRI_App2!M2) ->  | N2: =IF(L2<>"",Sheet1_PMIS_ACoverJPCP_IRI_App2!Y53,"") -> 
M3: =IF(RSL_PMIS_ACoverJPCP_IRI_App2!M3=0,"",RSL_PMIS_ACoverJPCP_IRI_App2!M3) ->  | N3: =IF(L3<>"",Sheet1_PMIS_ACoverJPCP_IRI_App2!Y54,"") -> 
M4: =IF(RSL_PMIS_ACoverJPCP_IRI_App2!M4=0,"",RSL_PMIS_ACoverJPCP_IRI_App2!M4) ->  | N4: =IF(L4<>"",Sheet1_PMIS_ACoverJPCP_IRI_App2!Y55,"") -> 
M5: =IF(RSL_PMIS_ACoverJPCP_IRI_App2!M5=0,"",RSL_PMIS_ACoverJPCP_IRI_App2!M5) ->  | N5: =IF(L5<>"",Sheet1_PMIS_ACoverJPCP_IRI_App2!Y56,"") -> 
M6: =IF(RSL_PMIS_ACoverJPCP_IRI_App2!M6=0,"",RSL_PMIS_ACoverJPCP_IRI_App2!M6) ->  | N6: =IF(L6<>"",Sheet1_PMIS_ACoverJPCP_IRI_App2!Y57,"") -> 
M7: =IF(RSL_PMIS_ACoverJPCP_IRI_App2!M7=0,"",RSL_PMIS_ACoverJPCP_IRI_App2!M7) ->  | N7: =IF(L7<>"",Sheet1_PMIS_ACoverJPCP_IRI_App2!Y58,"") -> 
M8: =IF(RSL_PMIS_ACoverJPCP_IRI_App2!M8=0,"",RSL_PMIS_ACoverJPCP_IRI_App2!M8) ->  | N8: =IF(L8<>"",Sheet1_PMIS_ACoverJPCP_IRI_App2!Y59,"") -> 
M9: =IF(RSL_PMIS_ACoverJPCP_IRI_App2!M9=0,"",RSL_PMIS_ACoverJPCP_IRI_App2!M9) ->  | N9: =IF(L9<>"",Sheet1_PMIS_ACoverJPCP_IRI_App2!Y60,"") -> 
M10: =IF(RSL_PMIS_ACoverJPCP_IRI_App2!M10=0,"",RSL_PMIS_ACoverJPCP_IRI_App2!M10) ->  | N10: =IF(L10<>"",Sheet1_PMIS_ACoverJPCP_IRI_App2!Y61,"") -> 
M11: =IF(RSL_PMIS_ACoverJPCP_IRI_App2!M11=0,"",RSL_PMIS_ACoverJPCP_IRI_App2!M11) ->  | N11: =IF(L11<>"",Sheet1_PMIS_ACoverJPCP_IRI_App2!Y62,"") -> 
M12: =IF(RSL_PMIS_ACoverJPCP_IRI_App2!M12=0,"",RSL_PMIS_ACoverJPCP_IRI_App2!M12) ->  | N12: =IF(L12<>"",Sheet1_PMIS_ACoverJPCP_IRI_App2!Y63,"") -> 
M13: =IF(RSL_PMIS_ACoverJPCP_IRI_App2!M13=0,"",RSL_PMIS_ACoverJPCP_IRI_App2!M13) ->  | N13: =IF(L13<>"",Sheet1_PMIS_ACoverJPCP_IRI_App2!Y64,"") -> 
M14: =IF(RSL_PMIS_ACoverJPCP_IRI_App2!M14=0,"",RSL_PMIS_ACoverJPCP_IRI_App2!M14) ->  | N14: =IF(L14<>"",Sheet1_PMIS_ACoverJPCP_IRI_App2!Y65,"") -> 
M15: =IF(RSL_PMIS_ACoverJPCP_IRI_App2!M15=0,"",RSL_PMIS_ACoverJPCP_IRI_App2!M15) ->  | N15: =IF(L15<>"",Sheet1_PMIS_ACoverJPCP_IRI_App2!Y66,"") -> 
M16: =IF(RSL_PMIS_ACoverJPCP_IRI_App2!M16=0,"",RSL_PMIS_ACoverJPCP_IRI_App2!M16) ->  | N16: =IF(L16<>"",Sheet1_PMIS_ACoverJPCP_IRI_App2!Y67,"") -> 
F18: Threshold Limit for IRI (in/mile) | L18: Note: Blue-highligted cells are only for inputs, where inputs should be entered to. Green-higlihted cells are calcuated values (outputs).
F19: Design Life (years)
F20: Present Year

Sheet PMIS_ACoverJPCP_Rut (hidden)
A1: Project Name | B1: COUNAME | C1: PROJECT_NO | D1: BPRJ | E1: EPRJ | F1: CONYR | G1: DATAYR | H1: Accumulated ESALs | I1: HMA Thickness (in.) | J1: RUTi-2 (in) | K1: RUTi-1 (in) | L1: Age (years) | M1: RUTi (in)
L2: =IF(RSL_PMIS_ACoverJPCP_Rut!L2=0,"",RSL_PMIS_ACoverJPCP_Rut!L2) ->  | M2: =IF(K2<>"",Sheet1_PMIS_ACoverJPCP_Rut!W107,"") -> 
L3: =IF(RSL_PMIS_ACoverJPCP_Rut!L3=0,"",RSL_PMIS_ACoverJPCP_Rut!L3) ->  | M3: =IF(K3<>"",Sheet1_PMIS_ACoverJPCP_Rut!W108,"") -> 
L4: =IF(RSL_PMIS_ACoverJPCP_Rut!L4=0,"",RSL_PMIS_ACoverJPCP_Rut!L4) ->  | M4: =IF(K4<>"",Sheet1_PMIS_ACoverJPCP_Rut!W109,"") -> 
L5: =IF(RSL_PMIS_ACoverJPCP_Rut!L5=0,"",RSL_PMIS_ACoverJPCP_Rut!L5) ->  | M5: =IF(K5<>"",Sheet1_PMIS_ACoverJPCP_Rut!W110,"") -> 
L6: =IF(RSL_PMIS_ACoverJPCP_Rut!L6=0,"",RSL_PMIS_ACoverJPCP_Rut!L6) ->  | M6: =IF(K6<>"",Sheet1_PMIS_ACoverJPCP_Rut!W111,"") -> 
L7: =IF(RSL_PMIS_ACoverJPCP_Rut!L7=0,"",RSL_PMIS_ACoverJPCP_Rut!L7) ->  | M7: =IF(K7<>"",Sheet1_PMIS_ACoverJPCP_Rut!W112,"") -> 
L8: =IF(RSL_PMIS_ACoverJPCP_Rut!L8=0,"",RSL_PMIS_ACoverJPCP_Rut!L8) ->  | M8: =IF(K8<>"",Sheet1_PMIS_ACoverJPCP_Rut!W113,"") -> 
L9: =IF(RSL_PMIS_ACoverJPCP_Rut!L9=0,"",RSL_PMIS_ACoverJPCP_Rut!L9) ->  | M9: =IF(K9<>"",Sheet1_PMIS_ACoverJPCP_Rut!W114,"") -> 
L10: =IF(RSL_PMIS_ACoverJPCP_Rut!L10=0,"",RSL_PMIS_ACoverJPCP_Rut!L10) ->  | M10: =IF(K10<>"",Sheet1_PMIS_ACoverJPCP_Rut!W115,"") -> 
L11: =IF(RSL_PMIS_ACoverJPCP_Rut!L11=0,"",RSL_PMIS_ACoverJPCP_Rut!L11) ->  | M11: =IF(K11<>"",Sheet1_PMIS_ACoverJPCP_Rut!W116,"") -> 
L12: =IF(RSL_PMIS_ACoverJPCP_Rut!L12=0,"",RSL_PMIS_ACoverJPCP_Rut!L12) ->  | M12: =IF(K12<>"",Sheet1_PMIS_ACoverJPCP_Rut!W117,"") -> 
L13: =IF(RSL_PMIS_ACoverJPCP_Rut!L13=0,"",RSL_PMIS_ACoverJPCP_Rut!L13) ->  | M13: =IF(K13<>"",Sheet1_PMIS_ACoverJPCP_Rut!W118,"") -> 
L14: =IF(RSL_PMIS_ACoverJPCP_Rut!L14=0,"",RSL_PMIS_ACoverJPCP_Rut!L14) ->  | M14: =IF(K14<>"",Sheet1_PMIS_ACoverJPCP_Rut!W119,"") -> 
L15: =IF(RSL_PMIS_ACoverJPCP_Rut!L15=0,"",RSL_PMIS_ACoverJPCP_Rut!L15) ->  | M15: =IF(K15<>"",Sheet1_PMIS_ACoverJPCP_Rut!W120,"") -> 
L16: =IF(RSL_PMIS_ACoverJPCP_Rut!L16=0,"",RSL_PMIS_ACoverJPCP_Rut!L16) ->  | M16: =IF(K16<>"",Sheet1_PMIS_ACoverJPCP_Rut!W121,"") -> 
F18: Threshold Limit for RUT (in) | K18: Note: Blue-highligted cells are only for inputs, where inputs should be entered to. Green-higlihted cells are calcuated values (outputs).
F19: Design Life (years)
F20: Present Year
F22: Traffic Increment per year (%) | I22: 1

Sheet PMIS_ACoverJPCP_TCrack (hidden)
A1: Project Name | B1: COUNAME | C1: PROJECT_NO | D1: BPRJ | E1: EPRJ | F1: CONYR | G1: DATAYR | H1: Accumulated ESALs | I1: HMA Thickness (in.) | J1: TCRACKi-2 (ft/mile) | K1: TCRACKi-1 (ft/mile) | L1: Age (years) | M1: TCRACKi (ft/mile)
L2: =IF(RSL_PMIS_ACoverJPCP_TCrack!L2=0,"",RSL_PMIS_ACoverJPCP_TCrack!L2) ->  | M2: =IF(K2<>"",Sheet1_PMIS_ACoverJPCP_TCrack!W53,"") -> 
L3: =IF(RSL_PMIS_ACoverJPCP_TCrack!L3=0,"",RSL_PMIS_ACoverJPCP_TCrack!L3) ->  | M3: =IF(K3<>"",Sheet1_PMIS_ACoverJPCP_TCrack!W54,"") -> 
L4: =IF(RSL_PMIS_ACoverJPCP_TCrack!L4=0,"",RSL_PMIS_ACoverJPCP_TCrack!L4) ->  | M4: =IF(K4<>"",Sheet1_PMIS_ACoverJPCP_TCrack!W55,"") -> 
L5: =IF(RSL_PMIS_ACoverJPCP_TCrack!L5=0,"",RSL_PMIS_ACoverJPCP_TCrack!L5) ->  | M5: =IF(K5<>"",Sheet1_PMIS_ACoverJPCP_TCrack!W56,"") -> 
L6: =IF(RSL_PMIS_ACoverJPCP_TCrack!L6=0,"",RSL_PMIS_ACoverJPCP_TCrack!L6) ->  | M6: =IF(K6<>"",Sheet1_PMIS_ACoverJPCP_TCrack!W57,"") -> 
L7: =IF(RSL_PMIS_ACoverJPCP_TCrack!L7=0,"",RSL_PMIS_ACoverJPCP_TCrack!L7) ->  | M7: =IF(K7<>"",Sheet1_PMIS_ACoverJPCP_TCrack!W58,"") -> 
L8: =IF(RSL_PMIS_ACoverJPCP_TCrack!L8=0,"",RSL_PMIS_ACoverJPCP_TCrack!L8) ->  | M8: =IF(K8<>"",Sheet1_PMIS_ACoverJPCP_TCrack!W59,"") -> 
L9: =IF(RSL_PMIS_ACoverJPCP_TCrack!L9=0,"",RSL_PMIS_ACoverJPCP_TCrack!L9) ->  | M9: =IF(K9<>"",Sheet1_PMIS_ACoverJPCP_TCrack!W60,"") -> 
L10: =IF(RSL_PMIS_ACoverJPCP_TCrack!L10=0,"",RSL_PMIS_ACoverJPCP_TCrack!L10) ->  | M10: =IF(K10<>"",Sheet1_PMIS_ACoverJPCP_TCrack!W61,"") -> 
L11: =IF(RSL_PMIS_ACoverJPCP_TCrack!L11=0,"",RSL_PMIS_ACoverJPCP_TCrack!L11) ->  | M11: =IF(K11<>"",Sheet1_PMIS_ACoverJPCP_TCrack!W62,"") -> 
L12: =IF(RSL_PMIS_ACoverJPCP_TCrack!L12=0,"",RSL_PMIS_ACoverJPCP_TCrack!L12) ->  | M12: =IF(K12<>"",Sheet1_PMIS_ACoverJPCP_TCrack!W63,"") -> 
L13: =IF(RSL_PMIS_ACoverJPCP_TCrack!L13=0,"",RSL_PMIS_ACoverJPCP_TCrack!L13) ->  | M13: =IF(K13<>"",Sheet1_PMIS_ACoverJPCP_TCrack!W64,"") -> 
L14: =IF(RSL_PMIS_ACoverJPCP_TCrack!L14=0,"",RSL_PMIS_ACoverJPCP_TCrack!L14) ->  | M14: =IF(K14<>"",Sheet1_PMIS_ACoverJPCP_TCrack!W65,"") -> 
L15: =IF(RSL_PMIS_ACoverJPCP_TCrack!L15=0,"",RSL_PMIS_ACoverJPCP_TCrack!L15) ->  | M15: =IF(K15<>"",Sheet1_PMIS_ACoverJPCP_TCrack!W66,"") -> 
L16: =IF(RSL_PMIS_ACoverJPCP_TCrack!L16=0,"",RSL_PMIS_ACoverJPCP_TCrack!L16) ->  | M16: =IF(K16<>"",Sheet1_PMIS_ACoverJPCP_TCrack!W67,"") -> 
F17: Threshold Limit for TCRACK (% cracking)
F18: Threshold Limit for TCRACK (ft/mile) | I18: =((I17*5280*10)/(2))/100 -> 0.00 | K18: Note: Blue-highligted cells are only for inputs, where inputs should be entered to. Green-higlihted cells are calcuated values (outputs).
F19: Design Life (years)
F20: Present Year
F22: Traffic Increment per year (%) | I22: 1

Sheet PMIS_ACoverJPCP_LCrack (hidden)
A1: Project Name | B1: COUNAME | C1: PROJECT_NO | D1: BPRJ | E1: EPRJ | F1: CONYR | G1: DATAYR | H1: Accumulated ESALs | I1: HMA Thickness (in.) | J1: LCRACKi-2 (ft/mile) | K1: LCRACKi-1 (ft/mile) | L1: Age (years) | M1: LCRACKi (ft/mile)
L2: =IF(RSL_PMIS_ACoverJPCP_LCrack!L2=0,"",RSL_PMIS_ACoverJPCP_LCrack!L2) ->  | M2: =IF(K2<>"",Sheet1_PMIS_ACoverJPCP_LCrack!W65,"") -> 
L3: =IF(RSL_PMIS_ACoverJPCP_LCrack!L3=0,"",RSL_PMIS_ACoverJPCP_LCrack!L3) ->  | M3: =IF(K3<>"",Sheet1_PMIS_ACoverJPCP_LCrack!W66,"") -> 
L4: =IF(RSL_PMIS_ACoverJPCP_LCrack!L4=0,"",RSL_PMIS_ACoverJPCP_LCrack!L4) ->  | M4: =IF(K4<>"",Sheet1_PMIS_ACoverJPCP_LCrack!W67,"") -> 
L5: =IF(RSL_PMIS_ACoverJPCP_LCrack!L5=0,"",RSL_PMIS_ACoverJPCP_LCrack!L5) ->  | M5: =IF(K5<>"",Sheet1_PMIS_ACoverJPCP_LCrack!W68,"") -> 
L6: =IF(RSL_PMIS_ACoverJPCP_LCrack!L6=0,"",RSL_PMIS_ACoverJPCP_LCrack!L6) ->  | M6: =IF(K6<>"",Sheet1_PMIS_ACoverJPCP_LCrack!W69,"") -> 
L7: =IF(RSL_PMIS_ACoverJPCP_LCrack!L7=0,"",RSL_PMIS_ACoverJPCP_LCrack!L7) ->  | M7: =IF(K7<>"",Sheet1_PMIS_ACoverJPCP_LCrack!W70,"") -> 
L8: =IF(RSL_PMIS_ACoverJPCP_LCrack!L8=0,"",RSL_PMIS_ACoverJPCP_LCrack!L8) ->  | M8: =IF(K8<>"",Sheet1_PMIS_ACoverJPCP_LCrack!W71,"") -> 
L9: =IF(RSL_PMIS_ACoverJPCP_LCrack!L9=0,"",RSL_PMIS_ACoverJPCP_LCrack!L9) ->  | M9: =IF(K9<>"",Sheet1_PMIS_ACoverJPCP_LCrack!W72,"") -> 
L10: =IF(RSL_PMIS_ACoverJPCP_LCrack!L10=0,"",RSL_PMIS_ACoverJPCP_LCrack!L10) ->  | M10: =IF(K10<>"",Sheet1_PMIS_ACoverJPCP_LCrack!W73,"") -> 
L11: =IF(RSL_PMIS_ACoverJPCP_LCrack!L11=0,"",RSL_PMIS_ACoverJPCP_LCrack!L11) ->  | M11: =IF(K11<>"",Sheet1_PMIS_ACoverJPCP_LCrack!W74,"") -> 
L12: =IF(RSL_PMIS_ACoverJPCP_LCrack!L12=0,"",RSL_PMIS_ACoverJPCP_LCrack!L12) ->  | M12: =IF(K12<>"",Sheet1_PMIS_ACoverJPCP_LCrack!W75,"") -> 
L13: =IF(RSL_PMIS_ACoverJPCP_LCrack!L13=0,"",RSL_PMIS_ACoverJPCP_LCrack!L13) ->  | M13: =IF(K13<>"",Sheet1_PMIS_ACoverJPCP_LCrack!W76,"") -> 
L14: =IF(RSL_PMIS_ACoverJPCP_LCrack!L14=0,"",RSL_PMIS_ACoverJPCP_LCrack!L14) ->  | M14: =IF(K14<>"",Sheet1_PMIS_ACoverJPCP_LCrack!W77,"") -> 
L15: =IF(RSL_PMIS_ACoverJPCP_LCrack!L15=0,"",RSL_PMIS_ACoverJPCP_LCrack!L15) ->  | M15: =IF(K15<>"",Sheet1_PMIS_ACoverJPCP_LCrack!W78,"") -> 
L16: =IF(RSL_PMIS_ACoverJPCP_LCrack!L16=0,"",RSL_PMIS_ACoverJPCP_LCrack!L16) ->  | M16: =IF(K16<>"",Sheet1_PMIS_ACoverJPCP_LCrack!W79,"") -> 
F17: Threshold Limit for LCRACK (% cracking)
F18: Threshold Limit for LCRACK (ft/mile) | I18: =((I17*5280*10)/(2))/100 -> 0.00 | K18: Note: Blue-highligted cells are only for inputs, where inputs should be entered to. Green-higlihted cells are calcuated values (outputs).
F19: Design Life (years)
F20: Present Year
F22: Traffic Increment per year (%) | I22: 1

Sheet County_PCCoverlay_IRI (hidden)
A1: Project Name | B1: COUNAME | C1: PROJECT_NO | D1: BPRJ | E1: EPRJ | F1: CONYR | G1: DATAYR | H1: Accumulated AADTs | I1: Overlay Thickness (in) | J1: Joint Spacing (ft) | K1: IRIi-2 (in/mile) | L1: IRIi-1 (in/mile) | M1: Age (years) | N1: IRIi (in/mile)
M2: =IF(RSL_County_PCCoverlay_IRI!M2=0,"",RSL_County_PCCoverlay_IRI!M2) ->  | N2: =IF(L2<>"",Sheet1_County_PCCoverlay_IRI!Y85,"") -> 
M3: =IF(RSL_County_PCCoverlay_IRI!M3=0,"",RSL_County_PCCoverlay_IRI!M3) ->  | N3: =IF(L3<>"",Sheet1_County_PCCoverlay_IRI!Y86,"") -> 
M4: =IF(RSL_County_PCCoverlay_IRI!M4=0,"",RSL_County_PCCoverlay_IRI!M4) ->  | N4: =IF(L4<>"",Sheet1_County_PCCoverlay_IRI!Y87,"") -> 
M5: =IF(RSL_County_PCCoverlay_IRI!M5=0,"",RSL_County_PCCoverlay_IRI!M5) ->  | N5: =IF(L5<>"",Sheet1_County_PCCoverlay_IRI!Y88,"") -> 
M6: =IF(RSL_County_PCCoverlay_IRI!M6=0,"",RSL_County_PCCoverlay_IRI!M6) ->  | N6: =IF(L6<>"",Sheet1_County_PCCoverlay_IRI!Y89,"") -> 
M7: =IF(RSL_County_PCCoverlay_IRI!M7=0,"",RSL_County_PCCoverlay_IRI!M7) ->  | N7: =IF(L7<>"",Sheet1_County_PCCoverlay_IRI!Y90,"") -> 
M8: =IF(RSL_County_PCCoverlay_IRI!M8=0,"",RSL_County_PCCoverlay_IRI!M8) ->  | N8: =IF(L8<>"",Sheet1_County_PCCoverlay_IRI!Y91,"") -> 
M9: =IF(RSL_County_PCCoverlay_IRI!M9=0,"",RSL_County_PCCoverlay_IRI!M9) ->  | N9: =IF(L9<>"",Sheet1_County_PCCoverlay_IRI!Y92,"") -> 
M10: =IF(RSL_County_PCCoverlay_IRI!M10=0,"",RSL_County_PCCoverlay_IRI!M10) ->  | N10: =IF(L10<>"",Sheet1_County_PCCoverlay_IRI!Y93,"") -> 
M11: =IF(RSL_County_PCCoverlay_IRI!M11=0,"",RSL_County_PCCoverlay_IRI!M11) ->  | N11: =IF(L11<>"",Sheet1_County_PCCoverlay_IRI!Y94,"") -> 
M12: =IF(RSL_County_PCCoverlay_IRI!M12=0,"",RSL_County_PCCoverlay_IRI!M12) ->  | N12: =IF(L12<>"",Sheet1_County_PCCoverlay_IRI!Y95,"") -> 
M13: =IF(RSL_County_PCCoverlay_IRI!M13=0,"",RSL_County_PCCoverlay_IRI!M13) ->  | N13: =IF(L13<>"",Sheet1_County_PCCoverlay_IRI!Y96,"") -> 
M14: =IF(RSL_County_PCCoverlay_IRI!M14=0,"",RSL_County_PCCoverlay_IRI!M14) ->  | N14: =IF(L14<>"",Sheet1_County_PCCoverlay_IRI!Y97,"") -> 
M15: =IF(RSL_County_PCCoverlay_IRI!M15=0,"",RSL_County_PCCoverlay_IRI!M15) ->  | N15: =IF(L15<>"",Sheet1_County_PCCoverlay_IRI!Y98,"") -> 
M16: =IF(RSL_County_PCCoverlay_IRI!M16=0,"",RSL_County_PCCoverlay_IRI!M16) ->  | N16: =IF(L16<>"",Sheet1_County_PCCoverlay_IRI!Y99,"") -> 
F18: Threshold Limit for IRI (in/mile) | L18: Note: Blue-highligted cells are only for inputs, where inputs should be entered to. Green-higlihted cells are calcuated values (outputs).
F19: Design Life (years)
F20: Present Year
F22: Traffic Increment per year (%) | I22: 1

Sheet Sheet1_County_PCCoverlay_IRI (hidden)
A1: =County_PCCoverlay_IRI!A1 -> Project Name | B1: =County_PCCoverlay_IRI!B1 -> COUNAME | C1: =County_PCCoverlay_IRI!C1 -> PROJECT_NO | D1: =County_PCCoverlay_IRI!D1 -> BPRJ | E1: =County_PCCoverlay_IRI!E1 -> EPRJ | F1: =County_PCCoverlay_IRI!F1 -> CONYR | G1: =County_PCCoverlay_IRI!G1 -> DATAYR | H1: =County_PCCoverlay_IRI!H1 -> Accumulated AADTs | I1: =County_PCCoverlay_IRI!I1 -> Overlay Thickness (in) | J1: =County_PCCoverlay_IRI!J1 -> Joint Spacing (ft) | K1: =County_PCCoverlay_IRI!K1 -> IRIi-2 (in/mile) | L1: =County_PCCoverlay_IRI!L1 -> IRIi-1 (in/mile) | M1: =County_PCCoverlay_IRI!M1 -> Age (years) | N1: =County_PCCoverlay_IRI!N1 -> IRIi (in/mile) | P1: Normalized Inputs | Q1: Age | R1: Age | S1: RUTi, in | T1: LCRACTi, ft/mile | U1: TCRACKi, ft/mi | V1: IRI-2 | W1: IRI-1 | AB1: IW
A2: =County_PCCoverlay_IRI!A2 -> 0 | B2: =County_PCCoverlay_IRI!B2 -> 0 | C2: =County_PCCoverlay_IRI!C2 -> 0 | D2: =County_PCCoverlay_IRI!D2 -> 0 | E2: =County_PCCoverlay_IRI!E2 -> 0 | F2: =County_PCCoverlay_IRI!F2 -> 0 | G2: =County_PCCoverlay_IRI!G2 -> 0 | H2: =County_PCCoverlay_IRI!H2 -> 0 | I2: =County_PCCoverlay_IRI!I2 -> 0 | J2: =County_PCCoverlay_IRI!J2 -> 0 | K2: =County_PCCoverlay_IRI!K2 -> 0 | L2: =County_PCCoverlay_IRI!L2 -> 0 | M2: =RSL_County_PCCoverlay_IRI!M2 -> 0 | N2: =County_PCCoverlay_IRI!N2 ->  | O2: IRI min | Q2: min | R2: =2*((M2-Q$3)/(Q$5-Q$3))-1 -> -1.166666667 | S2: =2*((H2-Q$8)/(Q$10-Q$8))-1 -> -1.00E+00 | T2: =2*((I2-Q$13)/(Q$15-Q$13))-1 -> -1.5 | U2: =2*((J2-Q$18)/(Q$20-Q$18))-1 -> -1 | V2: =2*((K2-Q$23)/(Q$25-Q$23))-1 -> -1.63939552 | W2: =2*((L2-Q$28)/(Q$30-Q$28))-1 -> -1.655438806 | AB2: -1.09685 | AC2: -2.45371 | AD2: -0.0256126 | AE2: 1.7358 | AF2: -1.68605 | AG2: 0.405737
A3: =County_PCCoverlay_IRI!A3 -> 0 | B3: =County_PCCoverlay_IRI!B3 -> 0 | C3: =County_PCCoverlay_IRI!C3 -> 0 | D3: =County_PCCoverlay_IRI!D3 -> 0 | E3: =County_PCCoverlay_IRI!E3 -> 0 | F3: =County_PCCoverlay_IRI!F3 -> 0 | G3: =County_PCCoverlay_IRI!G3 -> 0 | H3: =IF(County_PCCoverlay_IRI!H3="",H2+H2*(County_PCCoverlay_IRI!$I$22/100),County_PCCoverlay_IRI!H3) -> 0 | I3: =IF(County_PCCoverlay_IRI!H3="",I2,County_PCCoverlay_IRI!I3) -> 0 | J3: =County_PCCoverlay_IRI!J3 -> 0 | K3: =County_PCCoverlay_IRI!K3 -> 0 | L3: =County_PCCoverlay_IRI!L3 -> 0 | M3: =RSL_County_PCCoverlay_IRI!M3 -> 0 | N3: =County_PCCoverlay_IRI!N3 ->  | O3: 65.1179 | Q3: 4 | R3: =2*((M3-Q$3)/(Q$5-Q$3))-1 -> -1.166666667 | S3: =2*((H3-Q$8)/(Q$10-Q$8))-1 -> -1.00E+00 | T3: =2*((I3-Q$13)/(Q$15-Q$13))-1 -> -1.5 | U3: =2*((J3-Q$18)/(Q$20-Q$18))-1 -> -1 | V3: =2*((K3-Q$23)/(Q$25-Q$23))-1 -> -1.63939552 | W3: =2*((L3-Q$28)/(Q$30-Q$28))-1 -> -1.655438806 | AB3: 1.94838 | AC3: -0.874426 | AD3: -0.739611 | AE3: 1.07673 | AF3: -1.18972 | AG3: -1.42337
A4: =County_PCCoverlay_IRI!A4 -> 0 | B4: =County_PCCoverlay_IRI!B4 -> 0 | C4: =County_PCCoverlay_IRI!C4 -> 0 | D4: =County_PCCoverlay_IRI!D4 -> 0 | E4: =County_PCCoverlay_IRI!E4 -> 0 | F4: =County_PCCoverlay_IRI!F4 -> 0 | G4: =County_PCCoverlay_IRI!G4 -> 0 | H4: =IF(County_PCCoverlay_IRI!H4="",H3+H3*(County_PCCoverlay_IRI!$I$22/100),County_PCCoverlay_IRI!H4) -> 0 | I4: =IF(County_PCCoverlay_IRI!H4="",I3,County_PCCoverlay_IRI!I4) -> 0 | J4: =County_PCCoverlay_IRI!J4 -> 0 | K4: =County_PCCoverlay_IRI!K4 -> 0 | L4: =County_PCCoverlay_IRI!L4 -> 0 | M4: =RSL_County_PCCoverlay_IRI!M4 -> 0 | N4: =County_PCCoverlay_IRI!N4 ->  | O4: IRI max | Q4: max | R4: -1.166666667 | S4: -1.00E+00 | T4: -1.5 | U4: -1 | V4: -1.63939552 | W4: -1.655438806 | AB4: 0.163553 | AC4: 2.62268 | AD4: 1.79758 | AE4: 0.323088 | AF4: -0.435765 | AG4: -0.320004
A5: =County_PCCoverlay_IRI!A5 -> 0 | B5: =County_PCCoverlay_IRI!B5 -> 0 | C5: =County_PCCoverlay_IRI!C5 -> 0 | D5: =County_PCCoverlay_IRI!D5 -> 0 | E5: =County_PCCoverlay_IRI!E5 -> 0 | F5: =County_PCCoverlay_IRI!F5 -> 0 | G5: =County_PCCoverlay_IRI!G5 -> 0 | H5: =IF(County_PCCoverlay_IRI!H5="",H4+H4*(County_PCCoverlay_IRI!$I$22/100),County_PCCoverlay_IRI!H5) -> 0 | I5: =IF(County_PCCoverlay_IRI!H5="",I4,County_PCCoverlay_IRI!I5) -> 0 | J5: =County_PCCoverlay_IRI!J5 -> 0 | K5: =County_PCCoverlay_IRI!K5 -> 0 | L5: =County_PCCoverlay_IRI!L5 -> 0 | M5: =RSL_County_PCCoverlay_IRI!M5 -> 0 | N5: =County_PCCoverlay_IRI!N5 ->  | O5: 259.187 | Q5: 52 | R5: -1.166666667 | S5: -1.00E+00 | T5: -1.5 | U5: -1 | V5: -1.63939552 | W5: -1.655438806 | AB5: -0.496591 | AC5: -1.19915 | AD5: -0.0369204 | AE5: 0.588961 | AF5: -2.92086 | AG5: 5.14121
A6: =County_PCCoverlay_IRI!A6 -> 0 | B6: =County_PCCoverlay_IRI!B6 -> 0 | C6: =County_PCCoverlay_IRI!C6 -> 0 | D6: =County_PCCoverlay_IRI!D6 -> 0 | E6: =County_PCCoverlay_IRI!E6 -> 0 | F6: =County_PCCoverlay_IRI!F6 -> 0 | G6: =County_PCCoverlay_IRI!G6 -> 0 | H6: =IF(County_PCCoverlay_IRI!H6="",H5+H5*(County_PCCoverlay_IRI!$I$22/100),County_PCCoverlay_IRI!H6) -> 0 | I6: =IF(County_PCCoverlay_IRI!H6="",I5,County_PCCoverlay_IRI!I6) -> 0 | J6: =County_PCCoverlay_IRI!J6 -> 0 | K6: =County_PCCoverlay_IRI!K6 -> 0 | L6: =County_PCCoverlay_IRI!L6 -> 0 | M6: =RSL_County_PCCoverlay_IRI!M6 -> 0 | N6: =County_PCCoverlay_IRI!N6 ->  | Q6: ACC aadt | R6: -1.166666667 | S6: -1.00E+00 | T6: -1.5 | U6: -1 | V6: -1.63939552 | W6: -1.655438806 | AB6: -0.0306116 | AC6: 0.0765179 | AD6: 1.66594 | AE6: -0.654686 | AF6: 5.90372 | AG6: -8.6883
A7: =County_PCCoverlay_IRI!A7 -> 0 | B7: =County_PCCoverlay_IRI!B7 -> 0 | C7: =County_PCCoverlay_IRI!C7 -> 0 | D7: =County_PCCoverlay_IRI!D7 -> 0 | E7: =County_PCCoverlay_IRI!E7 -> 0 | F7: =County_PCCoverlay_IRI!F7 -> 0 | G7: =County_PCCoverlay_IRI!G7 -> 0 | H7: =IF(County_PCCoverlay_IRI!H7="",H6+H6*(County_PCCoverlay_IRI!$I$22/100),County_PCCoverlay_IRI!H7) -> 0 | I7: =IF(County_PCCoverlay_IRI!H7="",I6,County_PCCoverlay_IRI!I7) -> 0 | J7: =County_PCCoverlay_IRI!J7 -> 0 | K7: =County_PCCoverlay_IRI!K7 -> 0 | L7: =County_PCCoverlay_IRI!L7 -> 0 | M7: =RSL_County_PCCoverlay_IRI!M7 -> 0 | N7: =County_PCCoverlay_IRI!N7 ->  | Q7: min | R7: -1.166666667 | S7: -1.00E+00 | T7: -1.5 | U7: -1 | V7: -1.63939552 | W7: -1.655438806 | AB7: -0.141885 | AC7: 3.07598 | AD7: -0.249936 | AE7: -1.6279 | AF7: 2.98772 | AG7: -0.354354
A8: =County_PCCoverlay_IRI!A8 -> 0 | B8: =County_PCCoverlay_IRI!B8 -> 0 | C8: =County_PCCoverlay_IRI!C8 -> 0 | D8: =County_PCCoverlay_IRI!D8 -> 0 | E8: =County_PCCoverlay_IRI!E8 -> 0 | F8: =County_PCCoverlay_IRI!F8 -> 0 | G8: =County_PCCoverlay_IRI!G8 -> 0 | H8: =IF(County_PCCoverlay_IRI!H8="",H7+H7*(County_PCCoverlay_IRI!$I$22/100),County_PCCoverlay_IRI!H8) -> 0 | I8: =IF(County_PCCoverlay_IRI!H8="",I7,County_PCCoverlay_IRI!I8) -> 0 | J8: =County_PCCoverlay_IRI!J8 -> 0 | K8: =County_PCCoverlay_IRI!K8 -> 0 | L8: =County_PCCoverlay_IRI!L8 -> 0 | M8: =RSL_County_PCCoverlay_IRI!M8 -> 0 | N8: =County_PCCoverlay_IRI!N8 ->  | Q8: 120 | R8: -1.166666667 | S8: -1.00E+00 | T8: -1.5 | U8: -1 | V8: -1.63939552 | W8: -1.655438806 | AB8: -1.38707 | AC8: 0.694034 | AD8: 0.696596 | AE8: -1.36775 | AF8: -0.193425 | AG8: -2.86254
A9: =County_PCCoverlay_IRI!A9 -> 0 | B9: =County_PCCoverlay_IRI!B9 -> 0 | C9: =County_PCCoverlay_IRI!C9 -> 0 | D9: =County_PCCoverlay_IRI!D9 -> 0 | E9: =County_PCCoverlay_IRI!E9 -> 0 | F9: =County_PCCoverlay_IRI!F9 -> 0 | G9: =County_PCCoverlay_IRI!G9 -> 0 | H9: =IF(County_PCCoverlay_IRI!H9="",H8+H8*(County_PCCoverlay_IRI!$I$22/100),County_PCCoverlay_IRI!H9) -> 0 | I9: =IF(County_PCCoverlay_IRI!H9="",I8,County_PCCoverlay_IRI!I9) -> 0 | J9: =County_PCCoverlay_IRI!J9 -> 0 | K9: =County_PCCoverlay_IRI!K9 -> 0 | L9: =County_PCCoverlay_IRI!L9 -> 0 | M9: =RSL_County_PCCoverlay_IRI!M9 -> 0 | N9: =County_PCCoverlay_IRI!N9 ->  | Q9: max | R9: -1.166666667 | S9: -1.00E+00 | T9: -1.5 | U9: -1 | V9: -1.63939552 | W9: -1.655438806 | AB9: -1.1109 | AC9: 0.932065 | AD9: 2.54843 | AE9: 0.473365 | AF9: 8.86715 | AG9: -6.86931
A10: =County_PCCoverlay_IRI!A10 -> 0 | B10: =County_PCCoverlay_IRI!B10 -> 0 | C10: =County_PCCoverlay_IRI!C10 -> 0 | D10: =County_PCCoverlay_IRI!D10 -> 0 | E10: =County_PCCoverlay_IRI!E10 -> 0 | F10: =County_PCCoverlay_IRI!F10 -> 0 | G10: =County_PCCoverlay_IRI!G10 -> 0 | H10: =IF(County_PCCoverlay_IRI!H10="",H9+H9*(County_PCCoverlay_IRI!$I$22/100),County_PCCoverlay_IRI!H10) -> 0 | I10: =IF(County_PCCoverlay_IRI!H10="",I9,County_PCCoverlay_IRI!I10) -> 0 | J10: =County_PCCoverlay_IRI!J10 -> 0 | K10: =County_PCCoverlay_IRI!K10 -> 0 | L10: =County_PCCoverlay_IRI!L10 -> 0 | M10: =RSL_County_PCCoverlay_IRI!M10 -> 0 | N10: =County_PCCoverlay_IRI!N10 ->  | Q10: 9.06E+04 | R10: -1.166666667 | S10: -1.00E+00 | T10: -1.5 | U10: -1 | V10: -1.63939552 | W10: -1.655438806 | AB10: 0.079675 | AC10: -0.970091 | AD10: -0.359972 | AE10: 0.440893 | AF10: -6.99218 | AG10: 7.57126
A11: =County_PCCoverlay_IRI!A11 -> 0 | B11: =County_PCCoverlay_IRI!B11 -> 0 | C11: =County_PCCoverlay_IRI!C11 -> 0 | D11: =County_PCCoverlay_IRI!D11 -> 0 | E11: =County_PCCoverlay_IRI!E11 -> 0 | F11: =County_PCCoverlay_IRI!F11 -> 0 | G11: =County_PCCoverlay_IRI!G11 -> 0 | H11: =IF(County_PCCoverlay_IRI!H11="",H10+H10*(County_PCCoverlay_IRI!$I$22/100),County_PCCoverlay_IRI!H11) -> 0 | I11: =IF(County_PCCoverlay_IRI!H11="",I10,County_PCCoverlay_IRI!I11) -> 0 | J11: =County_PCCoverlay_IRI!J11 -> 0 | K11: =County_PCCoverlay_IRI!K11 -> 0 | L11: =County_PCCoverlay_IRI!L11 -> 0 | M11: =RSL_County_PCCoverlay_IRI!M11 -> 0 | N11: =County_PCCoverlay_IRI!N11 ->  | Q11: Thickness | R11: -1.166666667 | S11: -1.00E+00 | T11: -1.5 | U11: -1 | V11: -1.63939552 | W11: -1.655438806 | AB11: -3.07681 | AC11: -1.41118 | AD11: -1.83145 | AE11: 1.2675 | AF11: -3.18621 | AG11: -0.598127
A12: =County_PCCoverlay_IRI!A12 -> 0 | B12: =County_PCCoverlay_IRI!B12 -> 0 | C12: =County_PCCoverlay_IRI!C12 -> 0 | D12: =County_PCCoverlay_IRI!D12 -> 0 | E12: =County_PCCoverlay_IRI!E12 -> 0 | F12: =County_PCCoverlay_IRI!F12 -> 0 | G12: =County_PCCoverlay_IRI!G12 -> 0 | H12: =IF(County_PCCoverlay_IRI!H12="",H11+H11*(County_PCCoverlay_IRI!$I$22/100),County_PCCoverlay_IRI!H12) -> 0 | I12: =IF(County_PCCoverlay_IRI!H12="",I11,County_PCCoverlay_IRI!I12) -> 0 | J12: =County_PCCoverlay_IRI!J12 -> 0 | K12: =County_PCCoverlay_IRI!K12 -> 0 | L12: =County_PCCoverlay_IRI!L12 -> 0 | M12: =RSL_County_PCCoverlay_IRI!M12 -> 0 | N12: =County_PCCoverlay_IRI!N12 ->  | Q12: min | R12: -1.166666667 | S12: -1.00E+00 | T12: -1.5 | U12: -1 | V12: -1.63939552 | W12: -1.655438806 | AB12: -0.0566838 | AC12: -0.891952 | AD12: 0.0723028 | AE12: 1.86321 | AF12: 0.586176 | AG12: -1.92019
A13: =County_PCCoverlay_IRI!A13 -> 0 | B13: =County_PCCoverlay_IRI!B13 -> 0 | C13: =County_PCCoverlay_IRI!C13 -> 0 | D13: =County_PCCoverlay_IRI!D13 -> 0 | E13: =County_PCCoverlay_IRI!E13 -> 0 | F13: =County_PCCoverlay_IRI!F13 -> 0 | G13: =County_PCCoverlay_IRI!G13 -> 0 | H13: =IF(County_PCCoverlay_IRI!H13="",H12+H12*(County_PCCoverlay_IRI!$I$22/100),County_PCCoverlay_IRI!H13) -> 0 | I13: =IF(County_PCCoverlay_IRI!H13="",I12,County_PCCoverlay_IRI!I13) -> 0 | J13: =County_PCCoverlay_IRI!J13 -> 0 | K13: =County_PCCoverlay_IRI!K13 -> 0 | L13: =County_PCCoverlay_IRI!L13 -> 0 | M13: =RSL_County_PCCoverlay_IRI!M13 -> 0 | N13: =County_PCCoverlay_IRI!N13 ->  | Q13: 2 | R13: -1.166666667 | S13: -1.00E+00 | T13: -1.5 | U13: -1 | V13: -1.63939552 | W13: -1.655438806 | AB13: -0.163649 | AC13: 2.19313 | AD13: -1.73573 | AE13: -0.285891 | AF13: 4.43258 | AG13: -1.71156
A14: =County_PCCoverlay_IRI!A14 -> 0 | B14: =County_PCCoverlay_IRI!B14 -> 0 | C14: =County_PCCoverlay_IRI!C14 -> 0 | D14: =County_PCCoverlay_IRI!D14 -> 0 | E14: =County_PCCoverlay_IRI!E14 -> 0 | F14: =County_PCCoverlay_IRI!F14 -> 0 | G14: =County_PCCoverlay_IRI!G14 -> 0 | H14: =IF(County_PCCoverlay_IRI!H14="",H13+H13*(County_PCCoverlay_IRI!$I$22/100),County_PCCoverlay_IRI!H14) -> 0 | I14: =IF(County_PCCoverlay_IRI!H14="",I13,County_PCCoverlay_IRI!I14) -> 0 | J14: =County_PCCoverlay_IRI!J14 -> 0 | K14: =County_PCCoverlay_IRI!K14 -> 0 | L14: =County_PCCoverlay_IRI!L14 -> 0 | M14: =RSL_County_PCCoverlay_IRI!M14 -> 0 | N14: =County_PCCoverlay_IRI!N14 ->  | Q14: max | R14: -1.166666667 | S14: -1.00E+00 | T14: -1.5 | U14: -1 | V14: -1.63939552 | W14: -1.655438806 | AB14: -1.07529 | AC14: 2.96085 | AD14: -2.10202 | AE14: 0.325989 | AF14: 2.26684 | AG14: -2.07277
A15: =County_PCCoverlay_IRI!A15 -> 0 | B15: =County_PCCoverlay_IRI!B15 -> 0 | C15: =County_PCCoverlay_IRI!C15 -> 0 | D15: =County_PCCoverlay_IRI!D15 -> 0 | E15: =County_PCCoverlay_IRI!E15 -> 0 | F15: =County_PCCoverlay_IRI!F15 -> 0 | G15: =County_PCCoverlay_IRI!G15 -> 0 | H15: =IF(County_PCCoverlay_IRI!H15="",H14+H14*(County_PCCoverlay_IRI!$I$22/100),County_PCCoverlay_IRI!H15) -> 0 | I15: =IF(County_PCCoverlay_IRI!H15="",I14,County_PCCoverlay_IRI!I15) -> 0 | J15: =County_PCCoverlay_IRI!J15 -> 0 | K15: =County_PCCoverlay_IRI!K15 -> 0 | L15: =County_PCCoverlay_IRI!L15 -> 0 | M15: =RSL_County_PCCoverlay_IRI!M15 -> 0 | N15: =County_PCCoverlay_IRI!N15 ->  | Q15: 10 | R15: -1.166666667 | S15: -1.00E+00 | T15: -1.5 | U15: -1 | V15: -1.63939552 | W15: -1.655438806 | AB15: -0.0111623 | AC15: -0.442291 | AD15: -0.068067 | AE15: 0.265656 | AF15: -1.59453 | AG15: 1.02532
A16: =County_PCCoverlay_IRI!A16 -> 0 | B16: =County_PCCoverlay_IRI!B16 -> 0 | C16: =County_PCCoverlay_IRI!C16 -> 0 | D16: =County_PCCoverlay_IRI!D16 -> 0 | E16: =County_PCCoverlay_IRI!E16 -> 0 | F16: =County_PCCoverlay_IRI!F16 -> 0 | G16: =County_PCCoverlay_IRI!G16 -> 0 | H16: =IF(County_PCCoverlay_IRI!H16="",H15+H15*(County_PCCoverlay_IRI!$I$22/100),County_PCCoverlay_IRI!H16) -> 0 | I16: =IF(County_PCCoverlay_IRI!H16="",I15,County_PCCoverlay_IRI!I16) -> 0 | J16: =County_PCCoverlay_IRI!J16 -> 0 | K16: =County_PCCoverlay_IRI!K16 -> 0 | L16: =County_PCCoverlay_IRI!L16 -> 0 | M16: =RSL_County_PCCoverlay_IRI!M16 -> 0 | N16: =County_PCCoverlay_IRI!N16 ->  | Q16: JointSp | R16: -1.166666667 | S16: -1.00E+00 | T16: -1.5 | U16: -1 | V16: -1.63939552 | W16: -1.655438806 | AB16: -0.35642 | AC16: -0.225068 | AD16: 0.535762 | AE16: 0.706018 | AF16: -1.31641 | AG16: 1.92447
Q17: min | R17: -1.166666667 | S17: -1.00E+00 | T17: -1.5 | U17: -1 | V17: -1.63939552 | W17: -1.655438806 | X17: B1 | Y17: IW*Inputsnor
Q18: 0 | R18: -1.166666667 | S18: -1.00E+00 | T18: -1.5 | U18: -1 | V18: -1.63939552 | W18: -1.655438806 | X18: 4.454372 | Y18: =MMULT(AB2:AG16,TRANSPOSE(R2:W23)) -> 4.134925789 | Z18: 4.134925789 | AA18: 4.134925789 | AB18: 4.134925789 | AC18: 4.134925789 | AD18: 4.134925789 | AE18: 4.134925789 | AF18: 4.134925789 | AG18: 4.134925789 | AH18: 4.134925789 | AI18: 4.134925789 | AJ18: 4.134925789 | AK18: 4.134925789 | AL18: 4.134925789 | AM18: 4.134925789 | AN18: 4.134925789 | AO18: 4.134925789 | AP18: 4.134925789 | AQ18: 4.134925789 | AR18: 4.134925789 | AS18: 4.134925789 | AT18: 4.134925789
Q19: max | R19: -1.166666667 | S19: -1.00E+00 | T19: -1.5 | U19: -1 | V19: -1.63939552 | W19: -1.655438806 | X19: -0.80753 | Y19: 2.943045503 | Z19: 2.943045503 | AA19: 2.943045503 | AB19: 2.943045503 | AC19: 2.943045503 | AD19: 2.943045503 | AE19: 2.943045503 | AF19: 2.943045503 | AG19: 2.943045503 | AH19: 2.943045503 | AI19: 2.943045503 | AJ19: 2.943045503 | AK19: 2.943045503 | AL19: 2.943045503 | AM19: 2.943045503 | AN19: 2.943045503 | AO19: 2.943045503 | AP19: 2.943045503 | AQ19: 2.943045503 | AR19: 2.943045503 | AS19: 2.943045503 | AT19: 2.943045503
Q20: 40 | R20: -1.166666667 | S20: -1.00E+00 | T20: -1.5 | U20: -1 | V20: -1.63939552 | W20: -1.655438806 | X20: -3.519486 | Y20: -4.595768316 | Z20: -4.595768316 | AA20: -4.595768316 | AB20: -4.595768316 | AC20: -4.595768316 | AD20: -4.595768316 | AE20: -4.595768316 | AF20: -4.595768316 | AG20: -4.595768316 | AH20: -4.595768316 | AI20: -4.595768316 | AJ20: -4.595768316 | AK20: -4.595768316 | AL20: -4.595768316 | AM20: -4.595768316 | AN20: -4.595768316 | AO20: -4.595768316 | AP20: -4.595768316 | AQ20: -4.595768316 | AR20: -4.595768316 | AS20: -4.595768316 | AT20: -4.595768316
Q21: IRI-2 | R21: -1.166666667 | S21: -1.00E+00 | T21: -1.5 | U21: -1 | V21: -1.63939552 | W21: -1.655438806 | X21: 0.322127 | Y21: -2.474407209 | Z21: -2.474407209 | AA21: -2.474407209 | AB21: -2.474407209 | AC21: -2.474407209 | AD21: -2.474407209 | AE21: -2.474407209 | AF21: -2.474407209 | AG21: -2.474407209 | AH21: -2.474407209 | AI21: -2.474407209 | AJ21: -2.474407209 | AK21: -2.474407209 | AL21: -2.474407209 | AM21: -2.474407209 | AN21: -2.474407209 | AO21: -2.474407209 | AP21: -2.474407209 | AQ21: -2.474407209 | AR21: -2.474407209 | AS21: -2.474407209 | AT21: -2.474407209
Q22: min | R22: -1.166666667 | S22: -1.00E+00 | T22: -1.5 | U22: -1 | V22: -1.63939552 | W22: -1.655438806 | X22: 1.049845 | Y22: 2.819185527 | Z22: 2.819185527 | AA22: 2.819185527 | AB22: 2.819185527 | AC22: 2.819185527 | AD22: 2.819185527 | AE22: 2.819185527 | AF22: 2.819185527 | AG22: 2.819185527 | AH22: 2.819185527 | AI22: 2.819185527 | AJ22: 2.819185527 | AK22: 2.819185527 | AL22: 2.819185527 | AM22: 2.819185527 | AN22: 2.819185527 | AO22: 2.819185527 | AP22: 2.819185527 | AQ22: 2.819185527 | AR22: 2.819185527 | AS22: 2.819185527 | AT22: 2.819185527
Q23: 60.4997 | R23: -1.166666667 | S23: -1.00E+00 | T23: -1.5 | U23: -1 | V23: -1.63939552 | W23: -1.655438806 | X23: 3.189773 | Y23: -5.227246018 | Z23: -5.227246018 | AA23: -5.227246018 | AB23: -5.227246018 | AC23: -5.227246018 | AD23: -5.227246018 | AE23: -5.227246018 | AF23: -5.227246018 | AG23: -5.227246018 | AH23: -5.227246018 | AI23: -5.227246018 | AJ23: -5.227246018 | AK23: -5.227246018 | AL23: -5.227246018 | AM23: -5.227246018 | AN23: -5.227246018 | AO23: -5.227246018 | AP23: -5.227246018 | AQ23: -5.227246018 | AR23: -5.227246018 | AS23: -5.227246018 | AT23: -5.227246018
Q24: max | R24: -1.166666667 | S24: -1.00E+00 | T24: -1.5 | U24: -1 | V24: -1.63939552 | W24: -1.655438806 | X24: -1.387654 | Y24: 6.301089272 | Z24: 6.301089272 | AA24: 6.301089272 | AB24: 6.301089272 | AC24: 6.301089272 | AD24: 6.301089272 | AE24: 6.301089272 | AF24: 6.301089272 | AG24: 6.301089272 | AH24: 6.301089272 | AI24: 6.301089272 | AJ24: 6.301089272 | AK24: 6.301089272 | AL24: 6.301089272 | AM24: 6.301089272 | AN24: 6.301089272 | AO24: 6.301089272 | AP24: 6.301089272 | AQ24: 6.301089272 | AR24: 6.301089272 | AS24: 6.301089272 | AT24: 6.301089272
Q25: 249.74 | R25: -1.166666667 | S25: -1.00E+00 | T25: -1.5 | U25: -1 | V25: -1.63939552 | W25: -1.655438806 | X25: -1.431029 | Y25: -7.099540961 | Z25: -7.099540961 | AA25: -7.099540961 | AB25: -7.099540961 | AC25: -7.099540961 | AD25: -7.099540961 | AE25: -7.099540961 | AF25: -7.099540961 | AG25: -7.099540961 | AH25: -7.099540961 | AI25: -7.099540961 | AJ25: -7.099540961 | AK25: -7.099540961 | AL25: -7.099540961 | AM25: -7.099540961 | AN25: -7.099540961 | AO25: -7.099540961 | AP25: -7.099540961 | AQ25: -7.099540961 | AR25: -7.099540961 | AS25: -7.099540961 | AT25: -7.099540961
Q26: IRI-1 | R26: -1.166666667 | S26: -1.00E+00 | T26: -1.5 | U26: -1 | V26: -1.63939552 | W26: -1.655438806 | X26: -0.376593 | Y26: -0.09203402863 | Z26: -0.09203402863 | AA26: -0.09203402863 | AB26: -0.09203402863 | AC26: -0.09203402863 | AD26: -0.09203402863 | AE26: -0.09203402863 | AF26: -0.09203402863 | AG26: -0.09203402863 | AH26: -0.09203402863 | AI26: -0.09203402863 | AJ26: -0.09203402863 | AK26: -0.09203402863 | AL26: -0.09203402863 | AM26: -0.09203402863 | AN26: -0.09203402863 | AO26: -0.09203402863 | AP26: -0.09203402863 | AQ26: -0.09203402863 | AR26: -0.09203402863 | AS26: -0.09203402863 | AT26: -0.09203402863
Q27: min | R27: -1.166666667 | S27: -1.00E+00 | T27: -1.5 | U27: -1 | V27: -1.63939552 | W27: -1.655438806 | X27: -2.721392 | Y27: 12.6978309 | Z27: 12.6978309 | AA27: 12.6978309 | AB27: 12.6978309 | AC27: 12.6978309 | AD27: 12.6978309 | AE27: 12.6978309 | AF27: 12.6978309 | AG27: 12.6978309 | AH27: 12.6978309 | AI27: 12.6978309 | AJ27: 12.6978309 | AK27: 12.6978309 | AL27: 12.6978309 | AM27: 12.6978309 | AN27: 12.6978309 | AO27: 12.6978309 | AP27: 12.6978309 | AQ27: 12.6978309 | AR27: 12.6978309 | AS27: 12.6978309 | AT27: 12.6978309
Q28: 62.8088 | R28: -1.166666667 | S28: -1.00E+00 | T28: -1.5 | U28: -1 | V28: -1.63939552 | W28: -1.655438806 | X28: -2.188337 | Y28: 1.206567553 | Z28: 1.206567553 | AA28: 1.206567553 | AB28: 1.206567553 | AC28: 1.206567553 | AD28: 1.206567553 | AE28: 1.206567553 | AF28: 1.206567553 | AG28: 1.206567553 | AH28: 1.206567553 | AI28: 1.206567553 | AJ28: 1.206567553 | AK28: 1.206567553 | AL28: 1.206567553 | AM28: 1.206567553 | AN28: 1.206567553 | AO28: 1.206567553 | AP28: 1.206567553 | AQ28: 1.206567553 | AR28: 1.206567553 | AS28: 1.206567553 | AT28: 1.206567553
Q29: max | R29: -1.166666667 | S29: -1.00E+00 | T29: -1.5 | U29: -1 | V29: -1.63939552 | W29: -1.655438806 | X29: 0.742993 | Y29: -3.551906438 | Z29: -3.551906438 | AA29: -3.551906438 | AB29: -3.551906438 | AC29: -3.551906438 | AD29: -3.551906438 | AE29: -3.551906438 | AF29: -3.551906438 | AG29: -3.551906438 | AH29: -3.551906438 | AI29: -3.551906438 | AJ29: -3.551906438 | AK29: -3.551906438 | AL29: -3.551906438 | AM29: -3.551906438 | AN29: -3.551906438 | AO29: -3.551906438 | AP29: -3.551906438 | AQ29: -3.551906438 | AR29: -3.551906438 | AS29: -3.551906438 | AT29: -3.551906438
Q30: 254.463 | R30: -1.166666667 | S30: -1.00E+00 | T30: -1.5 | U30: -1 | V30: -1.63939552 | W30: -1.655438806 | X30: -2.555973 | Y30: 0.82793884 | Z30: 0.82793884 | AA30: 0.82793884 | AB30: 0.82793884 | AC30: 0.82793884 | AD30: 0.82793884 | AE30: 0.82793884 | AF30: 0.82793884 | AG30: 0.82793884 | AH30: 0.82793884 | AI30: 0.82793884 | AJ30: 0.82793884 | AK30: 0.82793884 | AL30: 0.82793884 | AM30: 0.82793884 | AN30: 0.82793884 | AO30: 0.82793884 | AP30: 0.82793884 | AQ30: 0.82793884 | AR30: 0.82793884 | AS30: 0.82793884 | AT30: 0.82793884
R31: -1.166666667 | S31: -1.00E+00 | T31: -1.5 | U31: -1 | V31: -1.63939552 | W31: -1.655438806 | X31: -0.279407 | Y31: 1.209642191 | Z31: 1.209642191 | AA31: 1.209642191 | AB31: 1.209642191 | AC31: 1.209642191 | AD31: 1.209642191 | AE31: 1.209642191 | AF31: 1.209642191 | AG31: 1.209642191 | AH31: 1.209642191 | AI31: 1.209642191 | AJ31: 1.209642191 | AK31: 1.209642191 | AL31: 1.209642191 | AM31: 1.209642191 | AN31: 1.209642191 | AO31: 1.209642191 | AP31: 1.209642191 | AQ31: 1.209642191 | AR31: 1.209642191 | AS31: 1.209642191 | AT31: 1.209642191
R32: -1.166666667 | S32: -1.00E+00 | T32: -1.5 | U32: -1 | V32: -1.63939552 | W32: -1.655438806 | X32: -1.692305 | Y32: -1.895898332 | Z32: -1.895898332 | AA32: -1.895898332 | AB32: -1.895898332 | AC32: -1.895898332 | AD32: -1.895898332 | AE32: -1.895898332 | AF32: -1.895898332 | AG32: -1.895898332 | AH32: -1.895898332 | AI32: -1.895898332 | AJ32: -1.895898332 | AK32: -1.895898332 | AL32: -1.895898332 | AM32: -1.895898332 | AN32: -1.895898332 | AO32: -1.895898332 | AP32: -1.895898332 | AQ32: -1.895898332 | AR32: -1.895898332 | AS32: -1.895898332 | AT32: -1.895898332
R33: -1.166666667 | S33: -1.00E+00 | T33: -1.5 | U33: -1 | V33: -1.63939552 | W33: -1.655438806
R34: -1.166666667 | S34: -1.00E+00 | T34: -1.5 | U34: -1 | V34: -1.63939552 | W34: -1.655438806
R35: -1.166666667 | S35: -1.00E+00 | T35: -1.5 | U35: -1 | V35: -1.63939552 | W35: -1.655438806
R36: -1.166666667 | S36: -1.00E+00 | T36: -1.5 | U36: -1 | V36: -1.63939552 | W36: -1.655438806 | Y36: B1+IW*Inputsnor
R37: -1.166666667 | S37: -1.00E+00 | T37: -1.5 | U37: -1 | V37: -1.63939552 | W37: -1.655438806 | Y37: =(X18:X32)+Y18:AT32 -> 8.589297789 | Z37: 8.589297789 | AA37: 8.589297789 | AB37: 8.589297789 | AC37: 8.589297789 | AD37: 8.589297789 | AE37: 8.589297789 | AF37: 8.589297789 | AG37: 8.589297789 | AH37: 8.589297789 | AI37: 8.589297789 | AJ37: 8.589297789 | AK37: 8.589297789 | AL37: 8.589297789 | AM37: 8.589297789 | AN37: 8.589297789 | AO37: 8.589297789 | AP37: 8.589297789 | AQ37: 8.589297789 | AR37: 8.589297789 | AS37: 8.589297789 | AT37: 8.589297789
R38: -1.166666667 | S38: -1.00E+00 | T38: -1.5 | U38: -1 | V38: -1.63939552 | W38: -1.655438806 | Y38: 2.135515503 | Z38: 2.135515503 | AA38: 2.135515503 | AB38: 2.135515503 | AC38: 2.135515503 | AD38: 2.135515503 | AE38: 2.135515503 | AF38: 2.135515503 | AG38: 2.135515503 | AH38: 2.135515503 | AI38: 2.135515503 | AJ38: 2.135515503 | AK38: 2.135515503 | AL38: 2.135515503 | AM38: 2.135515503 | AN38: 2.135515503 | AO38: 2.135515503 | AP38: 2.135515503 | AQ38: 2.135515503 | AR38: 2.135515503 | AS38: 2.135515503 | AT38: 2.135515503
R39: -1.166666667 | S39: -1.00E+00 | T39: -1.5 | U39: -1 | V39: -1.63939552 | W39: -1.655438806 | Y39: -8.115254316 | Z39: -8.115254316 | AA39: -8.115254316 | AB39: -8.115254316 | AC39: -8.115254316 | AD39: -8.115254316 | AE39: -8.115254316 | AF39: -8.115254316 | AG39: -8.115254316 | AH39: -8.115254316 | AI39: -8.115254316 | AJ39: -8.115254316 | AK39: -8.115254316 | AL39: -8.115254316 | AM39: -8.115254316 | AN39: -8.115254316 | AO39: -8.115254316 | AP39: -8.115254316 | AQ39: -8.115254316 | AR39: -8.115254316 | AS39: -8.115254316 | AT39: -8.115254316
R40: -1.166666667 | S40: -1.00E+00 | T40: -1.5 | U40: -1 | V40: -1.63939552 | W40: -1.655438806 | Y40: -2.152280209 | Z40: -2.152280209 | AA40: -2.152280209 | AB40: -2.152280209 | AC40: -2.152280209 | AD40: -2.152280209 | AE40: -2.152280209 | AF40: -2.152280209 | AG40: -2.152280209 | AH40: -2.152280209 | AI40: -2.152280209 | AJ40: -2.152280209 | AK40: -2.152280209 | AL40: -2.152280209 | AM40: -2.152280209 | AN40: -2.152280209 | AO40: -2.152280209 | AP40: -2.152280209 | AQ40: -2.152280209 | AR40: -2.152280209 | AS40: -2.152280209 | AT40: -2.152280209
R41: -1.166666667 | S41: -1.00E+00 | T41: -1.5 | U41: -1 | V41: -1.63939552 | W41: -1.655438806 | Y41: 3.869030527 | Z41: 3.869030527 | AA41: 3.869030527 | AB41: 3.869030527 | AC41: 3.869030527 | AD41: 3.869030527 | AE41: 3.869030527 | AF41: 3.869030527 | AG41: 3.869030527 | AH41: 3.869030527 | AI41: 3.869030527 | AJ41: 3.869030527 | AK41: 3.869030527 | AL41: 3.869030527 | AM41: 3.869030527 | AN41: 3.869030527 | AO41: 3.869030527 | AP41: 3.869030527 | AQ41: 3.869030527 | AR41: 3.869030527 | AS41: 3.869030527 | AT41: 3.869030527
R42: -1.166666667 | S42: -1.00E+00 | T42: -1.5 | U42: -1 | V42: -1.63939552 | W42: -1.655438806 | Y42: -2.037473018 | Z42: -2.037473018 | AA42: -2.037473018 | AB42: -2.037473018 | AC42: -2.037473018 | AD42: -2.037473018 | AE42: -2.037473018 | AF42: -2.037473018 | AG42: -2.037473018 | AH42: -2.037473018 | AI42: -2.037473018 | AJ42: -2.037473018 | AK42: -2.037473018 | AL42: -2.037473018 | AM42: -2.037473018 | AN42: -2.037473018 | AO42: -2.037473018 | AP42: -2.037473018 | AQ42: -2.037473018 | AR42: -2.037473018 | AS42: -2.037473018 | AT42: -2.037473018
R43: -1.166666667 | S43: -1.00E+00 | T43: -1.5 | U43: -1 | V43: -1.63939552 | W43: -1.655438806 | Y43: 4.913435272 | Z43: 4.913435272 | AA43: 4.913435272 | AB43: 4.913435272 | AC43: 4.913435272 | AD43: 4.913435272 | AE43: 4.913435272 | AF43: 4.913435272 | AG43: 4.913435272 | AH43: 4.913435272 | AI43: 4.913435272 | AJ43: 4.913435272 | AK43: 4.913435272 | AL43: 4.913435272 | AM43: 4.913435272 | AN43: 4.913435272 | AO43: 4.913435272 | AP43: 4.913435272 | AQ43: 4.913435272 | AR43: 4.913435272 | AS43: 4.913435272 | AT43: 4.913435272
R44: -1.166666667 | S44: -1.00E+00 | T44: -1.5 | U44: -1 | V44: -1.63939552 | W44: -1.655438806 | Y44: -8.530569961 | Z44: -8.530569961 | AA44: -8.530569961 | AB44: -8.530569961 | AC44: -8.530569961 | AD44: -8.530569961 | AE44: -8.530569961 | AF44: -8.530569961 | AG44: -8.530569961 | AH44: -8.530569961 | AI44: -8.530569961 | AJ44: -8.530569961 | AK44: -8.530569961 | AL44: -8.530569961 | AM44: -8.530569961 | AN44: -8.530569961 | AO44: -8.530569961 | AP44: -8.530569961 | AQ44: -8.530569961 | AR44: -8.530569961 | AS44: -8.530569961 | AT44: -8.530569961
R45: -1.166666667 | S45: -1.00E+00 | T45: -1.5 | U45: -1 | V45: -1.63939552 | W45: -1.655438806 | Y45: -0.4686270286 | Z45: -0.4686270286 | AA45: -0.4686270286 | AB45: -0.4686270286 | AC45: -0.4686270286 | AD45: -0.4686270286 | AE45: -0.4686270286 | AF45: -0.4686270286 | AG45: -0.4686270286 | AH45: -0.4686270286 | AI45: -0.4686270286 | AJ45: -0.4686270286 | AK45: -0.4686270286 | AL45: -0.4686270286 | AM45: -0.4686270286 | AN45: -0.4686270286 | AO45: -0.4686270286 | AP45: -0.4686270286 | AQ45: -0.4686270286 | AR45: -0.4686270286 | AS45: -0.4686270286 | AT45: -0.4686270286
R46: -1.166666667 | S46: -1.00E+00 | T46: -1.5 | U46: -1 | V46: -1.63939552 | W46: -1.655438806 | Y46: 9.976438896 | Z46: 9.976438896 | AA46: 9.976438896 | AB46: 9.976438896 | AC46: 9.976438896 | AD46: 9.976438896 | AE46: 9.976438896 | AF46: 9.976438896 | AG46: 9.976438896 | AH46: 9.976438896 | AI46: 9.976438896 | AJ46: 9.976438896 | AK46: 9.976438896 | AL46: 9.976438896 | AM46: 9.976438896 | AN46: 9.976438896 | AO46: 9.976438896 | AP46: 9.976438896 | AQ46: 9.976438896 | AR46: 9.976438896 | AS46: 9.976438896 | AT46: 9.976438896
R47: -1.166666667 | S47: -1.00E+00 | T47: -1.5 | U47: -1 | V47: -1.63939552 | W47: -1.655438806 | Y47: -0.9817694471 | Z47: -0.9817694471 | AA47: -0.9817694471 | AB47: -0.9817694471 | AC47: -0.9817694471 | AD47: -0.9817694471 | AE47: -0.9817694471 | AF47: -0.9817694471 | AG47: -0.9817694471 | AH47: -0.9817694471 | AI47: -0.9817694471 | AJ47: -0.9817694471 | AK47: -0.9817694471 | AL47: -0.9817694471 | AM47: -0.9817694471 | AN47: -0.9817694471 | AO47: -0.9817694471 | AP47: -0.9817694471 | AQ47: -0.9817694471 | AR47: -0.9817694471 | AS47: -0.9817694471 | AT47: -0.9817694471
R48: -1.166666667 | S48: -1.00E+00 | T48: -1.5 | U48: -1 | V48: -1.63939552 | W48: -1.655438806 | Y48: -2.808913438 | Z48: -2.808913438 | AA48: -2.808913438 | AB48: -2.808913438 | AC48: -2.808913438 | AD48: -2.808913438 | AE48: -2.808913438 | AF48: -2.808913438 | AG48: -2.808913438 | AH48: -2.808913438 | AI48: -2.808913438 | AJ48: -2.808913438 | AK48: -2.808913438 | AL48: -2.808913438 | AM48: -2.808913438 | AN48: -2.808913438 | AO48: -2.808913438 | AP48: -2.808913438 | AQ48: -2.808913438 | AR48: -2.808913438 | AS48: -2.808913438 | AT48: -2.808913438
R49: -1.166666667 | S49: -1.00E+00 | T49: -1.5 | U49: -1 | V49: -1.63939552 | W49: -1.655438806 | Y49: -1.72803416 | Z49: -1.72803416 | AA49: -1.72803416 | AB49: -1.72803416 | AC49: -1.72803416 | AD49: -1.72803416 | AE49: -1.72803416 | AF49: -1.72803416 | AG49: -1.72803416 | AH49: -1.72803416 | AI49: -1.72803416 | AJ49: -1.72803416 | AK49: -1.72803416 | AL49: -1.72803416 | AM49: -1.72803416 | AN49: -1.72803416 | AO49: -1.72803416 | AP49: -1.72803416 | AQ49: -1.72803416 | AR49: -1.72803416 | AS49: -1.72803416 | AT49: -1.72803416
R50: -1.166666667 | S50: -1.00E+00 | T50: -1.5 | U50: -1 | V50: -1.63939552 | W50: -1.655438806 | Y50: 0.9302351908 | Z50: 0.9302351908 | AA50: 0.9302351908 | AB50: 0.9302351908 | AC50: 0.9302351908 | AD50: 0.9302351908 | AE50: 0.9302351908 | AF50: 0.9302351908 | AG50: 0.9302351908 | AH50: 0.9302351908 | AI50: 0.9302351908 | AJ50: 0.9302351908 | AK50: 0.9302351908 | AL50: 0.9302351908 | AM50: 0.9302351908 | AN50: 0.9302351908 | AO50: 0.9302351908 | AP50: 0.9302351908 | AQ50: 0.9302351908 | AR50: 0.9302351908 | AS50: 0.9302351908 | AT50: 0.9302351908
R51: -1.166666667 | S51: -1.00E+00 | T51: -1.5 | U51: -1 | V51: -1.63939552 | W51: -1.655438806 | Y51: -3.588203332 | Z51: -3.588203332 | AA51: -3.588203332 | AB51: -3.588203332 | AC51: -3.588203332 | AD51: -3.588203332 | AE51: -3.588203332 | AF51: -3.588203332 | AG51: -3.588203332 | AH51: -3.588203332 | AI51: -3.588203332 | AJ51: -3.588203332 | AK51: -3.588203332 | AL51: -3.588203332 | AM51: -3.588203332 | AN51: -3.588203332 | AO51: -3.588203332 | AP51: -3.588203332 | AQ51: -3.588203332 | AR51: -3.588203332 | AS51: -3.588203332 | AT51: -3.588203332
R52: -1.166666667 | S52: -1.00E+00 | T52: -1.5 | U52: -1 | V52: -1.63939552 | W52: -1.655438806
R53: -1.166666667 | S53: -1.00E+00 | T53: -1.5 | U53: -1 | V53: -1.63939552 | W53: -1.655438806
R54: -1.166666667 | S54: -1.00E+00 | T54: -1.5 | U54: -1 | V54: -1.63939552 | W54: -1.655438806
R55: -1.166666667 | S55: -1.00E+00 | T55: -1.5 | U55: -1 | V55: -1.63939552 | W55: -1.655438806 | Y55: Y1
R56: -1.166666667 | S56: -1.00E+00 | T56: -1.5 | U56: -1 | V56: -1.63939552 | W56: -1.655438806 | Y56: =2/(1+EXP(-2*Y37))-1 -> 0.9999999307 | Z56: =2/(1+EXP(-2*Z37))-1 -> 0.9999999307 | AA56: 0.9999999307 | AB56: 0.9999999307 | AC56: 0.9999999307 | AD56: 0.9999999307 | AE56: 0.9999999307 | AF56: 0.9999999307 | AG56: 0.9999999307 | AH56: 0.9999999307 | AI56: 0.9999999307 | AJ56: 0.9999999307 | AK56: 0.9999999307 | AL56: 0.9999999307 | AM56: 0.9999999307 | AN56: 0.9999999307 | AO56: 0.9999999307 | AP56: 0.9999999307 | AQ56: 0.9999999307 | AR56: 0.9999999307 | AS56: 0.9999999307 | AT56: 0.9999999307
R57: -1.166666667 | S57: -1.00E+00 | T57: -1.5 | U57: -1 | V57: -1.63939552 | W57: -1.655438806 | Y57: =2/(1+EXP(-2*Y38))-1 -> 0.97245005 | Z57: 0.97245005 | AA57: 0.97245005 | AB57: 0.97245005 | AC57: 0.97245005 | AD57: 0.97245005 | AE57: 0.97245005 | AF57: 0.97245005 | AG57: 0.97245005 | AH57: 0.97245005 | AI57: 0.97245005 | AJ57: 0.97245005 | AK57: 0.97245005 | AL57: 0.97245005 | AM57: 0.97245005 | AN57: 0.97245005 | AO57: 0.97245005 | AP57: 0.97245005 | AQ57: 0.97245005 | AR57: 0.97245005 | AS57: 0.97245005 | AT57: 0.97245005
R58: -1.166666667 | S58: -1.00E+00 | T58: -1.5 | U58: -1 | V58: -1.63939552 | W58: -1.655438806 | Y58: -0.9999998213 | Z58: -0.9999998213 | AA58: -0.9999998213 | AB58: -0.9999998213 | AC58: -0.9999998213 | AD58: -0.9999998213 | AE58: -0.9999998213 | AF58: -0.9999998213 | AG58: -0.9999998213 | AH58: -0.9999998213 | AI58: -0.9999998213 | AJ58: -0.9999998213 | AK58: -0.9999998213 | AL58: -0.9999998213 | AM58: -0.9999998213 | AN58: -0.9999998213 | AO58: -0.9999998213 | AP58: -0.9999998213 | AQ58: -0.9999998213 | AR58: -0.9999998213 | AS58: -0.9999998213 | AT58: -0.9999998213
R59: -1.166666667 | S59: -1.00E+00 | T59: -1.5 | U59: -1 | V59: -1.63939552 | W59: -1.655438806 | Y59: -0.9733463628 | Z59: -0.9733463628 | AA59: -0.9733463628 | AB59: -0.9733463628 | AC59: -0.9733463628 | AD59: -0.9733463628 | AE59: -0.9733463628 | AF59: -0.9733463628 | AG59: -0.9733463628 | AH59: -0.9733463628 | AI59: -0.9733463628 | AJ59: -0.9733463628 | AK59: -0.9733463628 | AL59: -0.9733463628 | AM59: -0.9733463628 | AN59: -0.9733463628 | AO59: -0.9733463628 | AP59: -0.9733463628 | AQ59: -0.9733463628 | AR59: -0.9733463628 | AS59: -0.9733463628 | AT59: -0.9733463628
R60: -1.166666667 | S60: -1.00E+00 | T60: -1.5 | U60: -1 | V60: -1.63939552 | W60: -1.655438806 | Y60: 0.9991285479 | Z60: 0.9991285479 | AA60: 0.9991285479 | AB60: 0.9991285479 | AC60: 0.9991285479 | AD60: 0.9991285479 | AE60: 0.9991285479 | AF60: 0.9991285479 | AG60: 0.9991285479 | AH60: 0.9991285479 | AI60: 0.9991285479 | AJ60: 0.9991285479 | AK60: 0.9991285479 | AL60: 0.9991285479 | AM60: 0.9991285479 | AN60: 0.9991285479 | AO60: 0.9991285479 | AP60: 0.9991285479 | AQ60: 0.9991285479 | AR60: 0.9991285479 | AS60: 0.9991285479 | AT60: 0.9991285479
R61: -1.166666667 | S61: -1.00E+00 | T61: -1.5 | U61: -1 | V61: -1.63939552 | W61: -1.655438806 | Y61: -0.9665816196 | Z61: -0.9665816196 | AA61: -0.9665816196 | AB61: -0.9665816196 | AC61: -0.9665816196 | AD61: -0.9665816196 | AE61: -0.9665816196 | AF61: -0.9665816196 | AG61: -0.9665816196 | AH61: -0.9665816196 | AI61: -0.9665816196 | AJ61: -0.9665816196 | AK61: -0.9665816196 | AL61: -0.9665816196 | AM61: -0.9665816196 | AN61: -0.9665816196 | AO61: -0.9665816196 | AP61: -0.9665816196 | AQ61: -0.9665816196 | AR61: -0.9665816196 | AS61: -0.9665816196 | AT61: -0.9665816196
R62: -1.166666667 | S62: -1.00E+00 | T62: -1.5 | U62: -1 | V62: -1.63939552 | W62: -1.655438806 | Y62: 0.999892043 | Z62: 0.999892043 | AA62: 0.999892043 | AB62: 0.999892043 | AC62: 0.999892043 | AD62: 0.999892043 | AE62: 0.999892043 | AF62: 0.999892043 | AG62: 0.999892043 | AH62: 0.999892043 | AI62: 0.999892043 | AJ62: 0.999892043 | AK62: 0.999892043 | AL62: 0.999892043 | AM62: 0.999892043 | AN62: 0.999892043 | AO62: 0.999892043 | AP62: 0.999892043 | AQ62: 0.999892043 | AR62: 0.999892043 | AS62: 0.999892043 | AT62: 0.999892043
R63: -1.166666667 | S63: -1.00E+00 | T63: -1.5 | U63: -1 | V63: -1.63939552 | W63: -1.655438806 | Y63: -0.9999999221 | Z63: -0.9999999221 | AA63: -0.9999999221 | AB63: -0.9999999221 | AC63: -0.9999999221 | AD63: -0.9999999221 | AE63: -0.9999999221 | AF63: -0.9999999221 | AG63: -0.9999999221 | AH63: -0.9999999221 | AI63: -0.9999999221 | AJ63: -0.9999999221 | AK63: -0.9999999221 | AL63: -0.9999999221 | AM63: -0.9999999221 | AN63: -0.9999999221 | AO63: -0.9999999221 | AP63: -0.9999999221 | AQ63: -0.9999999221 | AR63: -0.9999999221 | AS63: -0.9999999221 | AT63: -0.9999999221
R64: -1.166666667 | S64: -1.00E+00 | T64: -1.5 | U64: -1 | V64: -1.63939552 | W64: -1.655438806 | Y64: -0.4370893124 | Z64: -0.4370893124 | AA64: -0.4370893124 | AB64: -0.4370893124 | AC64: -0.4370893124 | AD64: -0.4370893124 | AE64: -0.4370893124 | AF64: -0.4370893124 | AG64: -0.4370893124 | AH64: -0.4370893124 | AI64: -0.4370893124 | AJ64: -0.4370893124 | AK64: -0.4370893124 | AL64: -0.4370893124 | AM64: -0.4370893124 | AN64: -0.4370893124 | AO64: -0.4370893124 | AP64: -0.4370893124 | AQ64: -0.4370893124 | AR64: -0.4370893124 | AS64: -0.4370893124 | AT64: -0.4370893124
R65: -1.166666667 | S65: -1.00E+00 | T65: -1.5 | U65: -1 | V65: -1.63939552 | W65: -1.655438806 | Y65: 0.9999999957 | Z65: 0.9999999957 | AA65: 0.9999999957 | AB65: 0.9999999957 | AC65: 0.9999999957 | AD65: 0.9999999957 | AE65: 0.9999999957 | AF65: 0.9999999957 | AG65: 0.9999999957 | AH65: 0.9999999957 | AI65: 0.9999999957 | AJ65: 0.9999999957 | AK65: 0.9999999957 | AL65: 0.9999999957 | AM65: 0.9999999957 | AN65: 0.9999999957 | AO65: 0.9999999957 | AP65: 0.9999999957 | AQ65: 0.9999999957 | AR65: 0.9999999957 | AS65: 0.9999999957 | AT65: 0.9999999957
R66: -1.166666667 | S66: -1.00E+00 | T66: -1.5 | U66: -1 | V66: -1.63939552 | W66: -1.655438806 | Y66: -0.7538308638 | Z66: -0.7538308638 | AA66: -0.7538308638 | AB66: -0.7538308638 | AC66: -0.7538308638 | AD66: -0.7538308638 | AE66: -0.7538308638 | AF66: -0.7538308638 | AG66: -0.7538308638 | AH66: -0.7538308638 | AI66: -0.7538308638 | AJ66: -0.7538308638 | AK66: -0.7538308638 | AL66: -0.7538308638 | AM66: -0.7538308638 | AN66: -0.7538308638 | AO66: -0.7538308638 | AP66: -0.7538308638 | AQ66: -0.7538308638 | AR66: -0.7538308638 | AS66: -0.7538308638 | AT66: -0.7538308638
R67: =2*((M67-Q$3)/(Q$5-Q$3))-1 -> -1.166666667 | S67: =2*((H67-Q$8)/(Q$10-Q$8))-1 -> -1.00E+00 | T67: =2*((I67-Q$13)/(Q$15-Q$13))-1 -> -1.5 | U67: =2*((J67-Q$18)/(Q$20-Q$18))-1 -> -1 | V67: =2*((K67-Q$23)/(Q$25-Q$23))-1 -> -1.63939552 | W67: =2*((L67-Q$28)/(Q$30-Q$28))-1 -> -1.655438806 | Y67: -0.992761242 | Z67: -0.992761242 | AA67: -0.992761242 | AB67: -0.992761242 | AC67: -0.992761242 | AD67: -0.992761242 | AE67: -0.992761242 | AF67: -0.992761242 | AG67: -0.992761242 | AH67: -0.992761242 | AI67: -0.992761242 | AJ67: -0.992761242 | AK67: -0.992761242 | AL67: -0.992761242 | AM67: -0.992761242 | AN67: -0.992761242 | AO67: -0.992761242 | AP67: -0.992761242 | AQ67: -0.992761242 | AR67: -0.992761242 | AS67: -0.992761242 | AT67: -0.992761242
R68: -1.166666667 | S68: -1.00E+00 | T68: -1.5 | U68: -1 | V68: -1.63939552 | W68: -1.655438806 | Y68: -0.938823193 | Z68: -0.938823193 | AA68: -0.938823193 | AB68: -0.938823193 | AC68: -0.938823193 | AD68: -0.938823193 | AE68: -0.938823193 | AF68: -0.938823193 | AG68: -0.938823193 | AH68: -0.938823193 | AI68: -0.938823193 | AJ68: -0.938823193 | AK68: -0.938823193 | AL68: -0.938823193 | AM68: -0.938823193 | AN68: -0.938823193 | AO68: -0.938823193 | AP68: -0.938823193 | AQ68: -0.938823193 | AR68: =2/(1+EXP(-2*AR49))-1 -> -0.938823193 | AS68: -0.938823193 | AT68: -0.938823193
R69: -1.166666667 | S69: -1.00E+00 | T69: -1.5 | U69: -1 | V69: -1.63939552 | W69: -1.655438806 | Y69: 0.7307035309 | Z69: 0.7307035309 | AA69: 0.7307035309 | AB69: 0.7307035309 | AC69: 0.7307035309 | AD69: 0.7307035309 | AE69: 0.7307035309 | AF69: 0.7307035309 | AG69: 0.7307035309 | AH69: 0.7307035309 | AI69: 0.7307035309 | AJ69: 0.7307035309 | AK69: 0.7307035309 | AL69: 0.7307035309 | AM69: 0.7307035309 | AN69: 0.7307035309 | AO69: 0.7307035309 | AP69: 0.7307035309 | AQ69: 0.7307035309 | AR69: 0.7307035309 | AS69: 0.7307035309 | AT69: 0.7307035309
R70: -1.166666667 | S70: -1.00E+00 | T70: -1.5 | U70: -1 | V70: -1.63939552 | W70: -1.655438806 | Y70: -0.9984723484 | Z70: -0.9984723484 | AA70: -0.9984723484 | AB70: -0.9984723484 | AC70: -0.9984723484 | AD70: -0.9984723484 | AE70: -0.9984723484 | AF70: -0.9984723484 | AG70: -0.9984723484 | AH70: -0.9984723484 | AI70: -0.9984723484 | AJ70: -0.9984723484 | AK70: -0.9984723484 | AL70: -0.9984723484 | AM70: -0.9984723484 | AN70: -0.9984723484 | AO70: -0.9984723484 | AP70: -0.9984723484 | AQ70: -0.9984723484 | AR70: -0.9984723484 | AS70: -0.9984723484 | AT70: -0.9984723484
R71: -1.166666667 | S71: -1.00E+00 | T71: -1.5 | U71: -1 | V71: -1.63939552 | W71: -1.655438806
R72: -1.166666667 | S72: -1.00E+00 | T72: -1.5 | U72: -1 | V72: -1.63939552 | W72: -1.655438806
R73: -1.166666667 | S73: -1.00E+00 | T73: -1.5 | U73: -1 | V73: -1.63939552 | W73: -1.655438806 | Y73: B2 | Z73: LW1
R74: -1.166666667 | S74: -1.00E+00 | T74: -1.5 | U74: -1 | V74: -1.63939552 | W74: -1.655438806 | Y74: -0.33954 | Z74: 0.879917 | AA74: -0.00648778 | AB74: 0.11551 | AC74: 0.0683293 | AD74: -0.154487 | AE74: -0.0396738 | AF74: -0.027751 | AG74: -0.0739251 | AH74: 0.32118 | AI74: 0.00718781 | AJ74: -0.0199341 | AK74: -0.112165 | AL74: -0.180022 | AM74: -1.28058 | AN74: 0.82703
R75: -1.166666667 | S75: -1.00E+00 | T75: -1.5 | U75: -1 | V75: -1.63939552 | W75: -1.655438806
R76: -1.166666667 | S76: -1.00E+00 | T76: -1.5 | U76: -1 | V76: -1.63939552 | W76: -1.655438806 | Y76: LW1*Y1
R77: -1.166666667 | S77: -1.00E+00 | T77: -1.5 | U77: -1 | V77: -1.63939552 | W77: -1.655438806 | Y77: =MMULT(Z74:AN74,Y56:AT70) -> -0.9775360897 | Z77: -0.9775360897 | AA77: -0.9775360897 | AB77: -0.9775360897 | AC77: -0.9775360897 | AD77: -0.9775360897 | AE77: -0.9775360897 | AF77: -0.9775360897 | AG77: -0.9775360897 | AH77: -0.9775360897 | AI77: -0.9775360897 | AJ77: -0.9775360897 | AK77: -0.9775360897 | AL77: -0.9775360897 | AM77: -0.9775360897 | AN77: -0.9775360897 | AO77: -0.9775360897 | AP77: -0.9775360897 | AQ77: -0.9775360897 | AR77: -0.9775360897 | AS77: -0.9775360897 | AT77: -0.9775360897
R78: -1.166666667 | S78: -1.00E+00 | T78: -1.5 | U78: -1 | V78: -1.63939552 | W78: -1.655438806
R79: -1.166666667 | S79: -1.00E+00 | T79: -1.5 | U79: -1 | V79: -1.63939552 | W79: -1.655438806 | Y79: B2+LW1*Y1
R80: -1.166666667 | S80: -1.00E+00 | T80: -1.5 | U80: -1 | V80: -1.63939552 | W80: -1.655438806 | Y80: =(Y74)+Y77:AT77 -> -1.31707609 | Z80: -1.31707609 | AA80: -1.31707609 | AB80: -1.31707609 | AC80: -1.31707609 | AD80: -1.31707609 | AE80: -1.31707609 | AF80: -1.31707609 | AG80: -1.31707609 | AH80: -1.31707609 | AI80: -1.31707609 | AJ80: -1.31707609 | AK80: -1.31707609 | AL80: -1.31707609 | AM80: -1.31707609 | AN80: -1.31707609 | AO80: -1.31707609 | AP80: -1.31707609 | AQ80: -1.31707609 | AR80: -1.31707609 | AS80: -1.31707609 | AT80: -1.31707609
R81: -1.166666667 | S81: -1.00E+00 | T81: -1.5 | U81: -1 | V81: -1.63939552 | W81: -1.655438806
R82: -1.166666667 | S82: -1.00E+00 | T82: -1.5 | U82: -1 | V82: -1.63939552 | W82: -1.655438806 | Y82: Ydenor
R83: -1.166666667 | S83: -1.00E+00 | T83: -1.5 | U83: -1 | V83: -1.63939552 | W83: -1.655438806 | Y83: =(Y80+1)*(($O$5-$O$3)/2)+$O$3 -> 34.35056432 | Z83: =(Z80+1)*(($O$5-$O$3)/2)+$O$3 -> 34.35056432 | AA83: 34.35056432 | AB83: 34.35056432 | AC83: 34.35056432 | AD83: 34.35056432 | AE83: 34.35056432 | AF83: 34.35056432 | AG83: 34.35056432 | AH83: 34.35056432 | AI83: 34.35056432 | AJ83: 34.35056432 | AK83: 34.35056432 | AL83: 34.35056432 | AM83: 34.35056432 | AN83: 34.35056432 | AO83: 34.35056432 | AP83: 34.35056432 | AQ83: 34.35056432 | AR83: 34.35056432 | AS83: 34.35056432 | AT83: 34.35056432
R84: -1.166666667 | S84: -1.00E+00 | T84: -1.5 | U84: -1 | V84: -1.63939552 | W84: -1.655438806 | Y84: Transpose (Ydenor)
R85: -1.166666667 | S85: -1.00E+00 | T85: -1.5 | U85: -1 | V85: -1.63939552 | W85: -1.655438806 | Y85: =TRANSPOSE(Y83:AT83) -> 34.35056432
R86: -1.166666667 | S86: -1.00E+00 | T86: -1.5 | U86: -1 | V86: -1.63939552 | W86: -1.655438806 | Y86: 34.35056432
R87: -1.166666667 | S87: -1.00E+00 | T87: -1.5 | U87: -1 | V87: -1.63939552 | W87: -1.655438806 | Y87: 34.35056432
R88: -1.166666667 | S88: -1.00E+00 | T88: -1.5 | U88: -1 | V88: -1.63939552 | W88: -1.655438806 | Y88: 34.35056432
R89: -1.166666667 | S89: -1.00E+00 | T89: -1.5 | U89: -1 | V89: -1.63939552 | W89: -1.655438806 | Y89: 34.35056432
R90: -1.166666667 | S90: -1.00E+00 | T90: -1.5 | U90: -1 | V90: -1.63939552 | W90: -1.655438806 | Y90: 34.35056432
R91: -1.166666667 | S91: -1.00E+00 | T91: -1.5 | U91: -1 | V91: -1.63939552 | W91: -1.655438806 | Y91: 34.35056432
R92: -1.166666667 | S92: -1.00E+00 | T92: -1.5 | U92: -1 | V92: -1.63939552 | W92: -1.655438806 | Y92: 34.35056432
R93: -1.166666667 | S93: -1.00E+00 | T93: -1.5 | U93: -1 | V93: -1.63939552 | W93: -1.655438806 | Y93: 34.35056432
R94: -1.166666667 | S94: -1.00E+00 | T94: -1.5 | U94: -1 | V94: -1.63939552 | W94: -1.655438806 | Y94: 34.35056432
R95: -1.166666667 | S95: -1.00E+00 | T95: -1.5 | U95: -1 | V95: -1.63939552 | W95: -1.655438806 | Y95: 34.35056432
R96: -1.166666667 | S96: -1.00E+00 | T96: -1.5 | U96: -1 | V96: -1.63939552 | W96: -1.655438806 | Y96: 34.35056432
R97: -1.166666667 | S97: -1.00E+00 | T97: -1.5 | U97: -1 | V97: -1.63939552 | W97: -1.655438806 | Y97: 34.35056432
R98: -1.166666667 | S98: -1.00E+00 | T98: -1.5 | U98: -1 | V98: -1.63939552 | W98: -1.655438806 | Y98: 34.35056432
R99: -1.166666667 | S99: -1.00E+00 | T99: -1.5 | U99: -1 | V99: -1.63939552 | W99: -1.655438806 | Y99: 34.35056432
R100: -1.166666667 | S100: -1.00E+00 | T100: -1.5 | U100: -1 | V100: -1.63939552 | W100: -1.655438806 | Y100: 34.35056432
R101: -1.166666667 | S101: -1.00E+00 | T101: -1.5 | U101: -1 | V101: -1.63939552 | W101: -1.655438806 | Y101: 34.35056432
R102: -1.166666667 | S102: -1.00E+00 | T102: -1.5 | U102: -1 | V102: -1.63939552 | W102: -1.655438806 | Y102: 34.35056432
R103: -1.166666667 | S103: -1.00E+00 | T103: -1.5 | U103: -1 | V103: -1.63939552 | W103: -1.655438806 | Y103: 34.35056432
R104: -1.166666667 | S104: -1.00E+00 | T104: -1.5 | U104: -1 | V104: -1.63939552 | W104: -1.655438806 | Y104: 34.35056432
R105: -1.166666667 | S105: -1.00E+00 | T105: -1.5 | U105: -1 | V105: -1.63939552 | W105: -1.655438806 | Y105: 34.35056432
R106: -1.166666667 | S106: -1.00E+00 | T106: -1.5 | U106: -1 | V106: -1.63939552 | W106: -1.655438806 | Y106: 34.35056432
R107: -1.166666667 | S107: -1.00E+00 | T107: -1.5 | U107: -1 | V107: -1.63939552 | W107: -1.655438806
R108: -1.166666667 | S108: -1.00E+00 | T108: -1.5 | U108: -1 | V108: -1.63939552 | W108: -1.655438806
R109: -1.166666667 | S109: -1.00E+00 | T109: -1.5 | U109: -1 | V109: -1.63939552 | W109: -1.655438806
R110: -1.166666667 | S110: -1.00E+00 | T110: -1.5 | U110: -1 | V110: -1.63939552 | W110: -1.655438806
R111: -1.166666667 | S111: -1.00E+00 | T111: -1.5 | U111: -1 | V111: -1.63939552 | W111: -1.655438806
R112: -1.166666667 | S112: -1.00E+00 | T112: -1.5 | U112: -1 | V112: -1.63939552 | W112: -1.655438806
R113: -1.166666667 | S113: -1.00E+00 | T113: -1.5 | U113: -1 | V113: -1.63939552 | W113: -1.655438806
R114: -1.166666667 | S114: -1.00E+00 | T114: -1.5 | U114: -1 | V114: -1.63939552 | W114: -1.655438806
R115: -1.166666667 | S115: -1.00E+00 | T115: -1.5 | U115: -1 | V115: -1.63939552 | W115: -1.655438806
R116: -1.166666667 | S116: -1.00E+00 | T116: -1.5 | U116: -1 | V116: -1.63939552 | W116: -1.655438806
R117: -1.166666667 | S117: -1.00E+00 | T117: -1.5 | U117: -1 | V117: -1.63939552 | W117: -1.655438806
R118: -1.166666667 | S118: -1.00E+00 | T118: -1.5 | U118: -1 | V118: -1.63939552 | W118: -1.655438806
R119: -1.166666667 | S119: -1.00E+00 | T119: -1.5 | U119: -1 | V119: -1.63939552 | W119: -1.655438806
R120: -1.166666667 | S120: -1.00E+00 | T120: -1.5 | U120: -1 | V120: -1.63939552 | W120: -1.655438806
R121: -1.166666667 | S121: -1.00E+00 | T121: -1.5 | U121: -1 | V121: -1.63939552 | W121: -1.655438806
R122: -1.166666667 | S122: -1.00E+00 | T122: -1.5 | U122: -1 | V122: -1.63939552 | W122: -1.655438806
R123: -1.166666667 | S123: -1.00E+00 | T123: -1.5 | U123: -1 | V123: -1.63939552 | W123: -1.655438806
R124: -1.166666667 | S124: -1.00E+00 | T124: -1.5 | U124: -1 | V124: -1.63939552 | W124: -1.655438806
R125: -1.166666667 | S125: -1.00E+00 | T125: -1.5 | U125: -1 | V125: -1.63939552 | W125: -1.655438806
R126: -1.166666667 | S126: -1.00E+00 | T126: -1.5 | U126: -1 | V126: -1.63939552 | W126: -1.655438806
R127: -1.166666667 | S127: -1.00E+00 | T127: -1.5 | U127: -1 | V127: -1.63939552 | W127: -1.655438806
R128: -1.166666667 | S128: -1.00E+00 | T128: -1.5 | U128: -1 | V128: -1.63939552 | W128: -1.655438806
R129: -1.166666667 | S129: -1.00E+00 | T129: -1.5 | U129: -1 | V129: -1.63939552 | W129: -1.655438806
R130: -1.166666667 | S130: -1.00E+00 | T130: -1.5 | U130: -1 | V130: -1.63939552 | W130: -1.655438806
R131: =2*((M131-Q$3)/(Q$5-Q$3))-1 -> -1.166666667 | S131: =2*((H131-Q$8)/(Q$10-Q$8))-1 -> -1.00E+00 | T131: =2*((I131-Q$13)/(Q$15-Q$13))-1 -> -1.5 | U131: =2*((J131-Q$18)/(Q$20-Q$18))-1 -> -1 | V131: =2*((K131-Q$23)/(Q$25-Q$23))-1 -> -1.63939552 | W131: =2*((L131-Q$28)/(Q$30-Q$28))-1 -> -1.655438806
R132: -1.166666667 | S132: -1.00E+00 | T132: -1.5 | U132: -1 | V132: -1.63939552 | W132: -1.655438806
R133: -1.166666667 | S133: -1.00E+00 | T133: -1.5 | U133: -1 | V133: -1.63939552 | W133: -1.655438806
R134: -1.166666667 | S134: -1.00E+00 | T134: -1.5 | U134: -1 | V134: -1.63939552 | W134: -1.655438806
R135: -1.166666667 | S135: -1.00E+00 | T135: -1.5 | U135: -1 | V135: -1.63939552 | W135: -1.655438806
R136: -1.166666667 | S136: -1.00E+00 | T136: -1.5 | U136: -1 | V136: -1.63939552 | W136: -1.655438806
R137: -1.166666667 | S137: -1.00E+00 | T137: -1.5 | U137: -1 | V137: -1.63939552 | W137: -1.655438806
R138: -1.166666667 | S138: -1.00E+00 | T138: -1.5 | U138: -1 | V138: -1.63939552 | W138: -1.655438806
R139: -1.166666667 | S139: -1.00E+00 | T139: -1.5 | U139: -1 | V139: -1.63939552 | W139: -1.655438806
R140: -1.166666667 | S140: -1.00E+00 | T140: -1.5 | U140: -1 | V140: -1.63939552 | W140: -1.655438806
R141: -1.166666667 | S141: -1.00E+00 | T141: -1.5 | U141: -1 | V141: -1.63939552 | W141: -1.655438806
R142: -1.166666667 | S142: -1.00E+00 | T142: -1.5 | U142: -1 | V142: -1.63939552 | W142: -1.655438806
R143: -1.166666667 | S143: -1.00E+00 | T143: -1.5 | U143: -1 | V143: -1.63939552 | W143: -1.655438806
R144: -1.166666667 | S144: -1.00E+00 | T144: -1.5 | U144: -1 | V144: -1.63939552 | W144: -1.655438806
R145: -1.166666667 | S145: -1.00E+00 | T145: -1.5 | U145: -1 | V145: -1.63939552 | W145: -1.655438806
R146: -1.166666667 | S146: -1.00E+00 | T146: -1.5 | U146: -1 | V146: -1.63939552 | W146: -1.655438806
R147: -1.166666667 | S147: -1.00E+00 | T147: -1.5 | U147: -1 | V147: -1.63939552 | W147: -1.655438806
R148: -1.166666667 | S148: -1.00E+00 | T148: -1.5 | U148: -1 | V148: -1.63939552 | W148: -1.655438806
R149: -1.166666667 | S149: -1.00E+00 | T149: -1.5 | U149: -1 | V149: -1.63939552 | W149: -1.655438806
R150: -1.166666667 | S150: -1.00E+00 | T150: -1.5 | U150: -1 | V150: -1.63939552 | W150: -1.655438806
R151: -1.166666667 | S151: -1.00E+00 | T151: -1.5 | U151: -1 | V151: -1.63939552 | W151: -1.655438806
R152: -1.166666667 | S152: -1.00E+00 | T152: -1.5 | U152: -1 | V152: -1.63939552 | W152: -1.655438806
R153: -1.166666667 | S153: -1.00E+00 | T153: -1.5 | U153: -1 | V153: -1.63939552 | W153: -1.655438806
R154: -1.166666667 | S154: -1.00E+00 | T154: -1.5 | U154: -1 | V154: -1.63939552 | W154: -1.655438806
R155: -1.166666667 | S155: -1.00E+00 | T155: -1.5 | U155: -1 | V155: -1.63939552 | W155: -1.655438806
R156: -1.166666667 | S156: -1.00E+00 | T156: -1.5 | U156: -1 | V156: -1.63939552 | W156: -1.655438806
R157: -1.166666667 | S157: -1.00E+00 | T157: -1.5 | U157: -1 | V157: -1.63939552 | W157: -1.655438806
R158: -1.166666667 | S158: -1.00E+00 | T158: -1.5 | U158: -1 | V158: -1.63939552 | W158: -1.655438806
R159: -1.166666667 | S159: -1.00E+00 | T159: -1.5 | U159: -1 | V159: -1.63939552 | W159: -1.655438806
R160: -1.166666667 | S160: -1.00E+00 | T160: -1.5 | U160: -1 | V160: -1.63939552 | W160: -1.655438806
R161: -1.166666667 | S161: -1.00E+00 | T161: -1.5 | U161: -1 | V161: -1.63939552 | W161: -1.655438806
R162: -1.166666667 | S162: -1.00E+00 | T162: -1.5 | U162: -1 | V162: -1.63939552 | W162: -1.655438806
R163: -1.166666667 | S163: -1.00E+00 | T163: -1.5 | U163: -1 | V163: -1.63939552 | W163: -1.655438806
R164: -1.166666667 | S164: -1.00E+00 | T164: -1.5 | U164: -1 | V164: -1.63939552 | W164: -1.655438806
R165: -1.166666667 | S165: -1.00E+00 | T165: -1.5 | U165: -1 | V165: -1.63939552 | W165: -1.655438806
R166: -1.166666667 | S166: -1.00E+00 | T166: -1.5 | U166: -1 | V166: -1.63939552 | W166: -1.655438806
R167: -1.166666667 | S167: -1.00E+00 | T167: -1.5 | U167: -1 | V167: -1.63939552 | W167: -1.655438806
R168: -1.166666667 | S168: -1.00E+00 | T168: -1.5 | U168: -1 | V168: -1.63939552 | W168: -1.655438806
R169: -1.166666667 | S169: -1.00E+00 | T169: -1.5 | U169: -1 | V169: -1.63939552 | W169: -1.655438806
R170: -1.166666667 | S170: -1.00E+00 | T170: -1.5 | U170: -1 | V170: -1.63939552 | W170: -1.655438806
R171: -1.166666667 | S171: -1.00E+00 | T171: -1.5 | U171: -1 | V171: -1.63939552 | W171: -1.655438806
R172: -1.166666667 | S172: -1.00E+00 | T172: -1.5 | U172: -1 | V172: -1.63939552 | W172: -1.655438806
R173: -1.166666667 | S173: -1.00E+00 | T173: -1.5 | U173: -1 | V173: -1.63939552 | W173: -1.655438806
R174: -1.166666667 | S174: -1.00E+00 | T174: -1.5 | U174: -1 | V174: -1.63939552 | W174: -1.655438806
R175: -1.166666667 | S175: -1.00E+00 | T175: -1.5 | U175: -1 | V175: -1.63939552 | W175: -1.655438806
R176: -1.166666667 | S176: -1.00E+00 | T176: -1.5 | U176: -1 | V176: -1.63939552 | W176: -1.655438806
R177: -1.166666667 | S177: -1.00E+00 | T177: -1.5 | U177: -1 | V177: -1.63939552 | W177: -1.655438806
R178: -1.166666667 | S178: -1.00E+00 | T178: -1.5 | U178: -1 | V178: -1.63939552 | W178: -1.655438806
R179: -1.166666667 | S179: -1.00E+00 | T179: -1.5 | U179: -1 | V179: -1.63939552 | W179: -1.655438806
R180: -1.166666667 | S180: -1.00E+00 | T180: -1.5 | U180: -1 | V180: -1.63939552 | W180: -1.655438806
R181: -1.166666667 | S181: -1.00E+00 | T181: -1.5 | U181: -1 | V181: -1.63939552 | W181: -1.655438806
R182: -1.166666667 | S182: -1.00E+00 | T182: -1.5 | U182: -1 | V182: -1.63939552 | W182: -1.655438806
R183: -1.166666667 | S183: -1.00E+00 | T183: -1.5 | U183: -1 | V183: -1.63939552 | W183: -1.655438806
R184: -1.166666667 | S184: -1.00E+00 | T184: -1.5 | U184: -1 | V184: -1.63939552 | W184: -1.655438806
R185: -1.166666667 | S185: -1.00E+00 | T185: -1.5 | U185: -1 | V185: -1.63939552 | W185: -1.655438806
R186: -1.166666667 | S186: -1.00E+00 | T186: -1.5 | U186: -1 | V186: -1.63939552 | W186: -1.655438806
R187: -1.166666667 | S187: -1.00E+00 | T187: -1.5 | U187: -1 | V187: -1.63939552 | W187: -1.655438806
R188: -1.166666667 | S188: -1.00E+00 | T188: -1.5 | U188: -1 | V188: -1.63939552 | W188: -1.655438806
R189: -1.166666667 | S189: -1.00E+00 | T189: -1.5 | U189: -1 | V189: -1.63939552 | W189: -1.655438806
R190: -1.166666667 | S190: -1.00E+00 | T190: -1.5 | U190: -1 | V190: -1.63939552 | W190: -1.655438806
R191: -1.166666667 | S191: -1.00E+00 | T191: -1.5 | U191: -1 | V191: -1.63939552 | W191: -1.655438806
R192: -1.166666667 | S192: -1.00E+00 | T192: -1.5 | U192: -1 | V192: -1.63939552 | W192: -1.655438806
R193: -1.166666667 | S193: -1.00E+00 | T193: -1.5 | U193: -1 | V193: -1.63939552 | W193: -1.655438806
R194: -1.166666667 | S194: -1.00E+00 | T194: -1.5 | U194: -1 | V194: -1.63939552 | W194: -1.655438806
R195: =2*((M195-Q$3)/(Q$5-Q$3))-1 -> -1.166666667 | S195: =2*((H195-Q$8)/(Q$10-Q$8))-1 -> -1.00E+00 | T195: =2*((I195-Q$13)/(Q$15-Q$13))-1 -> -1.5 | U195: =2*((J195-Q$18)/(Q$20-Q$18))-1 -> -1 | V195: =2*((K195-Q$23)/(Q$25-Q$23))-1 -> -1.63939552 | W195: =2*((L195-Q$28)/(Q$30-Q$28))-1 -> -1.655438806
R196: -1.166666667 | S196: -1.00E+00 | T196: -1.5 | U196: -1 | V196: -1.63939552 | W196: -1.655438806
R197: -1.166666667 | S197: -1.00E+00 | T197: -1.5 | U197: -1 | V197: -1.63939552 | W197: -1.655438806
R198: -1.166666667 | S198: -1.00E+00 | T198: -1.5 | U198: -1 | V198: -1.63939552 | W198: -1.655438806
R199: -1.166666667 | S199: -1.00E+00 | T199: -1.5 | U199: -1 | V199: -1.63939552 | W199: -1.655438806
R200: -1.166666667 | S200: -1.00E+00 | T200: -1.5 | U200: -1 | V200: -1.63939552 | W200: -1.655438806
... 161 more rows

Sheet RSL_County_PCCoverlay_IRI (hidden)
A1: =County_PCCoverlay_IRI!A1 -> Project Name | B1: =County_PCCoverlay_IRI!B1 -> COUNAME | C1: =County_PCCoverlay_IRI!C1 -> PROJECT_NO | D1: =County_PCCoverlay_IRI!D1 -> BPRJ | E1: =County_PCCoverlay_IRI!E1 -> EPRJ | F1: =County_PCCoverlay_IRI!F1 -> CONYR | G1: =County_PCCoverlay_IRI!G1 -> DATAYR | H1: =County_PCCoverlay_IRI!H1 -> Accumulated AADTs | I1: =County_PCCoverlay_IRI!I1 -> Overlay Thickness (in) | J1: =County_PCCoverlay_IRI!J1 -> Joint Spacing (ft) | K1: =County_PCCoverlay_IRI!K1 -> IRIi-2 (in/mile) | L1: =County_PCCoverlay_IRI!L1 -> IRIi-1 (in/mile) | M1: Age | N1: Predicted IRI | U1: Predicted Age | V1: Last Entered Age | W1: Age-2 | X1: Age-1
A2: =IF(County_PCCoverlay_IRI!A2<>"",County_PCCoverlay_IRI!A2,"") ->  | B2: =IF(County_PCCoverlay_IRI!B2<>"",County_PCCoverlay_IRI!B2,"") ->  | C2: =IF(County_PCCoverlay_IRI!C2<>"",County_PCCoverlay_IRI!C2,"") ->  | D2: =IF(County_PCCoverlay_IRI!D2<>"",County_PCCoverlay_IRI!D2,"") ->  | E2: =IF(County_PCCoverlay_IRI!E2<>"",County_PCCoverlay_IRI!E2,"") ->  | F2: =IF(County_PCCoverlay_IRI!F2<>"",County_PCCoverlay_IRI!F2,"") ->  | G2: =IF(County_PCCoverlay_IRI!G2<>"",County_PCCoverlay_IRI!G2,"") ->  | H2: =County_PCCoverlay_IRI!H2 -> 0 | I2: =County_PCCoverlay_IRI!I2 -> 0 | J2: =County_PCCoverlay_IRI!J2 -> 0 | K2: =County_PCCoverlay_IRI!K2 -> 0 | L2: =County_PCCoverlay_IRI!L2 -> 0 | M2: =IFERROR(U2,0) -> 0 | N2: =County_PCCoverlay_IRI!N2 ->  | P2: determine IRI threshold | Q2: =IF(County_PCCoverlay_IRI!I18="","",County_PCCoverlay_IRI!I18) ->  | U2: =IF(G2<>"",G2-$F$2,U1+1) ->  | V2: =IF(G2="","",IF(G2<>"",G2-$F$2,V1+1)) ->  | W2: =M2-2 -> -2 | X2: =M2-1 -> -1
A3: =IF(County_PCCoverlay_IRI!A3<>"",County_PCCoverlay_IRI!A3,"") ->  | B3: =IF(County_PCCoverlay_IRI!B3<>"",County_PCCoverlay_IRI!B3,"") ->  | C3: =IF(County_PCCoverlay_IRI!C3<>"",County_PCCoverlay_IRI!C3,"") ->  | D3: =IF(County_PCCoverlay_IRI!D3<>"",County_PCCoverlay_IRI!D3,"") ->  | E3: =IF(County_PCCoverlay_IRI!E3<>"",County_PCCoverlay_IRI!E3,"") ->  | F3: =IF(County_PCCoverlay_IRI!F3<>"",County_PCCoverlay_IRI!F3,"") ->  | G3: =IF(County_PCCoverlay_IRI!G3<>"",County_PCCoverlay_IRI!G3,"") ->  | H3: =County_PCCoverlay_IRI!H3 -> 0 | I3: =County_PCCoverlay_IRI!I3 -> 0 | J3: =County_PCCoverlay_IRI!J3 -> 0 | M3: =IFERROR(U3,0) -> 0 | N3: =County_PCCoverlay_IRI!N3 ->  | P3: determine design life | Q3: =IF(County_PCCoverlay_IRI!I19="","",County_PCCoverlay_IRI!I19) ->  | U3: =IF(G3<>"",G3-$F$2,U2+1) ->  | V3: =IF(G3="","",IF(G3<>"",G3-$F$2,V2+1)) -> 
A4: =IF(County_PCCoverlay_IRI!A4<>"",County_PCCoverlay_IRI!A4,"") ->  | B4: =IF(County_PCCoverlay_IRI!B4<>"",County_PCCoverlay_IRI!B4,"") ->  | C4: =IF(County_PCCoverlay_IRI!C4<>"",County_PCCoverlay_IRI!C4,"") ->  | D4: =IF(County_PCCoverlay_IRI!D4<>"",County_PCCoverlay_IRI!D4,"") ->  | E4: =IF(County_PCCoverlay_IRI!E4<>"",County_PCCoverlay_IRI!E4,"") ->  | F4: =IF(County_PCCoverlay_IRI!F4<>"",County_PCCoverlay_IRI!F4,"") ->  | G4: =IF(County_PCCoverlay_IRI!G4<>"",County_PCCoverlay_IRI!G4,"") ->  | H4: =County_PCCoverlay_IRI!H4 -> 0 | I4: =County_PCCoverlay_IRI!I4 -> 0 | J4: =County_PCCoverlay_IRI!J4 -> 0 | M4: 0 | N4: =County_PCCoverlay_IRI!N4 ->  | P4: Age at the last entered year | Q4: =LOOKUP(2,1/(V2:V16<>""),V2:V16) -> 
A5: =IF(County_PCCoverlay_IRI!A5<>"",County_PCCoverlay_IRI!A5,"") ->  | B5: =IF(County_PCCoverlay_IRI!B5<>"",County_PCCoverlay_IRI!B5,"") ->  | C5: =IF(County_PCCoverlay_IRI!C5<>"",County_PCCoverlay_IRI!C5,"") ->  | D5: =IF(County_PCCoverlay_IRI!D5<>"",County_PCCoverlay_IRI!D5,"") ->  | E5: =IF(County_PCCoverlay_IRI!E5<>"",County_PCCoverlay_IRI!E5,"") ->  | F5: =IF(County_PCCoverlay_IRI!F5<>"",County_PCCoverlay_IRI!F5,"") ->  | G5: =IF(County_PCCoverlay_IRI!G5<>"",County_PCCoverlay_IRI!G5,"") ->  | H5: =County_PCCoverlay_IRI!H5 -> 0 | I5: =County_PCCoverlay_IRI!I5 -> 0 | J5: =County_PCCoverlay_IRI!J5 -> 0 | M5: 0 | N5: =County_PCCoverlay_IRI!N5 ->  | P5: Age at the present year | Q5: =IF(County_PCCoverlay_IRI!I20<>"",(County_PCCoverlay_IRI!I20-LOOKUP(2,1/(G2:G16<>""),G2:G16))+Q4,"") -> 
A6: =IF(County_PCCoverlay_IRI!A6<>"",County_PCCoverlay_IRI!A6,"") ->  | B6: =IF(County_PCCoverlay_IRI!B6<>"",County_PCCoverlay_IRI!B6,"") ->  | C6: =IF(County_PCCoverlay_IRI!C6<>"",County_PCCoverlay_IRI!C6,"") ->  | D6: =IF(County_PCCoverlay_IRI!D6<>"",County_PCCoverlay_IRI!D6,"") ->  | E6: =IF(County_PCCoverlay_IRI!E6<>"",County_PCCoverlay_IRI!E6,"") ->  | F6: =IF(County_PCCoverlay_IRI!F6<>"",County_PCCoverlay_IRI!F6,"") ->  | G6: =IF(County_PCCoverlay_IRI!G6<>"",County_PCCoverlay_IRI!G6,"") ->  | H6: =County_PCCoverlay_IRI!H6 -> 0 | I6: =County_PCCoverlay_IRI!I6 -> 0 | J6: =County_PCCoverlay_IRI!J6 -> 0 | M6: 0 | N6: =County_PCCoverlay_IRI!N6 ->  | P6: Calculated RSL based on IRI threshold limit:
A7: =IF(County_PCCoverlay_IRI!A7<>"",County_PCCoverlay_IRI!A7,"") ->  | B7: =IF(County_PCCoverlay_IRI!B7<>"",County_PCCoverlay_IRI!B7,"") ->  | C7: =IF(County_PCCoverlay_IRI!C7<>"",County_PCCoverlay_IRI!C7,"") ->  | D7: =IF(County_PCCoverlay_IRI!D7<>"",County_PCCoverlay_IRI!D7,"") ->  | E7: =IF(County_PCCoverlay_IRI!E7<>"",County_PCCoverlay_IRI!E7,"") ->  | F7: =IF(County_PCCoverlay_IRI!F7<>"",County_PCCoverlay_IRI!F7,"") ->  | G7: =IF(County_PCCoverlay_IRI!G7<>"",County_PCCoverlay_IRI!G7,"") ->  | H7: =County_PCCoverlay_IRI!H7 -> 0 | I7: =County_PCCoverlay_IRI!I7 -> 0 | J7: =County_PCCoverlay_IRI!J7 -> 0 | M7: 0 | N7: =County_PCCoverlay_IRI!N7 ->  | P7: Age at IRI threshold | Q7: =IF(Q2="","", IF(LOOKUP(2,1/(K2:L2<>""),K2:L2)>Q2,"Entered IRI already exceeded threshold limit!", IF(AND(Q2<>"",N16>Q2),INDEX(M2:M16,MATCH(TRUE,$N$2:$N$16>Q2,0)),"IRI predictions do not reach the threshold limit!"))) -> 
A8: =IF(County_PCCoverlay_IRI!A8<>"",County_PCCoverlay_IRI!A8,"") ->  | B8: =IF(County_PCCoverlay_IRI!B8<>"",County_PCCoverlay_IRI!B8,"") ->  | C8: =IF(County_PCCoverlay_IRI!C8<>"",County_PCCoverlay_IRI!C8,"") ->  | D8: =IF(County_PCCoverlay_IRI!D8<>"",County_PCCoverlay_IRI!D8,"") ->  | E8: =IF(County_PCCoverlay_IRI!E8<>"",County_PCCoverlay_IRI!E8,"") ->  | F8: =IF(County_PCCoverlay_IRI!F8<>"",County_PCCoverlay_IRI!F8,"") ->  | G8: =IF(County_PCCoverlay_IRI!G8<>"",County_PCCoverlay_IRI!G8,"") ->  | H8: =County_PCCoverlay_IRI!H8 -> 0 | I8: =County_PCCoverlay_IRI!I8 -> 0 | J8: =County_PCCoverlay_IRI!J8 -> 0 | M8: 0 | N8: =County_PCCoverlay_IRI!N8 ->  | P8: RSL | Q8: =IF(ISTEXT(Q7),"",IF(Q5<>"",Q7-Q5,Q7-Q4)) ->  | R8: =IF(Q8<>"",ROUND(Q8,1),"") -> 
A9: =IF(County_PCCoverlay_IRI!A9<>"",County_PCCoverlay_IRI!A9,"") ->  | B9: =IF(County_PCCoverlay_IRI!B9<>"",County_PCCoverlay_IRI!B9,"") ->  | C9: =IF(County_PCCoverlay_IRI!C9<>"",County_PCCoverlay_IRI!C9,"") ->  | D9: =IF(County_PCCoverlay_IRI!D9<>"",County_PCCoverlay_IRI!D9,"") ->  | E9: =IF(County_PCCoverlay_IRI!E9<>"",County_PCCoverlay_IRI!E9,"") ->  | F9: =IF(County_PCCoverlay_IRI!F9<>"",County_PCCoverlay_IRI!F9,"") ->  | G9: =IF(County_PCCoverlay_IRI!G9<>"",County_PCCoverlay_IRI!G9,"") ->  | H9: =County_PCCoverlay_IRI!H9 -> 0 | I9: =County_PCCoverlay_IRI!I9 -> 0 | J9: =County_PCCoverlay_IRI!J9 -> 0 | M9: 0 | N9: =County_PCCoverlay_IRI!N9 ->  | R9: =IF(ISTEXT(Q7),Q7, IF(Q4=Q5,"RSL (at present year) ", IF(Q5<Q4,"RSL (at the last entered year) ", IF(Q5<>"","RSL (at present year) ", IF(Q5="","RSL (at the last entered year) ", IF(AND(Q5<Q3,Q5>Q4),"RSL (at present year) ")))))) -> 
A10: =IF(County_PCCoverlay_IRI!A10<>"",County_PCCoverlay_IRI!A10,"") ->  | B10: =IF(County_PCCoverlay_IRI!B10<>"",County_PCCoverlay_IRI!B10,"") ->  | C10: =IF(County_PCCoverlay_IRI!C10<>"",County_PCCoverlay_IRI!C10,"") ->  | D10: =IF(County_PCCoverlay_IRI!D10<>"",County_PCCoverlay_IRI!D10,"") ->  | E10: =IF(County_PCCoverlay_IRI!E10<>"",County_PCCoverlay_IRI!E10,"") ->  | F10: =IF(County_PCCoverlay_IRI!F10<>"",County_PCCoverlay_IRI!F10,"") ->  | G10: =IF(County_PCCoverlay_IRI!G10<>"",County_PCCoverlay_IRI!G10,"") ->  | H10: =County_PCCoverlay_IRI!H10 -> 0 | I10: =County_PCCoverlay_IRI!I10 -> 0 | J10: =County_PCCoverlay_IRI!J10 -> 0 | M10: 0 | N10: =County_PCCoverlay_IRI!N10 -> 
A11: =IF(County_PCCoverlay_IRI!A11<>"",County_PCCoverlay_IRI!A11,"") ->  | B11: =IF(County_PCCoverlay_IRI!B11<>"",County_PCCoverlay_IRI!B11,"") ->  | C11: =IF(County_PCCoverlay_IRI!C11<>"",County_PCCoverlay_IRI!C11,"") ->  | D11: =IF(County_PCCoverlay_IRI!D11<>"",County_PCCoverlay_IRI!D11,"") ->  | E11: =IF(County_PCCoverlay_IRI!E11<>"",County_PCCoverlay_IRI!E11,"") ->  | F11: =IF(County_PCCoverlay_IRI!F11<>"",County_PCCoverlay_IRI!F11,"") ->  | G11: =IF(County_PCCoverlay_IRI!G11<>"",County_PCCoverlay_IRI!G11,"") ->  | H11: =County_PCCoverlay_IRI!H11 -> 0 | I11: =County_PCCoverlay_IRI!I11 -> 0 | J11: =County_PCCoverlay_IRI!J11 -> 0 | M11: 0 | N11: =County_PCCoverlay_IRI!N11 ->  | P11: Calculated RSL based on Design Life:
A12: =IF(County_PCCoverlay_IRI!A12<>"",County_PCCoverlay_IRI!A12,"") ->  | B12: =IF(County_PCCoverlay_IRI!B12<>"",County_PCCoverlay_IRI!B12,"") ->  | C12: =IF(County_PCCoverlay_IRI!C12<>"",County_PCCoverlay_IRI!C12,"") ->  | D12: =IF(County_PCCoverlay_IRI!D12<>"",County_PCCoverlay_IRI!D12,"") ->  | E12: =IF(County_PCCoverlay_IRI!E12<>"",County_PCCoverlay_IRI!E12,"") ->  | F12: =IF(County_PCCoverlay_IRI!F12<>"",County_PCCoverlay_IRI!F12,"") ->  | G12: =IF(County_PCCoverlay_IRI!G12<>"",County_PCCoverlay_IRI!G12,"") ->  | H12: =County_PCCoverlay_IRI!H12 -> 0 | I12: =County_PCCoverlay_IRI!I12 -> 0 | J12: =County_PCCoverlay_IRI!J12 -> 0 | M12: 0 | N12: =County_PCCoverlay_IRI!N12 ->  | P12: RSL at the present year | Q12: =IF(Q3<>"",IF(V2>Q3,"Entered age already exceeded design service life!", IF(AND(Q5<>"",(Q5<Q3)),Q3-MAX(Q4,Q5), IF(AND(Q5<>"",(Q5>Q3)),"Please enter smaller 'present year' value!", IF(Q5="",(Q3-Q4))))),"") ->  | R12: =IF(ISTEXT(Q12),Q12,IF(Q12<>"",ROUND(Q12,1),"")) -> 
A13: =IF(County_PCCoverlay_IRI!A13<>"",County_PCCoverlay_IRI!A13,"") ->  | B13: =IF(County_PCCoverlay_IRI!B13<>"",County_PCCoverlay_IRI!B13,"") ->  | C13: =IF(County_PCCoverlay_IRI!C13<>"",County_PCCoverlay_IRI!C13,"") ->  | D13: =IF(County_PCCoverlay_IRI!D13<>"",County_PCCoverlay_IRI!D13,"") ->  | E13: =IF(County_PCCoverlay_IRI!E13<>"",County_PCCoverlay_IRI!E13,"") ->  | F13: =IF(County_PCCoverlay_IRI!F13<>"",County_PCCoverlay_IRI!F13,"") ->  | G13: =IF(County_PCCoverlay_IRI!G13<>"",County_PCCoverlay_IRI!G13,"") ->  | H13: =County_PCCoverlay_IRI!H13 -> 0 | I13: =County_PCCoverlay_IRI!I13 -> 0 | J13: =County_PCCoverlay_IRI!J13 -> 0 | M13: 0 | N13: =County_PCCoverlay_IRI!N13 ->  | R13: =IF(ISTEXT(Q12),Q12, IF(Q4=Q5,"RSL (at present year) ", IF(Q5<Q4,"RSL (at the last entered year) ", IF(AND(Q4<>"",Q5=""),"RSL (at the last entered year) ", IF(AND(Q5<Q3,Q5>Q4),"RSL (at present year) ", IF(AND(Q5="",Q12=""),"","")))))) -> 
A14: =IF(County_PCCoverlay_IRI!A14<>"",County_PCCoverlay_IRI!A14,"") ->  | B14: =IF(County_PCCoverlay_IRI!B14<>"",County_PCCoverlay_IRI!B14,"") ->  | C14: =IF(County_PCCoverlay_IRI!C14<>"",County_PCCoverlay_IRI!C14,"") ->  | D14: =IF(County_PCCoverlay_IRI!D14<>"",County_PCCoverlay_IRI!D14,"") ->  | E14: =IF(County_PCCoverlay_IRI!E14<>"",County_PCCoverlay_IRI!E14,"") ->  | F14: =IF(County_PCCoverlay_IRI!F14<>"",County_PCCoverlay_IRI!F14,"") ->  | G14: =IF(County_PCCoverlay_IRI!G14<>"",County_PCCoverlay_IRI!G14,"") ->  | H14: =County_PCCoverlay_IRI!H14 -> 0 | I14: =County_PCCoverlay_IRI!I14 -> 0 | J14: =County_PCCoverlay_IRI!J14 -> 0 | M14: 0 | N14: =County_PCCoverlay_IRI!N14 ->  | O14: 19 | P14: RSL
A15: =IF(County_PCCoverlay_IRI!A15<>"",County_PCCoverlay_IRI!A15,"") ->  | B15: =IF(County_PCCoverlay_IRI!B15<>"",County_PCCoverlay_IRI!B15,"") ->  | C15: =IF(County_PCCoverlay_IRI!C15<>"",County_PCCoverlay_IRI!C15,"") ->  | D15: =IF(County_PCCoverlay_IRI!D15<>"",County_PCCoverlay_IRI!D15,"") ->  | E15: =IF(County_PCCoverlay_IRI!E15<>"",County_PCCoverlay_IRI!E15,"") ->  | F15: =IF(County_PCCoverlay_IRI!F15<>"",County_PCCoverlay_IRI!F15,"") ->  | G15: =IF(County_PCCoverlay_IRI!G15<>"",County_PCCoverlay_IRI!G15,"") ->  | H15: =County_PCCoverlay_IRI!H15 -> 0 | I15: =County_PCCoverlay_IRI!I15 -> 0 | J15: =County_PCCoverlay_IRI!J15 -> 0 | M15: 0 | N15: =County_PCCoverlay_IRI!N15 ->  | O15: RSL (at the last entered year) | P15: =IF(AND(R8<>"",R12<>""),MIN(R8,R12), IF(AND(R8="",R9="Entered IRI already exceeded threshold limit!",R12<>""),"", IF(AND(R8="",R12<>""),R12, IF(AND(R8<>"",R12=""),R8,"")))) -> 
A16: =IF(County_PCCoverlay_IRI!A16<>"",County_PCCoverlay_IRI!A16,"") ->  | B16: =IF(County_PCCoverlay_IRI!B16<>"",County_PCCoverlay_IRI!B16,"") ->  | C16: =IF(County_PCCoverlay_IRI!C16<>"",County_PCCoverlay_IRI!C16,"") ->  | D16: =IF(County_PCCoverlay_IRI!D16<>"",County_PCCoverlay_IRI!D16,"") ->  | E16: =IF(County_PCCoverlay_IRI!E16<>"",County_PCCoverlay_IRI!E16,"") ->  | F16: =IF(County_PCCoverlay_IRI!F16<>"",County_PCCoverlay_IRI!F16,"") ->  | G16: =IF(County_PCCoverlay_IRI!G16<>"",County_PCCoverlay_IRI!G16,"") ->  | H16: =County_PCCoverlay_IRI!H16 -> 0 | I16: =County_PCCoverlay_IRI!I16 -> 0 | J16: =County_PCCoverlay_IRI!J16 -> 0 | M16: 0 | N16: =County_PCCoverlay_IRI!N16 ->  | P16: =IF(AND(Q2="",Q3=""),"RSL could not be calculated. Please enter more information!", IF(AND(ISNUMBER(R12),Q7="Entered IRI already exceeded threshold limit!"),R9, IF(AND(R12="",Q7="Entered IRI already exceeded threshold limit!"),R9, IF(AND(ISNUMBER(R12),Q7="IRI predictions do not reach the threshold limit!"),(R9&""&CHAR(10)&" Thus, "&R13&""&"calculated based on the design life!"), IF(AND(Q3="",Q7="IRI predictions do not reach the threshold limit!"),(Q7&""&CHAR(10)&" Thus, RSL could not be calculated. Please enter more information!"), IF(AND(ISNUMBER(R8),ISTEXT(Q12)),(R9&""&CHAR(10)&"calculated based on the pavement performance"&CHAR(10)&Q12), IF(Q12="Please enter smaller 'present year' value!",Q12, IF(Q12="Entered age already exceeded design service life!",Q12, IF(AND(P15=R8,P15=R12,ISNUMBER(P15)),R13&""&"calculated based on the design life and pavement performance", IF(AND(R8<>"",P15=R8),R9&""&CHAR(10)&"calculated based on the pavement performance",R13&""&"calculated based on the design life")))))))))) -> RSL could not be calculated. Please enter more information!

Sheet Sheet1_PMIS_ACoverJPCP_LCrack (hidden)
A1: =PMIS_ACoverJPCP_LCrack!A1 -> Project Name | B1: =PMIS_ACoverJPCP_LCrack!B1 -> COUNAME | C1: =PMIS_ACoverJPCP_LCrack!C1 -> PROJECT_NO | D1: =PMIS_ACoverJPCP_LCrack!D1 -> BPRJ | E1: =PMIS_ACoverJPCP_LCrack!E1 -> EPRJ | F1: =PMIS_ACoverJPCP_LCrack!F1 -> CONYR | G1: =PMIS_ACoverJPCP_LCrack!G1 -> DATAYR | H1: =PMIS_ACoverJPCP_LCrack!H1 -> Accumulated ESALs | I1: =PMIS_ACoverJPCP_LCrack!I1 -> HMA Thickness (in.) | J1: =PMIS_ACoverJPCP_LCrack!J1 -> LCRACKi-2 (ft/mile) | K1: =PMIS_ACoverJPCP_LCrack!K1 -> LCRACKi-1 (ft/mile) | L1: =PMIS_ACoverJPCP_LCrack!L1 -> Age (years) | M1: =PMIS_ACoverJPCP_LCrack!M1 -> LCRACKi (ft/mile) | O1: Normalized Inputs | P1: Age | Q1: Age | R1: Acc ESAL | S1: HMA surface thickness, inch | T1: LCRACKi-2, ft/mile | U1: LCRACKi-1, ft/mile | Z1: IW | AA1: trainlm.H10.nets{1}
A2: =PMIS_ACoverJPCP_LCrack!A2 -> 0 | B2: =PMIS_ACoverJPCP_LCrack!B2 -> 0 | C2: =PMIS_ACoverJPCP_LCrack!C2 -> 0 | D2: =PMIS_ACoverJPCP_LCrack!D2 -> 0 | E2: =PMIS_ACoverJPCP_LCrack!E2 -> 0 | F2: =PMIS_ACoverJPCP_LCrack!F2 -> 0 | G2: =PMIS_ACoverJPCP_LCrack!G2 -> 0 | H2: =PMIS_ACoverJPCP_LCrack!H2 -> 0 | I2: =PMIS_ACoverJPCP_LCrack!I2 -> 0 | J2: =PMIS_ACoverJPCP_LCrack!J2 -> 0 | K2: =PMIS_ACoverJPCP_LCrack!K2 -> 0 | L2: =RSL_PMIS_ACoverJPCP_LCrack!L2 -> 0 | M2: =PMIS_ACoverJPCP_LCrack!M2 ->  | N2: LCRACT min | P2: min | Q2: =2*((L2-P$3)/(P$5-P$3))-1 -> -1.333333333 | R2: =2*((H2-P$8)/(P$10-P$8))-1 -> -1.02E+00 | S2: =2*((I2-P$13)/(P$15-P$13))-1 -> -2.910828025 | T2: =2*((J2-P$18)/(P$20-P$18))-1 -> -1 | U2: =2*((K2-P$23)/(P$25-P$23))-1 -> -1.000592328 | Z2: -0.18573 | AA2: 3.20564 | AB2: -2.99546 | AC2: 0.7515 | AD2: 2.49532
A3: =PMIS_ACoverJPCP_LCrack!A3 -> 0 | B3: =PMIS_ACoverJPCP_LCrack!B3 -> 0 | C3: =PMIS_ACoverJPCP_LCrack!C3 -> 0 | D3: =PMIS_ACoverJPCP_LCrack!D3 -> 0 | E3: =PMIS_ACoverJPCP_LCrack!E3 -> 0 | F3: =PMIS_ACoverJPCP_LCrack!F3 -> 0 | G3: =PMIS_ACoverJPCP_LCrack!G3 -> 0 | H3: =IF(PMIS_ACoverJPCP_LCrack!H3="",H2+H2*(PMIS_ACoverJPCP_LCrack!$I$22/100),PMIS_ACoverJPCP_LCrack!H3) -> 0 | I3: =IF(PMIS_ACoverJPCP_LCrack!H3="",I2,PMIS_ACoverJPCP_LCrack!I3) -> 0 | J3: =PMIS_ACoverJPCP_LCrack!J3 -> 0 | K3: =PMIS_ACoverJPCP_LCrack!K3 -> 0 | L3: =RSL_PMIS_ACoverJPCP_LCrack!L3 -> 0 | M3: =PMIS_ACoverJPCP_LCrack!M3 ->  | N3: 4.22399 | P3: 2 | Q3: =2*((L3-P$3)/(P$5-P$3))-1 -> -1.333333333 | R3: =2*((H3-P$8)/(P$10-P$8))-1 -> -1.02E+00 | S3: =2*((I3-P$13)/(P$15-P$13))-1 -> -2.910828025 | T3: =2*((J3-P$18)/(P$20-P$18))-1 -> -1 | U3: =2*((K3-P$23)/(P$25-P$23))-1 -> -1.000592328 | Z3: 2.88037 | AA3: -2.26328 | AB3: 2.1881 | AC3: -1.23998 | AD3: 0.745364
A4: =PMIS_ACoverJPCP_LCrack!A4 -> 0 | B4: =PMIS_ACoverJPCP_LCrack!B4 -> 0 | C4: =PMIS_ACoverJPCP_LCrack!C4 -> 0 | D4: =PMIS_ACoverJPCP_LCrack!D4 -> 0 | E4: =PMIS_ACoverJPCP_LCrack!E4 -> 0 | F4: =PMIS_ACoverJPCP_LCrack!F4 -> 0 | G4: =PMIS_ACoverJPCP_LCrack!G4 -> 0 | H4: =IF(PMIS_ACoverJPCP_LCrack!H4="",H3+H3*(PMIS_ACoverJPCP_LCrack!$I$22/100),PMIS_ACoverJPCP_LCrack!H4) -> 0 | I4: =IF(PMIS_ACoverJPCP_LCrack!H4="",I3,PMIS_ACoverJPCP_LCrack!I4) -> 0 | J4: =PMIS_ACoverJPCP_LCrack!J4 -> 0 | K4: =PMIS_ACoverJPCP_LCrack!K4 -> 0 | L4: =RSL_PMIS_ACoverJPCP_LCrack!L4 -> 0 | M4: =PMIS_ACoverJPCP_LCrack!M4 ->  | N4: LCRACT max | P4: max | Q4: -1.333333333 | R4: -1.02E+00 | S4: -2.910828025 | T4: -1 | U4: -1.000592328 | Z4: -2.67744 | AA4: 0.543366 | AB4: 0.0527304 | AC4: 2.78335 | AD4: -1.42553
A5: =PMIS_ACoverJPCP_LCrack!A5 -> 0 | B5: =PMIS_ACoverJPCP_LCrack!B5 -> 0 | C5: =PMIS_ACoverJPCP_LCrack!C5 -> 0 | D5: =PMIS_ACoverJPCP_LCrack!D5 -> 0 | E5: =PMIS_ACoverJPCP_LCrack!E5 -> 0 | F5: =PMIS_ACoverJPCP_LCrack!F5 -> 0 | G5: =PMIS_ACoverJPCP_LCrack!G5 -> 0 | H5: =IF(PMIS_ACoverJPCP_LCrack!H5="",H4+H4*(PMIS_ACoverJPCP_LCrack!$I$22/100),PMIS_ACoverJPCP_LCrack!H5) -> 0 | I5: =IF(PMIS_ACoverJPCP_LCrack!H5="",I4,PMIS_ACoverJPCP_LCrack!I5) -> 0 | J5: =PMIS_ACoverJPCP_LCrack!J5 -> 0 | K5: =PMIS_ACoverJPCP_LCrack!K5 -> 0 | L5: =RSL_PMIS_ACoverJPCP_LCrack!L5 -> 0 | M5: =PMIS_ACoverJPCP_LCrack!M5 ->  | N5: 7427.62 | P5: 14 | Q5: -1.333333333 | R5: -1.02E+00 | S5: -2.910828025 | T5: -1 | U5: -1.000592328 | Z5: -0.163297 | AA5: 0.404257 | AB5: -0.844229 | AC5: 3.62651 | AD5: -4.53812
A6: =PMIS_ACoverJPCP_LCrack!A6 -> 0 | B6: =PMIS_ACoverJPCP_LCrack!B6 -> 0 | C6: =PMIS_ACoverJPCP_LCrack!C6 -> 0 | D6: =PMIS_ACoverJPCP_LCrack!D6 -> 0 | E6: =PMIS_ACoverJPCP_LCrack!E6 -> 0 | F6: =PMIS_ACoverJPCP_LCrack!F6 -> 0 | G6: =PMIS_ACoverJPCP_LCrack!G6 -> 0 | H6: =IF(PMIS_ACoverJPCP_LCrack!H6="",H5+H5*(PMIS_ACoverJPCP_LCrack!$I$22/100),PMIS_ACoverJPCP_LCrack!H6) -> 0 | I6: =IF(PMIS_ACoverJPCP_LCrack!H6="",I5,PMIS_ACoverJPCP_LCrack!I6) -> 0 | J6: =PMIS_ACoverJPCP_LCrack!J6 -> 0 | K6: =PMIS_ACoverJPCP_LCrack!K6 -> 0 | L6: =RSL_PMIS_ACoverJPCP_LCrack!L6 -> 0 | M6: =PMIS_ACoverJPCP_LCrack!M6 ->  | P6: ACC | Q6: -1.333333333 | R6: -1.02E+00 | S6: -2.910828025 | T6: -1 | U6: -1.000592328 | Z6: 0.185507 | AA6: -1.7091 | AB6: -0.769118 | AC6: 1.73497 | AD6: -2.43974
A7: =PMIS_ACoverJPCP_LCrack!A7 -> 0 | B7: =PMIS_ACoverJPCP_LCrack!B7 -> 0 | C7: =PMIS_ACoverJPCP_LCrack!C7 -> 0 | D7: =PMIS_ACoverJPCP_LCrack!D7 -> 0 | E7: =PMIS_ACoverJPCP_LCrack!E7 -> 0 | F7: =PMIS_ACoverJPCP_LCrack!F7 -> 0 | G7: =PMIS_ACoverJPCP_LCrack!G7 -> 0 | H7: =IF(PMIS_ACoverJPCP_LCrack!H7="",H6+H6*(PMIS_ACoverJPCP_LCrack!$I$22/100),PMIS_ACoverJPCP_LCrack!H7) -> 0 | I7: =IF(PMIS_ACoverJPCP_LCrack!H7="",I6,PMIS_ACoverJPCP_LCrack!I7) -> 0 | J7: =PMIS_ACoverJPCP_LCrack!J7 -> 0 | K7: =PMIS_ACoverJPCP_LCrack!K7 -> 0 | L7: =RSL_PMIS_ACoverJPCP_LCrack!L7 -> 0 | M7: =PMIS_ACoverJPCP_LCrack!M7 ->  | P7: min | Q7: -1.333333333 | R7: -1.02E+00 | S7: -2.910828025 | T7: -1 | U7: -1.000592328 | Z7: -1.13004 | AA7: 0.530274 | AB7: -1.94036 | AC7: 1.3443 | AD7: 1.84851
A8: =PMIS_ACoverJPCP_LCrack!A8 -> 0 | B8: =PMIS_ACoverJPCP_LCrack!B8 -> 0 | C8: =PMIS_ACoverJPCP_LCrack!C8 -> 0 | D8: =PMIS_ACoverJPCP_LCrack!D8 -> 0 | E8: =PMIS_ACoverJPCP_LCrack!E8 -> 0 | F8: =PMIS_ACoverJPCP_LCrack!F8 -> 0 | G8: =PMIS_ACoverJPCP_LCrack!G8 -> 0 | H8: =IF(PMIS_ACoverJPCP_LCrack!H8="",H7+H7*(PMIS_ACoverJPCP_LCrack!$I$22/100),PMIS_ACoverJPCP_LCrack!H8) -> 0 | I8: =IF(PMIS_ACoverJPCP_LCrack!H8="",I7,PMIS_ACoverJPCP_LCrack!I8) -> 0 | J8: =PMIS_ACoverJPCP_LCrack!J8 -> 0 | K8: =PMIS_ACoverJPCP_LCrack!K8 -> 0 | L8: =RSL_PMIS_ACoverJPCP_LCrack!L8 -> 0 | M8: =PMIS_ACoverJPCP_LCrack!M8 ->  | P8: 528666 | Q8: -1.333333333 | R8: -1.02E+00 | S8: -2.910828025 | T8: -1 | U8: -1.000592328 | Z8: -0.179203 | AA8: -0.248774 | AB8: -0.917756 | AC8: -1.37172 | AD8: 1.36143
A9: =PMIS_ACoverJPCP_LCrack!A9 -> 0 | B9: =PMIS_ACoverJPCP_LCrack!B9 -> 0 | C9: =PMIS_ACoverJPCP_LCrack!C9 -> 0 | D9: =PMIS_ACoverJPCP_LCrack!D9 -> 0 | E9: =PMIS_ACoverJPCP_LCrack!E9 -> 0 | F9: =PMIS_ACoverJPCP_LCrack!F9 -> 0 | G9: =PMIS_ACoverJPCP_LCrack!G9 -> 0 | H9: =IF(PMIS_ACoverJPCP_LCrack!H9="",H8+H8*(PMIS_ACoverJPCP_LCrack!$I$22/100),PMIS_ACoverJPCP_LCrack!H9) -> 0 | I9: =IF(PMIS_ACoverJPCP_LCrack!H9="",I8,PMIS_ACoverJPCP_LCrack!I9) -> 0 | J9: =PMIS_ACoverJPCP_LCrack!J9 -> 0 | K9: =PMIS_ACoverJPCP_LCrack!K9 -> 0 | L9: =RSL_PMIS_ACoverJPCP_LCrack!L9 -> 0 | M9: =PMIS_ACoverJPCP_LCrack!M9 ->  | P9: max | Q9: -1.333333333 | R9: -1.02E+00 | S9: -2.910828025 | T9: -1 | U9: -1.000592328 | Z9: -0.034925 | AA9: -0.0241725 | AB9: -0.0820716 | AC9: -0.0715508 | AD9: 0.453096
A10: =PMIS_ACoverJPCP_LCrack!A10 -> 0 | B10: =PMIS_ACoverJPCP_LCrack!B10 -> 0 | C10: =PMIS_ACoverJPCP_LCrack!C10 -> 0 | D10: =PMIS_ACoverJPCP_LCrack!D10 -> 0 | E10: =PMIS_ACoverJPCP_LCrack!E10 -> 0 | F10: =PMIS_ACoverJPCP_LCrack!F10 -> 0 | G10: =PMIS_ACoverJPCP_LCrack!G10 -> 0 | H10: =IF(PMIS_ACoverJPCP_LCrack!H10="",H9+H9*(PMIS_ACoverJPCP_LCrack!$I$22/100),PMIS_ACoverJPCP_LCrack!H10) -> 0 | I10: =IF(PMIS_ACoverJPCP_LCrack!H10="",I9,PMIS_ACoverJPCP_LCrack!I10) -> 0 | J10: =PMIS_ACoverJPCP_LCrack!J10 -> 0 | K10: =PMIS_ACoverJPCP_LCrack!K10 -> 0 | L10: =RSL_PMIS_ACoverJPCP_LCrack!L10 -> 0 | M10: =PMIS_ACoverJPCP_LCrack!M10 ->  | P10: 6.70E+07 | Q10: -1.333333333 | R10: -1.02E+00 | S10: -2.910828025 | T10: -1 | U10: -1.000592328 | Z10: -0.0584933 | AA10: -1.4732 | AB10: -0.234416 | AC10: 1.55194 | AD10: -0.395259
A11: =PMIS_ACoverJPCP_LCrack!A11 -> 0 | B11: =PMIS_ACoverJPCP_LCrack!B11 -> 0 | C11: =PMIS_ACoverJPCP_LCrack!C11 -> 0 | D11: =PMIS_ACoverJPCP_LCrack!D11 -> 0 | E11: =PMIS_ACoverJPCP_LCrack!E11 -> 0 | F11: =PMIS_ACoverJPCP_LCrack!F11 -> 0 | G11: =PMIS_ACoverJPCP_LCrack!G11 -> 0 | H11: =IF(PMIS_ACoverJPCP_LCrack!H11="",H10+H10*(PMIS_ACoverJPCP_LCrack!$I$22/100),PMIS_ACoverJPCP_LCrack!H11) -> 0 | I11: =IF(PMIS_ACoverJPCP_LCrack!H11="",I10,PMIS_ACoverJPCP_LCrack!I11) -> 0 | J11: =PMIS_ACoverJPCP_LCrack!J11 -> 0 | K11: =PMIS_ACoverJPCP_LCrack!K11 -> 0 | L11: =RSL_PMIS_ACoverJPCP_LCrack!L11 -> 0 | M11: =PMIS_ACoverJPCP_LCrack!M11 ->  | P11: HMA sur | Q11: -1.333333333 | R11: -1.02E+00 | S11: -2.910828025 | T11: -1 | U11: -1.000592328 | Z11: 3.36219 | AA11: -4.89149 | AB11: -2.03633 | AC11: -0.282378 | AD11: 0.586635
A12: =PMIS_ACoverJPCP_LCrack!A12 -> 0 | B12: =PMIS_ACoverJPCP_LCrack!B12 -> 0 | C12: =PMIS_ACoverJPCP_LCrack!C12 -> 0 | D12: =PMIS_ACoverJPCP_LCrack!D12 -> 0 | E12: =PMIS_ACoverJPCP_LCrack!E12 -> 0 | F12: =PMIS_ACoverJPCP_LCrack!F12 -> 0 | G12: =PMIS_ACoverJPCP_LCrack!G12 -> 0 | H12: =IF(PMIS_ACoverJPCP_LCrack!H12="",H11+H11*(PMIS_ACoverJPCP_LCrack!$I$22/100),PMIS_ACoverJPCP_LCrack!H12) -> 0 | I12: =IF(PMIS_ACoverJPCP_LCrack!H12="",I11,PMIS_ACoverJPCP_LCrack!I12) -> 0 | J12: =PMIS_ACoverJPCP_LCrack!J12 -> 0 | K12: =PMIS_ACoverJPCP_LCrack!K12 -> 0 | L12: =RSL_PMIS_ACoverJPCP_LCrack!L12 -> 0 | M12: =PMIS_ACoverJPCP_LCrack!M12 ->  | P12: min | Q12: -1.333333333 | R12: -1.02E+00 | S12: -2.910828025 | T12: -1 | U12: -1.000592328
A13: =PMIS_ACoverJPCP_LCrack!A13 -> 0 | B13: =PMIS_ACoverJPCP_LCrack!B13 -> 0 | C13: =PMIS_ACoverJPCP_LCrack!C13 -> 0 | D13: =PMIS_ACoverJPCP_LCrack!D13 -> 0 | E13: =PMIS_ACoverJPCP_LCrack!E13 -> 0 | F13: =PMIS_ACoverJPCP_LCrack!F13 -> 0 | G13: =PMIS_ACoverJPCP_LCrack!G13 -> 0 | H13: =IF(PMIS_ACoverJPCP_LCrack!H13="",H12+H12*(PMIS_ACoverJPCP_LCrack!$I$22/100),PMIS_ACoverJPCP_LCrack!H13) -> 0 | I13: =IF(PMIS_ACoverJPCP_LCrack!H13="",I12,PMIS_ACoverJPCP_LCrack!I13) -> 0 | J13: =PMIS_ACoverJPCP_LCrack!J13 -> 0 | K13: =PMIS_ACoverJPCP_LCrack!K13 -> 0 | L13: =RSL_PMIS_ACoverJPCP_LCrack!L13 -> 0 | M13: =PMIS_ACoverJPCP_LCrack!M13 ->  | P13: 1.5 | Q13: -1.333333333 | R13: -1.02E+00 | S13: -2.910828025 | T13: -1 | U13: -1.000592328
A14: =PMIS_ACoverJPCP_LCrack!A14 -> 0 | B14: =PMIS_ACoverJPCP_LCrack!B14 -> 0 | C14: =PMIS_ACoverJPCP_LCrack!C14 -> 0 | D14: =PMIS_ACoverJPCP_LCrack!D14 -> 0 | E14: =PMIS_ACoverJPCP_LCrack!E14 -> 0 | F14: =PMIS_ACoverJPCP_LCrack!F14 -> 0 | G14: =PMIS_ACoverJPCP_LCrack!G14 -> 0 | H14: =IF(PMIS_ACoverJPCP_LCrack!H14="",H13+H13*(PMIS_ACoverJPCP_LCrack!$I$22/100),PMIS_ACoverJPCP_LCrack!H14) -> 0 | I14: =IF(PMIS_ACoverJPCP_LCrack!H14="",I13,PMIS_ACoverJPCP_LCrack!I14) -> 0 | J14: =PMIS_ACoverJPCP_LCrack!J14 -> 0 | K14: =PMIS_ACoverJPCP_LCrack!K14 -> 0 | L14: =RSL_PMIS_ACoverJPCP_LCrack!L14 -> 0 | M14: =PMIS_ACoverJPCP_LCrack!M14 ->  | P14: max | Q14: -1.333333333 | R14: -1.02E+00 | S14: -2.910828025 | T14: -1 | U14: -1.000592328
A15: =PMIS_ACoverJPCP_LCrack!A15 -> 0 | B15: =PMIS_ACoverJPCP_LCrack!B15 -> 0 | C15: =PMIS_ACoverJPCP_LCrack!C15 -> 0 | D15: =PMIS_ACoverJPCP_LCrack!D15 -> 0 | E15: =PMIS_ACoverJPCP_LCrack!E15 -> 0 | F15: =PMIS_ACoverJPCP_LCrack!F15 -> 0 | G15: =PMIS_ACoverJPCP_LCrack!G15 -> 0 | H15: =IF(PMIS_ACoverJPCP_LCrack!H15="",H14+H14*(PMIS_ACoverJPCP_LCrack!$I$22/100),PMIS_ACoverJPCP_LCrack!H15) -> 0 | I15: =IF(PMIS_ACoverJPCP_LCrack!H15="",I14,PMIS_ACoverJPCP_LCrack!I15) -> 0 | J15: =PMIS_ACoverJPCP_LCrack!J15 -> 0 | K15: =PMIS_ACoverJPCP_LCrack!K15 -> 0 | L15: =RSL_PMIS_ACoverJPCP_LCrack!L15 -> 0 | M15: =PMIS_ACoverJPCP_LCrack!M15 ->  | P15: 3.07 | Q15: -1.333333333 | R15: -1.02E+00 | S15: -2.910828025 | T15: -1 | U15: -1.000592328
A16: =PMIS_ACoverJPCP_LCrack!A16 -> 0 | B16: =PMIS_ACoverJPCP_LCrack!B16 -> 0 | C16: =PMIS_ACoverJPCP_LCrack!C16 -> 0 | D16: =PMIS_ACoverJPCP_LCrack!D16 -> 0 | E16: =PMIS_ACoverJPCP_LCrack!E16 -> 0 | F16: =PMIS_ACoverJPCP_LCrack!F16 -> 0 | G16: =PMIS_ACoverJPCP_LCrack!G16 -> 0 | H16: =IF(PMIS_ACoverJPCP_LCrack!H16="",H15+H15*(PMIS_ACoverJPCP_LCrack!$I$22/100),PMIS_ACoverJPCP_LCrack!H16) -> 0 | I16: =IF(PMIS_ACoverJPCP_LCrack!H16="",I15,PMIS_ACoverJPCP_LCrack!I16) -> 0 | J16: =PMIS_ACoverJPCP_LCrack!J16 -> 0 | K16: =PMIS_ACoverJPCP_LCrack!K16 -> 0 | L16: =RSL_PMIS_ACoverJPCP_LCrack!L16 -> 0 | M16: =PMIS_ACoverJPCP_LCrack!M16 ->  | P16: LCRACK-2 | Q16: -1.333333333 | R16: -1.02E+00 | S16: -2.910828025 | T16: -1 | U16: -1.000592328
P17: min | Q17: -1.333333333 | R17: -1.02E+00 | S17: -2.910828025 | T17: -1 | U17: -1.000592328 | V17: B1 | W17: IW*Inputsnor
P18: 0 | Q18: -1.333333333 | R18: -1.02E+00 | S18: -2.910828025 | T18: -1 | U18: -1.000592328 | V18: -2.457606 | W18: =MMULT(Z2:AD11,TRANSPOSE(Q2:U23)) -> 2.461958899 | X18: 2.461958899 | Y18: 2.461958899 | Z18: 2.461958899 | AA18: 2.461958899 | AB18: 2.461958899 | AC18: 2.461958899 | AD18: 2.461958899 | AE18: 2.461958899 | AF18: 2.461958899 | AG18: 2.461958899 | AH18: 2.461958899 | AI18: 2.461958899 | AJ18: 2.461958899 | AK18: 2.461958899 | AL18: 2.461958899 | AM18: 2.461958899 | AN18: 2.461958899 | AO18: 2.461958899 | AP18: 2.461958899 | AQ18: 2.461958899 | AR18: 2.461958899
P19: max | Q19: -1.333333333 | R19: -1.02E+00 | S19: -2.910828025 | T19: -1 | U19: -1.000592328 | V19: 0.113151 | W19: -7.416205623 | X19: -7.416205623 | Y19: -7.416205623 | Z19: -7.416205623 | AA19: -7.416205623 | AB19: -7.416205623 | AC19: -7.416205623 | AD19: -7.416205623 | AE19: -7.416205623 | AF19: -7.416205623 | AG19: -7.416205623 | AH19: -7.416205623 | AI19: -7.416205623 | AJ19: -7.416205623 | AK19: -7.416205623 | AL19: -7.416205623 | AM19: -7.416205623 | AN19: -7.416205623 | AO19: -7.416205623 | AP19: -7.416205623 | AQ19: -7.416205623 | AR19: -7.416205623
P20: 6838.9 | Q20: -1.333333333 | R20: -1.02E+00 | S20: -2.910828025 | T20: -1 | U20: -1.000592328 | V20: 1.02189 | W20: 1.507442567 | X20: 1.507442567 | Y20: 1.507442567 | Z20: 1.507442567 | AA20: 1.507442567 | AB20: 1.507442567 | AC20: 1.507442567 | AD20: 1.507442567 | AE20: 1.507442567 | AF20: 1.507442567 | AG20: 1.507442567 | AH20: 1.507442567 | AI20: 1.507442567 | AJ20: 1.507442567 | AK20: 1.507442567 | AL20: 1.507442567 | AM20: 1.507442567 | AN20: 1.507442567 | AO20: 1.507442567 | AP20: 1.507442567 | AQ20: 1.507442567 | AR20: 1.507442567
P21: LCRACK-1 | Q21: -1.333333333 | R21: -1.02E+00 | S21: -2.910828025 | T21: -1 | U21: -1.000592328 | V21: -1.065833 | W21: 3.178742803 | X21: 3.178742803 | Y21: 3.178742803 | Z21: 3.178742803 | AA21: 3.178742803 | AB21: 3.178742803 | AC21: 3.178742803 | AD21: 3.178742803 | AE21: 3.178742803 | AF21: 3.178742803 | AG21: 3.178742803 | AH21: 3.178742803 | AI21: 3.178742803 | AJ21: 3.178742803 | AK21: 3.178742803 | AL21: 3.178742803 | AM21: 3.178742803 | AN21: 3.178742803 | AO21: 3.178742803 | AP21: 3.178742803 | AQ21: 3.178742803 | AR21: 3.178742803
P22: min | Q22: -1.333333333 | R22: -1.02E+00 | S22: -2.910828025 | T22: -1 | U22: -1.000592328 | V22: -2.137653 | W22: 4.433939929 | X22: 4.433939929 | Y22: 4.433939929 | Z22: 4.433939929 | AA22: 4.433939929 | AB22: 4.433939929 | AC22: 4.433939929 | AD22: 4.433939929 | AE22: 4.433939929 | AF22: 4.433939929 | AG22: 4.433939929 | AH22: 4.433939929 | AI22: 4.433939929 | AJ22: 4.433939929 | AK22: 4.433939929 | AL22: 4.433939929 | AM22: 4.433939929 | AN22: 4.433939929 | AO22: 4.433939929 | AP22: 4.433939929 | AQ22: 4.433939929 | AR22: 4.433939929
P23: 2.11199 | Q23: -1.333333333 | R23: -1.02E+00 | S23: -2.910828025 | T23: -1 | U23: -1.000592328 | V23: 0.190515 | W23: 3.42215699 | X23: 3.42215699 | Y23: 3.42215699 | Z23: 3.42215699 | AA23: 3.42215699 | AB23: 3.42215699 | AC23: 3.42215699 | AD23: 3.42215699 | AE23: 3.42215699 | AF23: 3.42215699 | AG23: 3.42215699 | AH23: 3.42215699 | AI23: 3.42215699 | AJ23: 3.42215699 | AK23: 3.42215699 | AL23: 3.42215699 | AM23: 3.42215699 | AN23: 3.42215699 | AO23: 3.42215699 | AP23: 3.42215699 | AQ23: 3.42215699 | AR23: 3.42215699
P24: max | Q24: -1.333333333 | R24: -1.02E+00 | S24: -2.910828025 | T24: -1 | U24: -1.000592328 | V24: -0.129791 | W24: 3.172583594 | X24: 3.172583594 | Y24: 3.172583594 | Z24: 3.172583594 | AA24: 3.172583594 | AB24: 3.172583594 | AC24: 3.172583594 | AD24: 3.172583594 | AE24: 3.172583594 | AF24: 3.172583594 | AG24: 3.172583594 | AH24: 3.172583594 | AI24: 3.172583594 | AJ24: 3.172583594 | AK24: 3.172583594 | AL24: 3.172583594 | AM24: 3.172583594 | AN24: 3.172583594 | AO24: 3.172583594 | AP24: 3.172583594 | AQ24: 3.172583594 | AR24: 3.172583594
P25: 7133.26 | Q25: -1.333333333 | R25: -1.02E+00 | S25: -2.910828025 | T25: -1 | U25: -1.000592328 | V25: 0.224239 | W25: -0.07179343982 | X25: -0.07179343982 | Y25: -0.07179343982 | Z25: -0.07179343982 | AA25: -0.07179343982 | AB25: -0.07179343982 | AC25: -0.07179343982 | AD25: -0.07179343982 | AE25: -0.07179343982 | AF25: -0.07179343982 | AG25: -0.07179343982 | AH25: -0.07179343982 | AI25: -0.07179343982 | AJ25: -0.07179343982 | AK25: -0.07179343982 | AL25: -0.07179343982 | AM25: -0.07179343982 | AN25: -0.07179343982 | AO25: -0.07179343982 | AP25: -0.07179343982 | AQ25: -0.07179343982 | AR25: -0.07179343982
Q26: -1.333333333 | R26: -1.02E+00 | S26: -2.910828025 | T26: -1 | U26: -1.000592328 | V26: -0.164527 | W26: 1.100532169 | X26: 1.100532169 | Y26: 1.100532169 | Z26: 1.100532169 | AA26: 1.100532169 | AB26: 1.100532169 | AC26: 1.100532169 | AD26: 1.100532169 | AE26: 1.100532169 | AF26: 1.100532169 | AG26: 1.100532169 | AH26: 1.100532169 | AI26: 1.100532169 | AJ26: 1.100532169 | AK26: 1.100532169 | AL26: 1.100532169 | AM26: 1.100532169 | AN26: 1.100532169 | AO26: 1.100532169 | AP26: 1.100532169 | AQ26: 1.100532169 | AR26: 1.100532169
Q27: -1.333333333 | R27: -1.02E+00 | S27: -2.910828025 | T27: -1 | U27: -1.000592328 | V27: 4.142863 | W27: 6.10921118 | X27: 6.10921118 | Y27: 6.10921118 | Z27: 6.10921118 | AA27: 6.10921118 | AB27: 6.10921118 | AC27: 6.10921118 | AD27: 6.10921118 | AE27: 6.10921118 | AF27: 6.10921118 | AG27: 6.10921118 | AH27: 6.10921118 | AI27: 6.10921118 | AJ27: 6.10921118 | AK27: 6.10921118 | AL27: 6.10921118 | AM27: 6.10921118 | AN27: 6.10921118 | AO27: 6.10921118 | AP27: 6.10921118 | AQ27: 6.10921118 | AR27: 6.10921118
Q28: -1.333333333 | R28: -1.02E+00 | S28: -2.910828025 | T28: -1 | U28: -1.000592328
Q29: -1.333333333 | R29: -1.02E+00 | S29: -2.910828025 | T29: -1 | U29: -1.000592328 | W29: B1+IW*Inputsnor
Q30: -1.333333333 | R30: -1.02E+00 | S30: -2.910828025 | T30: -1 | U30: -1.000592328 | W30: =(V18:V27)+W18:AR27 -> 0.004352899012 | X30: 0.004352899012 | Y30: 0.004352899012 | Z30: 0.004352899012 | AA30: 0.004352899012 | AB30: 0.004352899012 | AC30: 0.004352899012 | AD30: 0.004352899012 | AE30: 0.004352899012 | AF30: 0.004352899012 | AG30: 0.004352899012 | AH30: 0.004352899012 | AI30: 0.004352899012 | AJ30: 0.004352899012 | AK30: 0.004352899012 | AL30: 0.004352899012 | AM30: 0.004352899012 | AN30: 0.004352899012 | AO30: 0.004352899012 | AP30: 0.004352899012 | AQ30: 0.004352899012 | AR30: 0.004352899012
Q31: -1.333333333 | R31: -1.02E+00 | S31: -2.910828025 | T31: -1 | U31: -1.000592328 | W31: -7.303054623 | X31: -7.303054623 | Y31: -7.303054623 | Z31: -7.303054623 | AA31: -7.303054623 | AB31: -7.303054623 | AC31: -7.303054623 | AD31: -7.303054623 | AE31: -7.303054623 | AF31: -7.303054623 | AG31: -7.303054623 | AH31: -7.303054623 | AI31: -7.303054623 | AJ31: -7.303054623 | AK31: -7.303054623 | AL31: -7.303054623 | AM31: -7.303054623 | AN31: -7.303054623 | AO31: -7.303054623 | AP31: -7.303054623 | AQ31: -7.303054623 | AR31: -7.303054623
Q32: -1.333333333 | R32: -1.02E+00 | S32: -2.910828025 | T32: -1 | U32: -1.000592328 | W32: 2.529332567 | X32: 2.529332567 | Y32: 2.529332567 | Z32: 2.529332567 | AA32: 2.529332567 | AB32: 2.529332567 | AC32: 2.529332567 | AD32: 2.529332567 | AE32: 2.529332567 | AF32: 2.529332567 | AG32: 2.529332567 | AH32: 2.529332567 | AI32: 2.529332567 | AJ32: 2.529332567 | AK32: 2.529332567 | AL32: 2.529332567 | AM32: 2.529332567 | AN32: 2.529332567 | AO32: 2.529332567 | AP32: 2.529332567 | AQ32: 2.529332567 | AR32: 2.529332567
Q33: -1.333333333 | R33: -1.02E+00 | S33: -2.910828025 | T33: -1 | U33: -1.000592328 | W33: 2.112909803 | X33: 2.112909803 | Y33: 2.112909803 | Z33: 2.112909803 | AA33: 2.112909803 | AB33: 2.112909803 | AC33: 2.112909803 | AD33: 2.112909803 | AE33: 2.112909803 | AF33: 2.112909803 | AG33: 2.112909803 | AH33: 2.112909803 | AI33: 2.112909803 | AJ33: 2.112909803 | AK33: 2.112909803 | AL33: 2.112909803 | AM33: 2.112909803 | AN33: 2.112909803 | AO33: 2.112909803 | AP33: 2.112909803 | AQ33: 2.112909803 | AR33: 2.112909803
Q34: -1.333333333 | R34: -1.02E+00 | S34: -2.910828025 | T34: -1 | U34: -1.000592328 | W34: 2.296286929 | X34: 2.296286929 | Y34: 2.296286929 | Z34: 2.296286929 | AA34: 2.296286929 | AB34: 2.296286929 | AC34: 2.296286929 | AD34: 2.296286929 | AE34: 2.296286929 | AF34: 2.296286929 | AG34: 2.296286929 | AH34: 2.296286929 | AI34: 2.296286929 | AJ34: 2.296286929 | AK34: 2.296286929 | AL34: 2.296286929 | AM34: 2.296286929 | AN34: 2.296286929 | AO34: 2.296286929 | AP34: 2.296286929 | AQ34: 2.296286929 | AR34: 2.296286929
Q35: -1.333333333 | R35: -1.02E+00 | S35: -2.910828025 | T35: -1 | U35: -1.000592328 | W35: 3.61267199 | X35: 3.61267199 | Y35: 3.61267199 | Z35: 3.61267199 | AA35: 3.61267199 | AB35: 3.61267199 | AC35: 3.61267199 | AD35: 3.61267199 | AE35: 3.61267199 | AF35: 3.61267199 | AG35: 3.61267199 | AH35: 3.61267199 | AI35: 3.61267199 | AJ35: 3.61267199 | AK35: 3.61267199 | AL35: 3.61267199 | AM35: 3.61267199 | AN35: 3.61267199 | AO35: 3.61267199 | AP35: 3.61267199 | AQ35: 3.61267199 | AR35: 3.61267199
Q36: -1.333333333 | R36: -1.02E+00 | S36: -2.910828025 | T36: -1 | U36: -1.000592328 | W36: 3.042792594 | X36: 3.042792594 | Y36: 3.042792594 | Z36: 3.042792594 | AA36: 3.042792594 | AB36: 3.042792594 | AC36: 3.042792594 | AD36: 3.042792594 | AE36: 3.042792594 | AF36: 3.042792594 | AG36: 3.042792594 | AH36: 3.042792594 | AI36: 3.042792594 | AJ36: 3.042792594 | AK36: 3.042792594 | AL36: 3.042792594 | AM36: 3.042792594 | AN36: 3.042792594 | AO36: 3.042792594 | AP36: 3.042792594 | AQ36: 3.042792594 | AR36: 3.042792594
Q37: -1.333333333 | R37: -1.02E+00 | S37: -2.910828025 | T37: -1 | U37: -1.000592328 | W37: 0.1524455602 | X37: 0.1524455602 | Y37: 0.1524455602 | Z37: 0.1524455602 | AA37: 0.1524455602 | AB37: 0.1524455602 | AC37: 0.1524455602 | AD37: 0.1524455602 | AE37: 0.1524455602 | AF37: 0.1524455602 | AG37: 0.1524455602 | AH37: 0.1524455602 | AI37: 0.1524455602 | AJ37: 0.1524455602 | AK37: 0.1524455602 | AL37: 0.1524455602 | AM37: 0.1524455602 | AN37: 0.1524455602 | AO37: 0.1524455602 | AP37: 0.1524455602 | AQ37: 0.1524455602 | AR37: 0.1524455602
Q38: -1.333333333 | R38: -1.02E+00 | S38: -2.910828025 | T38: -1 | U38: -1.000592328 | W38: 0.9360051689 | X38: 0.9360051689 | Y38: 0.9360051689 | Z38: 0.9360051689 | AA38: 0.9360051689 | AB38: 0.9360051689 | AC38: 0.9360051689 | AD38: 0.9360051689 | AE38: 0.9360051689 | AF38: 0.9360051689 | AG38: 0.9360051689 | AH38: 0.9360051689 | AI38: 0.9360051689 | AJ38: 0.9360051689 | AK38: 0.9360051689 | AL38: 0.9360051689 | AM38: 0.9360051689 | AN38: 0.9360051689 | AO38: 0.9360051689 | AP38: 0.9360051689 | AQ38: 0.9360051689 | AR38: 0.9360051689
Q39: -1.333333333 | R39: -1.02E+00 | S39: -2.910828025 | T39: -1 | U39: -1.000592328 | W39: 10.25207418 | X39: 10.25207418 | Y39: 10.25207418 | Z39: 10.25207418 | AA39: 10.25207418 | AB39: 10.25207418 | AC39: 10.25207418 | AD39: 10.25207418 | AE39: 10.25207418 | AF39: 10.25207418 | AG39: 10.25207418 | AH39: 10.25207418 | AI39: 10.25207418 | AJ39: 10.25207418 | AK39: 10.25207418 | AL39: 10.25207418 | AM39: 10.25207418 | AN39: 10.25207418 | AO39: 10.25207418 | AP39: 10.25207418 | AQ39: 10.25207418 | AR39: 10.25207418
Q40: -1.333333333 | R40: -1.02E+00 | S40: -2.910828025 | T40: -1 | U40: -1.000592328
Q41: -1.333333333 | R41: -1.02E+00 | S41: -2.910828025 | T41: -1 | U41: -1.000592328 | W41: Y1
Q42: -1.333333333 | R42: -1.02E+00 | S42: -2.910828025 | T42: -1 | U42: -1.000592328 | W42: =2/(1+EXP(-2*W30))-1 -> 0.00435287152 | X42: =2/(1+EXP(-2*X30))-1 -> 0.00435287152 | Y42: 0.00435287152 | Z42: 0.00435287152 | AA42: 0.00435287152 | AB42: 0.00435287152 | AC42: 0.00435287152 | AD42: 0.00435287152 | AE42: 0.00435287152 | AF42: 0.00435287152 | AG42: 0.00435287152 | AH42: 0.00435287152 | AI42: 0.00435287152 | AJ42: 0.00435287152 | AK42: 0.00435287152 | AL42: 0.00435287152 | AM42: 0.00435287152 | AN42: 0.00435287152 | AO42: 0.00435287152 | AP42: 0.00435287152 | AQ42: 0.00435287152 | AR42: 0.00435287152
Q43: -1.333333333 | R43: -1.02E+00 | S43: -2.910828025 | T43: -1 | U43: -1.000592328 | W43: =2/(1+EXP(-2*W31))-1 -> -0.9999990929 | X43: -0.9999990929 | Y43: -0.9999990929 | Z43: -0.9999990929 | AA43: -0.9999990929 | AB43: -0.9999990929 | AC43: -0.9999990929 | AD43: -0.9999990929 | AE43: -0.9999990929 | AF43: -0.9999990929 | AG43: -0.9999990929 | AH43: -0.9999990929 | AI43: -0.9999990929 | AJ43: -0.9999990929 | AK43: -0.9999990929 | AL43: -0.9999990929 | AM43: -0.9999990929 | AN43: -0.9999990929 | AO43: -0.9999990929 | AP43: -0.9999990929 | AQ43: -0.9999990929 | AR43: -0.9999990929
Q44: -1.333333333 | R44: -1.02E+00 | S44: -2.910828025 | T44: -1 | U44: -1.000592328 | W44: 0.9873721664 | X44: 0.9873721664 | Y44: 0.9873721664 | Z44: 0.9873721664 | AA44: 0.9873721664 | AB44: 0.9873721664 | AC44: 0.9873721664 | AD44: 0.9873721664 | AE44: 0.9873721664 | AF44: 0.9873721664 | AG44: 0.9873721664 | AH44: 0.9873721664 | AI44: 0.9873721664 | AJ44: 0.9873721664 | AK44: 0.9873721664 | AL44: 0.9873721664 | AM44: 0.9873721664 | AN44: 0.9873721664 | AO44: 0.9873721664 | AP44: 0.9873721664 | AQ44: 0.9873721664 | AR44: 0.9873721664
Q45: -1.333333333 | R45: -1.02E+00 | S45: -2.910828025 | T45: -1 | U45: -1.000592328 | W45: 0.9711942435 | X45: 0.9711942435 | Y45: 0.9711942435 | Z45: 0.9711942435 | AA45: 0.9711942435 | AB45: 0.9711942435 | AC45: 0.9711942435 | AD45: 0.9711942435 | AE45: 0.9711942435 | AF45: 0.9711942435 | AG45: 0.9711942435 | AH45: 0.9711942435 | AI45: 0.9711942435 | AJ45: 0.9711942435 | AK45: 0.9711942435 | AL45: 0.9711942435 | AM45: 0.9711942435 | AN45: 0.9711942435 | AO45: 0.9711942435 | AP45: 0.9711942435 | AQ45: 0.9711942435 | AR45: 0.9711942435
Q46: -1.333333333 | R46: -1.02E+00 | S46: -2.910828025 | T46: -1 | U46: -1.000592328 | W46: 0.9799495264 | X46: 0.9799495264 | Y46: 0.9799495264 | Z46: 0.9799495264 | AA46: 0.9799495264 | AB46: 0.9799495264 | AC46: 0.9799495264 | AD46: 0.9799495264 | AE46: 0.9799495264 | AF46: 0.9799495264 | AG46: 0.9799495264 | AH46: 0.9799495264 | AI46: 0.9799495264 | AJ46: 0.9799495264 | AK46: 0.9799495264 | AL46: 0.9799495264 | AM46: 0.9799495264 | AN46: 0.9799495264 | AO46: 0.9799495264 | AP46: 0.9799495264 | AQ46: 0.9799495264 | AR46: 0.9799495264
Q47: -1.333333333 | R47: -1.02E+00 | S47: -2.910828025 | T47: -1 | U47: -1.000592328 | W47: 0.9985452547 | X47: 0.9985452547 | Y47: 0.9985452547 | Z47: 0.9985452547 | AA47: 0.9985452547 | AB47: 0.9985452547 | AC47: 0.9985452547 | AD47: 0.9985452547 | AE47: 0.9985452547 | AF47: 0.9985452547 | AG47: 0.9985452547 | AH47: 0.9985452547 | AI47: 0.9985452547 | AJ47: 0.9985452547 | AK47: 0.9985452547 | AL47: 0.9985452547 | AM47: 0.9985452547 | AN47: 0.9985452547 | AO47: 0.9985452547 | AP47: 0.9985452547 | AQ47: 0.9985452547 | AR47: 0.9985452547
Q48: -1.333333333 | R48: -1.02E+00 | S48: -2.910828025 | T48: -1 | U48: -1.000592328 | W48: 0.9954594669 | X48: 0.9954594669 | Y48: 0.9954594669 | Z48: 0.9954594669 | AA48: 0.9954594669 | AB48: 0.9954594669 | AC48: 0.9954594669 | AD48: 0.9954594669 | AE48: 0.9954594669 | AF48: 0.9954594669 | AG48: 0.9954594669 | AH48: 0.9954594669 | AI48: 0.9954594669 | AJ48: 0.9954594669 | AK48: 0.9954594669 | AL48: 0.9954594669 | AM48: 0.9954594669 | AN48: 0.9954594669 | AO48: 0.9954594669 | AP48: 0.9954594669 | AQ48: 0.9954594669 | AR48: 0.9954594669
Q49: -1.333333333 | R49: -1.02E+00 | S49: -2.910828025 | T49: -1 | U49: -1.000592328 | W49: 0.1512755085 | X49: 0.1512755085 | Y49: 0.1512755085 | Z49: 0.1512755085 | AA49: 0.1512755085 | AB49: 0.1512755085 | AC49: 0.1512755085 | AD49: 0.1512755085 | AE49: 0.1512755085 | AF49: 0.1512755085 | AG49: 0.1512755085 | AH49: 0.1512755085 | AI49: 0.1512755085 | AJ49: 0.1512755085 | AK49: 0.1512755085 | AL49: 0.1512755085 | AM49: 0.1512755085 | AN49: 0.1512755085 | AO49: 0.1512755085 | AP49: 0.1512755085 | AQ49: 0.1512755085 | AR49: 0.1512755085
Q50: -1.333333333 | R50: -1.02E+00 | S50: -2.910828025 | T50: -1 | U50: -1.000592328 | W50: 0.733381438 | X50: 0.733381438 | Y50: 0.733381438 | Z50: 0.733381438 | AA50: 0.733381438 | AB50: 0.733381438 | AC50: 0.733381438 | AD50: 0.733381438 | AE50: 0.733381438 | AF50: 0.733381438 | AG50: 0.733381438 | AH50: 0.733381438 | AI50: 0.733381438 | AJ50: 0.733381438 | AK50: 0.733381438 | AL50: 0.733381438 | AM50: 0.733381438 | AN50: 0.733381438 | AO50: 0.733381438 | AP50: 0.733381438 | AQ50: 0.733381438 | AR50: 0.733381438
Q51: -1.333333333 | R51: -1.02E+00 | S51: -2.910828025 | T51: -1 | U51: -1.000592328 | W51: 0.9999999975 | X51: 0.9999999975 | Y51: 0.9999999975 | Z51: 0.9999999975 | AA51: 0.9999999975 | AB51: 0.9999999975 | AC51: 0.9999999975 | AD51: 0.9999999975 | AE51: 0.9999999975 | AF51: 0.9999999975 | AG51: 0.9999999975 | AH51: 0.9999999975 | AI51: 0.9999999975 | AJ51: 0.9999999975 | AK51: 0.9999999975 | AL51: 0.9999999975 | AM51: 0.9999999975 | AN51: 0.9999999975 | AO51: 0.9999999975 | AP51: 0.9999999975 | AQ51: 0.9999999975 | AR51: 0.9999999975
Q52: -1.333333333 | R52: -1.02E+00 | S52: -2.910828025 | T52: -1 | U52: -1.000592328
Q53: -1.333333333 | R53: -1.02E+00 | S53: -2.910828025 | T53: -1 | U53: -1.000592328
Q54: -1.333333333 | R54: -1.02E+00 | S54: -2.910828025 | T54: -1 | U54: -1.000592328 | W54: B2 | X54: LW1
Q55: -1.333333333 | R55: -1.02E+00 | S55: -2.910828025 | T55: -1 | U55: -1.000592328 | W55: -0.831673 | X55: 0.0759981 | Y55: -0.0516833 | Z55: -0.0442744 | AA55: -0.183843 | AB55: 0.0937015 | AC55: -0.102222 | AD55: -0.264004 | AE55: 3.17326 | AF55: -0.153731 | AG55: 0.218046
Q56: -1.333333333 | R56: -1.02E+00 | S56: -2.910828025 | T56: -1 | U56: -1.000592328
Q57: -1.333333333 | R57: -1.02E+00 | S57: -2.910828025 | T57: -1 | U57: -1.000592328 | W57: LW1*Y1
Q58: -1.333333333 | R58: -1.02E+00 | S58: -2.910828025 | T58: -1 | U58: -1.000592328 | W58: =MMULT(X55:AG55,W42:AR51) -> 0.1420347137 | X58: 0.1420347137 | Y58: 0.1420347137 | Z58: 0.1420347137 | AA58: 0.1420347137 | AB58: 0.1420347137 | AC58: 0.1420347137 | AD58: 0.1420347137 | AE58: 0.1420347137 | AF58: 0.1420347137 | AG58: 0.1420347137 | AH58: 0.1420347137 | AI58: 0.1420347137 | AJ58: 0.1420347137 | AK58: 0.1420347137 | AL58: 0.1420347137 | AM58: 0.1420347137 | AN58: 0.1420347137 | AO58: 0.1420347137 | AP58: 0.1420347137 | AQ58: 0.1420347137 | AR58: 0.1420347137
Q59: -1.333333333 | R59: -1.02E+00 | S59: -2.910828025 | T59: -1 | U59: -1.000592328 | W59: B2+LW1*Y1
Q60: -1.333333333 | R60: -1.02E+00 | S60: -2.910828025 | T60: -1 | U60: -1.000592328 | W60: =(W55)+W58:AR58 -> -0.6896382863 | X60: -0.6896382863 | Y60: -0.6896382863 | Z60: -0.6896382863 | AA60: -0.6896382863 | AB60: -0.6896382863 | AC60: -0.6896382863 | AD60: -0.6896382863 | AE60: -0.6896382863 | AF60: -0.6896382863 | AG60: -0.6896382863 | AH60: -0.6896382863 | AI60: -0.6896382863 | AJ60: -0.6896382863 | AK60: -0.6896382863 | AL60: -0.6896382863 | AM60: -0.6896382863 | AN60: -0.6896382863 | AO60: -0.6896382863 | AP60: -0.6896382863 | AQ60: -0.6896382863 | AR60: -0.6896382863
Q61: -1.333333333 | R61: -1.02E+00 | S61: -2.910828025 | T61: -1 | U61: -1.000592328
Q62: -1.333333333 | R62: -1.02E+00 | S62: -2.910828025 | T62: -1 | U62: -1.000592328 | W62: Ydenor
Q63: -1.333333333 | R63: -1.02E+00 | S63: -2.910828025 | T63: -1 | U63: -1.000592328 | W63: =(W60+1)*(($N$5-$N$3)/2)+$N$3 -> 1156.192944 | X63: =(X60+1)*(($N$5-$N$3)/2)+$N$3 -> 1156.192944 | Y63: 1156.192944 | Z63: 1156.192944 | AA63: 1156.192944 | AB63: 1156.192944 | AC63: 1156.192944 | AD63: 1156.192944 | AE63: 1156.192944 | AF63: 1156.192944 | AG63: 1156.192944 | AH63: 1156.192944 | AI63: 1156.192944 | AJ63: 1156.192944 | AK63: 1156.192944 | AL63: 1156.192944 | AM63: 1156.192944 | AN63: 1156.192944 | AO63: 1156.192944 | AP63: 1156.192944 | AQ63: 1156.192944 | AR63: 1156.192944
Q64: -1.333333333 | R64: -1.02E+00 | S64: -2.910828025 | T64: -1 | U64: -1.000592328 | W64: Transpose (Ydenor)
Q65: -1.333333333 | R65: -1.02E+00 | S65: -2.910828025 | T65: -1 | U65: -1.000592328 | W65: =TRANSPOSE($W$63:$AR$63) -> 1156.192944
Q66: -1.333333333 | R66: -1.02E+00 | S66: -2.910828025 | T66: -1 | U66: -1.000592328 | W66: 1156.192944
Q67: =2*((L67-P$3)/(P$5-P$3))-1 -> -1.333333333 | R67: =2*((H67-P$8)/(P$10-P$8))-1 -> -1.02E+00 | S67: =2*((I67-P$13)/(P$15-P$13))-1 -> -2.910828025 | T67: =2*((J67-P$18)/(P$20-P$18))-1 -> -1 | U67: =2*((K67-P$23)/(P$25-P$23))-1 -> -1.000592328 | W67: 1156.192944
Q68: -1.333333333 | R68: -1.02E+00 | S68: -2.910828025 | T68: -1 | U68: -1.000592328 | W68: 1156.192944
Q69: -1.333333333 | R69: -1.02E+00 | S69: -2.910828025 | T69: -1 | U69: -1.000592328 | W69: 1156.192944
Q70: -1.333333333 | R70: -1.02E+00 | S70: -2.910828025 | T70: -1 | U70: -1.000592328 | W70: 1156.192944
Q71: -1.333333333 | R71: -1.02E+00 | S71: -2.910828025 | T71: -1 | U71: -1.000592328 | W71: 1156.192944
Q72: -1.333333333 | R72: -1.02E+00 | S72: -2.910828025 | T72: -1 | U72: -1.000592328 | W72: 1156.192944
Q73: -1.333333333 | R73: -1.02E+00 | S73: -2.910828025 | T73: -1 | U73: -1.000592328 | W73: 1156.192944
Q74: -1.333333333 | R74: -1.02E+00 | S74: -2.910828025 | T74: -1 | U74: -1.000592328 | W74: 1156.192944
Q75: -1.333333333 | R75: -1.02E+00 | S75: -2.910828025 | T75: -1 | U75: -1.000592328 | W75: 1156.192944
Q76: -1.333333333 | R76: -1.02E+00 | S76: -2.910828025 | T76: -1 | U76: -1.000592328 | W76: 1156.192944
Q77: -1.333333333 | R77: -1.02E+00 | S77: -2.910828025 | T77: -1 | U77: -1.000592328 | W77: 1156.192944
Q78: -1.333333333 | R78: -1.02E+00 | S78: -2.910828025 | T78: -1 | U78: -1.000592328 | W78: 1156.192944
Q79: -1.333333333 | R79: -1.02E+00 | S79: -2.910828025 | T79: -1 | U79: -1.000592328 | W79: 1156.192944
Q80: -1.333333333 | R80: -1.02E+00 | S80: -2.910828025 | T80: -1 | U80: -1.000592328 | W80: 1156.192944
Q81: -1.333333333 | R81: -1.02E+00 | S81: -2.910828025 | T81: -1 | U81: -1.000592328 | W81: 1156.192944
Q82: -1.333333333 | R82: -1.02E+00 | S82: -2.910828025 | T82: -1 | U82: -1.000592328 | W82: 1156.192944
Q83: -1.333333333 | R83: -1.02E+00 | S83: -2.910828025 | T83: -1 | U83: -1.000592328 | W83: 1156.192944
Q84: -1.333333333 | R84: -1.02E+00 | S84: -2.910828025 | T84: -1 | U84: -1.000592328 | W84: 1156.192944
Q85: -1.333333333 | R85: -1.02E+00 | S85: -2.910828025 | T85: -1 | U85: -1.000592328 | W85: 1156.192944
Q86: -1.333333333 | R86: -1.02E+00 | S86: -2.910828025 | T86: -1 | U86: -1.000592328 | W86: 1156.192944
Q87: -1.333333333 | R87: -1.02E+00 | S87: -2.910828025 | T87: -1 | U87: -1.000592328
Q88: -1.333333333 | R88: -1.02E+00 | S88: -2.910828025 | T88: -1 | U88: -1.000592328
Q89: -1.333333333 | R89: -1.02E+00 | S89: -2.910828025 | T89: -1 | U89: -1.000592328
Q90: -1.333333333 | R90: -1.02E+00 | S90: -2.910828025 | T90: -1 | U90: -1.000592328
Q91: -1.333333333 | R91: -1.02E+00 | S91: -2.910828025 | T91: -1 | U91: -1.000592328
Q92: -1.333333333 | R92: -1.02E+00 | S92: -2.910828025 | T92: -1 | U92: -1.000592328
Q93: -1.333333333 | R93: -1.02E+00 | S93: -2.910828025 | T93: -1 | U93: -1.000592328
Q94: -1.333333333 | R94: -1.02E+00 | S94: -2.910828025 | T94: -1 | U94: -1.000592328
Q95: -1.333333333 | R95: -1.02E+00 | S95: -2.910828025 | T95: -1 | U95: -1.000592328
Q96: -1.333333333 | R96: -1.02E+00 | S96: -2.910828025 | T96: -1 | U96: -1.000592328
Q97: -1.333333333 | R97: -1.02E+00 | S97: -2.910828025 | T97: -1 | U97: -1.000592328
Q98: -1.333333333 | R98: -1.02E+00 | S98: -2.910828025 | T98: -1 | U98: -1.000592328
Q99: -1.333333333 | R99: -1.02E+00 | S99: -2.910828025 | T99: -1 | U99: -1.000592328
Q100: -1.333333333 | R100: -1.02E+00 | S100: -2.910828025 | T100: -1 | U100: -1.000592328
Q101: -1.333333333 | R101: -1.02E+00 | S101: -2.910828025 | T101: -1 | U101: -1.000592328
Q102: -1.333333333 | R102: -1.02E+00 | S102: -2.910828025 | T102: -1 | U102: -1.000592328
Q103: -1.333333333 | R103: -1.02E+00 | S103: -2.910828025 | T103: -1 | U103: -1.000592328
Q104: -1.333333333 | R104: -1.02E+00 | S104: -2.910828025 | T104: -1 | U104: -1.000592328
Q105: -1.333333333 | R105: -1.02E+00 | S105: -2.910828025 | T105: -1 | U105: -1.000592328
Q106: -1.333333333 | R106: -1.02E+00 | S106: -2.910828025 | T106: -1 | U106: -1.000592328
Q107: -1.333333333 | R107: -1.02E+00 | S107: -2.910828025 | T107: -1 | U107: -1.000592328
Q108: -1.333333333 | R108: -1.02E+00 | S108: -2.910828025 | T108: -1 | U108: -1.000592328
Q109: -1.333333333 | R109: -1.02E+00 | S109: -2.910828025 | T109: -1 | U109: -1.000592328
Q110: -1.333333333 | R110: -1.02E+00 | S110: -2.910828025 | T110: -1 | U110: -1.000592328
Q111: -1.333333333 | R111: -1.02E+00 | S111: -2.910828025 | T111: -1 | U111: -1.000592328
Q112: -1.333333333 | R112: -1.02E+00 | S112: -2.910828025 | T112: -1 | U112: -1.000592328
Q113: -1.333333333 | R113: -1.02E+00 | S113: -2.910828025 | T113: -1 | U113: -1.000592328
Q114: -1.333333333 | R114: -1.02E+00 | S114: -2.910828025 | T114: -1 | U114: -1.000592328
Q115: -1.333333333 | R115: -1.02E+00 | S115: -2.910828025 | T115: -1 | U115: -1.000592328
Q116: -1.333333333 | R116: -1.02E+00 | S116: -2.910828025 | T116: -1 | U116: -1.000592328
Q117: -1.333333333 | R117: -1.02E+00 | S117: -2.910828025 | T117: -1 | U117: -1.000592328
Q118: -1.333333333 | R118: -1.02E+00 | S118: -2.910828025 | T118: -1 | U118: -1.000592328
Q119: -1.333333333 | R119: -1.02E+00 | S119: -2.910828025 | T119: -1 | U119: -1.000592328
Q120: -1.333333333 | R120: -1.02E+00 | S120: -2.910828025 | T120: -1 | U120: -1.000592328
Q121: -1.333333333 | R121: -1.02E+00 | S121: -2.910828025 | T121: -1 | U121: -1.000592328
Q122: -1.333333333 | R122: -1.02E+00 | S122: -2.910828025 | T122: -1 | U122: -1.000592328
Q123: -1.333333333 | R123: -1.02E+00 | S123: -2.910828025 | T123: -1 | U123: -1.000592328
Q124: -1.333333333 | R124: -1.02E+00 | S124: -2.910828025 | T124: -1 | U124: -1.000592328
Q125: -1.333333333 | R125: -1.02E+00 | S125: -2.910828025 | T125: -1 | U125: -1.000592328
Q126: -1.333333333 | R126: -1.02E+00 | S126: -2.910828025 | T126: -1 | U126: -1.000592328
Q127: -1.333333333 | R127: -1.02E+00 | S127: -2.910828025 | T127: -1 | U127: -1.000592328
Q128: -1.333333333 | R128: -1.02E+00 | S128: -2.910828025 | T128: -1 | U128: -1.000592328
Q129: -1.333333333 | R129: -1.02E+00 | S129: -2.910828025 | T129: -1 | U129: -1.000592328
Q130: -1.333333333 | R130: -1.02E+00 | S130: -2.910828025 | T130: -1 | U130: -1.000592328
Q131: =2*((L131-P$3)/(P$5-P$3))-1 -> -1.333333333 | R131: =2*((H131-P$8)/(P$10-P$8))-1 -> -1.02E+00 | S131: =2*((I131-P$13)/(P$15-P$13))-1 -> -2.910828025 | T131: =2*((J131-P$18)/(P$20-P$18))-1 -> -1 | U131: =2*((K131-P$23)/(P$25-P$23))-1 -> -1.000592328
Q132: -1.333333333 | R132: -1.02E+00 | S132: -2.910828025 | T132: -1 | U132: -1.000592328
Q133: -1.333333333 | R133: -1.02E+00 | S133: -2.910828025 | T133: -1 | U133: -1.000592328
Q134: -1.333333333 | R134: -1.02E+00 | S134: -2.910828025 | T134: -1 | U134: -1.000592328
Q135: -1.333333333 | R135: -1.02E+00 | S135: -2.910828025 | T135: -1 | U135: -1.000592328
Q136: -1.333333333 | R136: -1.02E+00 | S136: -2.910828025 | T136: -1 | U136: -1.000592328
Q137: -1.333333333 | R137: -1.02E+00 | S137: -2.910828025 | T137: -1 | U137: -1.000592328
Q138: -1.333333333 | R138: -1.02E+00 | S138: -2.910828025 | T138: -1 | U138: -1.000592328
Q139: -1.333333333 | R139: -1.02E+00 | S139: -2.910828025 | T139: -1 | U139: -1.000592328
Q140: -1.333333333 | R140: -1.02E+00 | S140: -2.910828025 | T140: -1 | U140: -1.000592328
Q141: -1.333333333 | R141: -1.02E+00 | S141: -2.910828025 | T141: -1 | U141: -1.000592328
Q142: -1.333333333 | R142: -1.02E+00 | S142: -2.910828025 | T142: -1 | U142: -1.000592328
Q143: -1.333333333 | R143: -1.02E+00 | S143: -2.910828025 | T143: -1 | U143: -1.000592328
Q144: -1.333333333 | R144: -1.02E+00 | S144: -2.910828025 | T144: -1 | U144: -1.000592328
Q145: -1.333333333 | R145: -1.02E+00 | S145: -2.910828025 | T145: -1 | U145: -1.000592328
Q146: -1.333333333 | R146: -1.02E+00 | S146: -2.910828025 | T146: -1 | U146: -1.000592328
Q147: -1.333333333 | R147: -1.02E+00 | S147: -2.910828025 | T147: -1 | U147: -1.000592328
Q148: -1.333333333 | R148: -1.02E+00 | S148: -2.910828025 | T148: -1 | U148: -1.000592328
Q149: -1.333333333 | R149: -1.02E+00 | S149: -2.910828025 | T149: -1 | U149: -1.000592328
Q150: -1.333333333 | R150: -1.02E+00 | S150: -2.910828025 | T150: -1 | U150: -1.000592328
Q151: -1.333333333 | R151: -1.02E+00 | S151: -2.910828025 | T151: -1 | U151: -1.000592328
Q152: -1.333333333 | R152: -1.02E+00 | S152: -2.910828025 | T152: -1 | U152: -1.000592328
Q153: -1.333333333 | R153: -1.02E+00 | S153: -2.910828025 | T153: -1 | U153: -1.000592328
Q154: -1.333333333 | R154: -1.02E+00 | S154: -2.910828025 | T154: -1 | U154: -1.000592328
Q155: -1.333333333 | R155: -1.02E+00 | S155: -2.910828025 | T155: -1 | U155: -1.000592328
Q156: -1.333333333 | R156: -1.02E+00 | S156: -2.910828025 | T156: -1 | U156: -1.000592328
Q157: -1.333333333 | R157: -1.02E+00 | S157: -2.910828025 | T157: -1 | U157: -1.000592328
Q158: -1.333333333 | R158: -1.02E+00 | S158: -2.910828025 | T158: -1 | U158: -1.000592328
Q159: -1.333333333 | R159: -1.02E+00 | S159: -2.910828025 | T159: -1 | U159: -1.000592328
Q160: -1.333333333 | R160: -1.02E+00 | S160: -2.910828025 | T160: -1 | U160: -1.000592328
Q161: -1.333333333 | R161: -1.02E+00 | S161: -2.910828025 | T161: -1 | U161: -1.000592328
Q162: -1.333333333 | R162: -1.02E+00 | S162: -2.910828025 | T162: -1 | U162: -1.000592328
Q163: -1.333333333 | R163: -1.02E+00 | S163: -2.910828025 | T163: -1 | U163: -1.000592328
Q164: -1.333333333 | R164: -1.02E+00 | S164: -2.910828025 | T164: -1 | U164: -1.000592328
Q165: -1.333333333 | R165: -1.02E+00 | S165: -2.910828025 | T165: -1 | U165: -1.000592328
Q166: -1.333333333 | R166: -1.02E+00 | S166: -2.910828025 | T166: -1 | U166: -1.000592328
Q167: -1.333333333 | R167: -1.02E+00 | S167: -2.910828025 | T167: -1 | U167: -1.000592328
Q168: -1.333333333 | R168: -1.02E+00 | S168: -2.910828025 | T168: -1 | U168: -1.000592328
Q169: -1.333333333 | R169: -1.02E+00 | S169: -2.910828025 | T169: -1 | U169: -1.000592328
Q170: -1.333333333 | R170: -1.02E+00 | S170: -2.910828025 | T170: -1 | U170: -1.000592328
Q171: -1.333333333 | R171: -1.02E+00 | S171: -2.910828025 | T171: -1 | U171: -1.000592328
Q172: -1.333333333 | R172: -1.02E+00 | S172: -2.910828025 | T172: -1 | U172: -1.000592328
Q173: -1.333333333 | R173: -1.02E+00 | S173: -2.910828025 | T173: -1 | U173: -1.000592328
Q174: -1.333333333 | R174: -1.02E+00 | S174: -2.910828025 | T174: -1 | U174: -1.000592328
Q175: -1.333333333 | R175: -1.02E+00 | S175: -2.910828025 | T175: -1 | U175: -1.000592328
Q176: -1.333333333 | R176: -1.02E+00 | S176: -2.910828025 | T176: -1 | U176: -1.000592328
Q177: -1.333333333 | R177: -1.02E+00 | S177: -2.910828025 | T177: -1 | U177: -1.000592328
Q178: -1.333333333 | R178: -1.02E+00 | S178: -2.910828025 | T178: -1 | U178: -1.000592328
Q179: -1.333333333 | R179: -1.02E+00 | S179: -2.910828025 | T179: -1 | U179: -1.000592328
Q180: -1.333333333 | R180: -1.02E+00 | S180: -2.910828025 | T180: -1 | U180: -1.000592328
Q181: -1.333333333 | R181: -1.02E+00 | S181: -2.910828025 | T181: -1 | U181: -1.000592328
Q182: -1.333333333 | R182: -1.02E+00 | S182: -2.910828025 | T182: -1 | U182: -1.000592328
Q183: -1.333333333 | R183: -1.02E+00 | S183: -2.910828025 | T183: -1 | U183: -1.000592328
Q184: -1.333333333 | R184: -1.02E+00 | S184: -2.910828025 | T184: -1 | U184: -1.000592328
Q185: -1.333333333 | R185: -1.02E+00 | S185: -2.910828025 | T185: -1 | U185: -1.000592328
Q186: -1.333333333 | R186: -1.02E+00 | S186: -2.910828025 | T186: -1 | U186: -1.000592328
Q187: -1.333333333 | R187: -1.02E+00 | S187: -2.910828025 | T187: -1 | U187: -1.000592328
Q188: -1.333333333 | R188: -1.02E+00 | S188: -2.910828025 | T188: -1 | U188: -1.000592328
Q189: -1.333333333 | R189: -1.02E+00 | S189: -2.910828025 | T189: -1 | U189: -1.000592328
Q190: -1.333333333 | R190: -1.02E+00 | S190: -2.910828025 | T190: -1 | U190: -1.000592328
Q191: -1.333333333 | R191: -1.02E+00 | S191: -2.910828025 | T191: -1 | U191: -1.000592328
Q192: -1.333333333 | R192: -1.02E+00 | S192: -2.910828025 | T192: -1 | U192: -1.000592328
Q193: -1.333333333 | R193: -1.02E+00 | S193: -2.910828025 | T193: -1 | U193: -1.000592328
Q194: -1.333333333 | R194: -1.02E+00 | S194: -2.910828025 | T194: -1 | U194: -1.000592328
Q195: =2*((L195-P$3)/(P$5-P$3))-1 -> -1.333333333 | R195: =2*((H195-P$8)/(P$10-P$8))-1 -> -1.02E+00 | S195: =2*((I195-P$13)/(P$15-P$13))-1 -> -2.910828025 | T195: =2*((J195-P$18)/(P$20-P$18))-1 -> -1 | U195: =2*((K195-P$23)/(P$25-P$23))-1 -> -1.000592328
Q196: -1.333333333 | R196: -1.02E+00 | S196: -2.910828025 | T196: -1 | U196: -1.000592328
Q197: -1.333333333 | R197: -1.02E+00 | S197: -2.910828025 | T197: -1 | U197: -1.000592328
Q198: -1.333333333 | R198: -1.02E+00 | S198: -2.910828025 | T198: -1 | U198: -1.000592328
Q199: -1.333333333 | R199: -1.02E+00 | S199: -2.910828025 | T199: -1 | U199: -1.000592328
Q200: -1.333333333 | R200: -1.02E+00 | S200: -2.910828025 | T200: -1 | U200: -1.000592328
... 161 more rows

Sheet RSL_PMIS_ACoverJPCP_LCrack (hidden)
A1: =PMIS_ACoverJPCP_LCrack!A1 -> Project Name | B1: =PMIS_ACoverJPCP_LCrack!B1 -> COUNAME | C1: =PMIS_ACoverJPCP_LCrack!C1 -> PROJECT_NO | D1: =PMIS_ACoverJPCP_LCrack!D1 -> BPRJ | E1: =PMIS_ACoverJPCP_LCrack!E1 -> EPRJ | F1: =PMIS_ACoverJPCP_LCrack!F1 -> CONYR | G1: =PMIS_ACoverJPCP_LCrack!G1 -> DATAYR | H1: =PMIS_ACoverJPCP_LCrack!H1 -> Accumulated ESALs | I1: =PMIS_ACoverJPCP_LCrack!I1 -> HMA Thickness (in.) | J1: =PMIS_ACoverJPCP_LCrack!J1 -> LCRACKi-2 (ft/mile) | K1: =PMIS_ACoverJPCP_LCrack!K1 -> LCRACKi-1 (ft/mile) | L1: Age | M1: Predicted LCRACK | T1: Predicted Age | U1: Last Entered Age | W1: Age-2 | X1: Age-1
A2: =IF(PMIS_ACoverJPCP_LCrack!A2<>"",PMIS_ACoverJPCP_LCrack!A2,"") ->  | B2: =IF(PMIS_ACoverJPCP_LCrack!B2<>"",PMIS_ACoverJPCP_LCrack!B2,"") ->  | C2: =IF(PMIS_ACoverJPCP_LCrack!C2<>"",PMIS_ACoverJPCP_LCrack!C2,"") ->  | D2: =IF(PMIS_ACoverJPCP_LCrack!D2<>"",PMIS_ACoverJPCP_LCrack!D2,"") ->  | E2: =IF(PMIS_ACoverJPCP_LCrack!E2<>"",PMIS_ACoverJPCP_LCrack!E2,"") ->  | F2: =IF(PMIS_ACoverJPCP_LCrack!F2<>"",PMIS_ACoverJPCP_LCrack!F2,"") ->  | G2: =IF(PMIS_ACoverJPCP_LCrack!G2<>"",PMIS_ACoverJPCP_LCrack!G2,"") ->  | H2: =PMIS_ACoverJPCP_LCrack!H2 -> 0 | I2: =PMIS_ACoverJPCP_LCrack!I2 -> 0 | J2: =PMIS_ACoverJPCP_LCrack!J2 -> 0 | K2: =PMIS_ACoverJPCP_LCrack!K2 -> 0 | L2: =IFERROR(T2,0) -> 0 | M2: =PMIS_ACoverJPCP_LCrack!M2 ->  | O2: determine LCRACK threshold | P2: =IF(OR(PMIS_ACoverJPCP_LCrack!I18="",PMIS_ACoverJPCP_LCrack!I18=0),"",PMIS_ACoverJPCP_LCrack!I18) ->  | T2: =IF(G2<>"",G2-$F$2,T1+1) ->  | U2: =IF(G2="","",IF(G2<>"",G2-$F$2,U1+1)) ->  | W2: =L2-2 -> -2 | X2: =L2-1 -> -1
A3: =IF(PMIS_ACoverJPCP_LCrack!A3<>"",PMIS_ACoverJPCP_LCrack!A3,"") ->  | B3: =IF(PMIS_ACoverJPCP_LCrack!B3<>"",PMIS_ACoverJPCP_LCrack!B3,"") ->  | C3: =IF(PMIS_ACoverJPCP_LCrack!C3<>"",PMIS_ACoverJPCP_LCrack!C3,"") ->  | D3: =IF(PMIS_ACoverJPCP_LCrack!D3<>"",PMIS_ACoverJPCP_LCrack!D3,"") ->  | E3: =IF(PMIS_ACoverJPCP_LCrack!E3<>"",PMIS_ACoverJPCP_LCrack!E3,"") ->  | F3: =IF(PMIS_ACoverJPCP_LCrack!F3<>"",PMIS_ACoverJPCP_LCrack!F3,"") ->  | G3: =IF(PMIS_ACoverJPCP_LCrack!G3<>"",PMIS_ACoverJPCP_LCrack!G3,"") ->  | H3: =PMIS_ACoverJPCP_LCrack!H3 -> 0 | I3: =PMIS_ACoverJPCP_LCrack!I3 -> 0 | L3: =IFERROR(T3,0) -> 0 | M3: =PMIS_ACoverJPCP_LCrack!M3 ->  | O3: determine design life | P3: =IF(PMIS_ACoverJPCP_LCrack!I19="","",PMIS_ACoverJPCP_LCrack!I19) ->  | T3: =IF(G3<>"",G3-$F$2,T2+1) ->  | U3: =IF(G3="","",IF(G3<>"",G3-$F$2,U2+1)) -> 
A4: =IF(PMIS_ACoverJPCP_LCrack!A4<>"",PMIS_ACoverJPCP_LCrack!A4,"") ->  | B4: =IF(PMIS_ACoverJPCP_LCrack!B4<>"",PMIS_ACoverJPCP_LCrack!B4,"") ->  | C4: =IF(PMIS_ACoverJPCP_LCrack!C4<>"",PMIS_ACoverJPCP_LCrack!C4,"") ->  | D4: =IF(PMIS_ACoverJPCP_LCrack!D4<>"",PMIS_ACoverJPCP_LCrack!D4,"") ->  | E4: =IF(PMIS_ACoverJPCP_LCrack!E4<>"",PMIS_ACoverJPCP_LCrack!E4,"") ->  | F4: =IF(PMIS_ACoverJPCP_LCrack!F4<>"",PMIS_ACoverJPCP_LCrack!F4,"") ->  | G4: =IF(PMIS_ACoverJPCP_LCrack!G4<>"",PMIS_ACoverJPCP_LCrack!G4,"") ->  | H4: =PMIS_ACoverJPCP_LCrack!H4 -> 0 | I4: =PMIS_ACoverJPCP_LCrack!I4 -> 0 | L4: 0 | M4: =PMIS_ACoverJPCP_LCrack!M4 ->  | O4: Age at the last entered year | P4: =LOOKUP(2,1/(U2:U16<>""),U2:U16) -> 
A5: =IF(PMIS_ACoverJPCP_LCrack!A5<>"",PMIS_ACoverJPCP_LCrack!A5,"") ->  | B5: =IF(PMIS_ACoverJPCP_LCrack!B5<>"",PMIS_ACoverJPCP_LCrack!B5,"") ->  | C5: =IF(PMIS_ACoverJPCP_LCrack!C5<>"",PMIS_ACoverJPCP_LCrack!C5,"") ->  | D5: =IF(PMIS_ACoverJPCP_LCrack!D5<>"",PMIS_ACoverJPCP_LCrack!D5,"") ->  | E5: =IF(PMIS_ACoverJPCP_LCrack!E5<>"",PMIS_ACoverJPCP_LCrack!E5,"") ->  | F5: =IF(PMIS_ACoverJPCP_LCrack!F5<>"",PMIS_ACoverJPCP_LCrack!F5,"") ->  | G5: =IF(PMIS_ACoverJPCP_LCrack!G5<>"",PMIS_ACoverJPCP_LCrack!G5,"") ->  | H5: =PMIS_ACoverJPCP_LCrack!H5 -> 0 | I5: =PMIS_ACoverJPCP_LCrack!I5 -> 0 | L5: 0 | M5: =PMIS_ACoverJPCP_LCrack!M5 ->  | O5: Age at the present year | P5: =IF(PMIS_ACoverJPCP_LCrack!I20<>"",(PMIS_ACoverJPCP_LCrack!I20-LOOKUP(2,1/(G2:G16<>""),G2:G16))+P4,"") -> 
A6: =IF(PMIS_ACoverJPCP_LCrack!A6<>"",PMIS_ACoverJPCP_LCrack!A6,"") ->  | B6: =IF(PMIS_ACoverJPCP_LCrack!B6<>"",PMIS_ACoverJPCP_LCrack!B6,"") ->  | C6: =IF(PMIS_ACoverJPCP_LCrack!C6<>"",PMIS_ACoverJPCP_LCrack!C6,"") ->  | D6: =IF(PMIS_ACoverJPCP_LCrack!D6<>"",PMIS_ACoverJPCP_LCrack!D6,"") ->  | E6: =IF(PMIS_ACoverJPCP_LCrack!E6<>"",PMIS_ACoverJPCP_LCrack!E6,"") ->  | F6: =IF(PMIS_ACoverJPCP_LCrack!F6<>"",PMIS_ACoverJPCP_LCrack!F6,"") ->  | G6: =IF(PMIS_ACoverJPCP_LCrack!G6<>"",PMIS_ACoverJPCP_LCrack!G6,"") ->  | H6: =PMIS_ACoverJPCP_LCrack!H6 -> 0 | I6: =PMIS_ACoverJPCP_LCrack!I6 -> 0 | L6: 0 | M6: =PMIS_ACoverJPCP_LCrack!M6 ->  | O6: Calculated RSL based on LCRACK threshold limit:
A7: =IF(PMIS_ACoverJPCP_LCrack!A7<>"",PMIS_ACoverJPCP_LCrack!A7,"") ->  | B7: =IF(PMIS_ACoverJPCP_LCrack!B7<>"",PMIS_ACoverJPCP_LCrack!B7,"") ->  | C7: =IF(PMIS_ACoverJPCP_LCrack!C7<>"",PMIS_ACoverJPCP_LCrack!C7,"") ->  | D7: =IF(PMIS_ACoverJPCP_LCrack!D7<>"",PMIS_ACoverJPCP_LCrack!D7,"") ->  | E7: =IF(PMIS_ACoverJPCP_LCrack!E7<>"",PMIS_ACoverJPCP_LCrack!E7,"") ->  | F7: =IF(PMIS_ACoverJPCP_LCrack!F7<>"",PMIS_ACoverJPCP_LCrack!F7,"") ->  | G7: =IF(PMIS_ACoverJPCP_LCrack!G7<>"",PMIS_ACoverJPCP_LCrack!G7,"") ->  | H7: =PMIS_ACoverJPCP_LCrack!H7 -> 0 | I7: =PMIS_ACoverJPCP_LCrack!I7 -> 0 | L7: 0 | M7: =PMIS_ACoverJPCP_LCrack!M7 ->  | O7: Age at LCRACK threshold | P7: =IF(P2="","", IF(LOOKUP(2,1/(J2:K2<>""),J2:K2)>P2,"Entered LCRACK already exceeded threshold limit!", IF(AND(P2<>"",M16>P2),INDEX(L2:L16,MATCH(TRUE,$M$2:$M$16>P2,0)),"LCRACK predictions do not reach the threshold limit!"))) -> 
A8: =IF(PMIS_ACoverJPCP_LCrack!A8<>"",PMIS_ACoverJPCP_LCrack!A8,"") ->  | B8: =IF(PMIS_ACoverJPCP_LCrack!B8<>"",PMIS_ACoverJPCP_LCrack!B8,"") ->  | C8: =IF(PMIS_ACoverJPCP_LCrack!C8<>"",PMIS_ACoverJPCP_LCrack!C8,"") ->  | D8: =IF(PMIS_ACoverJPCP_LCrack!D8<>"",PMIS_ACoverJPCP_LCrack!D8,"") ->  | E8: =IF(PMIS_ACoverJPCP_LCrack!E8<>"",PMIS_ACoverJPCP_LCrack!E8,"") ->  | F8: =IF(PMIS_ACoverJPCP_LCrack!F8<>"",PMIS_ACoverJPCP_LCrack!F8,"") ->  | G8: =IF(PMIS_ACoverJPCP_LCrack!G8<>"",PMIS_ACoverJPCP_LCrack!G8,"") ->  | H8: =PMIS_ACoverJPCP_LCrack!H8 -> 0 | I8: =PMIS_ACoverJPCP_LCrack!I8 -> 0 | L8: 0 | M8: =PMIS_ACoverJPCP_LCrack!M8 ->  | O8: RSL | P8: =IF(ISTEXT(P7),"",IF(P5<>"",P7-P5,P7-P4)) ->  | Q8: =IF(P8<>"",ROUND(P8,1),"") -> 
A9: =IF(PMIS_ACoverJPCP_LCrack!A9<>"",PMIS_ACoverJPCP_LCrack!A9,"") ->  | B9: =IF(PMIS_ACoverJPCP_LCrack!B9<>"",PMIS_ACoverJPCP_LCrack!B9,"") ->  | C9: =IF(PMIS_ACoverJPCP_LCrack!C9<>"",PMIS_ACoverJPCP_LCrack!C9,"") ->  | D9: =IF(PMIS_ACoverJPCP_LCrack!D9<>"",PMIS_ACoverJPCP_LCrack!D9,"") ->  | E9: =IF(PMIS_ACoverJPCP_LCrack!E9<>"",PMIS_ACoverJPCP_LCrack!E9,"") ->  | F9: =IF(PMIS_ACoverJPCP_LCrack!F9<>"",PMIS_ACoverJPCP_LCrack!F9,"") ->  | G9: =IF(PMIS_ACoverJPCP_LCrack!G9<>"",PMIS_ACoverJPCP_LCrack!G9,"") ->  | H9: =PMIS_ACoverJPCP_LCrack!H9 -> 0 | I9: =PMIS_ACoverJPCP_LCrack!I9 -> 0 | L9: 0 | M9: =PMIS_ACoverJPCP_LCrack!M9 ->  | Q9: =IF(ISTEXT(P7),P7, IF(P4=P5,"RSL (at present year) ", IF(P5<P4,"RSL (at the last entered year) ", IF(P5<>"","RSL (at present year) ", IF(P5="","RSL (at the last entered year) ", IF(AND(P5<P3,P5>P4),"RSL (at present year) ")))))) -> 
A10: =IF(PMIS_ACoverJPCP_LCrack!A10<>"",PMIS_ACoverJPCP_LCrack!A10,"") ->  | B10: =IF(PMIS_ACoverJPCP_LCrack!B10<>"",PMIS_ACoverJPCP_LCrack!B10,"") ->  | C10: =IF(PMIS_ACoverJPCP_LCrack!C10<>"",PMIS_ACoverJPCP_LCrack!C10,"") ->  | D10: =IF(PMIS_ACoverJPCP_LCrack!D10<>"",PMIS_ACoverJPCP_LCrack!D10,"") ->  | E10: =IF(PMIS_ACoverJPCP_LCrack!E10<>"",PMIS_ACoverJPCP_LCrack!E10,"") ->  | F10: =IF(PMIS_ACoverJPCP_LCrack!F10<>"",PMIS_ACoverJPCP_LCrack!F10,"") ->  | G10: =IF(PMIS_ACoverJPCP_LCrack!G10<>"",PMIS_ACoverJPCP_LCrack!G10,"") ->  | H10: =PMIS_ACoverJPCP_LCrack!H10 -> 0 | I10: =PMIS_ACoverJPCP_LCrack!I10 -> 0 | L10: 0 | M10: =PMIS_ACoverJPCP_LCrack!M10 -> 
A11: =IF(PMIS_ACoverJPCP_LCrack!A11<>"",PMIS_ACoverJPCP_LCrack!A11,"") ->  | B11: =IF(PMIS_ACoverJPCP_LCrack!B11<>"",PMIS_ACoverJPCP_LCrack!B11,"") ->  | C11: =IF(PMIS_ACoverJPCP_LCrack!C11<>"",PMIS_ACoverJPCP_LCrack!C11,"") ->  | D11: =IF(PMIS_ACoverJPCP_LCrack!D11<>"",PMIS_ACoverJPCP_LCrack!D11,"") ->  | E11: =IF(PMIS_ACoverJPCP_LCrack!E11<>"",PMIS_ACoverJPCP_LCrack!E11,"") ->  | F11: =IF(PMIS_ACoverJPCP_LCrack!F11<>"",PMIS_ACoverJPCP_LCrack!F11,"") ->  | G11: =IF(PMIS_ACoverJPCP_LCrack!G11<>"",PMIS_ACoverJPCP_LCrack!G11,"") ->  | H11: =PMIS_ACoverJPCP_LCrack!H11 -> 0 | I11: =PMIS_ACoverJPCP_LCrack!I11 -> 0 | L11: 0 | M11: =PMIS_ACoverJPCP_LCrack!M11 ->  | O11: Calculated RSL based on Design Life:
A12: =IF(PMIS_ACoverJPCP_LCrack!A12<>"",PMIS_ACoverJPCP_LCrack!A12,"") ->  | B12: =IF(PMIS_ACoverJPCP_LCrack!B12<>"",PMIS_ACoverJPCP_LCrack!B12,"") ->  | C12: =IF(PMIS_ACoverJPCP_LCrack!C12<>"",PMIS_ACoverJPCP_LCrack!C12,"") ->  | D12: =IF(PMIS_ACoverJPCP_LCrack!D12<>"",PMIS_ACoverJPCP_LCrack!D12,"") ->  | E12: =IF(PMIS_ACoverJPCP_LCrack!E12<>"",PMIS_ACoverJPCP_LCrack!E12,"") ->  | F12: =IF(PMIS_ACoverJPCP_LCrack!F12<>"",PMIS_ACoverJPCP_LCrack!F12,"") ->  | G12: =IF(PMIS_ACoverJPCP_LCrack!G12<>"",PMIS_ACoverJPCP_LCrack!G12,"") ->  | H12: =PMIS_ACoverJPCP_LCrack!H12 -> 0 | I12: =PMIS_ACoverJPCP_LCrack!I12 -> 0 | L12: 0 | M12: =PMIS_ACoverJPCP_LCrack!M12 ->  | O12: RSL at the present year | P12: =IF(P3<>"",IF(U2>P3,"Entered age already exceeded design service life!", IF(AND(P5<>"",(P5<P3)),P3-MAX(P4,P5), IF(AND(P5<>"",(P5>P3)),"Please enter smaller 'present year' value!", IF(P5="",(P3-P4))))),"") ->  | Q12: =IF(ISTEXT(P12),P12,IF(P12<>"",ROUND(P12,1),"")) -> 
A13: =IF(PMIS_ACoverJPCP_LCrack!A13<>"",PMIS_ACoverJPCP_LCrack!A13,"") ->  | B13: =IF(PMIS_ACoverJPCP_LCrack!B13<>"",PMIS_ACoverJPCP_LCrack!B13,"") ->  | C13: =IF(PMIS_ACoverJPCP_LCrack!C13<>"",PMIS_ACoverJPCP_LCrack!C13,"") ->  | D13: =IF(PMIS_ACoverJPCP_LCrack!D13<>"",PMIS_ACoverJPCP_LCrack!D13,"") ->  | E13: =IF(PMIS_ACoverJPCP_LCrack!E13<>"",PMIS_ACoverJPCP_LCrack!E13,"") ->  | F13: =IF(PMIS_ACoverJPCP_LCrack!F13<>"",PMIS_ACoverJPCP_LCrack!F13,"") ->  | G13: =IF(PMIS_ACoverJPCP_LCrack!G13<>"",PMIS_ACoverJPCP_LCrack!G13,"") ->  | H13: =PMIS_ACoverJPCP_LCrack!H13 -> 0 | I13: =PMIS_ACoverJPCP_LCrack!I13 -> 0 | L13: 0 | M13: =PMIS_ACoverJPCP_LCrack!M13 ->  | Q13: =IF(ISTEXT(P12),P12, IF(P4=P5,"RSL (at present year) ", IF(P5<P4,"RSL (at the last entered year) ", IF(AND(P4<>"",P5=""),"RSL (at the last entered year) ", IF(AND(P5<P3,P5>P4),"RSL (at present year) ", IF(AND(P5="",P12=""),"","")))))) -> 
A14: =IF(PMIS_ACoverJPCP_LCrack!A14<>"",PMIS_ACoverJPCP_LCrack!A14,"") ->  | B14: =IF(PMIS_ACoverJPCP_LCrack!B14<>"",PMIS_ACoverJPCP_LCrack!B14,"") ->  | C14: =IF(PMIS_ACoverJPCP_LCrack!C14<>"",PMIS_ACoverJPCP_LCrack!C14,"") ->  | D14: =IF(PMIS_ACoverJPCP_LCrack!D14<>"",PMIS_ACoverJPCP_LCrack!D14,"") ->  | E14: =IF(PMIS_ACoverJPCP_LCrack!E14<>"",PMIS_ACoverJPCP_LCrack!E14,"") ->  | F14: =IF(PMIS_ACoverJPCP_LCrack!F14<>"",PMIS_ACoverJPCP_LCrack!F14,"") ->  | G14: =IF(PMIS_ACoverJPCP_LCrack!G14<>"",PMIS_ACoverJPCP_LCrack!G14,"") ->  | H14: =PMIS_ACoverJPCP_LCrack!H14 -> 0 | I14: =PMIS_ACoverJPCP_LCrack!I14 -> 0 | L14: 0 | M14: =PMIS_ACoverJPCP_LCrack!M14 ->  | O14: RSL
A15: =IF(PMIS_ACoverJPCP_LCrack!A15<>"",PMIS_ACoverJPCP_LCrack!A15,"") ->  | B15: =IF(PMIS_ACoverJPCP_LCrack!B15<>"",PMIS_ACoverJPCP_LCrack!B15,"") ->  | C15: =IF(PMIS_ACoverJPCP_LCrack!C15<>"",PMIS_ACoverJPCP_LCrack!C15,"") ->  | D15: =IF(PMIS_ACoverJPCP_LCrack!D15<>"",PMIS_ACoverJPCP_LCrack!D15,"") ->  | E15: =IF(PMIS_ACoverJPCP_LCrack!E15<>"",PMIS_ACoverJPCP_LCrack!E15,"") ->  | F15: =IF(PMIS_ACoverJPCP_LCrack!F15<>"",PMIS_ACoverJPCP_LCrack!F15,"") ->  | G15: =IF(PMIS_ACoverJPCP_LCrack!G15<>"",PMIS_ACoverJPCP_LCrack!G15,"") ->  | H15: =PMIS_ACoverJPCP_LCrack!H15 -> 0 | I15: =PMIS_ACoverJPCP_LCrack!I15 -> 0 | L15: 0 | M15: =PMIS_ACoverJPCP_LCrack!M15 ->  | N15: RSL (at the last entered year) | O15: =IF(AND(Q8<>"",Q12<>""),MIN(Q8,Q12), IF(AND(Q8="",Q9="Entered LCRACK already exceeded threshold limit!",Q12<>""),"", IF(AND(Q8="",Q12<>""),Q12, IF(AND(Q8<>"",Q12=""),Q8,"")))) -> 
A16: =IF(PMIS_ACoverJPCP_LCrack!A16<>"",PMIS_ACoverJPCP_LCrack!A16,"") ->  | B16: =IF(PMIS_ACoverJPCP_LCrack!B16<>"",PMIS_ACoverJPCP_LCrack!B16,"") ->  | C16: =IF(PMIS_ACoverJPCP_LCrack!C16<>"",PMIS_ACoverJPCP_LCrack!C16,"") ->  | D16: =IF(PMIS_ACoverJPCP_LCrack!D16<>"",PMIS_ACoverJPCP_LCrack!D16,"") ->  | E16: =IF(PMIS_ACoverJPCP_LCrack!E16<>"",PMIS_ACoverJPCP_LCrack!E16,"") ->  | F16: =IF(PMIS_ACoverJPCP_LCrack!F16<>"",PMIS_ACoverJPCP_LCrack!F16,"") ->  | G16: =IF(PMIS_ACoverJPCP_LCrack!G16<>"",PMIS_ACoverJPCP_LCrack!G16,"") ->  | H16: =PMIS_ACoverJPCP_LCrack!H16 -> 0 | I16: =PMIS_ACoverJPCP_LCrack!I16 -> 0 | L16: 0 | M16: =PMIS_ACoverJPCP_LCrack!M16 ->  | O16: =IF(AND(P2="",P3=""),"RSL could not be calculated. Please enter more information!", IF(AND(ISNUMBER(Q12),P7="Entered LCRACK already exceeded threshold limit!"),Q9, IF(AND(Q12="",P7="Entered LCRACK already exceeded threshold limit!"),Q9, IF(AND(ISNUMBER(Q12),P7="LCRACK predictions do not reach the threshold limit!"),(Q9&""&CHAR(10)&" Thus, "&Q13&""&"calculated based on the design life!"), IF(AND(P3="",P7="LCRACK predictions do not reach the threshold limit!"),(P7&""&CHAR(10)&" Thus, RSL could not be calculated. Please enter more information!"), IF(AND(ISNUMBER(Q8),ISTEXT(P12)),(Q9&""&CHAR(10)&"calculated based on the pavement performance"&CHAR(10)&P12), IF(P12="Please enter smaller 'present year' value!",P12, IF(P12="Entered age already exceeded design service life!",P12, IF(AND(O15=Q8,O15=Q12,ISNUMBER(O15)),Q13&""&"calculated based on the design life and pavement performance", IF(AND(Q8<>"",O15=Q8),Q9&""&CHAR(10)&"calculated based on the pavement performance",Q13&""&"calculated based on the design life")))))))))) -> RSL could not be calculated. Please enter more information!

Sheet Sheet1_PMIS_ACoverJPCP_TCrack (hidden)
A1: =PMIS_ACoverJPCP_TCrack!A1 -> Project Name | B1: =PMIS_ACoverJPCP_TCrack!B1 -> COUNAME | C1: =PMIS_ACoverJPCP_TCrack!C1 -> PROJECT_NO | D1: =PMIS_ACoverJPCP_TCrack!D1 -> BPRJ | E1: =PMIS_ACoverJPCP_TCrack!E1 -> EPRJ | F1: =PMIS_ACoverJPCP_TCrack!F1 -> CONYR | G1: =PMIS_ACoverJPCP_TCrack!G1 -> DATAYR | H1: =PMIS_ACoverJPCP_TCrack!H1 -> Accumulated ESALs | I1: =PMIS_ACoverJPCP_TCrack!I1 -> HMA Thickness (in.) | J1: =PMIS_ACoverJPCP_TCrack!J1 -> TCRACKi-2 (ft/mile) | K1: =PMIS_ACoverJPCP_TCrack!K1 -> TCRACKi-1 (ft/mile) | L1: =PMIS_ACoverJPCP_TCrack!L1 -> Age (years) | M1: =PMIS_ACoverJPCP_TCrack!M1 -> TCRACKi (ft/mile) | O1: Normalized Inputs | P1: Age | Q1: Age | R1: Acc ESAL | S1: HMA surface thickness, inch | T1: TCRACKi-2, ft/mile | U1: TCRACKi-1, ft/mile | Z1: IW | AA1: trainlm.H5.nets{4}
A2: =PMIS_ACoverJPCP_TCrack!A2 -> 0 | B2: =PMIS_ACoverJPCP_TCrack!B2 -> 0 | C2: =PMIS_ACoverJPCP_TCrack!C2 -> 0 | D2: =PMIS_ACoverJPCP_TCrack!D2 -> 0 | E2: =PMIS_ACoverJPCP_TCrack!E2 -> 0 | F2: =PMIS_ACoverJPCP_TCrack!F2 -> 0 | G2: =PMIS_ACoverJPCP_TCrack!G2 -> 0 | H2: =PMIS_ACoverJPCP_TCrack!H2 -> 0 | I2: =PMIS_ACoverJPCP_TCrack!I2 -> 0 | J2: =PMIS_ACoverJPCP_TCrack!J2 -> 0 | K2: =PMIS_ACoverJPCP_TCrack!K2 -> 0 | L2: =RSL_PMIS_ACoverJPCP_TCrack!L2 -> 0 | M2: =PMIS_ACoverJPCP_TCrack!M2 ->  | N2: TCRACK, min | P2: min | Q2: =2*((L2-P$3)/(P$5-P$3))-1 -> -1.333333333 | R2: =2*((H2-P$8)/(P$10-P$8))-1 -> -1.02E+00 | S2: =2*((I2-P$13)/(P$15-P$13))-1 -> -2.910828025 | T2: =2*((J2-P$18)/(P$20-P$18))-1 -> -1 | U2: =2*((K2-P$23)/(P$25-P$23))-1 -> -1.000958369 | Z2: -5.21149 | AA2: 6.36117 | AB2: 2.60078 | AC2: 12.1206 | AD2: -1.94786
A3: =PMIS_ACoverJPCP_TCrack!A3 -> 0 | B3: =PMIS_ACoverJPCP_TCrack!B3 -> 0 | C3: =PMIS_ACoverJPCP_TCrack!C3 -> 0 | D3: =PMIS_ACoverJPCP_TCrack!D3 -> 0 | E3: =PMIS_ACoverJPCP_TCrack!E3 -> 0 | F3: =PMIS_ACoverJPCP_TCrack!F3 -> 0 | G3: =PMIS_ACoverJPCP_TCrack!G3 -> 0 | H3: =IF(PMIS_ACoverJPCP_TCrack!H3="",H2+H2*(PMIS_ACoverJPCP_TCrack!$I$22/100),PMIS_ACoverJPCP_TCrack!H3) -> 0 | I3: =IF(PMIS_ACoverJPCP_TCrack!H3="",I2,PMIS_ACoverJPCP_TCrack!I3) -> 0 | J3: =PMIS_ACoverJPCP_TCrack!J3 -> 0 | K3: =PMIS_ACoverJPCP_TCrack!K3 -> 0 | L3: =RSL_PMIS_ACoverJPCP_TCrack!L3 -> 0 | M3: =PMIS_ACoverJPCP_TCrack!M3 ->  | N3: 6.37356 | P3: 2 | Q3: =2*((L3-P$3)/(P$5-P$3))-1 -> -1.333333333 | R3: =2*((H3-P$8)/(P$10-P$8))-1 -> -1.02E+00 | S3: =2*((I3-P$13)/(P$15-P$13))-1 -> -2.910828025 | T3: =2*((J3-P$18)/(P$20-P$18))-1 -> -1 | U3: =2*((K3-P$23)/(P$25-P$23))-1 -> -1.000958369 | Z3: -8.54163 | AA3: -15.3669 | AB3: -2.16739 | AC3: 20.325 | AD3: 8.86241
A4: =PMIS_ACoverJPCP_TCrack!A4 -> 0 | B4: =PMIS_ACoverJPCP_TCrack!B4 -> 0 | C4: =PMIS_ACoverJPCP_TCrack!C4 -> 0 | D4: =PMIS_ACoverJPCP_TCrack!D4 -> 0 | E4: =PMIS_ACoverJPCP_TCrack!E4 -> 0 | F4: =PMIS_ACoverJPCP_TCrack!F4 -> 0 | G4: =PMIS_ACoverJPCP_TCrack!G4 -> 0 | H4: =IF(PMIS_ACoverJPCP_TCrack!H4="",H3+H3*(PMIS_ACoverJPCP_TCrack!$I$22/100),PMIS_ACoverJPCP_TCrack!H4) -> 0 | I4: =IF(PMIS_ACoverJPCP_TCrack!H4="",I3,PMIS_ACoverJPCP_TCrack!I4) -> 0 | J4: =PMIS_ACoverJPCP_TCrack!J4 -> 0 | K4: =PMIS_ACoverJPCP_TCrack!K4 -> 0 | L4: =RSL_PMIS_ACoverJPCP_TCrack!L4 -> 0 | M4: =PMIS_ACoverJPCP_TCrack!M4 ->  | N4: TCRACK, max | P4: max | Q4: -1.333333333 | R4: -1.02E+00 | S4: -2.910828025 | T4: -1 | U4: -1.000958369 | Z4: -0.00841397 | AA4: 0.0125437 | AB4: 0.00321076 | AC4: -0.0765689 | AD4: 0.228254
A5: =PMIS_ACoverJPCP_TCrack!A5 -> 0 | B5: =PMIS_ACoverJPCP_TCrack!B5 -> 0 | C5: =PMIS_ACoverJPCP_TCrack!C5 -> 0 | D5: =PMIS_ACoverJPCP_TCrack!D5 -> 0 | E5: =PMIS_ACoverJPCP_TCrack!E5 -> 0 | F5: =PMIS_ACoverJPCP_TCrack!F5 -> 0 | G5: =PMIS_ACoverJPCP_TCrack!G5 -> 0 | H5: =IF(PMIS_ACoverJPCP_TCrack!H5="",H4+H4*(PMIS_ACoverJPCP_TCrack!$I$22/100),PMIS_ACoverJPCP_TCrack!H5) -> 0 | I5: =IF(PMIS_ACoverJPCP_TCrack!H5="",I4,PMIS_ACoverJPCP_TCrack!I5) -> 0 | J5: =PMIS_ACoverJPCP_TCrack!J5 -> 0 | K5: =PMIS_ACoverJPCP_TCrack!K5 -> 0 | L5: =RSL_PMIS_ACoverJPCP_TCrack!L5 -> 0 | M5: =PMIS_ACoverJPCP_TCrack!M5 ->  | N5: 8111.8 | P5: 14 | Q5: -1.333333333 | R5: -1.02E+00 | S5: -2.910828025 | T5: -1 | U5: -1.000958369 | Z5: 0.151285 | AA5: 8.32646 | AB5: -10.89 | AC5: -11.942 | AD5: 3.2171
A6: =PMIS_ACoverJPCP_TCrack!A6 -> 0 | B6: =PMIS_ACoverJPCP_TCrack!B6 -> 0 | C6: =PMIS_ACoverJPCP_TCrack!C6 -> 0 | D6: =PMIS_ACoverJPCP_TCrack!D6 -> 0 | E6: =PMIS_ACoverJPCP_TCrack!E6 -> 0 | F6: =PMIS_ACoverJPCP_TCrack!F6 -> 0 | G6: =PMIS_ACoverJPCP_TCrack!G6 -> 0 | H6: =IF(PMIS_ACoverJPCP_TCrack!H6="",H5+H5*(PMIS_ACoverJPCP_TCrack!$I$22/100),PMIS_ACoverJPCP_TCrack!H6) -> 0 | I6: =IF(PMIS_ACoverJPCP_TCrack!H6="",I5,PMIS_ACoverJPCP_TCrack!I6) -> 0 | J6: =PMIS_ACoverJPCP_TCrack!J6 -> 0 | K6: =PMIS_ACoverJPCP_TCrack!K6 -> 0 | L6: =RSL_PMIS_ACoverJPCP_TCrack!L6 -> 0 | M6: =PMIS_ACoverJPCP_TCrack!M6 ->  | P6: ACC | Q6: -1.333333333 | R6: -1.02E+00 | S6: -2.910828025 | T6: -1 | U6: -1.000958369 | Z6: -7.75675 | AA6: 1.28333 | AB6: 3.18292 | AC6: -3.93127 | AD6: 10.7793
A7: =PMIS_ACoverJPCP_TCrack!A7 -> 0 | B7: =PMIS_ACoverJPCP_TCrack!B7 -> 0 | C7: =PMIS_ACoverJPCP_TCrack!C7 -> 0 | D7: =PMIS_ACoverJPCP_TCrack!D7 -> 0 | E7: =PMIS_ACoverJPCP_TCrack!E7 -> 0 | F7: =PMIS_ACoverJPCP_TCrack!F7 -> 0 | G7: =PMIS_ACoverJPCP_TCrack!G7 -> 0 | H7: =IF(PMIS_ACoverJPCP_TCrack!H7="",H6+H6*(PMIS_ACoverJPCP_TCrack!$I$22/100),PMIS_ACoverJPCP_TCrack!H7) -> 0 | I7: =IF(PMIS_ACoverJPCP_TCrack!H7="",I6,PMIS_ACoverJPCP_TCrack!I7) -> 0 | J7: =PMIS_ACoverJPCP_TCrack!J7 -> 0 | K7: =PMIS_ACoverJPCP_TCrack!K7 -> 0 | L7: =RSL_PMIS_ACoverJPCP_TCrack!L7 -> 0 | M7: =PMIS_ACoverJPCP_TCrack!M7 ->  | P7: min | Q7: -1.333333333 | R7: -1.02E+00 | S7: -2.910828025 | T7: -1 | U7: -1.000958369
A8: =PMIS_ACoverJPCP_TCrack!A8 -> 0 | B8: =PMIS_ACoverJPCP_TCrack!B8 -> 0 | C8: =PMIS_ACoverJPCP_TCrack!C8 -> 0 | D8: =PMIS_ACoverJPCP_TCrack!D8 -> 0 | E8: =PMIS_ACoverJPCP_TCrack!E8 -> 0 | F8: =PMIS_ACoverJPCP_TCrack!F8 -> 0 | G8: =PMIS_ACoverJPCP_TCrack!G8 -> 0 | H8: =IF(PMIS_ACoverJPCP_TCrack!H8="",H7+H7*(PMIS_ACoverJPCP_TCrack!$I$22/100),PMIS_ACoverJPCP_TCrack!H8) -> 0 | I8: =IF(PMIS_ACoverJPCP_TCrack!H8="",I7,PMIS_ACoverJPCP_TCrack!I8) -> 0 | J8: =PMIS_ACoverJPCP_TCrack!J8 -> 0 | K8: =PMIS_ACoverJPCP_TCrack!K8 -> 0 | L8: =RSL_PMIS_ACoverJPCP_TCrack!L8 -> 0 | M8: =PMIS_ACoverJPCP_TCrack!M8 ->  | P8: 528666 | Q8: -1.333333333 | R8: -1.02E+00 | S8: -2.910828025 | T8: -1 | U8: -1.000958369
A9: =PMIS_ACoverJPCP_TCrack!A9 -> 0 | B9: =PMIS_ACoverJPCP_TCrack!B9 -> 0 | C9: =PMIS_ACoverJPCP_TCrack!C9 -> 0 | D9: =PMIS_ACoverJPCP_TCrack!D9 -> 0 | E9: =PMIS_ACoverJPCP_TCrack!E9 -> 0 | F9: =PMIS_ACoverJPCP_TCrack!F9 -> 0 | G9: =PMIS_ACoverJPCP_TCrack!G9 -> 0 | H9: =IF(PMIS_ACoverJPCP_TCrack!H9="",H8+H8*(PMIS_ACoverJPCP_TCrack!$I$22/100),PMIS_ACoverJPCP_TCrack!H9) -> 0 | I9: =IF(PMIS_ACoverJPCP_TCrack!H9="",I8,PMIS_ACoverJPCP_TCrack!I9) -> 0 | J9: =PMIS_ACoverJPCP_TCrack!J9 -> 0 | K9: =PMIS_ACoverJPCP_TCrack!K9 -> 0 | L9: =RSL_PMIS_ACoverJPCP_TCrack!L9 -> 0 | M9: =PMIS_ACoverJPCP_TCrack!M9 ->  | P9: max | Q9: -1.333333333 | R9: -1.02E+00 | S9: -2.910828025 | T9: -1 | U9: -1.000958369
A10: =PMIS_ACoverJPCP_TCrack!A10 -> 0 | B10: =PMIS_ACoverJPCP_TCrack!B10 -> 0 | C10: =PMIS_ACoverJPCP_TCrack!C10 -> 0 | D10: =PMIS_ACoverJPCP_TCrack!D10 -> 0 | E10: =PMIS_ACoverJPCP_TCrack!E10 -> 0 | F10: =PMIS_ACoverJPCP_TCrack!F10 -> 0 | G10: =PMIS_ACoverJPCP_TCrack!G10 -> 0 | H10: =IF(PMIS_ACoverJPCP_TCrack!H10="",H9+H9*(PMIS_ACoverJPCP_TCrack!$I$22/100),PMIS_ACoverJPCP_TCrack!H10) -> 0 | I10: =IF(PMIS_ACoverJPCP_TCrack!H10="",I9,PMIS_ACoverJPCP_TCrack!I10) -> 0 | J10: =PMIS_ACoverJPCP_TCrack!J10 -> 0 | K10: =PMIS_ACoverJPCP_TCrack!K10 -> 0 | L10: =RSL_PMIS_ACoverJPCP_TCrack!L10 -> 0 | M10: =PMIS_ACoverJPCP_TCrack!M10 ->  | P10: 6.70E+07 | Q10: -1.333333333 | R10: -1.02E+00 | S10: -2.910828025 | T10: -1 | U10: -1.000958369
A11: =PMIS_ACoverJPCP_TCrack!A11 -> 0 | B11: =PMIS_ACoverJPCP_TCrack!B11 -> 0 | C11: =PMIS_ACoverJPCP_TCrack!C11 -> 0 | D11: =PMIS_ACoverJPCP_TCrack!D11 -> 0 | E11: =PMIS_ACoverJPCP_TCrack!E11 -> 0 | F11: =PMIS_ACoverJPCP_TCrack!F11 -> 0 | G11: =PMIS_ACoverJPCP_TCrack!G11 -> 0 | H11: =IF(PMIS_ACoverJPCP_TCrack!H11="",H10+H10*(PMIS_ACoverJPCP_TCrack!$I$22/100),PMIS_ACoverJPCP_TCrack!H11) -> 0 | I11: =IF(PMIS_ACoverJPCP_TCrack!H11="",I10,PMIS_ACoverJPCP_TCrack!I11) -> 0 | J11: =PMIS_ACoverJPCP_TCrack!J11 -> 0 | K11: =PMIS_ACoverJPCP_TCrack!K11 -> 0 | L11: =RSL_PMIS_ACoverJPCP_TCrack!L11 -> 0 | M11: =PMIS_ACoverJPCP_TCrack!M11 ->  | P11: HMA sur | Q11: -1.333333333 | R11: -1.02E+00 | S11: -2.910828025 | T11: -1 | U11: -1.000958369
A12: =PMIS_ACoverJPCP_TCrack!A12 -> 0 | B12: =PMIS_ACoverJPCP_TCrack!B12 -> 0 | C12: =PMIS_ACoverJPCP_TCrack!C12 -> 0 | D12: =PMIS_ACoverJPCP_TCrack!D12 -> 0 | E12: =PMIS_ACoverJPCP_TCrack!E12 -> 0 | F12: =PMIS_ACoverJPCP_TCrack!F12 -> 0 | G12: =PMIS_ACoverJPCP_TCrack!G12 -> 0 | H12: =IF(PMIS_ACoverJPCP_TCrack!H12="",H11+H11*(PMIS_ACoverJPCP_TCrack!$I$22/100),PMIS_ACoverJPCP_TCrack!H12) -> 0 | I12: =IF(PMIS_ACoverJPCP_TCrack!H12="",I11,PMIS_ACoverJPCP_TCrack!I12) -> 0 | J12: =PMIS_ACoverJPCP_TCrack!J12 -> 0 | K12: =PMIS_ACoverJPCP_TCrack!K12 -> 0 | L12: =RSL_PMIS_ACoverJPCP_TCrack!L12 -> 0 | M12: =PMIS_ACoverJPCP_TCrack!M12 ->  | P12: min | Q12: -1.333333333 | R12: -1.02E+00 | S12: -2.910828025 | T12: -1 | U12: -1.000958369
A13: =PMIS_ACoverJPCP_TCrack!A13 -> 0 | B13: =PMIS_ACoverJPCP_TCrack!B13 -> 0 | C13: =PMIS_ACoverJPCP_TCrack!C13 -> 0 | D13: =PMIS_ACoverJPCP_TCrack!D13 -> 0 | E13: =PMIS_ACoverJPCP_TCrack!E13 -> 0 | F13: =PMIS_ACoverJPCP_TCrack!F13 -> 0 | G13: =PMIS_ACoverJPCP_TCrack!G13 -> 0 | H13: =IF(PMIS_ACoverJPCP_TCrack!H13="",H12+H12*(PMIS_ACoverJPCP_TCrack!$I$22/100),PMIS_ACoverJPCP_TCrack!H13) -> 0 | I13: =IF(PMIS_ACoverJPCP_TCrack!H13="",I12,PMIS_ACoverJPCP_TCrack!I13) -> 0 | J13: =PMIS_ACoverJPCP_TCrack!J13 -> 0 | K13: =PMIS_ACoverJPCP_TCrack!K13 -> 0 | L13: =RSL_PMIS_ACoverJPCP_TCrack!L13 -> 0 | M13: =PMIS_ACoverJPCP_TCrack!M13 ->  | P13: 1.5 | Q13: -1.333333333 | R13: -1.02E+00 | S13: -2.910828025 | T13: -1 | U13: -1.000958369
A14: =PMIS_ACoverJPCP_TCrack!A14 -> 0 | B14: =PMIS_ACoverJPCP_TCrack!B14 -> 0 | C14: =PMIS_ACoverJPCP_TCrack!C14 -> 0 | D14: =PMIS_ACoverJPCP_TCrack!D14 -> 0 | E14: =PMIS_ACoverJPCP_TCrack!E14 -> 0 | F14: =PMIS_ACoverJPCP_TCrack!F14 -> 0 | G14: =PMIS_ACoverJPCP_TCrack!G14 -> 0 | H14: =IF(PMIS_ACoverJPCP_TCrack!H14="",H13+H13*(PMIS_ACoverJPCP_TCrack!$I$22/100),PMIS_ACoverJPCP_TCrack!H14) -> 0 | I14: =IF(PMIS_ACoverJPCP_TCrack!H14="",I13,PMIS_ACoverJPCP_TCrack!I14) -> 0 | J14: =PMIS_ACoverJPCP_TCrack!J14 -> 0 | K14: =PMIS_ACoverJPCP_TCrack!K14 -> 0 | L14: =RSL_PMIS_ACoverJPCP_TCrack!L14 -> 0 | M14: =PMIS_ACoverJPCP_TCrack!M14 ->  | P14: max | Q14: -1.333333333 | R14: -1.02E+00 | S14: -2.910828025 | T14: -1 | U14: -1.000958369
A15: =PMIS_ACoverJPCP_TCrack!A15 -> 0 | B15: =PMIS_ACoverJPCP_TCrack!B15 -> 0 | C15: =PMIS_ACoverJPCP_TCrack!C15 -> 0 | D15: =PMIS_ACoverJPCP_TCrack!D15 -> 0 | E15: =PMIS_ACoverJPCP_TCrack!E15 -> 0 | F15: =PMIS_ACoverJPCP_TCrack!F15 -> 0 | G15: =PMIS_ACoverJPCP_TCrack!G15 -> 0 | H15: =IF(PMIS_ACoverJPCP_TCrack!H15="",H14+H14*(PMIS_ACoverJPCP_TCrack!$I$22/100),PMIS_ACoverJPCP_TCrack!H15) -> 0 | I15: =IF(PMIS_ACoverJPCP_TCrack!H15="",I14,PMIS_ACoverJPCP_TCrack!I15) -> 0 | J15: =PMIS_ACoverJPCP_TCrack!J15 -> 0 | K15: =PMIS_ACoverJPCP_TCrack!K15 -> 0 | L15: =RSL_PMIS_ACoverJPCP_TCrack!L15 -> 0 | M15: =PMIS_ACoverJPCP_TCrack!M15 ->  | P15: 3.07 | Q15: -1.333333333 | R15: -1.02E+00 | S15: -2.910828025 | T15: -1 | U15: -1.000958369
A16: =PMIS_ACoverJPCP_TCrack!A16 -> 0 | B16: =PMIS_ACoverJPCP_TCrack!B16 -> 0 | C16: =PMIS_ACoverJPCP_TCrack!C16 -> 0 | D16: =PMIS_ACoverJPCP_TCrack!D16 -> 0 | E16: =PMIS_ACoverJPCP_TCrack!E16 -> 0 | F16: =PMIS_ACoverJPCP_TCrack!F16 -> 0 | G16: =PMIS_ACoverJPCP_TCrack!G16 -> 0 | H16: =IF(PMIS_ACoverJPCP_TCrack!H16="",H15+H15*(PMIS_ACoverJPCP_TCrack!$I$22/100),PMIS_ACoverJPCP_TCrack!H16) -> 0 | I16: =IF(PMIS_ACoverJPCP_TCrack!H16="",I15,PMIS_ACoverJPCP_TCrack!I16) -> 0 | J16: =PMIS_ACoverJPCP_TCrack!J16 -> 0 | K16: =PMIS_ACoverJPCP_TCrack!K16 -> 0 | L16: =RSL_PMIS_ACoverJPCP_TCrack!L16 -> 0 | M16: =PMIS_ACoverJPCP_TCrack!M16 ->  | P16: TCRACK-2 | Q16: -1.333333333 | R16: -1.02E+00 | S16: -2.910828025 | T16: -1 | U16: -1.000958369
P17: min | Q17: -1.333333333 | R17: -1.02E+00 | S17: -2.910828025 | T17: -1 | U17: -1.000958369 | V17: B1 | W17: IW*Inputsnor
P18: 0 | Q18: -1.333333333 | R18: -1.02E+00 | S18: -2.910828025 | T18: -1 | U18: -1.000958369 | V18: 11.700019 | W18: =MMULT(Z2:AD6,TRANSPOSE(Q2:U23)) -> -17.25503974 | X18: -17.25503974 | Y18: -17.25503974 | Z18: -17.25503974 | AA18: -17.25503974 | AB18: -17.25503974 | AC18: -17.25503974 | AD18: -17.25503974 | AE18: -17.25503974 | AF18: -17.25503974 | AG18: -17.25503974 | AH18: -17.25503974 | AI18: -17.25503974 | AJ18: -17.25503974 | AK18: -17.25503974 | AL18: -17.25503974 | AM18: -17.25503974 | AN18: -17.25503974 | AO18: -17.25503974 | AP18: -17.25503974 | AQ18: -17.25503974 | AR18: -17.25503974
P19: max | Q19: -1.333333333 | R19: -1.02E+00 | S19: -2.910828025 | T19: -1 | U19: -1.000958369 | V19: 18.657295 | W19: 4.113272549 | X19: 4.113272549 | Y19: 4.113272549 | Z19: 4.113272549 | AA19: 4.113272549 | AB19: 4.113272549 | AC19: 4.113272549 | AD19: 4.113272549 | AE19: 4.113272549 | AF19: 4.113272549 | AG19: 4.113272549 | AH19: 4.113272549 | AI19: 4.113272549 | AJ19: 4.113272549 | AK19: 4.113272549 | AL19: 4.113272549 | AM19: 4.113272549 | AN19: 4.113272549 | AO19: 4.113272549 | AP19: 4.113272549 | AQ19: 4.113272549 | AR19: 4.113272549
P20: 6259.28 | Q20: -1.333333333 | R20: -1.02E+00 | S20: -2.910828025 | T20: -1 | U20: -1.000958369 | V20: -0.112259 | W20: -0.1627745054 | X20: -0.1627745054 | Y20: -0.1627745054 | Z20: -0.1627745054 | AA20: -0.1627745054 | AB20: -0.1627745054 | AC20: -0.1627745054 | AD20: -0.1627745054 | AE20: -0.1627745054 | AF20: -0.1627745054 | AG20: -0.1627745054 | AH20: -0.1627745054 | AI20: -0.1627745054 | AJ20: -0.1627745054 | AK20: -0.1627745054 | AL20: -0.1627745054 | AM20: -0.1627745054 | AN20: -0.1627745054 | AO20: -0.1627745054 | AP20: -0.1627745054 | AQ20: -0.1627745054 | AR20: -0.1627745054
P21: TCRACK-1 | Q21: -1.333333333 | R21: -1.02E+00 | S21: -2.910828025 | T21: -1 | U21: -1.000958369 | V21: -6.216526 | W21: 31.76006013 | X21: 31.76006013 | Y21: 31.76006013 | Z21: 31.76006013 | AA21: 31.76006013 | AB21: 31.76006013 | AC21: 31.76006013 | AD21: 31.76006013 | AE21: 31.76006013 | AF21: 31.76006013 | AG21: 31.76006013 | AH21: 31.76006013 | AI21: 31.76006013 | AJ21: 31.76006013 | AK21: 31.76006013 | AL21: 31.76006013 | AM21: 31.76006013 | AN21: 31.76006013 | AO21: 31.76006013 | AP21: 31.76006013 | AQ21: 31.76006013 | AR21: 31.76006013
P22: min | Q22: -1.333333333 | R22: -1.02E+00 | S22: -2.910828025 | T22: -1 | U22: -1.000958369 | V22: 2.197107 | W22: -7.084711832 | X22: -7.084711832 | Y22: -7.084711832 | Z22: -7.084711832 | AA22: -7.084711832 | AB22: -7.084711832 | AC22: -7.084711832 | AD22: -7.084711832 | AE22: -7.084711832 | AF22: -7.084711832 | AG22: -7.084711832 | AH22: -7.084711832 | AI22: -7.084711832 | AJ22: -7.084711832 | AK22: -7.084711832 | AL22: -7.084711832 | AM22: -7.084711832 | AN22: -7.084711832 | AO22: -7.084711832 | AP22: -7.084711832 | AQ22: -7.084711832 | AR22: -7.084711832
P23: 3.18678 | Q23: -1.333333333 | R23: -1.02E+00 | S23: -2.910828025 | T23: -1 | U23: -1.000958369
P24: max | Q24: -1.333333333 | R24: -1.02E+00 | S24: -2.910828025 | T24: -1 | U24: -1.000958369
P25: 6653.61 | Q25: -1.333333333 | R25: -1.02E+00 | S25: -2.910828025 | T25: -1 | U25: -1.000958369
Q26: -1.333333333 | R26: -1.02E+00 | S26: -2.910828025 | T26: -1 | U26: -1.000958369 | W26: B1+IW*Inputsnor
Q27: -1.333333333 | R27: -1.02E+00 | S27: -2.910828025 | T27: -1 | U27: -1.000958369 | W27: =(V18:V22)+W18:AR22 -> -5.555020739 | X27: -5.555020739 | Y27: -5.555020739 | Z27: -5.555020739 | AA27: -5.555020739 | AB27: -5.555020739 | AC27: -5.555020739 | AD27: -5.555020739 | AE27: -5.555020739 | AF27: -5.555020739 | AG27: -5.555020739 | AH27: -5.555020739 | AI27: -5.555020739 | AJ27: -5.555020739 | AK27: -5.555020739 | AL27: -5.555020739 | AM27: -5.555020739 | AN27: -5.555020739 | AO27: -5.555020739 | AP27: -5.555020739 | AQ27: -5.555020739 | AR27: -5.555020739
Q28: -1.333333333 | R28: -1.02E+00 | S28: -2.910828025 | T28: -1 | U28: -1.000958369 | W28: 22.77056755 | X28: 22.77056755 | Y28: 22.77056755 | Z28: 22.77056755 | AA28: 22.77056755 | AB28: 22.77056755 | AC28: 22.77056755 | AD28: 22.77056755 | AE28: 22.77056755 | AF28: 22.77056755 | AG28: 22.77056755 | AH28: 22.77056755 | AI28: 22.77056755 | AJ28: 22.77056755 | AK28: 22.77056755 | AL28: 22.77056755 | AM28: 22.77056755 | AN28: 22.77056755 | AO28: 22.77056755 | AP28: 22.77056755 | AQ28: 22.77056755 | AR28: 22.77056755
Q29: -1.333333333 | R29: -1.02E+00 | S29: -2.910828025 | T29: -1 | U29: -1.000958369 | W29: -0.2750335054 | X29: -0.2750335054 | Y29: -0.2750335054 | Z29: -0.2750335054 | AA29: -0.2750335054 | AB29: -0.2750335054 | AC29: -0.2750335054 | AD29: -0.2750335054 | AE29: -0.2750335054 | AF29: -0.2750335054 | AG29: -0.2750335054 | AH29: -0.2750335054 | AI29: -0.2750335054 | AJ29: -0.2750335054 | AK29: -0.2750335054 | AL29: -0.2750335054 | AM29: -0.2750335054 | AN29: -0.2750335054 | AO29: -0.2750335054 | AP29: -0.2750335054 | AQ29: -0.2750335054 | AR29: -0.2750335054
Q30: -1.333333333 | R30: -1.02E+00 | S30: -2.910828025 | T30: -1 | U30: -1.000958369 | W30: 25.54353413 | X30: 25.54353413 | Y30: 25.54353413 | Z30: 25.54353413 | AA30: 25.54353413 | AB30: 25.54353413 | AC30: 25.54353413 | AD30: 25.54353413 | AE30: 25.54353413 | AF30: 25.54353413 | AG30: 25.54353413 | AH30: 25.54353413 | AI30: 25.54353413 | AJ30: 25.54353413 | AK30: 25.54353413 | AL30: 25.54353413 | AM30: 25.54353413 | AN30: 25.54353413 | AO30: 25.54353413 | AP30: 25.54353413 | AQ30: 25.54353413 | AR30: 25.54353413
Q31: -1.333333333 | R31: -1.02E+00 | S31: -2.910828025 | T31: -1 | U31: -1.000958369 | W31: -4.887604832 | X31: -4.887604832 | Y31: -4.887604832 | Z31: -4.887604832 | AA31: -4.887604832 | AB31: -4.887604832 | AC31: -4.887604832 | AD31: -4.887604832 | AE31: -4.887604832 | AF31: -4.887604832 | AG31: -4.887604832 | AH31: -4.887604832 | AI31: -4.887604832 | AJ31: -4.887604832 | AK31: -4.887604832 | AL31: -4.887604832 | AM31: -4.887604832 | AN31: -4.887604832 | AO31: -4.887604832 | AP31: -4.887604832 | AQ31: -4.887604832 | AR31: -4.887604832
Q32: -1.333333333 | R32: -1.02E+00 | S32: -2.910828025 | T32: -1 | U32: -1.000958369
Q33: -1.333333333 | R33: -1.02E+00 | S33: -2.910828025 | T33: -1 | U33: -1.000958369
Q34: -1.333333333 | R34: -1.02E+00 | S34: -2.910828025 | T34: -1 | U34: -1.000958369
Q35: -1.333333333 | R35: -1.02E+00 | S35: -2.910828025 | T35: -1 | U35: -1.000958369 | W35: Y1
Q36: -1.333333333 | R36: -1.02E+00 | S36: -2.910828025 | T36: -1 | U36: -1.000958369 | W36: =2/(1+EXP(-2*W27))-1 -> -0.9999700778 | X36: =2/(1+EXP(-2*X27))-1 -> -0.9999700778 | Y36: -0.9999700778 | Z36: -0.9999700778 | AA36: -0.9999700778 | AB36: -0.9999700778 | AC36: -0.9999700778 | AD36: -0.9999700778 | AE36: -0.9999700778 | AF36: -0.9999700778 | AG36: -0.9999700778 | AH36: -0.9999700778 | AI36: -0.9999700778 | AJ36: -0.9999700778 | AK36: -0.9999700778 | AL36: -0.9999700778 | AM36: -0.9999700778 | AN36: -0.9999700778 | AO36: -0.9999700778 | AP36: -0.9999700778 | AQ36: -0.9999700778 | AR36: -0.9999700778
Q37: -1.333333333 | R37: -1.02E+00 | S37: -2.910828025 | T37: -1 | U37: -1.000958369 | W37: =2/(1+EXP(-2*W28))-1 -> 1 | X37: 1 | Y37: 1 | Z37: 1 | AA37: 1 | AB37: 1 | AC37: 1 | AD37: 1 | AE37: 1 | AF37: 1 | AG37: 1 | AH37: 1 | AI37: 1 | AJ37: 1 | AK37: 1 | AL37: 1 | AM37: 1 | AN37: 1 | AO37: 1 | AP37: 1 | AQ37: 1 | AR37: 1
Q38: -1.333333333 | R38: -1.02E+00 | S38: -2.910828025 | T38: -1 | U38: -1.000958369 | W38: -0.2683022758 | X38: -0.2683022758 | Y38: -0.2683022758 | Z38: -0.2683022758 | AA38: -0.2683022758 | AB38: -0.2683022758 | AC38: -0.2683022758 | AD38: -0.2683022758 | AE38: -0.2683022758 | AF38: -0.2683022758 | AG38: -0.2683022758 | AH38: -0.2683022758 | AI38: -0.2683022758 | AJ38: -0.2683022758 | AK38: -0.2683022758 | AL38: -0.2683022758 | AM38: -0.2683022758 | AN38: -0.2683022758 | AO38: -0.2683022758 | AP38: -0.2683022758 | AQ38: -0.2683022758 | AR38: -0.2683022758
Q39: -1.333333333 | R39: -1.02E+00 | S39: -2.910828025 | T39: -1 | U39: -1.000958369 | W39: 1 | X39: 1 | Y39: 1 | Z39: 1 | AA39: 1 | AB39: 1 | AC39: 1 | AD39: 1 | AE39: 1 | AF39: 1 | AG39: 1 | AH39: 1 | AI39: 1 | AJ39: 1 | AK39: 1 | AL39: 1 | AM39: 1 | AN39: 1 | AO39: 1 | AP39: 1 | AQ39: 1 | AR39: 1
Q40: -1.333333333 | R40: -1.02E+00 | S40: -2.910828025 | T40: -1 | U40: -1.000958369 | W40: -0.9998863196 | X40: -0.9998863196 | Y40: -0.9998863196 | Z40: -0.9998863196 | AA40: -0.9998863196 | AB40: -0.9998863196 | AC40: -0.9998863196 | AD40: -0.9998863196 | AE40: -0.9998863196 | AF40: -0.9998863196 | AG40: -0.9998863196 | AH40: -0.9998863196 | AI40: -0.9998863196 | AJ40: -0.9998863196 | AK40: -0.9998863196 | AL40: -0.9998863196 | AM40: -0.9998863196 | AN40: -0.9998863196 | AO40: -0.9998863196 | AP40: -0.9998863196 | AQ40: -0.9998863196 | AR40: -0.9998863196
Q41: -1.333333333 | R41: -1.02E+00 | S41: -2.910828025 | T41: -1 | U41: -1.000958369
Q42: -1.333333333 | R42: -1.02E+00 | S42: -2.910828025 | T42: -1 | U42: -1.000958369 | W42: B2 | X42: LW1
Q43: -1.333333333 | R43: -1.02E+00 | S43: -2.910828025 | T43: -1 | U43: -1.000958369 | W43: 0.601484 | X43: -0.0270573 | Y43: 0.0270189 | Z43: 6.05192 | AA43: -0.0149481 | AB43: -0.0243848
Q44: -1.333333333 | R44: -1.02E+00 | S44: -2.910828025 | T44: -1 | U44: -1.000958369
Q45: -1.333333333 | R45: -1.02E+00 | S45: -2.910828025 | T45: -1 | U45: -1.000958369 | W45: LW1*Y1
Q46: -1.333333333 | R46: -1.02E+00 | S46: -2.910828025 | T46: -1 | U46: -1.000958369 | W46: =MMULT(X43:AB43,W36:AR40) -> -1.560234591 | X46: -1.560234591 | Y46: -1.560234591 | Z46: -1.560234591 | AA46: -1.560234591 | AB46: -1.560234591 | AC46: -1.560234591 | AD46: -1.560234591 | AE46: -1.560234591 | AF46: -1.560234591 | AG46: -1.560234591 | AH46: -1.560234591 | AI46: -1.560234591 | AJ46: -1.560234591 | AK46: -1.560234591 | AL46: -1.560234591 | AM46: -1.560234591 | AN46: -1.560234591 | AO46: -1.560234591 | AP46: -1.560234591 | AQ46: -1.560234591 | AR46: -1.560234591
Q47: -1.333333333 | R47: -1.02E+00 | S47: -2.910828025 | T47: -1 | U47: -1.000958369 | W47: B2+LW1*Y1
Q48: -1.333333333 | R48: -1.02E+00 | S48: -2.910828025 | T48: -1 | U48: -1.000958369 | W48: =(W43)+W46:AR46 -> -0.9587505907 | X48: -0.9587505907 | Y48: -0.9587505907 | Z48: -0.9587505907 | AA48: -0.9587505907 | AB48: -0.9587505907 | AC48: -0.9587505907 | AD48: -0.9587505907 | AE48: -0.9587505907 | AF48: -0.9587505907 | AG48: -0.9587505907 | AH48: -0.9587505907 | AI48: -0.9587505907 | AJ48: -0.9587505907 | AK48: -0.9587505907 | AL48: -0.9587505907 | AM48: -0.9587505907 | AN48: -0.9587505907 | AO48: -0.9587505907 | AP48: -0.9587505907 | AQ48: -0.9587505907 | AR48: -0.9587505907
Q49: -1.333333333 | R49: -1.02E+00 | S49: -2.910828025 | T49: -1 | U49: -1.000958369
Q50: -1.333333333 | R50: -1.02E+00 | S50: -2.910828025 | T50: -1 | U50: -1.000958369 | W50: Ydenor
Q51: -1.333333333 | R51: -1.02E+00 | S51: -2.910828025 | T51: -1 | U51: -1.000958369 | W51: =(W48+1)*(($N$5-$N$3)/2)+$N$3 -> 173.5455865 | X51: =(X48+1)*(($N$5-$N$3)/2)+$N$3 -> 173.5455865 | Y51: 173.5455865 | Z51: 173.5455865 | AA51: 173.5455865 | AB51: 173.5455865 | AC51: 173.5455865 | AD51: 173.5455865 | AE51: 173.5455865 | AF51: 173.5455865 | AG51: 173.5455865 | AH51: 173.5455865 | AI51: 173.5455865 | AJ51: 173.5455865 | AK51: 173.5455865 | AL51: 173.5455865 | AM51: 173.5455865 | AN51: 173.5455865 | AO51: 173.5455865 | AP51: 173.5455865 | AQ51: 173.5455865 | AR51: 173.5455865
Q52: -1.333333333 | R52: -1.02E+00 | S52: -2.910828025 | T52: -1 | U52: -1.000958369 | W52: Transpose (Ydenor)
Q53: -1.333333333 | R53: -1.02E+00 | S53: -2.910828025 | T53: -1 | U53: -1.000958369 | W53: =TRANSPOSE($W$51:$CE$51) -> 173.5455865
Q54: -1.333333333 | R54: -1.02E+00 | S54: -2.910828025 | T54: -1 | U54: -1.000958369 | W54: 173.5455865
Q55: -1.333333333 | R55: -1.02E+00 | S55: -2.910828025 | T55: -1 | U55: -1.000958369 | W55: 173.5455865
Q56: -1.333333333 | R56: -1.02E+00 | S56: -2.910828025 | T56: -1 | U56: -1.000958369 | W56: 173.5455865
Q57: -1.333333333 | R57: -1.02E+00 | S57: -2.910828025 | T57: -1 | U57: -1.000958369 | W57: 173.5455865
Q58: -1.333333333 | R58: -1.02E+00 | S58: -2.910828025 | T58: -1 | U58: -1.000958369 | W58: 173.5455865
Q59: -1.333333333 | R59: -1.02E+00 | S59: -2.910828025 | T59: -1 | U59: -1.000958369 | W59: 173.5455865
Q60: -1.333333333 | R60: -1.02E+00 | S60: -2.910828025 | T60: -1 | U60: -1.000958369 | W60: 173.5455865
Q61: -1.333333333 | R61: -1.02E+00 | S61: -2.910828025 | T61: -1 | U61: -1.000958369 | W61: 173.5455865
Q62: -1.333333333 | R62: -1.02E+00 | S62: -2.910828025 | T62: -1 | U62: -1.000958369 | W62: 173.5455865
Q63: -1.333333333 | R63: -1.02E+00 | S63: -2.910828025 | T63: -1 | U63: -1.000958369 | W63: 173.5455865
Q64: -1.333333333 | R64: -1.02E+00 | S64: -2.910828025 | T64: -1 | U64: -1.000958369 | W64: 173.5455865
Q65: -1.333333333 | R65: -1.02E+00 | S65: -2.910828025 | T65: -1 | U65: -1.000958369 | W65: 173.5455865
Q66: -1.333333333 | R66: -1.02E+00 | S66: -2.910828025 | T66: -1 | U66: -1.000958369 | W66: 173.5455865
Q67: =2*((L67-P$3)/(P$5-P$3))-1 -> -1.333333333 | R67: =2*((H67-P$8)/(P$10-P$8))-1 -> -1.02E+00 | S67: =2*((I67-P$13)/(P$15-P$13))-1 -> -2.910828025 | T67: =2*((J67-P$18)/(P$20-P$18))-1 -> -1 | U67: =2*((K67-P$23)/(P$25-P$23))-1 -> -1.000958369 | W67: 173.5455865
Q68: -1.333333333 | R68: -1.02E+00 | S68: -2.910828025 | T68: -1 | U68: -1.000958369 | W68: 173.5455865
Q69: -1.333333333 | R69: -1.02E+00 | S69: -2.910828025 | T69: -1 | U69: -1.000958369 | W69: 173.5455865
Q70: -1.333333333 | R70: -1.02E+00 | S70: -2.910828025 | T70: -1 | U70: -1.000958369 | W70: 173.5455865
Q71: -1.333333333 | R71: -1.02E+00 | S71: -2.910828025 | T71: -1 | U71: -1.000958369 | W71: 173.5455865
Q72: -1.333333333 | R72: -1.02E+00 | S72: -2.910828025 | T72: -1 | U72: -1.000958369 | W72: 173.5455865
Q73: -1.333333333 | R73: -1.02E+00 | S73: -2.910828025 | T73: -1 | U73: -1.000958369 | W73: 173.5455865
Q74: -1.333333333 | R74: -1.02E+00 | S74: -2.910828025 | T74: -1 | U74: -1.000958369 | W74: 173.5455865
Q75: -1.333333333 | R75: -1.02E+00 | S75: -2.910828025 | T75: -1 | U75: -1.000958369 | W75: 0
Q76: -1.333333333 | R76: -1.02E+00 | S76: -2.910828025 | T76: -1 | U76: -1.000958369 | W76: 0
Q77: -1.333333333 | R77: -1.02E+00 | S77: -2.910828025 | T77: -1 | U77: -1.000958369 | W77: 0
Q78: -1.333333333 | R78: -1.02E+00 | S78: -2.910828025 | T78: -1 | U78: -1.000958369 | W78: 0
Q79: -1.333333333 | R79: -1.02E+00 | S79: -2.910828025 | T79: -1 | U79: -1.000958369 | W79: 0
Q80: -1.333333333 | R80: -1.02E+00 | S80: -2.910828025 | T80: -1 | U80: -1.000958369 | W80: 0
Q81: -1.333333333 | R81: -1.02E+00 | S81: -2.910828025 | T81: -1 | U81: -1.000958369 | W81: 0
Q82: -1.333333333 | R82: -1.02E+00 | S82: -2.910828025 | T82: -1 | U82: -1.000958369 | W82: 0
Q83: -1.333333333 | R83: -1.02E+00 | S83: -2.910828025 | T83: -1 | U83: -1.000958369 | W83: 0
Q84: -1.333333333 | R84: -1.02E+00 | S84: -2.910828025 | T84: -1 | U84: -1.000958369 | W84: 0
Q85: -1.333333333 | R85: -1.02E+00 | S85: -2.910828025 | T85: -1 | U85: -1.000958369 | W85: 0
Q86: -1.333333333 | R86: -1.02E+00 | S86: -2.910828025 | T86: -1 | U86: -1.000958369 | W86: 0
Q87: -1.333333333 | R87: -1.02E+00 | S87: -2.910828025 | T87: -1 | U87: -1.000958369 | W87: 0
Q88: -1.333333333 | R88: -1.02E+00 | S88: -2.910828025 | T88: -1 | U88: -1.000958369 | W88: 0
Q89: -1.333333333 | R89: -1.02E+00 | S89: -2.910828025 | T89: -1 | U89: -1.000958369 | W89: 0
Q90: -1.333333333 | R90: -1.02E+00 | S90: -2.910828025 | T90: -1 | U90: -1.000958369 | W90: 0
Q91: -1.333333333 | R91: -1.02E+00 | S91: -2.910828025 | T91: -1 | U91: -1.000958369 | W91: 0
Q92: -1.333333333 | R92: -1.02E+00 | S92: -2.910828025 | T92: -1 | U92: -1.000958369 | W92: 0
Q93: -1.333333333 | R93: -1.02E+00 | S93: -2.910828025 | T93: -1 | U93: -1.000958369 | W93: 0
Q94: -1.333333333 | R94: -1.02E+00 | S94: -2.910828025 | T94: -1 | U94: -1.000958369 | W94: 0
Q95: -1.333333333 | R95: -1.02E+00 | S95: -2.910828025 | T95: -1 | U95: -1.000958369 | W95: 0
Q96: -1.333333333 | R96: -1.02E+00 | S96: -2.910828025 | T96: -1 | U96: -1.000958369 | W96: 0
Q97: -1.333333333 | R97: -1.02E+00 | S97: -2.910828025 | T97: -1 | U97: -1.000958369 | W97: 0
Q98: -1.333333333 | R98: -1.02E+00 | S98: -2.910828025 | T98: -1 | U98: -1.000958369 | W98: 0
Q99: -1.333333333 | R99: -1.02E+00 | S99: -2.910828025 | T99: -1 | U99: -1.000958369 | W99: 0
Q100: -1.333333333 | R100: -1.02E+00 | S100: -2.910828025 | T100: -1 | U100: -1.000958369 | W100: 0
Q101: -1.333333333 | R101: -1.02E+00 | S101: -2.910828025 | T101: -1 | U101: -1.000958369 | W101: 0
Q102: -1.333333333 | R102: -1.02E+00 | S102: -2.910828025 | T102: -1 | U102: -1.000958369 | W102: 0
Q103: -1.333333333 | R103: -1.02E+00 | S103: -2.910828025 | T103: -1 | U103: -1.000958369 | W103: 0
Q104: -1.333333333 | R104: -1.02E+00 | S104: -2.910828025 | T104: -1 | U104: -1.000958369 | W104: 0
Q105: -1.333333333 | R105: -1.02E+00 | S105: -2.910828025 | T105: -1 | U105: -1.000958369 | W105: 0
Q106: -1.333333333 | R106: -1.02E+00 | S106: -2.910828025 | T106: -1 | U106: -1.000958369 | W106: 0
Q107: -1.333333333 | R107: -1.02E+00 | S107: -2.910828025 | T107: -1 | U107: -1.000958369 | W107: 0
Q108: -1.333333333 | R108: -1.02E+00 | S108: -2.910828025 | T108: -1 | U108: -1.000958369 | W108: 0
Q109: -1.333333333 | R109: -1.02E+00 | S109: -2.910828025 | T109: -1 | U109: -1.000958369 | W109: 0
Q110: -1.333333333 | R110: -1.02E+00 | S110: -2.910828025 | T110: -1 | U110: -1.000958369 | W110: 0
Q111: -1.333333333 | R111: -1.02E+00 | S111: -2.910828025 | T111: -1 | U111: -1.000958369 | W111: 0
Q112: -1.333333333 | R112: -1.02E+00 | S112: -2.910828025 | T112: -1 | U112: -1.000958369 | W112: 0
Q113: -1.333333333 | R113: -1.02E+00 | S113: -2.910828025 | T113: -1 | U113: -1.000958369 | W113: 0
Q114: -1.333333333 | R114: -1.02E+00 | S114: -2.910828025 | T114: -1 | U114: -1.000958369
Q115: -1.333333333 | R115: -1.02E+00 | S115: -2.910828025 | T115: -1 | U115: -1.000958369
Q116: -1.333333333 | R116: -1.02E+00 | S116: -2.910828025 | T116: -1 | U116: -1.000958369
Q117: -1.333333333 | R117: -1.02E+00 | S117: -2.910828025 | T117: -1 | U117: -1.000958369
Q118: -1.333333333 | R118: -1.02E+00 | S118: -2.910828025 | T118: -1 | U118: -1.000958369
Q119: -1.333333333 | R119: -1.02E+00 | S119: -2.910828025 | T119: -1 | U119: -1.000958369
Q120: -1.333333333 | R120: -1.02E+00 | S120: -2.910828025 | T120: -1 | U120: -1.000958369
Q121: -1.333333333 | R121: -1.02E+00 | S121: -2.910828025 | T121: -1 | U121: -1.000958369
Q122: -1.333333333 | R122: -1.02E+00 | S122: -2.910828025 | T122: -1 | U122: -1.000958369
Q123: -1.333333333 | R123: -1.02E+00 | S123: -2.910828025 | T123: -1 | U123: -1.000958369
Q124: -1.333333333 | R124: -1.02E+00 | S124: -2.910828025 | T124: -1 | U124: -1.000958369
Q125: -1.333333333 | R125: -1.02E+00 | S125: -2.910828025 | T125: -1 | U125: -1.000958369
Q126: -1.333333333 | R126: -1.02E+00 | S126: -2.910828025 | T126: -1 | U126: -1.000958369
Q127: -1.333333333 | R127: -1.02E+00 | S127: -2.910828025 | T127: -1 | U127: -1.000958369
Q128: -1.333333333 | R128: -1.02E+00 | S128: -2.910828025 | T128: -1 | U128: -1.000958369
Q129: -1.333333333 | R129: -1.02E+00 | S129: -2.910828025 | T129: -1 | U129: -1.000958369
Q130: -1.333333333 | R130: -1.02E+00 | S130: -2.910828025 | T130: -1 | U130: -1.000958369
Q131: =2*((L131-P$3)/(P$5-P$3))-1 -> -1.333333333 | R131: =2*((H131-P$8)/(P$10-P$8))-1 -> -1.02E+00 | S131: =2*((I131-P$13)/(P$15-P$13))-1 -> -2.910828025 | T131: =2*((J131-P$18)/(P$20-P$18))-1 -> -1 | U131: =2*((K131-P$23)/(P$25-P$23))-1 -> -1.000958369
Q132: -1.333333333 | R132: -1.02E+00 | S132: -2.910828025 | T132: -1 | U132: -1.000958369
Q133: -1.333333333 | R133: -1.02E+00 | S133: -2.910828025 | T133: -1 | U133: -1.000958369
Q134: -1.333333333 | R134: -1.02E+00 | S134: -2.910828025 | T134: -1 | U134: -1.000958369
Q135: -1.333333333 | R135: -1.02E+00 | S135: -2.910828025 | T135: -1 | U135: -1.000958369
Q136: -1.333333333 | R136: -1.02E+00 | S136: -2.910828025 | T136: -1 | U136: -1.000958369
Q137: -1.333333333 | R137: -1.02E+00 | S137: -2.910828025 | T137: -1 | U137: -1.000958369
Q138: -1.333333333 | R138: -1.02E+00 | S138: -2.910828025 | T138: -1 | U138: -1.000958369
Q139: -1.333333333 | R139: -1.02E+00 | S139: -2.910828025 | T139: -1 | U139: -1.000958369
Q140: -1.333333333 | R140: -1.02E+00 | S140: -2.910828025 | T140: -1 | U140: -1.000958369
Q141: -1.333333333 | R141: -1.02E+00 | S141: -2.910828025 | T141: -1 | U141: -1.000958369
Q142: -1.333333333 | R142: -1.02E+00 | S142: -2.910828025 | T142: -1 | U142: -1.000958369
Q143: -1.333333333 | R143: -1.02E+00 | S143: -2.910828025 | T143: -1 | U143: -1.000958369
Q144: -1.333333333 | R144: -1.02E+00 | S144: -2.910828025 | T144: -1 | U144: -1.000958369
Q145: -1.333333333 | R145: -1.02E+00 | S145: -2.910828025 | T145: -1 | U145: -1.000958369
Q146: -1.333333333 | R146: -1.02E+00 | S146: -2.910828025 | T146: -1 | U146: -1.000958369
Q147: -1.333333333 | R147: -1.02E+00 | S147: -2.910828025 | T147: -1 | U147: -1.000958369
Q148: -1.333333333 | R148: -1.02E+00 | S148: -2.910828025 | T148: -1 | U148: -1.000958369
Q149: -1.333333333 | R149: -1.02E+00 | S149: -2.910828025 | T149: -1 | U149: -1.000958369
Q150: -1.333333333 | R150: -1.02E+00 | S150: -2.910828025 | T150: -1 | U150: -1.000958369
Q151: -1.333333333 | R151: -1.02E+00 | S151: -2.910828025 | T151: -1 | U151: -1.000958369
Q152: -1.333333333 | R152: -1.02E+00 | S152: -2.910828025 | T152: -1 | U152: -1.000958369
Q153: -1.333333333 | R153: -1.02E+00 | S153: -2.910828025 | T153: -1 | U153: -1.000958369
Q154: -1.333333333 | R154: -1.02E+00 | S154: -2.910828025 | T154: -1 | U154: -1.000958369
Q155: -1.333333333 | R155: -1.02E+00 | S155: -2.910828025 | T155: -1 | U155: -1.000958369
Q156: -1.333333333 | R156: -1.02E+00 | S156: -2.910828025 | T156: -1 | U156: -1.000958369
Q157: -1.333333333 | R157: -1.02E+00 | S157: -2.910828025 | T157: -1 | U157: -1.000958369
Q158: -1.333333333 | R158: -1.02E+00 | S158: -2.910828025 | T158: -1 | U158: -1.000958369
Q159: -1.333333333 | R159: -1.02E+00 | S159: -2.910828025 | T159: -1 | U159: -1.000958369
Q160: -1.333333333 | R160: -1.02E+00 | S160: -2.910828025 | T160: -1 | U160: -1.000958369
Q161: -1.333333333 | R161: -1.02E+00 | S161: -2.910828025 | T161: -1 | U161: -1.000958369
Q162: -1.333333333 | R162: -1.02E+00 | S162: -2.910828025 | T162: -1 | U162: -1.000958369
Q163: -1.333333333 | R163: -1.02E+00 | S163: -2.910828025 | T163: -1 | U163: -1.000958369
Q164: -1.333333333 | R164: -1.02E+00 | S164: -2.910828025 | T164: -1 | U164: -1.000958369
Q165: -1.333333333 | R165: -1.02E+00 | S165: -2.910828025 | T165: -1 | U165: -1.000958369
Q166: -1.333333333 | R166: -1.02E+00 | S166: -2.910828025 | T166: -1 | U166: -1.000958369
Q167: -1.333333333 | R167: -1.02E+00 | S167: -2.910828025 | T167: -1 | U167: -1.000958369
Q168: -1.333333333 | R168: -1.02E+00 | S168: -2.910828025 | T168: -1 | U168: -1.000958369
Q169: -1.333333333 | R169: -1.02E+00 | S169: -2.910828025 | T169: -1 | U169: -1.000958369
Q170: -1.333333333 | R170: -1.02E+00 | S170: -2.910828025 | T170: -1 | U170: -1.000958369
Q171: -1.333333333 | R171: -1.02E+00 | S171: -2.910828025 | T171: -1 | U171: -1.000958369
Q172: -1.333333333 | R172: -1.02E+00 | S172: -2.910828025 | T172: -1 | U172: -1.000958369
Q173: -1.333333333 | R173: -1.02E+00 | S173: -2.910828025 | T173: -1 | U173: -1.000958369
Q174: -1.333333333 | R174: -1.02E+00 | S174: -2.910828025 | T174: -1 | U174: -1.000958369
Q175: -1.333333333 | R175: -1.02E+00 | S175: -2.910828025 | T175: -1 | U175: -1.000958369
Q176: -1.333333333 | R176: -1.02E+00 | S176: -2.910828025 | T176: -1 | U176: -1.000958369
Q177: -1.333333333 | R177: -1.02E+00 | S177: -2.910828025 | T177: -1 | U177: -1.000958369
Q178: -1.333333333 | R178: -1.02E+00 | S178: -2.910828025 | T178: -1 | U178: -1.000958369
Q179: -1.333333333 | R179: -1.02E+00 | S179: -2.910828025 | T179: -1 | U179: -1.000958369
Q180: -1.333333333 | R180: -1.02E+00 | S180: -2.910828025 | T180: -1 | U180: -1.000958369
Q181: -1.333333333 | R181: -1.02E+00 | S181: -2.910828025 | T181: -1 | U181: -1.000958369
Q182: -1.333333333 | R182: -1.02E+00 | S182: -2.910828025 | T182: -1 | U182: -1.000958369
Q183: -1.333333333 | R183: -1.02E+00 | S183: -2.910828025 | T183: -1 | U183: -1.000958369
Q184: -1.333333333 | R184: -1.02E+00 | S184: -2.910828025 | T184: -1 | U184: -1.000958369
Q185: -1.333333333 | R185: -1.02E+00 | S185: -2.910828025 | T185: -1 | U185: -1.000958369
Q186: -1.333333333 | R186: -1.02E+00 | S186: -2.910828025 | T186: -1 | U186: -1.000958369
Q187: -1.333333333 | R187: -1.02E+00 | S187: -2.910828025 | T187: -1 | U187: -1.000958369
Q188: -1.333333333 | R188: -1.02E+00 | S188: -2.910828025 | T188: -1 | U188: -1.000958369
Q189: -1.333333333 | R189: -1.02E+00 | S189: -2.910828025 | T189: -1 | U189: -1.000958369
Q190: -1.333333333 | R190: -1.02E+00 | S190: -2.910828025 | T190: -1 | U190: -1.000958369
Q191: -1.333333333 | R191: -1.02E+00 | S191: -2.910828025 | T191: -1 | U191: -1.000958369
Q192: -1.333333333 | R192: -1.02E+00 | S192: -2.910828025 | T192: -1 | U192: -1.000958369
Q193: -1.333333333 | R193: -1.02E+00 | S193: -2.910828025 | T193: -1 | U193: -1.000958369
Q194: -1.333333333 | R194: -1.02E+00 | S194: -2.910828025 | T194: -1 | U194: -1.000958369
Q195: =2*((L195-P$3)/(P$5-P$3))-1 -> -1.333333333 | R195: =2*((H195-P$8)/(P$10-P$8))-1 -> -1.02E+00 | S195: =2*((I195-P$13)/(P$15-P$13))-1 -> -2.910828025 | T195: =2*((J195-P$18)/(P$20-P$18))-1 -> -1 | U195: =2*((K195-P$23)/(P$25-P$23))-1 -> -1.000958369
Q196: -1.333333333 | R196: -1.02E+00 | S196: -2.910828025 | T196: -1 | U196: -1.000958369
Q197: -1.333333333 | R197: -1.02E+00 | S197: -2.910828025 | T197: -1 | U197: -1.000958369
Q198: -1.333333333 | R198: -1.02E+00 | S198: -2.910828025 | T198: -1 | U198: -1.000958369
Q199: -1.333333333 | R199: -1.02E+00 | S199: -2.910828025 | T199: -1 | U199: -1.000958369
Q200: -1.333333333 | R200: -1.02E+00 | S200: -2.910828025 | T200: -1 | U200: -1.000958369
... 161 more rows

Sheet RSL_PMIS_ACoverJPCP_TCrack (hidden)
A1: =PMIS_ACoverJPCP_TCrack!A1 -> Project Name | B1: =PMIS_ACoverJPCP_TCrack!B1 -> COUNAME | C1: =PMIS_ACoverJPCP_TCrack!C1 -> PROJECT_NO | D1: =PMIS_ACoverJPCP_TCrack!D1 -> BPRJ | E1: =PMIS_ACoverJPCP_TCrack!E1 -> EPRJ | F1: =PMIS_ACoverJPCP_TCrack!F1 -> CONYR | G1: =PMIS_ACoverJPCP_TCrack!G1 -> DATAYR | H1: =PMIS_ACoverJPCP_TCrack!H1 -> Accumulated ESALs | I1: =PMIS_ACoverJPCP_TCrack!I1 -> HMA Thickness (in.) | J1: =PMIS_ACoverJPCP_TCrack!J1 -> TCRACKi-2 (ft/mile) | K1: =PMIS_ACoverJPCP_TCrack!K1 -> TCRACKi-1 (ft/mile) | L1: Age | M1: Predicted TCRACK | T1: Predicted Age | U1: Last Entered Age | W1: Age-2 | X1: Age-1
A2: =IF(PMIS_ACoverJPCP_TCrack!A2<>"",PMIS_ACoverJPCP_TCrack!A2,"") ->  | B2: =IF(PMIS_ACoverJPCP_TCrack!B2<>"",PMIS_ACoverJPCP_TCrack!B2,"") ->  | C2: =IF(PMIS_ACoverJPCP_TCrack!C2<>"",PMIS_ACoverJPCP_TCrack!C2,"") ->  | D2: =IF(PMIS_ACoverJPCP_TCrack!D2<>"",PMIS_ACoverJPCP_TCrack!D2,"") ->  | E2: =IF(PMIS_ACoverJPCP_TCrack!E2<>"",PMIS_ACoverJPCP_TCrack!E2,"") ->  | F2: =IF(PMIS_ACoverJPCP_TCrack!F2<>"",PMIS_ACoverJPCP_TCrack!F2,"") ->  | G2: =IF(PMIS_ACoverJPCP_TCrack!G2<>"",PMIS_ACoverJPCP_TCrack!G2,"") ->  | H2: =PMIS_ACoverJPCP_TCrack!H2 -> 0 | I2: =PMIS_ACoverJPCP_TCrack!I2 -> 0 | J2: =PMIS_ACoverJPCP_TCrack!J2 -> 0 | K2: =PMIS_ACoverJPCP_TCrack!K2 -> 0 | L2: =IFERROR(T2,0) -> 0 | M2: =PMIS_ACoverJPCP_TCrack!M2 ->  | O2: determine TCRACK threshold | P2: =IF(OR(PMIS_ACoverJPCP_TCrack!I18=0,PMIS_ACoverJPCP_TCrack!I18=""),"",PMIS_ACoverJPCP_TCrack!I18) ->  | T2: =IF(G2<>"",G2-$F$2,T1+1) ->  | U2: =IF(G2="","",IF(G2<>"",G2-$F$2,U1+1)) ->  | W2: =L2-2 -> -2 | X2: =L2-1 -> -1
A3: =IF(PMIS_ACoverJPCP_TCrack!A3<>"",PMIS_ACoverJPCP_TCrack!A3,"") ->  | B3: =IF(PMIS_ACoverJPCP_TCrack!B3<>"",PMIS_ACoverJPCP_TCrack!B3,"") ->  | C3: =IF(PMIS_ACoverJPCP_TCrack!C3<>"",PMIS_ACoverJPCP_TCrack!C3,"") ->  | D3: =IF(PMIS_ACoverJPCP_TCrack!D3<>"",PMIS_ACoverJPCP_TCrack!D3,"") ->  | E3: =IF(PMIS_ACoverJPCP_TCrack!E3<>"",PMIS_ACoverJPCP_TCrack!E3,"") ->  | F3: =IF(PMIS_ACoverJPCP_TCrack!F3<>"",PMIS_ACoverJPCP_TCrack!F3,"") ->  | G3: =IF(PMIS_ACoverJPCP_TCrack!G3<>"",PMIS_ACoverJPCP_TCrack!G3,"") ->  | H3: =PMIS_ACoverJPCP_TCrack!H3 -> 0 | I3: =PMIS_ACoverJPCP_TCrack!I3 -> 0 | L3: =IFERROR(T3,0) -> 0 | M3: =PMIS_ACoverJPCP_TCrack!M3 ->  | O3: determine design life | P3: =IF(PMIS_ACoverJPCP_TCrack!I19="","",PMIS_ACoverJPCP_TCrack!I19) ->  | T3: =IF(G3<>"",G3-$F$2,T2+1) ->  | U3: =IF(G3="","",IF(G3<>"",G3-$F$2,U2+1)) -> 
A4: =IF(PMIS_ACoverJPCP_TCrack!A4<>"",PMIS_ACoverJPCP_TCrack!A4,"") ->  | B4: =IF(PMIS_ACoverJPCP_TCrack!B4<>"",PMIS_ACoverJPCP_TCrack!B4,"") ->  | C4: =IF(PMIS_ACoverJPCP_TCrack!C4<>"",PMIS_ACoverJPCP_TCrack!C4,"") ->  | D4: =IF(PMIS_ACoverJPCP_TCrack!D4<>"",PMIS_ACoverJPCP_TCrack!D4,"") ->  | E4: =IF(PMIS_ACoverJPCP_TCrack!E4<>"",PMIS_ACoverJPCP_TCrack!E4,"") ->  | F4: =IF(PMIS_ACoverJPCP_TCrack!F4<>"",PMIS_ACoverJPCP_TCrack!F4,"") ->  | G4: =IF(PMIS_ACoverJPCP_TCrack!G4<>"",PMIS_ACoverJPCP_TCrack!G4,"") ->  | H4: =PMIS_ACoverJPCP_TCrack!H4 -> 0 | I4: =PMIS_ACoverJPCP_TCrack!I4 -> 0 | L4: 0 | M4: =PMIS_ACoverJPCP_TCrack!M4 ->  | O4: Age at the last entered year | P4: =LOOKUP(2,1/(U2:U16<>""),U2:U16) -> 
A5: =IF(PMIS_ACoverJPCP_TCrack!A5<>"",PMIS_ACoverJPCP_TCrack!A5,"") ->  | B5: =IF(PMIS_ACoverJPCP_TCrack!B5<>"",PMIS_ACoverJPCP_TCrack!B5,"") ->  | C5: =IF(PMIS_ACoverJPCP_TCrack!C5<>"",PMIS_ACoverJPCP_TCrack!C5,"") ->  | D5: =IF(PMIS_ACoverJPCP_TCrack!D5<>"",PMIS_ACoverJPCP_TCrack!D5,"") ->  | E5: =IF(PMIS_ACoverJPCP_TCrack!E5<>"",PMIS_ACoverJPCP_TCrack!E5,"") ->  | F5: =IF(PMIS_ACoverJPCP_TCrack!F5<>"",PMIS_ACoverJPCP_TCrack!F5,"") ->  | G5: =IF(PMIS_ACoverJPCP_TCrack!G5<>"",PMIS_ACoverJPCP_TCrack!G5,"") ->  | H5: =PMIS_ACoverJPCP_TCrack!H5 -> 0 | I5: =PMIS_ACoverJPCP_TCrack!I5 -> 0 | L5: 0 | M5: =PMIS_ACoverJPCP_TCrack!M5 ->  | O5: Age at the present year | P5: =IF(PMIS_ACoverJPCP_TCrack!I20<>"",(PMIS_ACoverJPCP_TCrack!I20-LOOKUP(2,1/(G2:G16<>""),G2:G16))+P4,"") -> 
A6: =IF(PMIS_ACoverJPCP_TCrack!A6<>"",PMIS_ACoverJPCP_TCrack!A6,"") ->  | B6: =IF(PMIS_ACoverJPCP_TCrack!B6<>"",PMIS_ACoverJPCP_TCrack!B6,"") ->  | C6: =IF(PMIS_ACoverJPCP_TCrack!C6<>"",PMIS_ACoverJPCP_TCrack!C6,"") ->  | D6: =IF(PMIS_ACoverJPCP_TCrack!D6<>"",PMIS_ACoverJPCP_TCrack!D6,"") ->  | E6: =IF(PMIS_ACoverJPCP_TCrack!E6<>"",PMIS_ACoverJPCP_TCrack!E6,"") ->  | F6: =IF(PMIS_ACoverJPCP_TCrack!F6<>"",PMIS_ACoverJPCP_TCrack!F6,"") ->  | G6: =IF(PMIS_ACoverJPCP_TCrack!G6<>"",PMIS_ACoverJPCP_TCrack!G6,"") ->  | H6: =PMIS_ACoverJPCP_TCrack!H6 -> 0 | I6: =PMIS_ACoverJPCP_TCrack!I6 -> 0 | L6: 0 | M6: =PMIS_ACoverJPCP_TCrack!M6 ->  | O6: Calculated RSL based on TCRACK threshold limit:
A7: =IF(PMIS_ACoverJPCP_TCrack!A7<>"",PMIS_ACoverJPCP_TCrack!A7,"") ->  | B7: =IF(PMIS_ACoverJPCP_TCrack!B7<>"",PMIS_ACoverJPCP_TCrack!B7,"") ->  | C7: =IF(PMIS_ACoverJPCP_TCrack!C7<>"",PMIS_ACoverJPCP_TCrack!C7,"") ->  | D7: =IF(PMIS_ACoverJPCP_TCrack!D7<>"",PMIS_ACoverJPCP_TCrack!D7,"") ->  | E7: =IF(PMIS_ACoverJPCP_TCrack!E7<>"",PMIS_ACoverJPCP_TCrack!E7,"") ->  | F7: =IF(PMIS_ACoverJPCP_TCrack!F7<>"",PMIS_ACoverJPCP_TCrack!F7,"") ->  | G7: =IF(PMIS_ACoverJPCP_TCrack!G7<>"",PMIS_ACoverJPCP_TCrack!G7,"") ->  | H7: =PMIS_ACoverJPCP_TCrack!H7 -> 0 | I7: =PMIS_ACoverJPCP_TCrack!I7 -> 0 | L7: 0 | M7: =PMIS_ACoverJPCP_TCrack!M7 ->  | O7: Age at TCRACK threshold | P7: =IF(P2="","", IF(LOOKUP(2,1/(J2:K2<>""),J2:K2)>P2,"Entered TCRACK already exceeded threshold limit!", IF(AND(P2<>"",M16>P2),INDEX(L2:L16,MATCH(TRUE,$M$2:$M$16>P2,0)),"TCRACK predictions do not reach the threshold limit!"))) -> 
A8: =IF(PMIS_ACoverJPCP_TCrack!A8<>"",PMIS_ACoverJPCP_TCrack!A8,"") ->  | B8: =IF(PMIS_ACoverJPCP_TCrack!B8<>"",PMIS_ACoverJPCP_TCrack!B8,"") ->  | C8: =IF(PMIS_ACoverJPCP_TCrack!C8<>"",PMIS_ACoverJPCP_TCrack!C8,"") ->  | D8: =IF(PMIS_ACoverJPCP_TCrack!D8<>"",PMIS_ACoverJPCP_TCrack!D8,"") ->  | E8: =IF(PMIS_ACoverJPCP_TCrack!E8<>"",PMIS_ACoverJPCP_TCrack!E8,"") ->  | F8: =IF(PMIS_ACoverJPCP_TCrack!F8<>"",PMIS_ACoverJPCP_TCrack!F8,"") ->  | G8: =IF(PMIS_ACoverJPCP_TCrack!G8<>"",PMIS_ACoverJPCP_TCrack!G8,"") ->  | H8: =PMIS_ACoverJPCP_TCrack!H8 -> 0 | I8: =PMIS_ACoverJPCP_TCrack!I8 -> 0 | L8: 0 | M8: =PMIS_ACoverJPCP_TCrack!M8 ->  | O8: RSL | P8: =IF(ISTEXT(P7),"",IF(P5<>"",P7-P5,P7-P4)) ->  | Q8: =IF(P8<>"",ROUND(P8,1),"") -> 
A9: =IF(PMIS_ACoverJPCP_TCrack!A9<>"",PMIS_ACoverJPCP_TCrack!A9,"") ->  | B9: =IF(PMIS_ACoverJPCP_TCrack!B9<>"",PMIS_ACoverJPCP_TCrack!B9,"") ->  | C9: =IF(PMIS_ACoverJPCP_TCrack!C9<>"",PMIS_ACoverJPCP_TCrack!C9,"") ->  | D9: =IF(PMIS_ACoverJPCP_TCrack!D9<>"",PMIS_ACoverJPCP_TCrack!D9,"") ->  | E9: =IF(PMIS_ACoverJPCP_TCrack!E9<>"",PMIS_ACoverJPCP_TCrack!E9,"") ->  | F9: =IF(PMIS_ACoverJPCP_TCrack!F9<>"",PMIS_ACoverJPCP_TCrack!F9,"") ->  | G9: =IF(PMIS_ACoverJPCP_TCrack!G9<>"",PMIS_ACoverJPCP_TCrack!G9,"") ->  | H9: =PMIS_ACoverJPCP_TCrack!H9 -> 0 | I9: =PMIS_ACoverJPCP_TCrack!I9 -> 0 | L9: 0 | M9: =PMIS_ACoverJPCP_TCrack!M9 ->  | Q9: =IF(ISTEXT(P7),P7, IF(P4=P5,"RSL (at present year) ", IF(P5<P4,"RSL (at the last entered year) ", IF(P5<>"","RSL (at present year) ", IF(P5="","RSL (at the last entered year) ", IF(AND(P5<P3,P5>P4),"RSL (at present year) ")))))) -> 
A10: =IF(PMIS_ACoverJPCP_TCrack!A10<>"",PMIS_ACoverJPCP_TCrack!A10,"") ->  | B10: =IF(PMIS_ACoverJPCP_TCrack!B10<>"",PMIS_ACoverJPCP_TCrack!B10,"") ->  | C10: =IF(PMIS_ACoverJPCP_TCrack!C10<>"",PMIS_ACoverJPCP_TCrack!C10,"") ->  | D10: =IF(PMIS_ACoverJPCP_TCrack!D10<>"",PMIS_ACoverJPCP_TCrack!D10,"") ->  | E10: =IF(PMIS_ACoverJPCP_TCrack!E10<>"",PMIS_ACoverJPCP_TCrack!E10,"") ->  | F10: =IF(PMIS_ACoverJPCP_TCrack!F10<>"",PMIS_ACoverJPCP_TCrack!F10,"") ->  | G10: =IF(PMIS_ACoverJPCP_TCrack!G10<>"",PMIS_ACoverJPCP_TCrack!G10,"") ->  | H10: =PMIS_ACoverJPCP_TCrack!H10 -> 0 | I10: =PMIS_ACoverJPCP_TCrack!I10 -> 0 | L10: 0 | M10: =PMIS_ACoverJPCP_TCrack!M10 -> 
A11: =IF(PMIS_ACoverJPCP_TCrack!A11<>"",PMIS_ACoverJPCP_TCrack!A11,"") ->  | B11: =IF(PMIS_ACoverJPCP_TCrack!B11<>"",PMIS_ACoverJPCP_TCrack!B11,"") ->  | C11: =IF(PMIS_ACoverJPCP_TCrack!C11<>"",PMIS_ACoverJPCP_TCrack!C11,"") ->  | D11: =IF(PMIS_ACoverJPCP_TCrack!D11<>"",PMIS_ACoverJPCP_TCrack!D11,"") ->  | E11: =IF(PMIS_ACoverJPCP_TCrack!E11<>"",PMIS_ACoverJPCP_TCrack!E11,"") ->  | F11: =IF(PMIS_ACoverJPCP_TCrack!F11<>"",PMIS_ACoverJPCP_TCrack!F11,"") ->  | G11: =IF(PMIS_ACoverJPCP_TCrack!G11<>"",PMIS_ACoverJPCP_TCrack!G11,"") ->  | H11: =PMIS_ACoverJPCP_TCrack!H11 -> 0 | I11: =PMIS_ACoverJPCP_TCrack!I11 -> 0 | L11: 0 | M11: =PMIS_ACoverJPCP_TCrack!M11 ->  | O11: Calculated RSL based on Design Life:
A12: =IF(PMIS_ACoverJPCP_TCrack!A12<>"",PMIS_ACoverJPCP_TCrack!A12,"") ->  | B12: =IF(PMIS_ACoverJPCP_TCrack!B12<>"",PMIS_ACoverJPCP_TCrack!B12,"") ->  | C12: =IF(PMIS_ACoverJPCP_TCrack!C12<>"",PMIS_ACoverJPCP_TCrack!C12,"") ->  | D12: =IF(PMIS_ACoverJPCP_TCrack!D12<>"",PMIS_ACoverJPCP_TCrack!D12,"") ->  | E12: =IF(PMIS_ACoverJPCP_TCrack!E12<>"",PMIS_ACoverJPCP_TCrack!E12,"") ->  | F12: =IF(PMIS_ACoverJPCP_TCrack!F12<>"",PMIS_ACoverJPCP_TCrack!F12,"") ->  | G12: =IF(PMIS_ACoverJPCP_TCrack!G12<>"",PMIS_ACoverJPCP_TCrack!G12,"") ->  | H12: =PMIS_ACoverJPCP_TCrack!H12 -> 0 | I12: =PMIS_ACoverJPCP_TCrack!I12 -> 0 | L12: 0 | M12: =PMIS_ACoverJPCP_TCrack!M12 ->  | O12: RSL at the present year | P12: =IF(P3<>"",IF(U2>P3,"Entered age already exceeded design service life!", IF(AND(P5<>"",(P5<P3)),P3-MAX(P4,P5), IF(AND(P5<>"",(P5>P3)),"Please enter smaller 'present year' value!", IF(P5="",(P3-P4))))),"") ->  | Q12: =IF(ISTEXT(P12),P12,IF(P12<>"",ROUND(P12,1),"")) -> 
A13: =IF(PMIS_ACoverJPCP_TCrack!A13<>"",PMIS_ACoverJPCP_TCrack!A13,"") ->  | B13: =IF(PMIS_ACoverJPCP_TCrack!B13<>"",PMIS_ACoverJPCP_TCrack!B13,"") ->  | C13: =IF(PMIS_ACoverJPCP_TCrack!C13<>"",PMIS_ACoverJPCP_TCrack!C13,"") ->  | D13: =IF(PMIS_ACoverJPCP_TCrack!D13<>"",PMIS_ACoverJPCP_TCrack!D13,"") ->  | E13: =IF(PMIS_ACoverJPCP_TCrack!E13<>"",PMIS_ACoverJPCP_TCrack!E13,"") ->  | F13: =IF(PMIS_ACoverJPCP_TCrack!F13<>"",PMIS_ACoverJPCP_TCrack!F13,"") ->  | G13: =IF(PMIS_ACoverJPCP_TCrack!G13<>"",PMIS_ACoverJPCP_TCrack!G13,"") ->  | H13: =PMIS_ACoverJPCP_TCrack!H13 -> 0 | I13: =PMIS_ACoverJPCP_TCrack!I13 -> 0 | L13: 0 | M13: =PMIS_ACoverJPCP_TCrack!M13 ->  | Q13: =IF(ISTEXT(P12),P12, IF(P4=P5,"RSL (at present year) ", IF(P5<P4,"RSL (at the last entered year) ", IF(AND(P4<>"",P5=""),"RSL (at the last entered year) ", IF(AND(P5<P3,P5>P4),"RSL (at present year) ", IF(AND(P5="",P12=""),"","")))))) -> 
A14: =IF(PMIS_ACoverJPCP_TCrack!A14<>"",PMIS_ACoverJPCP_TCrack!A14,"") ->  | B14: =IF(PMIS_ACoverJPCP_TCrack!B14<>"",PMIS_ACoverJPCP_TCrack!B14,"") ->  | C14: =IF(PMIS_ACoverJPCP_TCrack!C14<>"",PMIS_ACoverJPCP_TCrack!C14,"") ->  | D14: =IF(PMIS_ACoverJPCP_TCrack!D14<>"",PMIS_ACoverJPCP_TCrack!D14,"") ->  | E14: =IF(PMIS_ACoverJPCP_TCrack!E14<>"",PMIS_ACoverJPCP_TCrack!E14,"") ->  | F14: =IF(PMIS_ACoverJPCP_TCrack!F14<>"",PMIS_ACoverJPCP_TCrack!F14,"") ->  | G14: =IF(PMIS_ACoverJPCP_TCrack!G14<>"",PMIS_ACoverJPCP_TCrack!G14,"") ->  | H14: =PMIS_ACoverJPCP_TCrack!H14 -> 0 | I14: =PMIS_ACoverJPCP_TCrack!I14 -> 0 | L14: 0 | M14: =PMIS_ACoverJPCP_TCrack!M14 ->  | O14: RSL
A15: =IF(PMIS_ACoverJPCP_TCrack!A15<>"",PMIS_ACoverJPCP_TCrack!A15,"") ->  | B15: =IF(PMIS_ACoverJPCP_TCrack!B15<>"",PMIS_ACoverJPCP_TCrack!B15,"") ->  | C15: =IF(PMIS_ACoverJPCP_TCrack!C15<>"",PMIS_ACoverJPCP_TCrack!C15,"") ->  | D15: =IF(PMIS_ACoverJPCP_TCrack!D15<>"",PMIS_ACoverJPCP_TCrack!D15,"") ->  | E15: =IF(PMIS_ACoverJPCP_TCrack!E15<>"",PMIS_ACoverJPCP_TCrack!E15,"") ->  | F15: =IF(PMIS_ACoverJPCP_TCrack!F15<>"",PMIS_ACoverJPCP_TCrack!F15,"") ->  | G15: =IF(PMIS_ACoverJPCP_TCrack!G15<>"",PMIS_ACoverJPCP_TCrack!G15,"") ->  | H15: =PMIS_ACoverJPCP_TCrack!H15 -> 0 | I15: =PMIS_ACoverJPCP_TCrack!I15 -> 0 | L15: 0 | M15: =PMIS_ACoverJPCP_TCrack!M15 ->  | N15: RSL (at the last entered year) | O15: =IF(AND(Q8<>"",Q12<>""),MIN(Q8,Q12), IF(AND(Q8="",Q9="Entered TCRACK already exceeded threshold limit!",Q12<>""),"", IF(AND(Q8="",Q12<>""),Q12, IF(AND(Q8<>"",Q12=""),Q8,"")))) -> 
A16: =IF(PMIS_ACoverJPCP_TCrack!A16<>"",PMIS_ACoverJPCP_TCrack!A16,"") ->  | B16: =IF(PMIS_ACoverJPCP_TCrack!B16<>"",PMIS_ACoverJPCP_TCrack!B16,"") ->  | C16: =IF(PMIS_ACoverJPCP_TCrack!C16<>"",PMIS_ACoverJPCP_TCrack!C16,"") ->  | D16: =IF(PMIS_ACoverJPCP_TCrack!D16<>"",PMIS_ACoverJPCP_TCrack!D16,"") ->  | E16: =IF(PMIS_ACoverJPCP_TCrack!E16<>"",PMIS_ACoverJPCP_TCrack!E16,"") ->  | F16: =IF(PMIS_ACoverJPCP_TCrack!F16<>"",PMIS_ACoverJPCP_TCrack!F16,"") ->  | G16: =IF(PMIS_ACoverJPCP_TCrack!G16<>"",PMIS_ACoverJPCP_TCrack!G16,"") ->  | H16: =PMIS_ACoverJPCP_TCrack!H16 -> 0 | I16: =PMIS_ACoverJPCP_TCrack!I16 -> 0 | L16: 0 | M16: =PMIS_ACoverJPCP_TCrack!M16 ->  | O16: =IF(AND(P2="",P3=""),"RSL could not be calculated. Please enter more information!", IF(AND(ISNUMBER(Q12),P7="Entered TCRACK already exceeded threshold limit!"),Q9, IF(AND(Q12="",P7="Entered TCRACK already exceeded threshold limit!"),Q9, IF(AND(ISNUMBER(Q12),P7="TCRACK predictions do not reach the threshold limit!"),(Q9&""&CHAR(10)&" Thus, "&Q13&""&"calculated based on the design life!"), IF(AND(P3="",P7="TCRACK predictions do not reach the threshold limit!"),(P7&""&CHAR(10)&" Thus, RSL could not be calculated. Please enter more information!"), IF(AND(ISNUMBER(Q8),ISTEXT(P12)),(Q9&""&CHAR(10)&"calculated based on the pavement performance"&CHAR(10)&P12), IF(P12="Please enter smaller 'present year' value!",P12, IF(P12="Entered age already exceeded design service life!",P12, IF(AND(O15=Q8,O15=Q12,ISNUMBER(O15)),Q13&""&"calculated based on the design life and pavement performance", IF(AND(Q8<>"",O15=Q8),Q9&""&CHAR(10)&"calculated based on the pavement performance",Q13&""&"calculated based on the design life")))))))))) -> RSL could not be calculated. Please enter more information!

Sheet Sheet1_PMIS_ACoverJPCP_Rut (hidden)
A1: =PMIS_ACoverJPCP_Rut!A1 -> Project Name | B1: =PMIS_ACoverJPCP_Rut!B1 -> COUNAME | C1: =PMIS_ACoverJPCP_Rut!C1 -> PROJECT_NO | D1: =PMIS_ACoverJPCP_Rut!D1 -> BPRJ | E1: =PMIS_ACoverJPCP_Rut!E1 -> EPRJ | F1: =PMIS_ACoverJPCP_Rut!F1 -> CONYR | G1: =PMIS_ACoverJPCP_Rut!G1 -> DATAYR | H1: =PMIS_ACoverJPCP_Rut!H1 -> Accumulated ESALs | I1: =PMIS_ACoverJPCP_Rut!I1 -> HMA Thickness (in.) | J1: =PMIS_ACoverJPCP_Rut!J1 -> RUTi-2 (in) | K1: =PMIS_ACoverJPCP_Rut!K1 -> RUTi-1 (in) | L1: =PMIS_ACoverJPCP_Rut!L1 -> Age (years) | M1: =PMIS_ACoverJPCP_Rut!M1 -> RUTi (in) | O1: Normalized Inputs | P1: Age | Q1: Age | R1: Acc ESAL | S1: HMA surface thickness, inch | T1: RUTi-2, in | U1: RUTi-1, in | Z1: IW
A2: =PMIS_ACoverJPCP_Rut!A2 -> 0 | B2: =PMIS_ACoverJPCP_Rut!B2 -> 0 | C2: =PMIS_ACoverJPCP_Rut!C2 -> 0 | D2: =PMIS_ACoverJPCP_Rut!D2 -> 0 | E2: =PMIS_ACoverJPCP_Rut!E2 -> 0 | F2: =PMIS_ACoverJPCP_Rut!F2 -> 0 | G2: =PMIS_ACoverJPCP_Rut!G2 -> 0 | H2: =PMIS_ACoverJPCP_Rut!H2 -> 0 | I2: =PMIS_ACoverJPCP_Rut!I2 -> 0 | J2: =PMIS_ACoverJPCP_Rut!J2 -> 0 | K2: =PMIS_ACoverJPCP_Rut!K2 -> 0 | L2: =RSL_PMIS_ACoverJPCP_Rut!L2 -> 0 | M2: =PMIS_ACoverJPCP_Rut!M2 ->  | N2: Rut min | P2: min | Q2: =2*((L2-P$3)/(P$5-P$3))-1 -> -1.333333333 | R2: =2*((H2-P$8)/(P$10-P$8))-1 -> -1.02E+00 | S2: =2*((I2-P$13)/(P$15-P$13))-1 -> -2.910828025 | T2: =2*((J2-P$18)/(P$20-P$18))-1 -> -1 | U2: =2*((K2-P$23)/(P$25-P$23))-1 -> -1.108107737 | Z2: 0.549358 | AA2: 0.428049 | AB2: -2.05561 | AC2: -1.4291 | AD2: 0.0251608
A3: =PMIS_ACoverJPCP_Rut!A3 -> 0 | B3: =PMIS_ACoverJPCP_Rut!B3 -> 0 | C3: =PMIS_ACoverJPCP_Rut!C3 -> 0 | D3: =PMIS_ACoverJPCP_Rut!D3 -> 0 | E3: =PMIS_ACoverJPCP_Rut!E3 -> 0 | F3: =PMIS_ACoverJPCP_Rut!F3 -> 0 | G3: =PMIS_ACoverJPCP_Rut!G3 -> 0 | H3: =IF(PMIS_ACoverJPCP_Rut!H3="",H2+H2*(PMIS_ACoverJPCP_Rut!$I$22/100),PMIS_ACoverJPCP_Rut!H3) -> 0 | I3: =IF(PMIS_ACoverJPCP_Rut!H3="",I2,PMIS_ACoverJPCP_Rut!I3) -> 0 | J3: =PMIS_ACoverJPCP_Rut!J3 -> 0 | K3: =PMIS_ACoverJPCP_Rut!K3 -> 0 | L3: =RSL_PMIS_ACoverJPCP_Rut!L3 -> 0 | M3: =PMIS_ACoverJPCP_Rut!M3 ->  | N3: 0.0314961 | P3: 2 | Q3: =2*((L3-P$3)/(P$5-P$3))-1 -> -1.333333333 | R3: =2*((H3-P$8)/(P$10-P$8))-1 -> -1.02E+00 | S3: =2*((I3-P$13)/(P$15-P$13))-1 -> -2.910828025 | T3: =2*((J3-P$18)/(P$20-P$18))-1 -> -1 | U3: =2*((K3-P$23)/(P$25-P$23))-1 -> -1.108107737 | Z3: -0.834151 | AA3: -0.114077 | AB3: -0.201891 | AC3: -2.2655 | AD3: -0.642779
A4: =PMIS_ACoverJPCP_Rut!A4 -> 0 | B4: =PMIS_ACoverJPCP_Rut!B4 -> 0 | C4: =PMIS_ACoverJPCP_Rut!C4 -> 0 | D4: =PMIS_ACoverJPCP_Rut!D4 -> 0 | E4: =PMIS_ACoverJPCP_Rut!E4 -> 0 | F4: =PMIS_ACoverJPCP_Rut!F4 -> 0 | G4: =PMIS_ACoverJPCP_Rut!G4 -> 0 | H4: =IF(PMIS_ACoverJPCP_Rut!H4="",H3+H3*(PMIS_ACoverJPCP_Rut!$I$22/100),PMIS_ACoverJPCP_Rut!H4) -> 0 | I4: =IF(PMIS_ACoverJPCP_Rut!H4="",I3,PMIS_ACoverJPCP_Rut!I4) -> 0 | J4: =PMIS_ACoverJPCP_Rut!J4 -> 0 | K4: =PMIS_ACoverJPCP_Rut!K4 -> 0 | L4: =RSL_PMIS_ACoverJPCP_Rut!L4 -> 0 | M4: =PMIS_ACoverJPCP_Rut!M4 ->  | N4: Rutmax | P4: max | Q4: -1.333333333 | R4: -1.02E+00 | S4: -2.910828025 | T4: -1 | U4: -1.108107737 | Z4: -0.748999 | AA4: 0.263721 | AB4: -0.838541 | AC4: 0.0398306 | AD4: 1.8165
A5: =PMIS_ACoverJPCP_Rut!A5 -> 0 | B5: =PMIS_ACoverJPCP_Rut!B5 -> 0 | C5: =PMIS_ACoverJPCP_Rut!C5 -> 0 | D5: =PMIS_ACoverJPCP_Rut!D5 -> 0 | E5: =PMIS_ACoverJPCP_Rut!E5 -> 0 | F5: =PMIS_ACoverJPCP_Rut!F5 -> 0 | G5: =PMIS_ACoverJPCP_Rut!G5 -> 0 | H5: =IF(PMIS_ACoverJPCP_Rut!H5="",H4+H4*(PMIS_ACoverJPCP_Rut!$I$22/100),PMIS_ACoverJPCP_Rut!H5) -> 0 | I5: =IF(PMIS_ACoverJPCP_Rut!H5="",I4,PMIS_ACoverJPCP_Rut!I5) -> 0 | J5: =PMIS_ACoverJPCP_Rut!J5 -> 0 | K5: =PMIS_ACoverJPCP_Rut!K5 -> 0 | L5: =RSL_PMIS_ACoverJPCP_Rut!L5 -> 0 | M5: =PMIS_ACoverJPCP_Rut!M5 ->  | N5: 0.354331 | P5: 14 | Q5: -1.333333333 | R5: -1.02E+00 | S5: -2.910828025 | T5: -1 | U5: -1.108107737 | Z5: -1.10266 | AA5: 1.1277 | AB5: -1.16077 | AC5: 1.02471 | AD5: -1.24126
A6: =PMIS_ACoverJPCP_Rut!A6 -> 0 | B6: =PMIS_ACoverJPCP_Rut!B6 -> 0 | C6: =PMIS_ACoverJPCP_Rut!C6 -> 0 | D6: =PMIS_ACoverJPCP_Rut!D6 -> 0 | E6: =PMIS_ACoverJPCP_Rut!E6 -> 0 | F6: =PMIS_ACoverJPCP_Rut!F6 -> 0 | G6: =PMIS_ACoverJPCP_Rut!G6 -> 0 | H6: =IF(PMIS_ACoverJPCP_Rut!H6="",H5+H5*(PMIS_ACoverJPCP_Rut!$I$22/100),PMIS_ACoverJPCP_Rut!H6) -> 0 | I6: =IF(PMIS_ACoverJPCP_Rut!H6="",I5,PMIS_ACoverJPCP_Rut!I6) -> 0 | J6: =PMIS_ACoverJPCP_Rut!J6 -> 0 | K6: =PMIS_ACoverJPCP_Rut!K6 -> 0 | L6: =RSL_PMIS_ACoverJPCP_Rut!L6 -> 0 | M6: =PMIS_ACoverJPCP_Rut!M6 ->  | P6: ACC | Q6: -1.333333333 | R6: -1.02E+00 | S6: -2.910828025 | T6: -1 | U6: -1.108107737 | Z6: -0.966724 | AA6: 0.365213 | AB6: -1.45776 | AC6: 1.05275 | AD6: -1.06269
A7: =PMIS_ACoverJPCP_Rut!A7 -> 0 | B7: =PMIS_ACoverJPCP_Rut!B7 -> 0 | C7: =PMIS_ACoverJPCP_Rut!C7 -> 0 | D7: =PMIS_ACoverJPCP_Rut!D7 -> 0 | E7: =PMIS_ACoverJPCP_Rut!E7 -> 0 | F7: =PMIS_ACoverJPCP_Rut!F7 -> 0 | G7: =PMIS_ACoverJPCP_Rut!G7 -> 0 | H7: =IF(PMIS_ACoverJPCP_Rut!H7="",H6+H6*(PMIS_ACoverJPCP_Rut!$I$22/100),PMIS_ACoverJPCP_Rut!H7) -> 0 | I7: =IF(PMIS_ACoverJPCP_Rut!H7="",I6,PMIS_ACoverJPCP_Rut!I7) -> 0 | J7: =PMIS_ACoverJPCP_Rut!J7 -> 0 | K7: =PMIS_ACoverJPCP_Rut!K7 -> 0 | L7: =RSL_PMIS_ACoverJPCP_Rut!L7 -> 0 | M7: =PMIS_ACoverJPCP_Rut!M7 ->  | P7: min | Q7: -1.333333333 | R7: -1.02E+00 | S7: -2.910828025 | T7: -1 | U7: -1.108107737 | Z7: -0.733971 | AA7: -1.11677 | AB7: 0.510494 | AC7: -0.645126 | AD7: 2.01765
A8: =PMIS_ACoverJPCP_Rut!A8 -> 0 | B8: =PMIS_ACoverJPCP_Rut!B8 -> 0 | C8: =PMIS_ACoverJPCP_Rut!C8 -> 0 | D8: =PMIS_ACoverJPCP_Rut!D8 -> 0 | E8: =PMIS_ACoverJPCP_Rut!E8 -> 0 | F8: =PMIS_ACoverJPCP_Rut!F8 -> 0 | G8: =PMIS_ACoverJPCP_Rut!G8 -> 0 | H8: =IF(PMIS_ACoverJPCP_Rut!H8="",H7+H7*(PMIS_ACoverJPCP_Rut!$I$22/100),PMIS_ACoverJPCP_Rut!H8) -> 0 | I8: =IF(PMIS_ACoverJPCP_Rut!H8="",I7,PMIS_ACoverJPCP_Rut!I8) -> 0 | J8: =PMIS_ACoverJPCP_Rut!J8 -> 0 | K8: =PMIS_ACoverJPCP_Rut!K8 -> 0 | L8: =RSL_PMIS_ACoverJPCP_Rut!L8 -> 0 | M8: =PMIS_ACoverJPCP_Rut!M8 ->  | P8: 528666 | Q8: -1.333333333 | R8: -1.02E+00 | S8: -2.910828025 | T8: -1 | U8: -1.108107737 | Z8: 1.13243 | AA8: 0.704231 | AB8: -1.31393 | AC8: 1.37672 | AD8: -0.172793
A9: =PMIS_ACoverJPCP_Rut!A9 -> 0 | B9: =PMIS_ACoverJPCP_Rut!B9 -> 0 | C9: =PMIS_ACoverJPCP_Rut!C9 -> 0 | D9: =PMIS_ACoverJPCP_Rut!D9 -> 0 | E9: =PMIS_ACoverJPCP_Rut!E9 -> 0 | F9: =PMIS_ACoverJPCP_Rut!F9 -> 0 | G9: =PMIS_ACoverJPCP_Rut!G9 -> 0 | H9: =IF(PMIS_ACoverJPCP_Rut!H9="",H8+H8*(PMIS_ACoverJPCP_Rut!$I$22/100),PMIS_ACoverJPCP_Rut!H9) -> 0 | I9: =IF(PMIS_ACoverJPCP_Rut!H9="",I8,PMIS_ACoverJPCP_Rut!I9) -> 0 | J9: =PMIS_ACoverJPCP_Rut!J9 -> 0 | K9: =PMIS_ACoverJPCP_Rut!K9 -> 0 | L9: =RSL_PMIS_ACoverJPCP_Rut!L9 -> 0 | M9: =PMIS_ACoverJPCP_Rut!M9 ->  | P9: max | Q9: -1.333333333 | R9: -1.02E+00 | S9: -2.910828025 | T9: -1 | U9: -1.108107737 | Z9: -0.271193 | AA9: 2.26874 | AB9: 0.828385 | AC9: 0.0386794 | AD9: -0.805652
A10: =PMIS_ACoverJPCP_Rut!A10 -> 0 | B10: =PMIS_ACoverJPCP_Rut!B10 -> 0 | C10: =PMIS_ACoverJPCP_Rut!C10 -> 0 | D10: =PMIS_ACoverJPCP_Rut!D10 -> 0 | E10: =PMIS_ACoverJPCP_Rut!E10 -> 0 | F10: =PMIS_ACoverJPCP_Rut!F10 -> 0 | G10: =PMIS_ACoverJPCP_Rut!G10 -> 0 | H10: =IF(PMIS_ACoverJPCP_Rut!H10="",H9+H9*(PMIS_ACoverJPCP_Rut!$I$22/100),PMIS_ACoverJPCP_Rut!H10) -> 0 | I10: =IF(PMIS_ACoverJPCP_Rut!H10="",I9,PMIS_ACoverJPCP_Rut!I10) -> 0 | J10: =PMIS_ACoverJPCP_Rut!J10 -> 0 | K10: =PMIS_ACoverJPCP_Rut!K10 -> 0 | L10: =RSL_PMIS_ACoverJPCP_Rut!L10 -> 0 | M10: =PMIS_ACoverJPCP_Rut!M10 ->  | P10: 6.70E+07 | Q10: -1.333333333 | R10: -1.02E+00 | S10: -2.910828025 | T10: -1 | U10: -1.108107737 | Z10: 0.78481 | AA10: 2.14156 | AB10: 0.396912 | AC10: -0.351373 | AD10: -0.894485
A11: =PMIS_ACoverJPCP_Rut!A11 -> 0 | B11: =PMIS_ACoverJPCP_Rut!B11 -> 0 | C11: =PMIS_ACoverJPCP_Rut!C11 -> 0 | D11: =PMIS_ACoverJPCP_Rut!D11 -> 0 | E11: =PMIS_ACoverJPCP_Rut!E11 -> 0 | F11: =PMIS_ACoverJPCP_Rut!F11 -> 0 | G11: =PMIS_ACoverJPCP_Rut!G11 -> 0 | H11: =IF(PMIS_ACoverJPCP_Rut!H11="",H10+H10*(PMIS_ACoverJPCP_Rut!$I$22/100),PMIS_ACoverJPCP_Rut!H11) -> 0 | I11: =IF(PMIS_ACoverJPCP_Rut!H11="",I10,PMIS_ACoverJPCP_Rut!I11) -> 0 | J11: =PMIS_ACoverJPCP_Rut!J11 -> 0 | K11: =PMIS_ACoverJPCP_Rut!K11 -> 0 | L11: =RSL_PMIS_ACoverJPCP_Rut!L11 -> 0 | M11: =PMIS_ACoverJPCP_Rut!M11 ->  | P11: HMA sur | Q11: -1.333333333 | R11: -1.02E+00 | S11: -2.910828025 | T11: -1 | U11: -1.108107737 | Z11: 0.0636682 | AA11: 0.52444 | AB11: -1.16841 | AC11: 0.790218 | AD11: 0.96485
A12: =PMIS_ACoverJPCP_Rut!A12 -> 0 | B12: =PMIS_ACoverJPCP_Rut!B12 -> 0 | C12: =PMIS_ACoverJPCP_Rut!C12 -> 0 | D12: =PMIS_ACoverJPCP_Rut!D12 -> 0 | E12: =PMIS_ACoverJPCP_Rut!E12 -> 0 | F12: =PMIS_ACoverJPCP_Rut!F12 -> 0 | G12: =PMIS_ACoverJPCP_Rut!G12 -> 0 | H12: =IF(PMIS_ACoverJPCP_Rut!H12="",H11+H11*(PMIS_ACoverJPCP_Rut!$I$22/100),PMIS_ACoverJPCP_Rut!H12) -> 0 | I12: =IF(PMIS_ACoverJPCP_Rut!H12="",I11,PMIS_ACoverJPCP_Rut!I12) -> 0 | J12: =PMIS_ACoverJPCP_Rut!J12 -> 0 | K12: =PMIS_ACoverJPCP_Rut!K12 -> 0 | L12: =RSL_PMIS_ACoverJPCP_Rut!L12 -> 0 | M12: =PMIS_ACoverJPCP_Rut!M12 ->  | P12: min | Q12: -1.333333333 | R12: -1.02E+00 | S12: -2.910828025 | T12: -1 | U12: -1.108107737 | Z12: 1.50032 | AA12: 0.867297 | AB12: -1.02002 | AC12: 0.669018 | AD12: 1.07598
A13: =PMIS_ACoverJPCP_Rut!A13 -> 0 | B13: =PMIS_ACoverJPCP_Rut!B13 -> 0 | C13: =PMIS_ACoverJPCP_Rut!C13 -> 0 | D13: =PMIS_ACoverJPCP_Rut!D13 -> 0 | E13: =PMIS_ACoverJPCP_Rut!E13 -> 0 | F13: =PMIS_ACoverJPCP_Rut!F13 -> 0 | G13: =PMIS_ACoverJPCP_Rut!G13 -> 0 | H13: =IF(PMIS_ACoverJPCP_Rut!H13="",H12+H12*(PMIS_ACoverJPCP_Rut!$I$22/100),PMIS_ACoverJPCP_Rut!H13) -> 0 | I13: =IF(PMIS_ACoverJPCP_Rut!H13="",I12,PMIS_ACoverJPCP_Rut!I13) -> 0 | J13: =PMIS_ACoverJPCP_Rut!J13 -> 0 | K13: =PMIS_ACoverJPCP_Rut!K13 -> 0 | L13: =RSL_PMIS_ACoverJPCP_Rut!L13 -> 0 | M13: =PMIS_ACoverJPCP_Rut!M13 ->  | P13: 1.5 | Q13: -1.333333333 | R13: -1.02E+00 | S13: -2.910828025 | T13: -1 | U13: -1.108107737 | Z13: 1.38395 | AA13: 1.46656 | AB13: -0.496711 | AC13: 1.11334 | AD13: 0.933058
A14: =PMIS_ACoverJPCP_Rut!A14 -> 0 | B14: =PMIS_ACoverJPCP_Rut!B14 -> 0 | C14: =PMIS_ACoverJPCP_Rut!C14 -> 0 | D14: =PMIS_ACoverJPCP_Rut!D14 -> 0 | E14: =PMIS_ACoverJPCP_Rut!E14 -> 0 | F14: =PMIS_ACoverJPCP_Rut!F14 -> 0 | G14: =PMIS_ACoverJPCP_Rut!G14 -> 0 | H14: =IF(PMIS_ACoverJPCP_Rut!H14="",H13+H13*(PMIS_ACoverJPCP_Rut!$I$22/100),PMIS_ACoverJPCP_Rut!H14) -> 0 | I14: =IF(PMIS_ACoverJPCP_Rut!H14="",I13,PMIS_ACoverJPCP_Rut!I14) -> 0 | J14: =PMIS_ACoverJPCP_Rut!J14 -> 0 | K14: =PMIS_ACoverJPCP_Rut!K14 -> 0 | L14: =RSL_PMIS_ACoverJPCP_Rut!L14 -> 0 | M14: =PMIS_ACoverJPCP_Rut!M14 ->  | P14: max | Q14: -1.333333333 | R14: -1.02E+00 | S14: -2.910828025 | T14: -1 | U14: -1.108107737 | Z14: -1.54203 | AA14: -0.553622 | AB14: -1.24381 | AC14: 0.755581 | AD14: -1.7027
A15: =PMIS_ACoverJPCP_Rut!A15 -> 0 | B15: =PMIS_ACoverJPCP_Rut!B15 -> 0 | C15: =PMIS_ACoverJPCP_Rut!C15 -> 0 | D15: =PMIS_ACoverJPCP_Rut!D15 -> 0 | E15: =PMIS_ACoverJPCP_Rut!E15 -> 0 | F15: =PMIS_ACoverJPCP_Rut!F15 -> 0 | G15: =PMIS_ACoverJPCP_Rut!G15 -> 0 | H15: =IF(PMIS_ACoverJPCP_Rut!H15="",H14+H14*(PMIS_ACoverJPCP_Rut!$I$22/100),PMIS_ACoverJPCP_Rut!H15) -> 0 | I15: =IF(PMIS_ACoverJPCP_Rut!H15="",I14,PMIS_ACoverJPCP_Rut!I15) -> 0 | J15: =PMIS_ACoverJPCP_Rut!J15 -> 0 | K15: =PMIS_ACoverJPCP_Rut!K15 -> 0 | L15: =RSL_PMIS_ACoverJPCP_Rut!L15 -> 0 | M15: =PMIS_ACoverJPCP_Rut!M15 ->  | P15: 3.07 | Q15: -1.333333333 | R15: -1.02E+00 | S15: -2.910828025 | T15: -1 | U15: -1.108107737 | Z15: -1.36916 | AA15: -0.621397 | AB15: 0.965903 | AC15: -1.46709 | AD15: -1.15008
A16: =PMIS_ACoverJPCP_Rut!A16 -> 0 | B16: =PMIS_ACoverJPCP_Rut!B16 -> 0 | C16: =PMIS_ACoverJPCP_Rut!C16 -> 0 | D16: =PMIS_ACoverJPCP_Rut!D16 -> 0 | E16: =PMIS_ACoverJPCP_Rut!E16 -> 0 | F16: =PMIS_ACoverJPCP_Rut!F16 -> 0 | G16: =PMIS_ACoverJPCP_Rut!G16 -> 0 | H16: =IF(PMIS_ACoverJPCP_Rut!H16="",H15+H15*(PMIS_ACoverJPCP_Rut!$I$22/100),PMIS_ACoverJPCP_Rut!H16) -> 0 | I16: =IF(PMIS_ACoverJPCP_Rut!H16="",I15,PMIS_ACoverJPCP_Rut!I16) -> 0 | J16: =PMIS_ACoverJPCP_Rut!J16 -> 0 | K16: =PMIS_ACoverJPCP_Rut!K16 -> 0 | L16: =RSL_PMIS_ACoverJPCP_Rut!L16 -> 0 | M16: =PMIS_ACoverJPCP_Rut!M16 ->  | P16: RUT-2 | Q16: -1.333333333 | R16: -1.02E+00 | S16: -2.910828025 | T16: -1 | U16: -1.108107737 | Z16: 0.767471 | AA16: -1.74277 | AB16: -0.346188 | AC16: 0.831938 | AD16: 0.676687
P17: min | Q17: -1.333333333 | R17: -1.02E+00 | S17: -2.910828025 | T17: -1 | U17: -1.108107737 | Z17: -0.218628 | AA17: 0.802123 | AB17: -1.2007 | AC17: 0.659982 | AD17: -1.51628
P18: 0 | Q18: -1.333333333 | R18: -1.02E+00 | S18: -2.910828025 | T18: -1 | U18: -1.108107737 | Z18: -1.01852 | AA18: 1.8391 | AB18: 0.894218 | AC18: -0.838732 | AD18: 1.01641
P19: max | Q19: -1.333333333 | R19: -1.02E+00 | S19: -2.910828025 | T19: -1 | U19: -1.108107737 | Z19: 0.463852 | AA19: 1.79358 | AB19: 1.76933 | AC19: 0.546583 | AD19: 0.474065
P20: 0.291339 | Q20: -1.333333333 | R20: -1.02E+00 | S20: -2.910828025 | T20: -1 | U20: -1.108107737 | Z20: 0.726918 | AA20: -1.49236 | AB20: -1.04285 | AC20: 0.394924 | AD20: 1.47909
P21: RUT-2 | Q21: -1.333333333 | R21: -1.02E+00 | S21: -2.910828025 | T21: -1 | U21: -1.108107737 | Z21: 1.70396 | AA21: -1.05694 | AB21: 1.26481 | AC21: -0.961107 | AD21: -0.658045
P22: min | Q22: -1.333333333 | R22: -1.02E+00 | S22: -2.910828025 | T22: -1 | U22: -1.108107737 | V22: B1 | W22: IW*Inputsnor
P23: 0.015748 | Q23: -1.333333333 | R23: -1.02E+00 | S23: -2.910828025 | T23: -1 | U23: -1.108107737 | V23: -2.094992 | W23: =MMULT(Z2:AD21,TRANSPOSE(Q2:U23)) -> 6.21740836 | X23: 6.21740836 | Y23: 6.21740836 | Z23: 6.21740836 | AA23: 6.21740836 | AB23: 6.21740836 | AC23: 6.21740836 | AD23: 6.21740836 | AE23: 6.21740836 | AF23: 6.21740836 | AG23: 6.21740836 | AH23: 6.21740836 | AI23: 6.21740836 | AJ23: 6.21740836 | AK23: 6.21740836 | AL23: 6.21740836 | AM23: 6.21740836 | AN23: 6.21740836 | AO23: 6.21740836 | AP23: 6.21740836 | AQ23: 6.21740836 | AR23: 6.21740836
P24: max | Q24: -1.333333333 | R24: -1.02E+00 | S24: -2.910828025 | T24: -1 | U24: -1.108107737 | V24: 2.426219 | W24: 4.793532027 | X24: 4.793532027 | Y24: 4.793532027 | Z24: 4.793532027 | AA24: 4.793532027 | AB24: 4.793532027 | AC24: 4.793532027 | AD24: 4.793532027 | AE24: 4.793532027 | AF24: 4.793532027 | AG24: 4.793532027 | AH24: 4.793532027 | AI24: 4.793532027 | AJ24: 4.793532027 | AK24: 4.793532027 | AL24: 4.793532027 | AM24: 4.793532027 | AN24: 4.793532027 | AO24: 4.793532027 | AP24: 4.793532027 | AQ24: 4.793532027 | AR24: 4.793532027
P25: 0.307087 | Q25: -1.333333333 | R25: -1.02E+00 | S25: -2.910828025 | T25: -1 | U25: -1.108107737 | V25: 1.5703 | W25: 1.118888029 | X25: 1.118888029 | Y25: 1.118888029 | Z25: 1.118888029 | AA25: 1.118888029 | AB25: 1.118888029 | AC25: 1.118888029 | AD25: 1.118888029 | AE25: 1.118888029 | AF25: 1.118888029 | AG25: 1.118888029 | AH25: 1.118888029 | AI25: 1.118888029 | AJ25: 1.118888029 | AK25: 1.118888029 | AL25: 1.118888029 | AM25: 1.118888029 | AN25: 1.118888029 | AO25: 1.118888029 | AP25: 1.118888029 | AQ25: 1.118888029 | AR25: 1.118888029
Q26: -1.333333333 | R26: -1.02E+00 | S26: -2.910828025 | T26: -1 | U26: -1.108107737 | V26: 1.776406 | W26: 4.054109682 | X26: 4.054109682 | Y26: 4.054109682 | Z26: 4.054109682 | AA26: 4.054109682 | AB26: 4.054109682 | AC26: 4.054109682 | AD26: 4.054109682 | AE26: 4.054109682 | AF26: 4.054109682 | AG26: 4.054109682 | AH26: 4.054109682 | AI26: 4.054109682 | AJ26: 4.054109682 | AK26: 4.054109682 | AL26: 4.054109682 | AM26: 4.054109682 | AN26: 4.054109682 | AO26: 4.054109682 | AP26: 4.054109682 | AQ26: 4.054109682 | AR26: 4.054109682
Q27: -1.333333333 | R27: -1.02E+00 | S27: -2.910828025 | T27: -1 | U27: -1.108107737 | V27: 1.986397 | W27: 5.286054302 | X27: 5.286054302 | Y27: 5.286054302 | Z27: 5.286054302 | AA27: 5.286054302 | AB27: 5.286054302 | AC27: 5.286054302 | AD27: 5.286054302 | AE27: 5.286054302 | AF27: 5.286054302 | AG27: 5.286054302 | AH27: 5.286054302 | AI27: 5.286054302 | AJ27: 5.286054302 | AK27: 5.286054302 | AL27: 5.286054302 | AM27: 5.286054302 | AN27: 5.286054302 | AO27: 5.286054302 | AP27: 5.286054302 | AQ27: 5.286054302 | AR27: 5.286054302
Q28: -1.333333333 | R28: -1.02E+00 | S28: -2.910828025 | T28: -1 | U28: -1.108107737 | V28: 1.368664 | W28: -0.9634384405 | X28: -0.9634384405 | Y28: -0.9634384405 | Z28: -0.9634384405 | AA28: -0.9634384405 | AB28: -0.9634384405 | AC28: -0.9634384405 | AD28: -0.9634384405 | AE28: -0.9634384405 | AF28: -0.9634384405 | AG28: -0.9634384405 | AH28: -0.9634384405 | AI28: -0.9634384405 | AJ28: -0.9634384405 | AK28: -0.9634384405 | AL28: -0.9634384405 | AM28: -0.9634384405 | AN28: -0.9634384405 | AO28: -0.9634384405 | AP28: -0.9634384405 | AQ28: -0.9634384405 | AR28: -0.9634384405
Q29: -1.333333333 | R29: -1.02E+00 | S29: -2.910828025 | T29: -1 | U29: -1.108107737 | V29: -0.66504 | W29: 0.4140332968 | X29: 0.4140332968 | Y29: 0.4140332968 | Z29: 0.4140332968 | AA29: 0.4140332968 | AB29: 0.4140332968 | AC29: 0.4140332968 | AD29: 0.4140332968 | AE29: 0.4140332968 | AF29: 0.4140332968 | AG29: 0.4140332968 | AH29: 0.4140332968 | AI29: 0.4140332968 | AJ29: 0.4140332968 | AK29: 0.4140332968 | AL29: 0.4140332968 | AM29: 0.4140332968 | AN29: 0.4140332968 | AO29: 0.4140332968 | AP29: 0.4140332968 | AQ29: 0.4140332968 | AR29: 0.4140332968
Q30: -1.333333333 | R30: -1.02E+00 | S30: -2.910828025 | T30: -1 | U30: -1.108107737 | V30: 0.617268 | W30: -3.500468691 | X30: -3.500468691 | Y30: -3.500468691 | Z30: -3.500468691 | AA30: -3.500468691 | AB30: -3.500468691 | AC30: -3.500468691 | AD30: -3.500468691 | AE30: -3.500468691 | AF30: -3.500468691 | AG30: -3.500468691 | AH30: -3.500468691 | AI30: -3.500468691 | AJ30: -3.500468691 | AK30: -3.500468691 | AL30: -3.500468691 | AM30: -3.500468691 | AN30: -3.500468691 | AO30: -3.500468691 | AP30: -3.500468691 | AQ30: -3.500468691 | AR30: -3.500468691
Q31: -1.333333333 | R31: -1.02E+00 | S31: -2.910828025 | T31: -1 | U31: -1.108107737 | V31: -0.380699 | W31: -3.034836216 | X31: -3.034836216 | Y31: -3.034836216 | Z31: -3.034836216 | AA31: -3.034836216 | AB31: -3.034836216 | AC31: -3.034836216 | AD31: -3.034836216 | AE31: -3.034836216 | AF31: -3.034836216 | AG31: -3.034836216 | AH31: -3.034836216 | AI31: -3.034836216 | AJ31: -3.034836216 | AK31: -3.034836216 | AL31: -3.034836216 | AM31: -3.034836216 | AN31: -3.034836216 | AO31: -3.034836216 | AP31: -3.034836216 | AQ31: -3.034836216 | AR31: -3.034836216
Q32: -1.333333333 | R32: -1.02E+00 | S32: -2.910828025 | T32: -1 | U32: -1.108107737 | V32: -0.571365 | W32: 0.9239883746 | X32: 0.9239883746 | Y32: 0.9239883746 | Z32: 0.9239883746 | AA32: 0.9239883746 | AB32: 0.9239883746 | AC32: 0.9239883746 | AD32: 0.9239883746 | AE32: 0.9239883746 | AF32: 0.9239883746 | AG32: 0.9239883746 | AH32: 0.9239883746 | AI32: 0.9239883746 | AJ32: 0.9239883746 | AK32: 0.9239883746 | AL32: 0.9239883746 | AM32: 0.9239883746 | AN32: 0.9239883746 | AO32: 0.9239883746 | AP32: 0.9239883746 | AQ32: 0.9239883746 | AR32: 0.9239883746
Q33: -1.333333333 | R33: -1.02E+00 | S33: -2.910828025 | T33: -1 | U33: -1.108107737 | V33: 0.566462 | W33: -1.773742092 | X33: -1.773742092 | Y33: -1.773742092 | Z33: -1.773742092 | AA33: -1.773742092 | AB33: -1.773742092 | AC33: -1.773742092 | AD33: -1.773742092 | AE33: -1.773742092 | AF33: -1.773742092 | AG33: -1.773742092 | AH33: -1.773742092 | AI33: -1.773742092 | AJ33: -1.773742092 | AK33: -1.773742092 | AL33: -1.773742092 | AM33: -1.773742092 | AN33: -1.773742092 | AO33: -1.773742092 | AP33: -1.773742092 | AQ33: -1.773742092 | AR33: -1.773742092
Q34: -1.333333333 | R34: -1.02E+00 | S34: -2.910828025 | T34: -1 | U34: -1.108107737 | V34: 0.022419 | W34: -4.036592809 | X34: -4.036592809 | Y34: -4.036592809 | Z34: -4.036592809 | AA34: -4.036592809 | AB34: -4.036592809 | AC34: -4.036592809 | AD34: -4.036592809 | AE34: -4.036592809 | AF34: -4.036592809 | AG34: -4.036592809 | AH34: -4.036592809 | AI34: -4.036592809 | AJ34: -4.036592809 | AK34: -4.036592809 | AL34: -4.036592809 | AM34: -4.036592809 | AN34: -4.036592809 | AO34: -4.036592809 | AP34: -4.036592809 | AQ34: -4.036592809 | AR34: -4.036592809
Q35: -1.333333333 | R35: -1.02E+00 | S35: -2.910828025 | T35: -1 | U35: -1.108107737 | V35: -0.605438 | W35: 7.370182944 | X35: 7.370182944 | Y35: 7.370182944 | Z35: 7.370182944 | AA35: 7.370182944 | AB35: 7.370182944 | AC35: 7.370182944 | AD35: 7.370182944 | AE35: 7.370182944 | AF35: 7.370182944 | AG35: 7.370182944 | AH35: 7.370182944 | AI35: 7.370182944 | AJ35: 7.370182944 | AK35: 7.370182944 | AL35: 7.370182944 | AM35: 7.370182944 | AN35: 7.370182944 | AO35: 7.370182944 | AP35: 7.370182944 | AQ35: 7.370182944 | AR35: 7.370182944
Q36: -1.333333333 | R36: -1.02E+00 | S36: -2.910828025 | T36: -1 | U36: -1.108107737 | V36: -0.807925 | W36: 2.386757101 | X36: 2.386757101 | Y36: 2.386757101 | Z36: 2.386757101 | AA36: 2.386757101 | AB36: 2.386757101 | AC36: 2.386757101 | AD36: 2.386757101 | AE36: 2.386757101 | AF36: 2.386757101 | AG36: 2.386757101 | AH36: 2.386757101 | AI36: 2.386757101 | AJ36: 2.386757101 | AK36: 2.386757101 | AL36: 2.386757101 | AM36: 2.386757101 | AN36: 2.386757101 | AO36: 2.386757101 | AP36: 2.386757101 | AQ36: 2.386757101 | AR36: 2.386757101
Q37: -1.333333333 | R37: -1.02E+00 | S37: -2.910828025 | T37: -1 | U37: -1.108107737 | V37: 1.506013 | W37: 0.1731220019 | X37: 0.1731220019 | Y37: 0.1731220019 | Z37: 0.1731220019 | AA37: 0.1731220019 | AB37: 0.1731220019 | AC37: 0.1731220019 | AD37: 0.1731220019 | AE37: 0.1731220019 | AF37: 0.1731220019 | AG37: 0.1731220019 | AH37: 0.1731220019 | AI37: 0.1731220019 | AJ37: 0.1731220019 | AK37: 0.1731220019 | AL37: 0.1731220019 | AM37: 0.1731220019 | AN37: 0.1731220019 | AO37: 0.1731220019 | AP37: 0.1731220019 | AQ37: 0.1731220019 | AR37: 0.1731220019
Q38: -1.333333333 | R38: -1.02E+00 | S38: -2.910828025 | T38: -1 | U38: -1.108107737 | V38: -1.163891 | W38: 3.991867471 | X38: 3.991867471 | Y38: 3.991867471 | Z38: 3.991867471 | AA38: 3.991867471 | AB38: 3.991867471 | AC38: 3.991867471 | AD38: 3.991867471 | AE38: 3.991867471 | AF38: 3.991867471 | AG38: 3.991867471 | AH38: 3.991867471 | AI38: 3.991867471 | AJ38: 3.991867471 | AK38: 3.991867471 | AL38: 3.991867471 | AM38: 3.991867471 | AN38: 3.991867471 | AO38: 3.991867471 | AP38: 3.991867471 | AQ38: 3.991867471 | AR38: 3.991867471
Q39: -1.333333333 | R39: -1.02E+00 | S39: -2.910828025 | T39: -1 | U39: -1.108107737 | V39: -1.561146 | W39: -3.400813888 | X39: -3.400813888 | Y39: -3.400813888 | Z39: -3.400813888 | AA39: -3.400813888 | AB39: -3.400813888 | AC39: -3.400813888 | AD39: -3.400813888 | AE39: -3.400813888 | AF39: -3.400813888 | AG39: -3.400813888 | AH39: -3.400813888 | AI39: -3.400813888 | AJ39: -3.400813888 | AK39: -3.400813888 | AL39: -3.400813888 | AM39: -3.400813888 | AN39: -3.400813888 | AO39: -3.400813888 | AP39: -3.400813888 | AQ39: -3.400813888 | AR39: -3.400813888
Q40: -1.333333333 | R40: -1.02E+00 | S40: -2.910828025 | T40: -1 | U40: -1.108107737 | V40: 1.985818 | W40: -8.662704364 | X40: -8.662704364 | Y40: -8.662704364 | Z40: -8.662704364 | AA40: -8.662704364 | AB40: -8.662704364 | AC40: -8.662704364 | AD40: -8.662704364 | AE40: -8.662704364 | AF40: -8.662704364 | AG40: -8.662704364 | AH40: -8.662704364 | AI40: -8.662704364 | AJ40: -8.662704364 | AK40: -8.662704364 | AL40: -8.662704364 | AM40: -8.662704364 | AN40: -8.662704364 | AO40: -8.662704364 | AP40: -8.662704364 | AQ40: -8.662704364 | AR40: -8.662704364
Q41: -1.333333333 | R41: -1.02E+00 | S41: -2.910828025 | T41: -1 | U41: -1.108107737 | V41: 2.392794 | W41: 1.548526147 | X41: 1.548526147 | Y41: 1.548526147 | Z41: 1.548526147 | AA41: 1.548526147 | AB41: 1.548526147 | AC41: 1.548526147 | AD41: 1.548526147 | AE41: 1.548526147 | AF41: 1.548526147 | AG41: 1.548526147 | AH41: 1.548526147 | AI41: 1.548526147 | AJ41: 1.548526147 | AK41: 1.548526147 | AL41: 1.548526147 | AM41: 1.548526147 | AN41: 1.548526147 | AO41: 1.548526147 | AP41: 1.548526147 | AQ41: 1.548526147 | AR41: 1.548526147
Q42: -1.333333333 | R42: -1.02E+00 | S42: -2.910828025 | T42: -1 | U42: -1.108107737 | V42: 2.292291 | W42: -3.189540015 | X42: -3.189540015 | Y42: -3.189540015 | Z42: -3.189540015 | AA42: -3.189540015 | AB42: -3.189540015 | AC42: -3.189540015 | AD42: -3.189540015 | AE42: -3.189540015 | AF42: -3.189540015 | AG42: -3.189540015 | AH42: -3.189540015 | AI42: -3.189540015 | AJ42: -3.189540015 | AK42: -3.189540015 | AL42: -3.189540015 | AM42: -3.189540015 | AN42: -3.189540015 | AO42: -3.189540015 | AP42: -3.189540015 | AQ42: -3.189540015 | AR42: -3.189540015
Q43: -1.333333333 | R43: -1.02E+00 | S43: -2.910828025 | T43: -1 | U43: -1.108107737
Q44: -1.333333333 | R44: -1.02E+00 | S44: -2.910828025 | T44: -1 | U44: -1.108107737
Q45: -1.333333333 | R45: -1.02E+00 | S45: -2.910828025 | T45: -1 | U45: -1.108107737 | W45: B1+IW*Inputsnor
Q46: -1.333333333 | R46: -1.02E+00 | S46: -2.910828025 | T46: -1 | U46: -1.108107737 | W46: =(V23:V42)+W23:AR42 -> 4.12241636 | X46: 4.12241636 | Y46: 4.12241636 | Z46: 4.12241636 | AA46: 4.12241636 | AB46: 4.12241636 | AC46: 4.12241636 | AD46: 4.12241636 | AE46: 4.12241636 | AF46: 4.12241636 | AG46: 4.12241636 | AH46: 4.12241636 | AI46: 4.12241636 | AJ46: 4.12241636 | AK46: 4.12241636 | AL46: 4.12241636 | AM46: 4.12241636 | AN46: 4.12241636 | AO46: 4.12241636 | AP46: 4.12241636 | AQ46: 4.12241636 | AR46: 4.12241636
Q47: -1.333333333 | R47: -1.02E+00 | S47: -2.910828025 | T47: -1 | U47: -1.108107737 | W47: 7.219751027 | X47: 7.219751027 | Y47: 7.219751027 | Z47: 7.219751027 | AA47: 7.219751027 | AB47: 7.219751027 | AC47: 7.219751027 | AD47: 7.219751027 | AE47: 7.219751027 | AF47: 7.219751027 | AG47: 7.219751027 | AH47: 7.219751027 | AI47: 7.219751027 | AJ47: 7.219751027 | AK47: 7.219751027 | AL47: 7.219751027 | AM47: 7.219751027 | AN47: 7.219751027 | AO47: 7.219751027 | AP47: 7.219751027 | AQ47: 7.219751027 | AR47: 7.219751027
Q48: -1.333333333 | R48: -1.02E+00 | S48: -2.910828025 | T48: -1 | U48: -1.108107737 | W48: 2.689188029 | X48: 2.689188029 | Y48: 2.689188029 | Z48: 2.689188029 | AA48: 2.689188029 | AB48: 2.689188029 | AC48: 2.689188029 | AD48: 2.689188029 | AE48: 2.689188029 | AF48: 2.689188029 | AG48: 2.689188029 | AH48: 2.689188029 | AI48: 2.689188029 | AJ48: 2.689188029 | AK48: 2.689188029 | AL48: 2.689188029 | AM48: 2.689188029 | AN48: 2.689188029 | AO48: 2.689188029 | AP48: 2.689188029 | AQ48: 2.689188029 | AR48: 2.689188029
Q49: -1.333333333 | R49: -1.02E+00 | S49: -2.910828025 | T49: -1 | U49: -1.108107737 | W49: 5.830515682 | X49: 5.830515682 | Y49: 5.830515682 | Z49: 5.830515682 | AA49: 5.830515682 | AB49: 5.830515682 | AC49: 5.830515682 | AD49: 5.830515682 | AE49: 5.830515682 | AF49: 5.830515682 | AG49: 5.830515682 | AH49: 5.830515682 | AI49: 5.830515682 | AJ49: 5.830515682 | AK49: 5.830515682 | AL49: 5.830515682 | AM49: 5.830515682 | AN49: 5.830515682 | AO49: 5.830515682 | AP49: 5.830515682 | AQ49: 5.830515682 | AR49: 5.830515682
Q50: -1.333333333 | R50: -1.02E+00 | S50: -2.910828025 | T50: -1 | U50: -1.108107737 | W50: 7.272451302 | X50: 7.272451302 | Y50: 7.272451302 | Z50: 7.272451302 | AA50: 7.272451302 | AB50: 7.272451302 | AC50: 7.272451302 | AD50: 7.272451302 | AE50: 7.272451302 | AF50: 7.272451302 | AG50: 7.272451302 | AH50: 7.272451302 | AI50: 7.272451302 | AJ50: 7.272451302 | AK50: 7.272451302 | AL50: 7.272451302 | AM50: 7.272451302 | AN50: 7.272451302 | AO50: 7.272451302 | AP50: 7.272451302 | AQ50: 7.272451302 | AR50: 7.272451302
Q51: -1.333333333 | R51: -1.02E+00 | S51: -2.910828025 | T51: -1 | U51: -1.108107737 | W51: 0.4052255595 | X51: 0.4052255595 | Y51: 0.4052255595 | Z51: 0.4052255595 | AA51: 0.4052255595 | AB51: 0.4052255595 | AC51: 0.4052255595 | AD51: 0.4052255595 | AE51: 0.4052255595 | AF51: 0.4052255595 | AG51: 0.4052255595 | AH51: 0.4052255595 | AI51: 0.4052255595 | AJ51: 0.4052255595 | AK51: 0.4052255595 | AL51: 0.4052255595 | AM51: 0.4052255595 | AN51: 0.4052255595 | AO51: 0.4052255595 | AP51: 0.4052255595 | AQ51: 0.4052255595 | AR51: 0.4052255595
Q52: -1.333333333 | R52: -1.02E+00 | S52: -2.910828025 | T52: -1 | U52: -1.108107737 | W52: -0.2510067032 | X52: -0.2510067032 | Y52: -0.2510067032 | Z52: -0.2510067032 | AA52: -0.2510067032 | AB52: -0.2510067032 | AC52: -0.2510067032 | AD52: -0.2510067032 | AE52: -0.2510067032 | AF52: -0.2510067032 | AG52: -0.2510067032 | AH52: -0.2510067032 | AI52: -0.2510067032 | AJ52: -0.2510067032 | AK52: -0.2510067032 | AL52: -0.2510067032 | AM52: -0.2510067032 | AN52: -0.2510067032 | AO52: -0.2510067032 | AP52: -0.2510067032 | AQ52: -0.2510067032 | AR52: -0.2510067032
Q53: -1.333333333 | R53: -1.02E+00 | S53: -2.910828025 | T53: -1 | U53: -1.108107737 | W53: -2.883200691 | X53: -2.883200691 | Y53: -2.883200691 | Z53: -2.883200691 | AA53: -2.883200691 | AB53: -2.883200691 | AC53: -2.883200691 | AD53: -2.883200691 | AE53: -2.883200691 | AF53: -2.883200691 | AG53: -2.883200691 | AH53: -2.883200691 | AI53: -2.883200691 | AJ53: -2.883200691 | AK53: -2.883200691 | AL53: -2.883200691 | AM53: -2.883200691 | AN53: -2.883200691 | AO53: -2.883200691 | AP53: -2.883200691 | AQ53: -2.883200691 | AR53: -2.883200691
Q54: -1.333333333 | R54: -1.02E+00 | S54: -2.910828025 | T54: -1 | U54: -1.108107737 | W54: -3.415535216 | X54: -3.415535216 | Y54: -3.415535216 | Z54: -3.415535216 | AA54: -3.415535216 | AB54: -3.415535216 | AC54: -3.415535216 | AD54: -3.415535216 | AE54: -3.415535216 | AF54: -3.415535216 | AG54: -3.415535216 | AH54: -3.415535216 | AI54: -3.415535216 | AJ54: -3.415535216 | AK54: -3.415535216 | AL54: -3.415535216 | AM54: -3.415535216 | AN54: -3.415535216 | AO54: -3.415535216 | AP54: -3.415535216 | AQ54: -3.415535216 | AR54: -3.415535216
Q55: -1.333333333 | R55: -1.02E+00 | S55: -2.910828025 | T55: -1 | U55: -1.108107737 | W55: 0.3526233746 | X55: 0.3526233746 | Y55: 0.3526233746 | Z55: 0.3526233746 | AA55: 0.3526233746 | AB55: 0.3526233746 | AC55: 0.3526233746 | AD55: 0.3526233746 | AE55: 0.3526233746 | AF55: 0.3526233746 | AG55: 0.3526233746 | AH55: 0.3526233746 | AI55: 0.3526233746 | AJ55: 0.3526233746 | AK55: 0.3526233746 | AL55: 0.3526233746 | AM55: 0.3526233746 | AN55: 0.3526233746 | AO55: 0.3526233746 | AP55: 0.3526233746 | AQ55: 0.3526233746 | AR55: 0.3526233746
Q56: -1.333333333 | R56: -1.02E+00 | S56: -2.910828025 | T56: -1 | U56: -1.108107737 | W56: -1.207280092 | X56: -1.207280092 | Y56: -1.207280092 | Z56: -1.207280092 | AA56: -1.207280092 | AB56: -1.207280092 | AC56: -1.207280092 | AD56: -1.207280092 | AE56: -1.207280092 | AF56: -1.207280092 | AG56: -1.207280092 | AH56: -1.207280092 | AI56: -1.207280092 | AJ56: -1.207280092 | AK56: -1.207280092 | AL56: -1.207280092 | AM56: -1.207280092 | AN56: -1.207280092 | AO56: -1.207280092 | AP56: -1.207280092 | AQ56: -1.207280092 | AR56: -1.207280092
Q57: -1.333333333 | R57: -1.02E+00 | S57: -2.910828025 | T57: -1 | U57: -1.108107737 | W57: -4.014173809 | X57: -4.014173809 | Y57: -4.014173809 | Z57: -4.014173809 | AA57: -4.014173809 | AB57: -4.014173809 | AC57: -4.014173809 | AD57: -4.014173809 | AE57: -4.014173809 | AF57: -4.014173809 | AG57: -4.014173809 | AH57: -4.014173809 | AI57: -4.014173809 | AJ57: -4.014173809 | AK57: -4.014173809 | AL57: -4.014173809 | AM57: -4.014173809 | AN57: -4.014173809 | AO57: -4.014173809 | AP57: -4.014173809 | AQ57: -4.014173809 | AR57: -4.014173809
Q58: -1.333333333 | R58: -1.02E+00 | S58: -2.910828025 | T58: -1 | U58: -1.108107737 | W58: 6.764744944 | X58: 6.764744944 | Y58: 6.764744944 | Z58: 6.764744944 | AA58: 6.764744944 | AB58: 6.764744944 | AC58: 6.764744944 | AD58: 6.764744944 | AE58: 6.764744944 | AF58: 6.764744944 | AG58: 6.764744944 | AH58: 6.764744944 | AI58: 6.764744944 | AJ58: 6.764744944 | AK58: 6.764744944 | AL58: 6.764744944 | AM58: 6.764744944 | AN58: 6.764744944 | AO58: 6.764744944 | AP58: 6.764744944 | AQ58: 6.764744944 | AR58: 6.764744944
Q59: -1.333333333 | R59: -1.02E+00 | S59: -2.910828025 | T59: -1 | U59: -1.108107737 | W59: 1.578832101 | X59: 1.578832101 | Y59: 1.578832101 | Z59: 1.578832101 | AA59: 1.578832101 | AB59: 1.578832101 | AC59: 1.578832101 | AD59: 1.578832101 | AE59: 1.578832101 | AF59: 1.578832101 | AG59: 1.578832101 | AH59: 1.578832101 | AI59: 1.578832101 | AJ59: 1.578832101 | AK59: 1.578832101 | AL59: 1.578832101 | AM59: 1.578832101 | AN59: 1.578832101 | AO59: 1.578832101 | AP59: 1.578832101 | AQ59: 1.578832101 | AR59: 1.578832101
Q60: -1.333333333 | R60: -1.02E+00 | S60: -2.910828025 | T60: -1 | U60: -1.108107737 | W60: 1.679135002 | X60: 1.679135002 | Y60: 1.679135002 | Z60: 1.679135002 | AA60: 1.679135002 | AB60: 1.679135002 | AC60: 1.679135002 | AD60: 1.679135002 | AE60: 1.679135002 | AF60: 1.679135002 | AG60: 1.679135002 | AH60: 1.679135002 | AI60: 1.679135002 | AJ60: 1.679135002 | AK60: 1.679135002 | AL60: 1.679135002 | AM60: 1.679135002 | AN60: 1.679135002 | AO60: 1.679135002 | AP60: 1.679135002 | AQ60: 1.679135002 | AR60: 1.679135002
Q61: -1.333333333 | R61: -1.02E+00 | S61: -2.910828025 | T61: -1 | U61: -1.108107737 | W61: 2.827976471 | X61: 2.827976471 | Y61: 2.827976471 | Z61: 2.827976471 | AA61: 2.827976471 | AB61: 2.827976471 | AC61: 2.827976471 | AD61: 2.827976471 | AE61: 2.827976471 | AF61: 2.827976471 | AG61: 2.827976471 | AH61: 2.827976471 | AI61: 2.827976471 | AJ61: 2.827976471 | AK61: 2.827976471 | AL61: 2.827976471 | AM61: 2.827976471 | AN61: 2.827976471 | AO61: 2.827976471 | AP61: 2.827976471 | AQ61: 2.827976471 | AR61: 2.827976471
Q62: -1.333333333 | R62: -1.02E+00 | S62: -2.910828025 | T62: -1 | U62: -1.108107737 | W62: -4.961959888 | X62: -4.961959888 | Y62: -4.961959888 | Z62: -4.961959888 | AA62: -4.961959888 | AB62: -4.961959888 | AC62: -4.961959888 | AD62: -4.961959888 | AE62: -4.961959888 | AF62: -4.961959888 | AG62: -4.961959888 | AH62: -4.961959888 | AI62: -4.961959888 | AJ62: -4.961959888 | AK62: -4.961959888 | AL62: -4.961959888 | AM62: -4.961959888 | AN62: -4.961959888 | AO62: -4.961959888 | AP62: -4.961959888 | AQ62: -4.961959888 | AR62: -4.961959888
Q63: -1.333333333 | R63: -1.02E+00 | S63: -2.910828025 | T63: -1 | U63: -1.108107737 | W63: -6.676886364 | X63: -6.676886364 | Y63: -6.676886364 | Z63: -6.676886364 | AA63: -6.676886364 | AB63: -6.676886364 | AC63: -6.676886364 | AD63: -6.676886364 | AE63: -6.676886364 | AF63: -6.676886364 | AG63: -6.676886364 | AH63: -6.676886364 | AI63: -6.676886364 | AJ63: -6.676886364 | AK63: -6.676886364 | AL63: -6.676886364 | AM63: -6.676886364 | AN63: -6.676886364 | AO63: -6.676886364 | AP63: -6.676886364 | AQ63: -6.676886364 | AR63: -6.676886364
Q64: -1.333333333 | R64: -1.02E+00 | S64: -2.910828025 | T64: -1 | U64: -1.108107737 | W64: 3.941320147 | X64: 3.941320147 | Y64: 3.941320147 | Z64: 3.941320147 | AA64: 3.941320147 | AB64: 3.941320147 | AC64: 3.941320147 | AD64: 3.941320147 | AE64: 3.941320147 | AF64: 3.941320147 | AG64: 3.941320147 | AH64: 3.941320147 | AI64: 3.941320147 | AJ64: 3.941320147 | AK64: 3.941320147 | AL64: 3.941320147 | AM64: 3.941320147 | AN64: 3.941320147 | AO64: 3.941320147 | AP64: 3.941320147 | AQ64: 3.941320147 | AR64: 3.941320147
Q65: -1.333333333 | R65: -1.02E+00 | S65: -2.910828025 | T65: -1 | U65: -1.108107737 | W65: -0.897249015 | X65: -0.897249015 | Y65: -0.897249015 | Z65: -0.897249015 | AA65: -0.897249015 | AB65: -0.897249015 | AC65: -0.897249015 | AD65: -0.897249015 | AE65: -0.897249015 | AF65: -0.897249015 | AG65: -0.897249015 | AH65: -0.897249015 | AI65: -0.897249015 | AJ65: -0.897249015 | AK65: -0.897249015 | AL65: -0.897249015 | AM65: -0.897249015 | AN65: -0.897249015 | AO65: -0.897249015 | AP65: -0.897249015 | AQ65: -0.897249015 | AR65: -0.897249015
Q66: -1.333333333 | R66: -1.02E+00 | S66: -2.910828025 | T66: -1 | U66: -1.108107737
Q67: =2*((L67-P$3)/(P$5-P$3))-1 -> -1.333333333 | R67: =2*((H67-P$8)/(P$10-P$8))-1 -> -1.02E+00 | S67: =2*((I67-P$13)/(P$15-P$13))-1 -> -2.910828025 | T67: =2*((J67-P$18)/(P$20-P$18))-1 -> -1 | U67: =2*((K67-P$23)/(P$25-P$23))-1 -> -1.108107737
Q68: -1.333333333 | R68: -1.02E+00 | S68: -2.910828025 | T68: -1 | U68: -1.108107737
Q69: -1.333333333 | R69: -1.02E+00 | S69: -2.910828025 | T69: -1 | U69: -1.108107737
Q70: -1.333333333 | R70: -1.02E+00 | S70: -2.910828025 | T70: -1 | U70: -1.108107737
Q71: -1.333333333 | R71: -1.02E+00 | S71: -2.910828025 | T71: -1 | U71: -1.108107737
Q72: -1.333333333 | R72: -1.02E+00 | S72: -2.910828025 | T72: -1 | U72: -1.108107737
Q73: -1.333333333 | R73: -1.02E+00 | S73: -2.910828025 | T73: -1 | U73: -1.108107737
Q74: -1.333333333 | R74: -1.02E+00 | S74: -2.910828025 | T74: -1 | U74: -1.108107737 | W74: Y1
Q75: -1.333333333 | R75: -1.02E+00 | S75: -2.910828025 | T75: -1 | U75: -1.108107737 | W75: =2/(1+EXP(-2*W46))-1 -> 0.9994749138 | X75: =2/(1+EXP(-2*X46))-1 -> 0.9994749138 | Y75: 0.9994749138 | Z75: 0.9994749138 | AA75: 0.9994749138 | AB75: 0.9994749138 | AC75: 0.9994749138 | AD75: 0.9994749138 | AE75: 0.9994749138 | AF75: 0.9994749138 | AG75: 0.9994749138 | AH75: 0.9994749138 | AI75: 0.9994749138 | AJ75: 0.9994749138 | AK75: 0.9994749138 | AL75: 0.9994749138 | AM75: 0.9994749138 | AN75: 0.9994749138 | AO75: 0.9994749138 | AP75: 0.9994749138 | AQ75: 0.9994749138 | AR75: 0.9994749138
Q76: -1.333333333 | R76: -1.02E+00 | S76: -2.910828025 | T76: -1 | U76: -1.108107737 | W76: =2/(1+EXP(-2*W47))-1 -> 0.9999989284 | X76: 0.9999989284 | Y76: 0.9999989284 | Z76: 0.9999989284 | AA76: 0.9999989284 | AB76: 0.9999989284 | AC76: 0.9999989284 | AD76: 0.9999989284 | AE76: 0.9999989284 | AF76: 0.9999989284 | AG76: 0.9999989284 | AH76: 0.9999989284 | AI76: 0.9999989284 | AJ76: 0.9999989284 | AK76: 0.9999989284 | AL76: 0.9999989284 | AM76: 0.9999989284 | AN76: 0.9999989284 | AO76: 0.9999989284 | AP76: 0.9999989284 | AQ76: 0.9999989284 | AR76: 0.9999989284
Q77: -1.333333333 | R77: -1.02E+00 | S77: -2.910828025 | T77: -1 | U77: -1.108107737 | W77: 0.9908117848 | X77: 0.9908117848 | Y77: 0.9908117848 | Z77: 0.9908117848 | AA77: 0.9908117848 | AB77: 0.9908117848 | AC77: 0.9908117848 | AD77: 0.9908117848 | AE77: 0.9908117848 | AF77: 0.9908117848 | AG77: 0.9908117848 | AH77: 0.9908117848 | AI77: 0.9908117848 | AJ77: 0.9908117848 | AK77: 0.9908117848 | AL77: 0.9908117848 | AM77: 0.9908117848 | AN77: 0.9908117848 | AO77: 0.9908117848 | AP77: 0.9908117848 | AQ77: 0.9908117848 | AR77: 0.9908117848
Q78: -1.333333333 | R78: -1.02E+00 | S78: -2.910828025 | T78: -1 | U78: -1.108107737 | W78: 0.9999827534 | X78: 0.9999827534 | Y78: 0.9999827534 | Z78: 0.9999827534 | AA78: 0.9999827534 | AB78: 0.9999827534 | AC78: 0.9999827534 | AD78: 0.9999827534 | AE78: 0.9999827534 | AF78: 0.9999827534 | AG78: 0.9999827534 | AH78: 0.9999827534 | AI78: 0.9999827534 | AJ78: 0.9999827534 | AK78: 0.9999827534 | AL78: 0.9999827534 | AM78: 0.9999827534 | AN78: 0.9999827534 | AO78: 0.9999827534 | AP78: 0.9999827534 | AQ78: 0.9999827534 | AR78: 0.9999827534
Q79: -1.333333333 | R79: -1.02E+00 | S79: -2.910828025 | T79: -1 | U79: -1.108107737 | W79: 0.9999990356 | X79: 0.9999990356 | Y79: 0.9999990356 | Z79: 0.9999990356 | AA79: 0.9999990356 | AB79: 0.9999990356 | AC79: 0.9999990356 | AD79: 0.9999990356 | AE79: 0.9999990356 | AF79: 0.9999990356 | AG79: 0.9999990356 | AH79: 0.9999990356 | AI79: 0.9999990356 | AJ79: 0.9999990356 | AK79: 0.9999990356 | AL79: 0.9999990356 | AM79: 0.9999990356 | AN79: 0.9999990356 | AO79: 0.9999990356 | AP79: 0.9999990356 | AQ79: 0.9999990356 | AR79: 0.9999990356
Q80: -1.333333333 | R80: -1.02E+00 | S80: -2.910828025 | T80: -1 | U80: -1.108107737 | W80: 0.3844112534 | X80: 0.3844112534 | Y80: 0.3844112534 | Z80: 0.3844112534 | AA80: 0.3844112534 | AB80: 0.3844112534 | AC80: 0.3844112534 | AD80: 0.3844112534 | AE80: 0.3844112534 | AF80: 0.3844112534 | AG80: 0.3844112534 | AH80: 0.3844112534 | AI80: 0.3844112534 | AJ80: 0.3844112534 | AK80: 0.3844112534 | AL80: 0.3844112534 | AM80: 0.3844112534 | AN80: 0.3844112534 | AO80: 0.3844112534 | AP80: 0.3844112534 | AQ80: 0.3844112534 | AR80: 0.3844112534
Q81: -1.333333333 | R81: -1.02E+00 | S81: -2.910828025 | T81: -1 | U81: -1.108107737 | W81: -0.2458647447 | X81: -0.2458647447 | Y81: -0.2458647447 | Z81: -0.2458647447 | AA81: -0.2458647447 | AB81: -0.2458647447 | AC81: -0.2458647447 | AD81: -0.2458647447 | AE81: -0.2458647447 | AF81: -0.2458647447 | AG81: -0.2458647447 | AH81: -0.2458647447 | AI81: -0.2458647447 | AJ81: -0.2458647447 | AK81: -0.2458647447 | AL81: -0.2458647447 | AM81: -0.2458647447 | AN81: -0.2458647447 | AO81: -0.2458647447 | AP81: -0.2458647447 | AQ81: -0.2458647447 | AR81: -0.2458647447
Q82: -1.333333333 | R82: -1.02E+00 | S82: -2.910828025 | T82: -1 | U82: -1.108107737 | W82: -0.9937575361 | X82: -0.9937575361 | Y82: -0.9937575361 | Z82: -0.9937575361 | AA82: -0.9937575361 | AB82: -0.9937575361 | AC82: -0.9937575361 | AD82: -0.9937575361 | AE82: -0.9937575361 | AF82: -0.9937575361 | AG82: -0.9937575361 | AH82: -0.9937575361 | AI82: -0.9937575361 | AJ82: -0.9937575361 | AK82: -0.9937575361 | AL82: -0.9937575361 | AM82: -0.9937575361 | AN82: -0.9937575361 | AO82: -0.9937575361 | AP82: -0.9937575361 | AQ82: -0.9937575361 | AR82: -0.9937575361
Q83: -1.333333333 | R83: -1.02E+00 | S83: -2.910828025 | T83: -1 | U83: -1.108107737 | W83: -0.9978429255 | X83: -0.9978429255 | Y83: -0.9978429255 | Z83: -0.9978429255 | AA83: -0.9978429255 | AB83: -0.9978429255 | AC83: -0.9978429255 | AD83: -0.9978429255 | AE83: -0.9978429255 | AF83: -0.9978429255 | AG83: -0.9978429255 | AH83: -0.9978429255 | AI83: -0.9978429255 | AJ83: -0.9978429255 | AK83: -0.9978429255 | AL83: -0.9978429255 | AM83: -0.9978429255 | AN83: -0.9978429255 | AO83: -0.9978429255 | AP83: -0.9978429255 | AQ83: -0.9978429255 | AR83: -0.9978429255
Q84: -1.333333333 | R84: -1.02E+00 | S84: -2.910828025 | T84: -1 | U84: -1.108107737 | W84: 0.3387000315 | X84: 0.3387000315 | Y84: 0.3387000315 | Z84: 0.3387000315 | AA84: 0.3387000315 | AB84: 0.3387000315 | AC84: 0.3387000315 | AD84: 0.3387000315 | AE84: 0.3387000315 | AF84: 0.3387000315 | AG84: 0.3387000315 | AH84: 0.3387000315 | AI84: 0.3387000315 | AJ84: 0.3387000315 | AK84: 0.3387000315 | AL84: 0.3387000315 | AM84: 0.3387000315 | AN84: 0.3387000315 | AO84: 0.3387000315 | AP84: 0.3387000315 | AQ84: 0.3387000315 | AR84: 0.3387000315
Q85: -1.333333333 | R85: -1.02E+00 | S85: -2.910828025 | T85: -1 | U85: -1.108107737 | W85: -0.8358617464 | X85: -0.8358617464 | Y85: -0.8358617464 | Z85: -0.8358617464 | AA85: -0.8358617464 | AB85: -0.8358617464 | AC85: -0.8358617464 | AD85: -0.8358617464 | AE85: -0.8358617464 | AF85: -0.8358617464 | AG85: -0.8358617464 | AH85: -0.8358617464 | AI85: -0.8358617464 | AJ85: -0.8358617464 | AK85: -0.8358617464 | AL85: -0.8358617464 | AM85: -0.8358617464 | AN85: -0.8358617464 | AO85: -0.8358617464 | AP85: -0.8358617464 | AQ85: -0.8358617464 | AR85: -0.8358617464
Q86: -1.333333333 | R86: -1.02E+00 | S86: -2.910828025 | T86: -1 | U86: -1.108107737 | W86: -0.9993480394 | X86: -0.9993480394 | Y86: -0.9993480394 | Z86: -0.9993480394 | AA86: -0.9993480394 | AB86: -0.9993480394 | AC86: -0.9993480394 | AD86: -0.9993480394 | AE86: -0.9993480394 | AF86: -0.9993480394 | AG86: -0.9993480394 | AH86: -0.9993480394 | AI86: -0.9993480394 | AJ86: -0.9993480394 | AK86: -0.9993480394 | AL86: -0.9993480394 | AM86: -0.9993480394 | AN86: -0.9993480394 | AO86: -0.9993480394 | AP86: -0.9993480394 | AQ86: -0.9993480394 | AR86: -0.9993480394
Q87: -1.333333333 | R87: -1.02E+00 | S87: -2.910828025 | T87: -1 | U87: -1.108107737 | W87: 0.9999973378 | X87: 0.9999973378 | Y87: 0.9999973378 | Z87: 0.9999973378 | AA87: 0.9999973378 | AB87: 0.9999973378 | AC87: 0.9999973378 | AD87: 0.9999973378 | AE87: 0.9999973378 | AF87: 0.9999973378 | AG87: 0.9999973378 | AH87: 0.9999973378 | AI87: 0.9999973378 | AJ87: 0.9999973378 | AK87: 0.9999973378 | AL87: 0.9999973378 | AM87: 0.9999973378 | AN87: 0.9999973378 | AO87: 0.9999973378 | AP87: =2/(1+EXP(-2*AP58))-1 -> 0.9999973378 | AQ87: 0.9999973378 | AR87: 0.9999973378
Q88: -1.333333333 | R88: -1.02E+00 | S88: -2.910828025 | T88: -1 | U88: -1.108107737 | W88: 0.9184193057 | X88: 0.9184193057 | Y88: 0.9184193057 | Z88: 0.9184193057 | AA88: 0.9184193057 | AB88: 0.9184193057 | AC88: 0.9184193057 | AD88: 0.9184193057 | AE88: 0.9184193057 | AF88: 0.9184193057 | AG88: 0.9184193057 | AH88: 0.9184193057 | AI88: 0.9184193057 | AJ88: 0.9184193057 | AK88: 0.9184193057 | AL88: 0.9184193057 | AM88: 0.9184193057 | AN88: 0.9184193057 | AO88: 0.9184193057 | AP88: 0.9184193057 | AQ88: 0.9184193057 | AR88: 0.9184193057
Q89: -1.333333333 | R89: -1.02E+00 | S89: -2.910828025 | T89: -1 | U89: -1.108107737 | W89: 0.9327492126 | X89: 0.9327492126 | Y89: 0.9327492126 | Z89: 0.9327492126 | AA89: 0.9327492126 | AB89: 0.9327492126 | AC89: 0.9327492126 | AD89: 0.9327492126 | AE89: 0.9327492126 | AF89: 0.9327492126 | AG89: 0.9327492126 | AH89: 0.9327492126 | AI89: 0.9327492126 | AJ89: 0.9327492126 | AK89: 0.9327492126 | AL89: 0.9327492126 | AM89: 0.9327492126 | AN89: 0.9327492126 | AO89: 0.9327492126 | AP89: 0.9327492126 | AQ89: 0.9327492126 | AR89: 0.9327492126
Q90: -1.333333333 | R90: -1.02E+00 | S90: -2.910828025 | T90: -1 | U90: -1.108107737 | W90: 0.993031089 | X90: 0.993031089 | Y90: 0.993031089 | Z90: 0.993031089 | AA90: 0.993031089 | AB90: 0.993031089 | AC90: 0.993031089 | AD90: 0.993031089 | AE90: 0.993031089 | AF90: 0.993031089 | AG90: 0.993031089 | AH90: 0.993031089 | AI90: 0.993031089 | AJ90: 0.993031089 | AK90: 0.993031089 | AL90: 0.993031089 | AM90: 0.993031089 | AN90: 0.993031089 | AO90: 0.993031089 | AP90: 0.993031089 | AQ90: 0.993031089 | AR90: 0.993031089
Q91: -1.333333333 | R91: -1.02E+00 | S91: -2.910828025 | T91: -1 | U91: -1.108107737 | W91: -0.9999020273 | X91: -0.9999020273 | Y91: -0.9999020273 | Z91: -0.9999020273 | AA91: -0.9999020273 | AB91: -0.9999020273 | AC91: -0.9999020273 | AD91: -0.9999020273 | AE91: -0.9999020273 | AF91: -0.9999020273 | AG91: -0.9999020273 | AH91: -0.9999020273 | AI91: -0.9999020273 | AJ91: -0.9999020273 | AK91: -0.9999020273 | AL91: -0.9999020273 | AM91: -0.9999020273 | AN91: -0.9999020273 | AO91: -0.9999020273 | AP91: -0.9999020273 | AQ91: -0.9999020273 | AR91: -0.9999020273
Q92: -1.333333333 | R92: -1.02E+00 | S92: -2.910828025 | T92: -1 | U92: -1.108107737 | W92: =2/(1+EXP(-2*W63))-1 -> -0.9999968263 | X92: -0.9999968263 | Y92: -0.9999968263 | Z92: -0.9999968263 | AA92: -0.9999968263 | AB92: -0.9999968263 | AC92: -0.9999968263 | AD92: -0.9999968263 | AE92: -0.9999968263 | AF92: -0.9999968263 | AG92: -0.9999968263 | AH92: -0.9999968263 | AI92: -0.9999968263 | AJ92: -0.9999968263 | AK92: -0.9999968263 | AL92: -0.9999968263 | AM92: -0.9999968263 | AN92: -0.9999968263 | AO92: -0.9999968263 | AP92: -0.9999968263 | AQ92: -0.9999968263 | AR92: -0.9999968263
Q93: -1.333333333 | R93: -1.02E+00 | S93: -2.910828025 | T93: -1 | U93: -1.108107737 | W93: 0.9992458131 | X93: 0.9992458131 | Y93: 0.9992458131 | Z93: 0.9992458131 | AA93: 0.9992458131 | AB93: 0.9992458131 | AC93: 0.9992458131 | AD93: 0.9992458131 | AE93: 0.9992458131 | AF93: 0.9992458131 | AG93: 0.9992458131 | AH93: 0.9992458131 | AI93: 0.9992458131 | AJ93: 0.9992458131 | AK93: 0.9992458131 | AL93: 0.9992458131 | AM93: 0.9992458131 | AN93: 0.9992458131 | AO93: 0.9992458131 | AP93: 0.9992458131 | AQ93: 0.9992458131 | AR93: 0.9992458131
Q94: -1.333333333 | R94: -1.02E+00 | S94: -2.910828025 | T94: -1 | U94: -1.108107737 | W94: -0.7149557265 | X94: -0.7149557265 | Y94: -0.7149557265 | Z94: -0.7149557265 | AA94: -0.7149557265 | AB94: -0.7149557265 | AC94: -0.7149557265 | AD94: -0.7149557265 | AE94: -0.7149557265 | AF94: -0.7149557265 | AG94: -0.7149557265 | AH94: -0.7149557265 | AI94: -0.7149557265 | AJ94: -0.7149557265 | AK94: -0.7149557265 | AL94: -0.7149557265 | AM94: -0.7149557265 | AN94: -0.7149557265 | AO94: -0.7149557265 | AP94: -0.7149557265 | AQ94: -0.7149557265 | AR94: -0.7149557265
Q95: -1.333333333 | R95: -1.02E+00 | S95: -2.910828025 | T95: -1 | U95: -1.108107737
Q96: -1.333333333 | R96: -1.02E+00 | S96: -2.910828025 | T96: -1 | U96: -1.108107737 | W96: B2 | X96: LW1
Q97: -1.333333333 | R97: -1.02E+00 | S97: -2.910828025 | T97: -1 | U97: -1.108107737 | W97: -0.076703 | X97: 0.164946 | Y97: -0.195672 | Z97: 0.580407 | AA97: 0.0686099 | AB97: -0.353247 | AC97: -0.276506 | AD97: -0.351912 | AE97: -0.0418419 | AF97: -0.0530896 | AG97: 0.603272 | AH97: 0.185605 | AI97: -0.0861565 | AJ97: -0.191799 | AK97: 0.106925 | AL97: -0.192764 | AM97: -0.574782 | AN97: -0.968199 | AO97: 0.083902 | AP97: -0.588376 | AQ97: -0.349308
Q98: -1.333333333 | R98: -1.02E+00 | S98: -2.910828025 | T98: -1 | U98: -1.108107737
Q99: -1.333333333 | R99: -1.02E+00 | S99: -2.910828025 | T99: -1 | U99: -1.108107737 | W99: LW1*Y1
Q100: -1.333333333 | R100: -1.02E+00 | S100: -2.910828025 | T100: -1 | U100: -1.108107737 | W100: =MMULT(X97:AQ97,W75:AR94) -> 0.1715352682 | X100: 0.1715352682 | Y100: 0.1715352682 | Z100: 0.1715352682 | AA100: 0.1715352682 | AB100: 0.1715352682 | AC100: 0.1715352682 | AD100: 0.1715352682 | AE100: 0.1715352682 | AF100: 0.1715352682 | AG100: 0.1715352682 | AH100: 0.1715352682 | AI100: 0.1715352682 | AJ100: 0.1715352682 | AK100: 0.1715352682 | AL100: 0.1715352682 | AM100: 0.1715352682 | AN100: 0.1715352682 | AO100: 0.1715352682 | AP100: 0.1715352682 | AQ100: 0.1715352682 | AR100: 0.1715352682
Q101: -1.333333333 | R101: -1.02E+00 | S101: -2.910828025 | T101: -1 | U101: -1.108107737 | W101: B2+LW1*Y1
Q102: -1.333333333 | R102: -1.02E+00 | S102: -2.910828025 | T102: -1 | U102: -1.108107737 | W102: =(W97)+W100:AR100 -> 0.0948322682 | X102: 0.0948322682 | Y102: 0.0948322682 | Z102: 0.0948322682 | AA102: 0.0948322682 | AB102: 0.0948322682 | AC102: 0.0948322682 | AD102: 0.0948322682 | AE102: 0.0948322682 | AF102: 0.0948322682 | AG102: 0.0948322682 | AH102: 0.0948322682 | AI102: 0.0948322682 | AJ102: 0.0948322682 | AK102: 0.0948322682 | AL102: 0.0948322682 | AM102: 0.0948322682 | AN102: 0.0948322682 | AO102: 0.0948322682 | AP102: 0.0948322682 | AQ102: 0.0948322682 | AR102: 0.0948322682
Q103: -1.333333333 | R103: -1.02E+00 | S103: -2.910828025 | T103: -1 | U103: -1.108107737
Q104: -1.333333333 | R104: -1.02E+00 | S104: -2.910828025 | T104: -1 | U104: -1.108107737 | W104: Ydenor
Q105: -1.333333333 | R105: -1.02E+00 | S105: -2.910828025 | T105: -1 | U105: -1.108107737 | W105: =(W102+1)*(($N$5-$N$3)/2)+$N$3 -> 0.2082211329 | X105: =(X102+1)*(($N$5-$N$3)/2)+$N$3 -> 0.2082211329 | Y105: 0.2082211329 | Z105: 0.2082211329 | AA105: 0.2082211329 | AB105: 0.2082211329 | AC105: 0.2082211329 | AD105: 0.2082211329 | AE105: 0.2082211329 | AF105: 0.2082211329 | AG105: 0.2082211329 | AH105: 0.2082211329 | AI105: 0.2082211329 | AJ105: 0.2082211329 | AK105: 0.2082211329 | AL105: 0.2082211329 | AM105: 0.2082211329 | AN105: 0.2082211329 | AO105: 0.2082211329 | AP105: 0.2082211329 | AQ105: 0.2082211329 | AR105: 0.2082211329
Q106: -1.333333333 | R106: -1.02E+00 | S106: -2.910828025 | T106: -1 | U106: -1.108107737 | W106: Transpose (Ydenor)
Q107: -1.333333333 | R107: -1.02E+00 | S107: -2.910828025 | T107: -1 | U107: -1.108107737 | W107: =TRANSPOSE(W105:AR105) -> 0.2082211329
Q108: -1.333333333 | R108: -1.02E+00 | S108: -2.910828025 | T108: -1 | U108: -1.108107737 | W108: 0.2082211329
Q109: -1.333333333 | R109: -1.02E+00 | S109: -2.910828025 | T109: -1 | U109: -1.108107737 | W109: 0.2082211329
Q110: -1.333333333 | R110: -1.02E+00 | S110: -2.910828025 | T110: -1 | U110: -1.108107737 | W110: 0.2082211329
Q111: -1.333333333 | R111: -1.02E+00 | S111: -2.910828025 | T111: -1 | U111: -1.108107737 | W111: 0.2082211329
Q112: -1.333333333 | R112: -1.02E+00 | S112: -2.910828025 | T112: -1 | U112: -1.108107737 | W112: 0.2082211329
Q113: -1.333333333 | R113: -1.02E+00 | S113: -2.910828025 | T113: -1 | U113: -1.108107737 | W113: 0.2082211329
Q114: -1.333333333 | R114: -1.02E+00 | S114: -2.910828025 | T114: -1 | U114: -1.108107737 | W114: 0.2082211329
Q115: -1.333333333 | R115: -1.02E+00 | S115: -2.910828025 | T115: -1 | U115: -1.108107737 | W115: 0.2082211329
Q116: -1.333333333 | R116: -1.02E+00 | S116: -2.910828025 | T116: -1 | U116: -1.108107737 | W116: 0.2082211329
Q117: -1.333333333 | R117: -1.02E+00 | S117: -2.910828025 | T117: -1 | U117: -1.108107737 | W117: 0.2082211329
Q118: -1.333333333 | R118: -1.02E+00 | S118: -2.910828025 | T118: -1 | U118: -1.108107737 | W118: 0.2082211329
Q119: -1.333333333 | R119: -1.02E+00 | S119: -2.910828025 | T119: -1 | U119: -1.108107737 | W119: 0.2082211329
Q120: -1.333333333 | R120: -1.02E+00 | S120: -2.910828025 | T120: -1 | U120: -1.108107737 | W120: 0.2082211329
Q121: -1.333333333 | R121: -1.02E+00 | S121: -2.910828025 | T121: -1 | U121: -1.108107737 | W121: 0.2082211329
Q122: -1.333333333 | R122: -1.02E+00 | S122: -2.910828025 | T122: -1 | U122: -1.108107737 | W122: 0.2082211329
Q123: -1.333333333 | R123: -1.02E+00 | S123: -2.910828025 | T123: -1 | U123: -1.108107737 | W123: 0.2082211329
Q124: -1.333333333 | R124: -1.02E+00 | S124: -2.910828025 | T124: -1 | U124: -1.108107737 | W124: 0.2082211329
Q125: -1.333333333 | R125: -1.02E+00 | S125: -2.910828025 | T125: -1 | U125: -1.108107737 | W125: 0.2082211329
Q126: -1.333333333 | R126: -1.02E+00 | S126: -2.910828025 | T126: -1 | U126: -1.108107737 | W126: 0.2082211329
Q127: -1.333333333 | R127: -1.02E+00 | S127: -2.910828025 | T127: -1 | U127: -1.108107737 | W127: 0.2082211329
Q128: -1.333333333 | R128: -1.02E+00 | S128: -2.910828025 | T128: -1 | U128: -1.108107737 | W128: 0.2082211329
Q129: -1.333333333 | R129: -1.02E+00 | S129: -2.910828025 | T129: -1 | U129: -1.108107737
Q130: -1.333333333 | R130: -1.02E+00 | S130: -2.910828025 | T130: -1 | U130: -1.108107737
Q131: =2*((L131-P$3)/(P$5-P$3))-1 -> -1.333333333 | R131: =2*((H131-P$8)/(P$10-P$8))-1 -> -1.02E+00 | S131: =2*((I131-P$13)/(P$15-P$13))-1 -> -2.910828025 | T131: =2*((J131-P$18)/(P$20-P$18))-1 -> -1 | U131: =2*((K131-P$23)/(P$25-P$23))-1 -> -1.108107737
Q132: -1.333333333 | R132: -1.02E+00 | S132: -2.910828025 | T132: -1 | U132: -1.108107737
Q133: -1.333333333 | R133: -1.02E+00 | S133: -2.910828025 | T133: -1 | U133: -1.108107737
Q134: -1.333333333 | R134: -1.02E+00 | S134: -2.910828025 | T134: -1 | U134: -1.108107737
Q135: -1.333333333 | R135: -1.02E+00 | S135: -2.910828025 | T135: -1 | U135: -1.108107737
Q136: -1.333333333 | R136: -1.02E+00 | S136: -2.910828025 | T136: -1 | U136: -1.108107737
Q137: -1.333333333 | R137: -1.02E+00 | S137: -2.910828025 | T137: -1 | U137: -1.108107737
Q138: -1.333333333 | R138: -1.02E+00 | S138: -2.910828025 | T138: -1 | U138: -1.108107737
Q139: -1.333333333 | R139: -1.02E+00 | S139: -2.910828025 | T139: -1 | U139: -1.108107737
Q140: -1.333333333 | R140: -1.02E+00 | S140: -2.910828025 | T140: -1 | U140: -1.108107737
Q141: -1.333333333 | R141: -1.02E+00 | S141: -2.910828025 | T141: -1 | U141: -1.108107737
Q142: -1.333333333 | R142: -1.02E+00 | S142: -2.910828025 | T142: -1 | U142: -1.108107737
Q143: -1.333333333 | R143: -1.02E+00 | S143: -2.910828025 | T143: -1 | U143: -1.108107737
Q144: -1.333333333 | R144: -1.02E+00 | S144: -2.910828025 | T144: -1 | U144: -1.108107737
Q145: -1.333333333 | R145: -1.02E+00 | S145: -2.910828025 | T145: -1 | U145: -1.108107737
Q146: -1.333333333 | R146: -1.02E+00 | S146: -2.910828025 | T146: -1 | U146: -1.108107737
Q147: -1.333333333 | R147: -1.02E+00 | S147: -2.910828025 | T147: -1 | U147: -1.108107737
Q148: -1.333333333 | R148: -1.02E+00 | S148: -2.910828025 | T148: -1 | U148: -1.108107737
Q149: -1.333333333 | R149: -1.02E+00 | S149: -2.910828025 | T149: -1 | U149: -1.108107737
Q150: -1.333333333 | R150: -1.02E+00 | S150: -2.910828025 | T150: -1 | U150: -1.108107737
Q151: -1.333333333 | R151: -1.02E+00 | S151: -2.910828025 | T151: -1 | U151: -1.108107737
Q152: -1.333333333 | R152: -1.02E+00 | S152: -2.910828025 | T152: -1 | U152: -1.108107737
Q153: -1.333333333 | R153: -1.02E+00 | S153: -2.910828025 | T153: -1 | U153: -1.108107737
Q154: -1.333333333 | R154: -1.02E+00 | S154: -2.910828025 | T154: -1 | U154: -1.108107737
Q155: -1.333333333 | R155: -1.02E+00 | S155: -2.910828025 | T155: -1 | U155: -1.108107737
Q156: -1.333333333 | R156: -1.02E+00 | S156: -2.910828025 | T156: -1 | U156: -1.108107737
Q157: -1.333333333 | R157: -1.02E+00 | S157: -2.910828025 | T157: -1 | U157: -1.108107737
Q158: -1.333333333 | R158: -1.02E+00 | S158: -2.910828025 | T158: -1 | U158: -1.108107737
Q159: -1.333333333 | R159: -1.02E+00 | S159: -2.910828025 | T159: -1 | U159: -1.108107737
Q160: -1.333333333 | R160: -1.02E+00 | S160: -2.910828025 | T160: -1 | U160: -1.108107737
Q161: -1.333333333 | R161: -1.02E+00 | S161: -2.910828025 | T161: -1 | U161: -1.108107737
Q162: -1.333333333 | R162: -1.02E+00 | S162: -2.910828025 | T162: -1 | U162: -1.108107737
Q163: -1.333333333 | R163: -1.02E+00 | S163: -2.910828025 | T163: -1 | U163: -1.108107737
Q164: -1.333333333 | R164: -1.02E+00 | S164: -2.910828025 | T164: -1 | U164: -1.108107737
Q165: -1.333333333 | R165: -1.02E+00 | S165: -2.910828025 | T165: -1 | U165: -1.108107737
Q166: -1.333333333 | R166: -1.02E+00 | S166: -2.910828025 | T166: -1 | U166: -1.108107737
Q167: -1.333333333 | R167: -1.02E+00 | S167: -2.910828025 | T167: -1 | U167: -1.108107737
Q168: -1.333333333 | R168: -1.02E+00 | S168: -2.910828025 | T168: -1 | U168: -1.108107737
Q169: -1.333333333 | R169: -1.02E+00 | S169: -2.910828025 | T169: -1 | U169: -1.108107737
Q170: -1.333333333 | R170: -1.02E+00 | S170: -2.910828025 | T170: -1 | U170: -1.108107737
Q171: -1.333333333 | R171: -1.02E+00 | S171: -2.910828025 | T171: -1 | U171: -1.108107737
Q172: -1.333333333 | R172: -1.02E+00 | S172: -2.910828025 | T172: -1 | U172: -1.108107737
Q173: -1.333333333 | R173: -1.02E+00 | S173: -2.910828025 | T173: -1 | U173: -1.108107737
Q174: -1.333333333 | R174: -1.02E+00 | S174: -2.910828025 | T174: -1 | U174: -1.108107737
Q175: -1.333333333 | R175: -1.02E+00 | S175: -2.910828025 | T175: -1 | U175: -1.108107737
Q176: -1.333333333 | R176: -1.02E+00 | S176: -2.910828025 | T176: -1 | U176: -1.108107737
Q177: -1.333333333 | R177: -1.02E+00 | S177: -2.910828025 | T177: -1 | U177: -1.108107737
Q178: -1.333333333 | R178: -1.02E+00 | S178: -2.910828025 | T178: -1 | U178: -1.108107737
Q179: -1.333333333 | R179: -1.02E+00 | S179: -2.910828025 | T179: -1 | U179: -1.108107737
Q180: -1.333333333 | R180: -1.02E+00 | S180: -2.910828025 | T180: -1 | U180: -1.108107737
Q181: -1.333333333 | R181: -1.02E+00 | S181: -2.910828025 | T181: -1 | U181: -1.108107737
Q182: -1.333333333 | R182: -1.02E+00 | S182: -2.910828025 | T182: -1 | U182: -1.108107737
